{"text_format":"1","workbook":"xlsx","n_sheets":7,"sheets":["Algemene gegevens","BV & Plaatsing","Aanzuivering","Tussenblad","Schriftelijke verklaring","Vrij blad","Validaties"],"not_rendered":{"charts":0,"images":0,"macros":1,"external_links":1,"defined_names":40,"comments":5,"pivot_tables":1},"unopened":[],"bounds":{"document_bytes":16777216,"sheet_cells":100000,"rows_first":2000,"rows_last":500,"rows_between":2000,"halvings":0,"cell_chars":16384,"cell_head_chars":4096},"cells_cut":0,"cells_raw":0,"read":"whole","date_system":"1900"}

{"sheet":"Algemene gegevens","index":0,"n_rows":26,"n_cols":12,"rows_kept":26,"cut":false,"hidden":false,"merged":[[21,2,29,4],[13,2,13,3],[12,2,12,3],[3,2,3,4],[18,6,20,9],[5,6,11,8],[6,2,6,3],[9,2,9,3],[8,2,8,3],[25,0,35,0],[4,6,4,8],[5,2,5,3],[17,2,19,4],[4,2,4,3],[11,2,11,3],[0,0,22,0],[0,2,0,4],[0,6,0,9],[7,2,7,3],[10,2,10,3],[15,2,16,4],[15,6,17,9],[12,6,12,8],[22,6,29,9],[3,6,3,9]]}
["Aanzuiveringsafrekening BB",null,null,null,null,null,null,null,null,null,null,"Actieve Veredeling"]
[null,null,"Douane",null,null,null,null,null,null,null,null,"Bijzondere Bestemming"]
[]
[null,null,"Gegevens Vergunninghouder",null,null,null,"Gegevens Vergunning"]
[null,null,"Naam:",null,null,null,"Periode:"]
[null,null,"Adres:",null,null,null,"De periode geldt voor één maand"]
[null,null,"Woonplaats:"]
[null,null,"EORI nummer:"]
[null,null,"Telefoon:"]
[null,null,"Einddatum vergunning:"]
[null,null,"Vergunning:",null,"Bijzondere bestemming"]
[null,null,"Vergunningnummer:"]
[null,null,"Contactpersoon:",null,null,null,"Aanzuiveringstermijn in maanden:"]
[null,null,"E-mail adres:"]
[]
[null,null,"Aanzuiveringsafrekening ter beschikking gesteld door de Douane.",null,null,null,"De juistheid van de door u ingevulde gegevens blijft uw verantwoordelijkheid!"]
[]
[null,null,"De Aanzuiveringsafrekening dient bij inlevering begeleid te worden door de schriftelijke verklaring opgenomen in het blad 'Schriftelijke verklaring'."]
[null,null,null,null,null,null,"Indien er een storing is tijdens het gebruik van de Aanzuiveringsafrekening kunt u contact opnemen met uw klantmanager of het Bedrijven Contact Punt."]
[]
[]
[null,null,"Als u een nieuwe versie van deze Aanzuiveringsafrekening heeft ontvangen, die dient om een oudere versie te vervangen dan kunt u met de knop hieronder de gegevens van de oude Aanzuiveringsafrekening overnemen in de nieuwe versie. In de Toelichting is de werkwijze uitgelegd."]
[null,null,null,null,null,null,"Toelichting\n\nEr is een uitgebreide toelichting over het gebruik van deze applicatie. Voor een goed gebruik van deze applicatie is het belangrijk om die toelichting te lezen.\n\nDeze toelichting kunt u vinden op de website van de Douane."]
[]
[]
["Versie 2021-06"]

{"sheet":"BV & Plaatsing","index":1,"n_rows":492,"n_cols":34,"rows_kept":492,"cut":false,"hidden":false,"merged":[[8,15,9,15],[8,26,9,26],[491,1,491,3],[25,0,35,0],[8,5,9,5],[8,8,9,8],[0,0,22,0],[4,2,4,3],[8,3,9,3],[1,1,1,3],[0,1,0,3],[2,2,2,3],[3,2,3,3],[8,25,9,25],[8,1,9,1],[8,2,9,2],[8,12,9,12],[8,24,9,24],[8,23,9,23],[8,10,9,10],[7,15,7,17],[8,16,9,16],[7,12,7,14],[8,21,9,21],[8,20,9,20],[8,19,9,19],[8,18,9,18],[8,11,9,11],[8,22,9,22],[8,13,9,13],[8,17,9,17],[8,14,9,14],[7,2,7,6],[8,6,9,6],[8,7,9,7],[8,9,9,9],[8,4,9,4]]}
[{"$f":"'Algemene gegevens'!A1:A23","v":"Aanzuiveringsafrekening BB"},"Douane",null,null,1,null,null,null,null,{"$f":"IF(periode=\"\",DATE(2030,1,1),IF(VALUE(LEFT(periode,4))>2010,DATE(LEFT(periode,4),RIGHT(periode,2)+1,1),\"\"))","v":47484}]
[null,"Blad 'BV & Plaatsing' ",null,null,null,null,null,null,null,null,"PLAATSING","IM",null,null,null,null,null,null,null,null,null,null,null,"Hoeveelheid","Invoerrecht",null,null,null,null,null,"Geen geplaatste goederen geboekt","Geen aangiften om aan te zuiveren"]
[null,"Naam:",{"$f":"naam","v":0},null,null,null,null,null,null,null,"BV","EU",null,null,null,null,null,null,null,null,null,null,"Totaal restant BV:"]
[null,"Periode:",{"$f":"periode","v":0},null,null,null,null,null,null,null,null,"Inschr",null,null,null,null,null,null,null,null,null,null,"Totaal restant:",{"$f":"SUM($X$12:$X$490)","v":0},{"$f":"SUM($Y$12:$Y$490)","v":0}]
[]
[]
[]
[null,null,"Aangiftegegevens plaatsing",null,null,null,null,null,null,null,null,null,"Ad valorem recht",null,null,"Specifiek recht"]
[null,"Soort mutatie","Soort\naangifte","Aangifte Identificatie Nummer","Plaats van afgifte","Datum aanvaarding (DD-MM-JJ)","Datum plaatsing      (DD-MM-JJ)","Referentienummer in de administratie","Datum \naanzuivering","Is de datum van aanzuivering overschreden?","Omschrijving geplaatste goederen (evt.in de vorm van een artikelnummer)","Taric-code","Inv.\nrecht%","Douanewaarde","Rechten\nAVR","Tarief","Heffings-\ngrondslag","Rechten\nSR","Totaal Rechten","Hoeveelheid geplaatste goederen","Eenheid hoeveelheid (b.v. kilo, liter, gram, stuk)","Hoeveelheid vorige periode(n) aangezuiverd","Hoeveelheid deze periode aangezuiverd","Restant hoeveelheid","Restant rechten (gerelateerd aan hoeveelheid)","Totaal rechten in deze \nperiode aangezuiverd \n(gerelateerd aan hoeveelheid)","Opmerkingen (vrij tekstveld)"]
[null,null,null,null,null,null,null,null,null,null,null,null,null,null,null,null,null,null,null,null,null,null,null,null,null,null,null,null,"Aangiftenummer","Hoeveelheid"]
[null,"lege regel","lege regel",null,"8/12/2017","Bewerkte goederen",null,"lege regel",null,null,"lege regel",null,null,null,null,null,null,null,null,null,null,null,null,null,null,null,"lege regel","2017-08-30",null,null,null,null,null,"Invoergoederen"]
[null,null,null,null,null,null,null,null,{"$f":"IF(AND(G12>40000,termijn>0),EDATE(G12,termijn),\"\")","v":""},{"$f":"IF(AND(G12>0,termijn>0),IF(AND(($J$1)>I12,X12>0),\"Termijn overschreden\",\"\"),\"\")","v":""},null,null,null,null,null,null,null,null,{"$f":"R12+O12","v":0},null,null,null,{"$f":"SUM(IF(Aanzuivering!$AC$10:$AC$490=D12,Aanzuivering!$O$10:$O$490,0))","v":0},{"$f":"IF(OR((T12-V12-W12)>0.01,(T12-V12-W12)<-0.01),T12-V12-W12,0)","v":0},{"$f":"IF(AND(X12<>0,S12>0),IF(OR((S12/T12*X12) > 0.5,(S12/T12*X12) < -0.5),ROUND(S12/T12*X12,2),0),0)","v":0},{"$f":"IF(W12>0,ROUND(W12/T12*S12,2),0)","v":0},null,null,{"$f":"D12","v":0},{"$f":"X12","v":0}]
[null,null,null,null,null,null,null,null,"","",null,null,null,null,null,null,null,null,{"$f":"R13+O13","v":0},null,null,null,{"$f":"SUM(IF(Aanzuivering!$AC$10:$AC$490=D13,Aanzuivering!$O$10:$O$490,0))","v":0},{"$f":"IF(OR((T13-V13-W13)>0.01,(T13-V13-W13)<-0.01),T13-V13-W13,0)","v":0},{"$f":"IF(AND(X13<>0,S13>0),IF(OR((S13/T13*X13) > 0.5,(S13/T13*X13) < -0.5),ROUND(S13/T13*X13,2),0),0)","v":0},{"$f":"IF(W13>0,ROUND(W13/T13*S13,2),0)","v":0},null,null,{"$f":"D13","v":0},{"$f":"X13","v":0}]
[null,null,null,null,null,null,null,null,"","",null,null,null,null,null,null,null,null,0,null,null,null,{"$f":"SUM(IF(Aanzuivering!$AC$10:$AC$490=D14,Aanzuivering!$O$10:$O$490,0))","v":0},0,0,0,null,null,0,0]
[null,null,null,null,null,null,null,null,"","",null,null,null,null,null,null,null,null,0,null,null,null,{"$f":"SUM(IF(Aanzuivering!$AC$10:$AC$490=D15,Aanzuivering!$O$10:$O$490,0))","v":0},0,0,0,null,null,0,0]
[null,null,null,null,null,null,null,null,"","",null,null,null,null,null,null,null,null,0,null,null,null,{"$f":"SUM(IF(Aanzuivering!$AC$10:$AC$490=D16,Aanzuivering!$O$10:$O$490,0))","v":0},0,0,0,null,null,0,0]
[null,null,null,null,null,null,null,null,"","",null,null,null,null,null,null,null,null,0,null,null,null,{"$f":"SUM(IF(Aanzuivering!$AC$10:$AC$490=D17,Aanzuivering!$O$10:$O$490,0))","v":0},0,0,0,null,null,0,0]
[null,null,null,null,null,null,null,null,"","",null,null,null,null,null,null,null,null,0,null,null,null,{"$f":"SUM(IF(Aanzuivering!$AC$10:$AC$490=D18,Aanzuivering!$O$10:$O$490,0))","v":0},0,0,0,null,null,0,0]
[null,null,null,null,null,null,null,null,"","",null,null,null,null,null,null,null,null,0,null,null,null,{"$f":"SUM(IF(Aanzuivering!$AC$10:$AC$490=D19,Aanzuivering!$O$10:$O$490,0))","v":0},0,0,0,null,null,0,0]
[null,null,null,null,null,null,null,null,"","",null,null,null,null,null,null,null,null,0,null,null,null,{"$f":"SUM(IF(Aanzuivering!$AC$10:$AC$490=D20,Aanzuivering!$O$10:$O$490,0))","v":0},0,0,0,null,null,0,0]
[null,null,null,null,null,null,null,null,"",{"$f":"IF(AND(G21>0,termijn>0),IF(AND(($J$1)>I21,X21>0),\"Termijn overschreden\",\"\"),\"\")","v":""},null,null,null,null,null,null,null,null,0,null,null,null,{"$f":"SUM(IF(Aanzuivering!$AC$10:$AC$490=D21,Aanzuivering!$O$10:$O$490,0))","v":0},0,0,0,null,null,0,0]
[null,null,null,null,null,null,null,null,"","",null,null,null,null,null,null,null,null,0,null,null,null,{"$f":"SUM(IF(Aanzuivering!$AC$10:$AC$490=D22,Aanzuivering!$O$10:$O$490,0))","v":0},0,0,0,null,null,0,0]
[null,null,null,null,null,null,null,null,"","",null,null,null,null,null,null,null,null,0,null,null,null,{"$f":"SUM(IF(Aanzuivering!$AC$10:$AC$490=D23,Aanzuivering!$O$10:$O$490,0))","v":0},0,0,0,null,null,0,0]
[null,null,null,null,null,null,null,null,"","",null,null,null,null,null,null,null,null,0,null,null,null,{"$f":"SUM(IF(Aanzuivering!$AC$10:$AC$490=D24,Aanzuivering!$O$10:$O$490,0))","v":0},0,0,0,null,null,0,0]
[null,null,null,null,null,null,null,null,"","",null,null,null,null,null,null,null,null,0,null,null,null,{"$f":"SUM(IF(Aanzuivering!$AC$10:$AC$490=D25,Aanzuivering!$O$10:$O$490,0))","v":0},0,0,0,null,null,0,0]
[{"$f":"'Algemene gegevens'!A26:A36","v":"Versie 2021-06"},null,null,null,null,null,null,null,"","",null,null,null,null,null,null,null,null,0,null,null,null,{"$f":"SUM(IF(Aanzuivering!$AC$10:$AC$490=D26,Aanzuivering!$O$10:$O$490,0))","v":0},0,0,0,null,null,0,0]
[null,null,null,null,null,null,null,null,"","",null,null,null,null,null,null,null,null,0,null,null,null,{"$f":"SUM(IF(Aanzuivering!$AC$10:$AC$490=D27,Aanzuivering!$O$10:$O$490,0))","v":0},0,0,0,null,null,0,0]
[null,null,null,null,null,null,null,null,"","",null,null,null,null,null,null,null,null,0,null,null,null,{"$f":"SUM(IF(Aanzuivering!$AC$10:$AC$490=D28,Aanzuivering!$O$10:$O$490,0))","v":0},0,0,0,null,null,0,0]
[null,null,null,null,null,null,null,null,"","",null,null,null,null,null,null,null,null,0,null,null,null,{"$f":"SUM(IF(Aanzuivering!$AC$10:$AC$490=D29,Aanzuivering!$O$10:$O$490,0))","v":0},0,0,0,null,null,0,0]
[null,null,null,null,null,null,null,null,"","",null,null,null,null,null,null,null,null,0,null,null,null,{"$f":"SUM(IF(Aanzuivering!$AC$10:$AC$490=D30,Aanzuivering!$O$10:$O$490,0))","v":0},0,0,0,null,null,0,0]
[null,null,null,null,null,null,null,null,"","",null,null,null,null,null,null,null,null,0,null,null,null,{"$f":"SUM(IF(Aanzuivering!$AC$10:$AC$490=D31,Aanzuivering!$O$10:$O$490,0))","v":0},0,0,0,null,null,0,0]
[null,null,null,null,null,null,null,null,"","",null,null,null,null,null,null,null,null,0,null,null,null,{"$f":"SUM(IF(Aanzuivering!$AC$10:$AC$490=D32,Aanzuivering!$O$10:$O$490,0))","v":0},0,0,0,null,null,0,0]
[null,null,null,null,null,null,null,null,"","",null,null,null,null,null,null,null,null,0,null,null,null,{"$f":"SUM(IF(Aanzuivering!$AC$10:$AC$490=D33,Aanzuivering!$O$10:$O$490,0))","v":0},0,0,0,null,null,0,0]
[null,null,null,null,null,null,null,null,"","",null,null,null,null,null,null,null,null,0,null,null,null,{"$f":"SUM(IF(Aanzuivering!$AC$10:$AC$490=D34,Aanzuivering!$O$10:$O$490,0))","v":0},0,0,0,null,null,0,0]
[null,null,null,null,null,null,null,null,"","",null,null,null,null,null,null,null,null,0,null,null,null,{"$f":"SUM(IF(Aanzuivering!$AC$10:$AC$490=D35,Aanzuivering!$O$10:$O$490,0))","v":0},0,0,0,null,null,0,0]
[null,null,null,null,null,null,null,null,"","",null,null,null,null,null,null,null,null,0,null,null,null,{"$f":"SUM(IF(Aanzuivering!$AC$10:$AC$490=D36,Aanzuivering!$O$10:$O$490,0))","v":0},0,0,0,null,null,0,0]
[null,null,null,null,null,null,null,null,"","",null,null,null,null,null,null,null,null,0,null,null,null,{"$f":"SUM(IF(Aanzuivering!$AC$10:$AC$490=D37,Aanzuivering!$O$10:$O$490,0))","v":0},0,0,0,null,null,0,0]
[null,null,null,null,null,null,null,null,"","",null,null,null,null,null,null,null,null,0,null,null,null,{"$f":"SUM(IF(Aanzuivering!$AC$10:$AC$490=D38,Aanzuivering!$O$10:$O$490,0))","v":0},0,0,0,null,null,0,0]
[null,null,null,null,null,null,null,null,"","",null,null,null,null,null,null,null,null,0,null,null,null,{"$f":"SUM(IF(Aanzuivering!$AC$10:$AC$490=D39,Aanzuivering!$O$10:$O$490,0))","v":0},0,0,0,null,null,0,0]
[null,null,null,null,null,null,null,null,"","",null,null,null,null,null,null,null,null,0,null,null,null,{"$f":"SUM(IF(Aanzuivering!$AC$10:$AC$490=D40,Aanzuivering!$O$10:$O$490,0))","v":0},0,0,0,null,null,0,0]
[null,null,null,null,null,null,null,null,"","",null,null,null,null,null,null,null,null,0,null,null,null,{"$f":"SUM(IF(Aanzuivering!$AC$10:$AC$490=D41,Aanzuivering!$O$10:$O$490,0))","v":0},0,0,0,null,null,0,0]
[null,null,null,null,null,null,null,null,"","",null,null,null,null,null,null,null,null,0,null,null,null,{"$f":"SUM(IF(Aanzuivering!$AC$10:$AC$490=D42,Aanzuivering!$O$10:$O$490,0))","v":0},0,0,0,null,null,0,0]
[null,null,null,null,null,null,null,null,"","",null,null,null,null,null,null,null,null,0,null,null,null,{"$f":"SUM(IF(Aanzuivering!$AC$10:$AC$490=D43,Aanzuivering!$O$10:$O$490,0))","v":0},0,0,0,null,null,0,0]
[null,null,null,null,null,null,null,null,"",{"$f":"IF(AND(G44>0,termijn>0),IF(AND(($J$1)>I44,X44>0),\"Termijn overschreden\",\"\"),\"\")","v":""},null,null,null,null,null,null,null,null,0,null,null,null,{"$f":"SUM(IF(Aanzuivering!$AC$10:$AC$490=D44,Aanzuivering!$O$10:$O$490,0))","v":0},0,0,0,null,null,0,0]
[null,null,null,null,null,null,null,null,"","",null,null,null,null,null,null,null,null,0,null,null,null,{"$f":"SUM(IF(Aanzuivering!$AC$10:$AC$490=D45,Aanzuivering!$O$10:$O$490,0))","v":0},0,0,0,null,null,0,0]
[null,null,null,null,null,null,null,null,"","",null,null,null,null,null,null,null,null,0,null,null,null,{"$f":"SUM(IF(Aanzuivering!$AC$10:$AC$490=D46,Aanzuivering!$O$10:$O$490,0))","v":0},0,0,0,null,null,0,0]
[null,null,null,null,null,null,null,null,"","",null,null,null,null,null,null,null,null,0,null,null,null,{"$f":"SUM(IF(Aanzuivering!$AC$10:$AC$490=D47,Aanzuivering!$O$10:$O$490,0))","v":0},0,0,0,null,null,0,0]
[null,null,null,null,null,null,null,null,"","",null,null,null,null,null,null,null,null,0,null,null,null,{"$f":"SUM(IF(Aanzuivering!$AC$10:$AC$490=D48,Aanzuivering!$O$10:$O$490,0))","v":0},0,0,0,null,null,0,0]
[null,null,null,null,null,null,null,null,"","",null,null,null,null,null,null,null,null,0,null,null,null,{"$f":"SUM(IF(Aanzuivering!$AC$10:$AC$490=D49,Aanzuivering!$O$10:$O$490,0))","v":0},0,0,0,null,null,0,0]
[null,null,null,null,null,null,null,null,"","",null,null,null,null,null,null,null,null,0,null,null,null,{"$f":"SUM(IF(Aanzuivering!$AC$10:$AC$490=D50,Aanzuivering!$O$10:$O$490,0))","v":0},0,0,0,null,null,0,0]
[null,null,null,null,null,null,null,null,"","",null,null,null,null,null,null,null,null,0,null,null,null,{"$f":"SUM(IF(Aanzuivering!$AC$10:$AC$490=D51,Aanzuivering!$O$10:$O$490,0))","v":0},0,0,0,null,null,0,0]
[null,null,null,null,null,null,null,null,"","",null,null,null,null,null,null,null,null,0,null,null,null,{"$f":"SUM(IF(Aanzuivering!$AC$10:$AC$490=D52,Aanzuivering!$O$10:$O$490,0))","v":0},0,0,0,null,null,0,0]
[null,null,null,null,null,null,null,null,"","",null,null,null,null,null,null,null,null,0,null,null,null,{"$f":"SUM(IF(Aanzuivering!$AC$10:$AC$490=D53,Aanzuivering!$O$10:$O$490,0))","v":0},0,0,0,null,null,0,0]
[null,null,null,null,null,null,null,null,"","",null,null,null,null,null,null,null,null,0,null,null,null,{"$f":"SUM(IF(Aanzuivering!$AC$10:$AC$490=D54,Aanzuivering!$O$10:$O$490,0))","v":0},0,0,0,null,null,0,0]
[null,null,null,null,null,null,null,null,"","",null,null,null,null,null,null,null,null,0,null,null,null,{"$f":"SUM(IF(Aanzuivering!$AC$10:$AC$490=D55,Aanzuivering!$O$10:$O$490,0))","v":0},0,0,0,null,null,0,0]
[null,null,null,null,null,null,null,null,"","",null,null,null,null,null,null,null,null,0,null,null,null,{"$f":"SUM(IF(Aanzuivering!$AC$10:$AC$490=D56,Aanzuivering!$O$10:$O$490,0))","v":0},0,0,0,null,null,0,0]
[null,null,null,null,null,null,null,null,"","",null,null,null,null,null,null,null,null,0,null,null,null,{"$f":"SUM(IF(Aanzuivering!$AC$10:$AC$490=D57,Aanzuivering!$O$10:$O$490,0))","v":0},0,0,0,null,null,0,0]
[null,null,null,null,null,null,null,null,"","",null,null,null,null,null,null,null,null,0,null,null,null,{"$f":"SUM(IF(Aanzuivering!$AC$10:$AC$490=D58,Aanzuivering!$O$10:$O$490,0))","v":0},0,0,0,null,null,0,0]
[null,null,null,null,null,null,null,null,"","",null,null,null,null,null,null,null,null,0,null,null,null,{"$f":"SUM(IF(Aanzuivering!$AC$10:$AC$490=D59,Aanzuivering!$O$10:$O$490,0))","v":0},0,0,0,null,null,0,0]
[null,null,null,null,null,null,null,null,"","",null,null,null,null,null,null,null,null,0,null,null,null,{"$f":"SUM(IF(Aanzuivering!$AC$10:$AC$490=D60,Aanzuivering!$O$10:$O$490,0))","v":0},0,0,0,null,null,0,0]
[null,null,null,null,null,null,null,null,"","",null,null,null,null,null,null,null,null,0,null,null,null,{"$f":"SUM(IF(Aanzuivering!$AC$10:$AC$490=D61,Aanzuivering!$O$10:$O$490,0))","v":0},0,0,0,null,null,0,0]
[null,null,null,null,null,null,null,null,"","",null,null,null,null,null,null,null,null,0,null,null,null,{"$f":"SUM(IF(Aanzuivering!$AC$10:$AC$490=D62,Aanzuivering!$O$10:$O$490,0))","v":0},0,0,0,null,null,0,0]
[null,null,null,null,null,null,null,null,"","",null,null,null,null,null,null,null,null,0,null,null,null,{"$f":"SUM(IF(Aanzuivering!$AC$10:$AC$490=D63,Aanzuivering!$O$10:$O$490,0))","v":0},0,0,0,null,null,0,0]
[null,null,null,null,null,null,null,null,"","",null,null,null,null,null,null,null,null,0,null,null,null,{"$f":"SUM(IF(Aanzuivering!$AC$10:$AC$490=D64,Aanzuivering!$O$10:$O$490,0))","v":0},0,0,0,null,null,0,0]
[null,null,null,null,null,null,null,null,"","",null,null,null,null,null,null,null,null,0,null,null,null,{"$f":"SUM(IF(Aanzuivering!$AC$10:$AC$490=D65,Aanzuivering!$O$10:$O$490,0))","v":0},0,0,0,null,null,0,0]
[null,null,null,null,null,null,null,null,"","",null,null,null,null,null,null,null,null,0,null,null,null,{"$f":"SUM(IF(Aanzuivering!$AC$10:$AC$490=D66,Aanzuivering!$O$10:$O$490,0))","v":0},0,0,0,null,null,0,0]
[null,null,null,null,null,null,null,null,"","",null,null,null,null,null,null,null,null,0,null,null,null,{"$f":"SUM(IF(Aanzuivering!$AC$10:$AC$490=D67,Aanzuivering!$O$10:$O$490,0))","v":0},0,0,0,null,null,0,0]
[null,null,null,null,null,null,null,null,"","",null,null,null,null,null,null,null,null,0,null,null,null,{"$f":"SUM(IF(Aanzuivering!$AC$10:$AC$490=D68,Aanzuivering!$O$10:$O$490,0))","v":0},0,0,0,null,null,0,0]
[null,null,null,null,null,null,null,null,{"$f":"IF(AND(G69>40000,termijn>0),EDATE(G69,termijn),\"\")","v":""},{"$f":"IF(AND(G69>0,termijn>0),IF(AND(($J$1)>I69,X69>0),\"Termijn overschreden\",\"\"),\"\")","v":""},null,null,null,null,null,null,null,null,{"$f":"R69+O69","v":0},null,null,null,{"$f":"SUM(IF(Aanzuivering!$AC$10:$AC$490=D69,Aanzuivering!$O$10:$O$490,0))","v":0},{"$f":"IF(OR((T69-V69-W69)>0.01,(T69-V69-W69)<-0.01),T69-V69-W69,0)","v":0},{"$f":"IF(AND(X69<>0,S69>0),IF(OR((S69/T69*X69) > 0.5,(S69/T69*X69) < -0.5),ROUND(S69/T69*X69,2),0),0)","v":0},{"$f":"IF(W69>0,ROUND(W69/T69*S69,2),0)","v":0},null,null,{"$f":"D69","v":0},{"$f":"X69","v":0}]
[null,null,null,null,null,null,null,null,"","",null,null,null,null,null,null,null,null,0,null,null,null,{"$f":"SUM(IF(Aanzuivering!$AC$10:$AC$490=D70,Aanzuivering!$O$10:$O$490,0))","v":0},0,0,0,null,null,0,0]
[null,null,null,null,null,null,null,null,"","",null,null,null,null,null,null,null,null,0,null,null,null,{"$f":"SUM(IF(Aanzuivering!$AC$10:$AC$490=D71,Aanzuivering!$O$10:$O$490,0))","v":0},0,0,0,null,null,0,0]
[null,null,null,null,null,null,null,null,"","",null,null,null,null,null,null,null,null,0,null,null,null,{"$f":"SUM(IF(Aanzuivering!$AC$10:$AC$490=D72,Aanzuivering!$O$10:$O$490,0))","v":0},0,0,0,null,null,0,0]
[null,null,null,null,null,null,null,null,"","",null,null,null,null,null,null,null,null,0,null,null,null,{"$f":"SUM(IF(Aanzuivering!$AC$10:$AC$490=D73,Aanzuivering!$O$10:$O$490,0))","v":0},0,0,0,null,null,0,0]
[null,null,null,null,null,null,null,null,"","",null,null,null,null,null,null,null,null,0,null,null,null,{"$f":"SUM(IF(Aanzuivering!$AC$10:$AC$490=D74,Aanzuivering!$O$10:$O$490,0))","v":0},0,0,0,null,null,0,0]
[null,null,null,null,null,null,null,null,"","",null,null,null,null,null,null,null,null,0,null,null,null,{"$f":"SUM(IF(Aanzuivering!$AC$10:$AC$490=D75,Aanzuivering!$O$10:$O$490,0))","v":0},0,0,0,null,null,0,0]
[null,null,null,null,null,null,null,null,"","",null,null,null,null,null,null,null,null,0,null,null,null,{"$f":"SUM(IF(Aanzuivering!$AC$10:$AC$490=D76,Aanzuivering!$O$10:$O$490,0))","v":0},0,0,0,null,null,0,0]
[null,null,null,null,null,null,null,null,"","",null,null,null,null,null,null,null,null,0,null,null,null,{"$f":"SUM(IF(Aanzuivering!$AC$10:$AC$490=D77,Aanzuivering!$O$10:$O$490,0))","v":0},0,0,0,null,null,0,0]
[null,null,null,null,null,null,null,null,"","",null,null,null,null,null,null,null,null,0,null,null,null,{"$f":"SUM(IF(Aanzuivering!$AC$10:$AC$490=D78,Aanzuivering!$O$10:$O$490,0))","v":0},0,0,0,null,null,0,0]
[null,null,null,null,null,null,null,null,"","",null,null,null,null,null,null,null,null,0,null,null,null,{"$f":"SUM(IF(Aanzuivering!$AC$10:$AC$490=D79,Aanzuivering!$O$10:$O$490,0))","v":0},0,0,0,null,null,0,0]
[null,null,null,null,null,null,null,null,"","",null,null,null,null,null,null,null,null,0,null,null,null,{"$f":"SUM(IF(Aanzuivering!$AC$10:$AC$490=D80,Aanzuivering!$O$10:$O$490,0))","v":0},0,0,0,null,null,0,0]
[null,null,null,null,null,null,null,null,"","",null,null,null,null,null,null,null,null,0,null,null,null,{"$f":"SUM(IF(Aanzuivering!$AC$10:$AC$490=D81,Aanzuivering!$O$10:$O$490,0))","v":0},0,0,0,null,null,0,0]
[null,null,null,null,null,null,null,null,"","",null,null,null,null,null,null,null,null,0,null,null,null,{"$f":"SUM(IF(Aanzuivering!$AC$10:$AC$490=D82,Aanzuivering!$O$10:$O$490,0))","v":0},0,0,0,null,null,0,0]
[null,null,null,null,null,null,null,null,"","",null,null,null,null,null,null,null,null,0,null,null,null,{"$f":"SUM(IF(Aanzuivering!$AC$10:$AC$490=D83,Aanzuivering!$O$10:$O$490,0))","v":0},0,0,0,null,null,0,0]
[null,null,null,null,null,null,null,null,"","",null,null,null,null,null,null,null,null,0,null,null,null,{"$f":"SUM(IF(Aanzuivering!$AC$10:$AC$490=D84,Aanzuivering!$O$10:$O$490,0))","v":0},0,0,0,null,null,0,0]
[null,null,null,null,null,null,null,null,"","",null,null,null,null,null,null,null,null,0,null,null,null,{"$f":"SUM(IF(Aanzuivering!$AC$10:$AC$490=D85,Aanzuivering!$O$10:$O$490,0))","v":0},0,0,0,null,null,0,0]
[null,null,null,null,null,null,null,null,"","",null,null,null,null,null,null,null,null,0,null,null,null,{"$f":"SUM(IF(Aanzuivering!$AC$10:$AC$490=D86,Aanzuivering!$O$10:$O$490,0))","v":0},0,0,0,null,null,0,0]
[null,null,null,null,null,null,null,null,"","",null,null,null,null,null,null,null,null,0,null,null,null,{"$f":"SUM(IF(Aanzuivering!$AC$10:$AC$490=D87,Aanzuivering!$O$10:$O$490,0))","v":0},0,0,0,null,null,0,0]
[null,null,null,null,null,null,null,null,"","",null,null,null,null,null,null,null,null,0,null,null,null,{"$f":"SUM(IF(Aanzuivering!$AC$10:$AC$490=D88,Aanzuivering!$O$10:$O$490,0))","v":0},0,0,0,null,null,0,0]
[null,null,null,null,null,null,null,null,"","",null,null,null,null,null,null,null,null,0,null,null,null,{"$f":"SUM(IF(Aanzuivering!$AC$10:$AC$490=D89,Aanzuivering!$O$10:$O$490,0))","v":0},0,0,0,null,null,0,0]
[null,null,null,null,null,null,null,null,"","",null,null,null,null,null,null,null,null,0,null,null,null,{"$f":"SUM(IF(Aanzuivering!$AC$10:$AC$490=D90,Aanzuivering!$O$10:$O$490,0))","v":0},0,0,0,null,null,0,0]
[null,null,null,null,null,null,null,null,"","",null,null,null,null,null,null,null,null,0,null,null,null,{"$f":"SUM(IF(Aanzuivering!$AC$10:$AC$490=D91,Aanzuivering!$O$10:$O$490,0))","v":0},0,0,0,null,null,0,0]
[null,null,null,null,null,null,null,null,"","",null,null,null,null,null,null,null,null,0,null,null,null,{"$f":"SUM(IF(Aanzuivering!$AC$10:$AC$490=D92,Aanzuivering!$O$10:$O$490,0))","v":0},0,0,0,null,null,0,0]
[null,null,null,null,null,null,null,null,"","",null,null,null,null,null,null,null,null,0,null,null,null,{"$f":"SUM(IF(Aanzuivering!$AC$10:$AC$490=D93,Aanzuivering!$O$10:$O$490,0))","v":0},0,0,0,null,null,0,0]
[null,null,null,null,null,null,null,null,"","",null,null,null,null,null,null,null,null,0,null,null,null,{"$f":"SUM(IF(Aanzuivering!$AC$10:$AC$490=D94,Aanzuivering!$O$10:$O$490,0))","v":0},0,0,0,null,null,0,0]
[null,null,null,null,null,null,null,null,"","",null,null,null,null,null,null,null,null,0,null,null,null,{"$f":"SUM(IF(Aanzuivering!$AC$10:$AC$490=D95,Aanzuivering!$O$10:$O$490,0))","v":0},0,0,0,null,null,0,0]
[null,null,null,null,null,null,null,null,"","",null,null,null,null,null,null,null,null,0,null,null,null,{"$f":"SUM(IF(Aanzuivering!$AC$10:$AC$490=D96,Aanzuivering!$O$10:$O$490,0))","v":0},0,0,0,null,null,0,0]
[null,null,null,null,null,null,null,null,"","",null,null,null,null,null,null,null,null,0,null,null,null,{"$f":"SUM(IF(Aanzuivering!$AC$10:$AC$490=D97,Aanzuivering!$O$10:$O$490,0))","v":0},0,0,0,null,null,0,0]
[null,null,null,null,null,null,null,null,"","",null,null,null,null,null,null,null,null,0,null,null,null,{"$f":"SUM(IF(Aanzuivering!$AC$10:$AC$490=D98,Aanzuivering!$O$10:$O$490,0))","v":0},0,0,0,null,null,0,0]
[null,null,null,null,null,null,null,null,"","",null,null,null,null,null,null,null,null,0,null,null,null,{"$f":"SUM(IF(Aanzuivering!$AC$10:$AC$490=D99,Aanzuivering!$O$10:$O$490,0))","v":0},0,0,0,null,null,0,0]
[null,null,null,null,null,null,null,null,"","",null,null,null,null,null,null,null,null,0,null,null,null,{"$f":"SUM(IF(Aanzuivering!$AC$10:$AC$490=D100,Aanzuivering!$O$10:$O$490,0))","v":0},0,0,0,null,null,0,0]
[null,null,null,null,null,null,null,null,"","",null,null,null,null,null,null,null,null,0,null,null,null,{"$f":"SUM(IF(Aanzuivering!$AC$10:$AC$490=D101,Aanzuivering!$O$10:$O$490,0))","v":0},0,0,0,null,null,0,0]
[null,null,null,null,null,null,null,null,"","",null,null,null,null,null,null,null,null,0,null,null,null,{"$f":"SUM(IF(Aanzuivering!$AC$10:$AC$490=D102,Aanzuivering!$O$10:$O$490,0))","v":0},0,0,0,null,null,0,0]
[null,null,null,null,null,null,null,null,"","",null,null,null,null,null,null,null,null,0,null,null,null,{"$f":"SUM(IF(Aanzuivering!$AC$10:$AC$490=D103,Aanzuivering!$O$10:$O$490,0))","v":0},0,0,0,null,null,0,0]
[null,null,null,null,null,null,null,null,"","",null,null,null,null,null,null,null,null,0,null,null,null,{"$f":"SUM(IF(Aanzuivering!$AC$10:$AC$490=D104,Aanzuivering!$O$10:$O$490,0))","v":0},0,0,0,null,null,0,0]
[null,null,null,null,null,null,null,null,"","",null,null,null,null,null,null,null,null,0,null,null,null,{"$f":"SUM(IF(Aanzuivering!$AC$10:$AC$490=D105,Aanzuivering!$O$10:$O$490,0))","v":0},0,0,0,null,null,0,0]
[null,null,null,null,null,null,null,null,"","",null,null,null,null,null,null,null,null,0,null,null,null,{"$f":"SUM(IF(Aanzuivering!$AC$10:$AC$490=D106,Aanzuivering!$O$10:$O$490,0))","v":0},0,0,0,null,null,0,0]
[null,null,null,null,null,null,null,null,"","",null,null,null,null,null,null,null,null,0,null,null,null,{"$f":"SUM(IF(Aanzuivering!$AC$10:$AC$490=D107,Aanzuivering!$O$10:$O$490,0))","v":0},0,0,0,null,null,0,0]
[null,null,null,null,null,null,null,null,"","",null,null,null,null,null,null,null,null,0,null,null,null,{"$f":"SUM(IF(Aanzuivering!$AC$10:$AC$490=D108,Aanzuivering!$O$10:$O$490,0))","v":0},0,0,0,null,null,0,0]
[null,null,null,null,null,null,null,null,"","",null,null,null,null,null,null,null,null,0,null,null,null,{"$f":"SUM(IF(Aanzuivering!$AC$10:$AC$490=D109,Aanzuivering!$O$10:$O$490,0))","v":0},0,0,0,null,null,0,0]
[null,null,null,null,null,null,null,null,"","",null,null,null,null,null,null,null,null,0,null,null,null,{"$f":"SUM(IF(Aanzuivering!$AC$10:$AC$490=D110,Aanzuivering!$O$10:$O$490,0))","v":0},0,0,0,null,null,0,0]
[null,null,null,null,null,null,null,null,"","",null,null,null,null,null,null,null,null,0,null,null,null,{"$f":"SUM(IF(Aanzuivering!$AC$10:$AC$490=D111,Aanzuivering!$O$10:$O$490,0))","v":0},0,0,0,null,null,0,0]
[null,null,null,null,null,null,null,null,"","",null,null,null,null,null,null,null,null,0,null,null,null,{"$f":"SUM(IF(Aanzuivering!$AC$10:$AC$490=D112,Aanzuivering!$O$10:$O$490,0))","v":0},0,0,0,null,null,0,0]
[null,null,null,null,null,null,null,null,"","",null,null,null,null,null,null,null,null,0,null,null,null,{"$f":"SUM(IF(Aanzuivering!$AC$10:$AC$490=D113,Aanzuivering!$O$10:$O$490,0))","v":0},0,0,0,null,null,0,0]
[null,null,null,null,null,null,null,null,"","",null,null,null,null,null,null,null,null,0,null,null,null,{"$f":"SUM(IF(Aanzuivering!$AC$10:$AC$490=D114,Aanzuivering!$O$10:$O$490,0))","v":0},0,0,0,null,null,0,0]
[null,null,null,null,null,null,null,null,"","",null,null,null,null,null,null,null,null,0,null,null,null,{"$f":"SUM(IF(Aanzuivering!$AC$10:$AC$490=D115,Aanzuivering!$O$10:$O$490,0))","v":0},0,0,0,null,null,0,0]
[null,null,null,null,null,null,null,null,"","",null,null,null,null,null,null,null,null,0,null,null,null,{"$f":"SUM(IF(Aanzuivering!$AC$10:$AC$490=D116,Aanzuivering!$O$10:$O$490,0))","v":0},0,0,0,null,null,0,0]
[null,null,null,null,null,null,null,null,"","",null,null,null,null,null,null,null,null,0,null,null,null,{"$f":"SUM(IF(Aanzuivering!$AC$10:$AC$490=D117,Aanzuivering!$O$10:$O$490,0))","v":0},0,0,0,null,null,0,0]
[null,null,null,null,null,null,null,null,"","",null,null,null,null,null,null,null,null,0,null,null,null,{"$f":"SUM(IF(Aanzuivering!$AC$10:$AC$490=D118,Aanzuivering!$O$10:$O$490,0))","v":0},0,0,0,null,null,0,0]
[null,null,null,null,null,null,null,null,"","",null,null,null,null,null,null,null,null,0,null,null,null,{"$f":"SUM(IF(Aanzuivering!$AC$10:$AC$490=D119,Aanzuivering!$O$10:$O$490,0))","v":0},0,0,0,null,null,0,0]
[null,null,null,null,null,null,null,null,"","",null,null,null,null,null,null,null,null,0,null,null,null,{"$f":"SUM(IF(Aanzuivering!$AC$10:$AC$490=D120,Aanzuivering!$O$10:$O$490,0))","v":0},0,0,0,null,null,0,0]
[null,null,null,null,null,null,null,null,"","",null,null,null,null,null,null,null,null,0,null,null,null,{"$f":"SUM(IF(Aanzuivering!$AC$10:$AC$490=D121,Aanzuivering!$O$10:$O$490,0))","v":0},0,0,0,null,null,0,0]
[null,null,null,null,null,null,null,null,"","",null,null,null,null,null,null,null,null,0,null,null,null,{"$f":"SUM(IF(Aanzuivering!$AC$10:$AC$490=D122,Aanzuivering!$O$10:$O$490,0))","v":0},0,0,0,null,null,0,0]
[null,null,null,null,null,null,null,null,"","",null,null,null,null,null,null,null,null,0,null,null,null,{"$f":"SUM(IF(Aanzuivering!$AC$10:$AC$490=D123,Aanzuivering!$O$10:$O$490,0))","v":0},0,0,0,null,null,0,0]
[null,null,null,null,null,null,null,null,"","",null,null,null,null,null,null,null,null,0,null,null,null,{"$f":"SUM(IF(Aanzuivering!$AC$10:$AC$490=D124,Aanzuivering!$O$10:$O$490,0))","v":0},0,0,0,null,null,0,0]
[null,null,null,null,null,null,null,null,"","",null,null,null,null,null,null,null,null,0,null,null,null,{"$f":"SUM(IF(Aanzuivering!$AC$10:$AC$490=D125,Aanzuivering!$O$10:$O$490,0))","v":0},0,0,0,null,null,0,0]
[null,null,null,null,null,null,null,null,"","",null,null,null,null,null,null,null,null,0,null,null,null,{"$f":"SUM(IF(Aanzuivering!$AC$10:$AC$490=D126,Aanzuivering!$O$10:$O$490,0))","v":0},0,0,0,null,null,0,0]
[null,null,null,null,null,null,null,null,"","",null,null,null,null,null,null,null,null,0,null,null,null,{"$f":"SUM(IF(Aanzuivering!$AC$10:$AC$490=D127,Aanzuivering!$O$10:$O$490,0))","v":0},0,0,0,null,null,0,0]
[null,null,null,null,null,null,null,null,"","",null,null,null,null,null,null,null,null,0,null,null,null,{"$f":"SUM(IF(Aanzuivering!$AC$10:$AC$490=D128,Aanzuivering!$O$10:$O$490,0))","v":0},0,0,0,null,null,0,0]
[null,null,null,null,null,null,null,null,"","",null,null,null,null,null,null,null,null,0,null,null,null,{"$f":"SUM(IF(Aanzuivering!$AC$10:$AC$490=D129,Aanzuivering!$O$10:$O$490,0))","v":0},0,0,0,null,null,0,0]
[null,null,null,null,null,null,null,null,"","",null,null,null,null,null,null,null,null,0,null,null,null,{"$f":"SUM(IF(Aanzuivering!$AC$10:$AC$490=D130,Aanzuivering!$O$10:$O$490,0))","v":0},0,0,0,null,null,0,0]
[null,null,null,null,null,null,null,null,"","",null,null,null,null,null,null,null,null,0,null,null,null,{"$f":"SUM(IF(Aanzuivering!$AC$10:$AC$490=D131,Aanzuivering!$O$10:$O$490,0))","v":0},0,0,0,null,null,0,0]
[null,null,null,null,null,null,null,null,"","",null,null,null,null,null,null,null,null,0,null,null,null,{"$f":"SUM(IF(Aanzuivering!$AC$10:$AC$490=D132,Aanzuivering!$O$10:$O$490,0))","v":0},0,0,0,null,null,0,0]
[null,null,null,null,null,null,null,null,{"$f":"IF(AND(G133>40000,termijn>0),EDATE(G133,termijn),\"\")","v":""},{"$f":"IF(AND(G133>0,termijn>0),IF(AND(($J$1)>I133,X133>0),\"Termijn overschreden\",\"\"),\"\")","v":""},null,null,null,null,null,null,null,null,{"$f":"R133+O133","v":0},null,null,null,{"$f":"SUM(IF(Aanzuivering!$AC$10:$AC$490=D133,Aanzuivering!$O$10:$O$490,0))","v":0},{"$f":"IF(OR((T133-V133-W133)>0.01,(T133-V133-W133)<-0.01),T133-V133-W133,0)","v":0},{"$f":"IF(AND(X133<>0,S133>0),IF(OR((S133/T133*X133) > 0.5,(S133/T133*X133) < -0.5),ROUND(S133/T133*X133,2),0),0)","v":0},{"$f":"IF(W133>0,ROUND(W133/T133*S133,2),0)","v":0},null,null,{"$f":"D133","v":0},{"$f":"X133","v":0}]
[null,null,null,null,null,null,null,null,"","",null,null,null,null,null,null,null,null,0,null,null,null,{"$f":"SUM(IF(Aanzuivering!$AC$10:$AC$490=D134,Aanzuivering!$O$10:$O$490,0))","v":0},0,0,0,null,null,0,0]
[null,null,null,null,null,null,null,null,"","",null,null,null,null,null,null,null,null,0,null,null,null,{"$f":"SUM(IF(Aanzuivering!$AC$10:$AC$490=D135,Aanzuivering!$O$10:$O$490,0))","v":0},0,0,0,null,null,0,0]
[null,null,null,null,null,null,null,null,"","",null,null,null,null,null,null,null,null,0,null,null,null,{"$f":"SUM(IF(Aanzuivering!$AC$10:$AC$490=D136,Aanzuivering!$O$10:$O$490,0))","v":0},0,0,0,null,null,0,0]
[null,null,null,null,null,null,null,null,"","",null,null,null,null,null,null,null,null,0,null,null,null,{"$f":"SUM(IF(Aanzuivering!$AC$10:$AC$490=D137,Aanzuivering!$O$10:$O$490,0))","v":0},0,0,0,null,null,0,0]
[null,null,null,null,null,null,null,null,"","",null,null,null,null,null,null,null,null,0,null,null,null,{"$f":"SUM(IF(Aanzuivering!$AC$10:$AC$490=D138,Aanzuivering!$O$10:$O$490,0))","v":0},0,0,0,null,null,0,0]
[null,null,null,null,null,null,null,null,"","",null,null,null,null,null,null,null,null,0,null,null,null,{"$f":"SUM(IF(Aanzuivering!$AC$10:$AC$490=D139,Aanzuivering!$O$10:$O$490,0))","v":0},0,0,0,null,null,0,0]
[null,null,null,null,null,null,null,null,"","",null,null,null,null,null,null,null,null,0,null,null,null,{"$f":"SUM(IF(Aanzuivering!$AC$10:$AC$490=D140,Aanzuivering!$O$10:$O$490,0))","v":0},0,0,0,null,null,0,0]
[null,null,null,null,null,null,null,null,"","",null,null,null,null,null,null,null,null,0,null,null,null,{"$f":"SUM(IF(Aanzuivering!$AC$10:$AC$490=D141,Aanzuivering!$O$10:$O$490,0))","v":0},0,0,0,null,null,0,0]
[null,null,null,null,null,null,null,null,"","",null,null,null,null,null,null,null,null,0,null,null,null,{"$f":"SUM(IF(Aanzuivering!$AC$10:$AC$490=D142,Aanzuivering!$O$10:$O$490,0))","v":0},0,0,0,null,null,0,0]
[null,null,null,null,null,null,null,null,"","",null,null,null,null,null,null,null,null,0,null,null,null,{"$f":"SUM(IF(Aanzuivering!$AC$10:$AC$490=D143,Aanzuivering!$O$10:$O$490,0))","v":0},0,0,0,null,null,0,0]
[null,null,null,null,null,null,null,null,"","",null,null,null,null,null,null,null,null,0,null,null,null,{"$f":"SUM(IF(Aanzuivering!$AC$10:$AC$490=D144,Aanzuivering!$O$10:$O$490,0))","v":0},0,0,0,null,null,0,0]
[null,null,null,null,null,null,null,null,"","",null,null,null,null,null,null,null,null,0,null,null,null,{"$f":"SUM(IF(Aanzuivering!$AC$10:$AC$490=D145,Aanzuivering!$O$10:$O$490,0))","v":0},0,0,0,null,null,0,0]
[null,null,null,null,null,null,null,null,"","",null,null,null,null,null,null,null,null,0,null,null,null,{"$f":"SUM(IF(Aanzuivering!$AC$10:$AC$490=D146,Aanzuivering!$O$10:$O$490,0))","v":0},0,0,0,null,null,0,0]
[null,null,null,null,null,null,null,null,"","",null,null,null,null,null,null,null,null,0,null,null,null,{"$f":"SUM(IF(Aanzuivering!$AC$10:$AC$490=D147,Aanzuivering!$O$10:$O$490,0))","v":0},0,0,0,null,null,0,0]
[null,null,null,null,null,null,null,null,"","",null,null,null,null,null,null,null,null,0,null,null,null,{"$f":"SUM(IF(Aanzuivering!$AC$10:$AC$490=D148,Aanzuivering!$O$10:$O$490,0))","v":0},0,0,0,null,null,0,0]
[null,null,null,null,null,null,null,null,"","",null,null,null,null,null,null,null,null,0,null,null,null,{"$f":"SUM(IF(Aanzuivering!$AC$10:$AC$490=D149,Aanzuivering!$O$10:$O$490,0))","v":0},0,0,0,null,null,0,0]
[null,null,null,null,null,null,null,null,"","",null,null,null,null,null,null,null,null,0,null,null,null,{"$f":"SUM(IF(Aanzuivering!$AC$10:$AC$490=D150,Aanzuivering!$O$10:$O$490,0))","v":0},0,0,0,null,null,0,0]
[null,null,null,null,null,null,null,null,"","",null,null,null,null,null,null,null,null,0,null,null,null,{"$f":"SUM(IF(Aanzuivering!$AC$10:$AC$490=D151,Aanzuivering!$O$10:$O$490,0))","v":0},0,0,0,null,null,0,0]
[null,null,null,null,null,null,null,null,"","",null,null,null,null,null,null,null,null,0,null,null,null,{"$f":"SUM(IF(Aanzuivering!$AC$10:$AC$490=D152,Aanzuivering!$O$10:$O$490,0))","v":0},0,0,0,null,null,0,0]
[null,null,null,null,null,null,null,null,"","",null,null,null,null,null,null,null,null,0,null,null,null,{"$f":"SUM(IF(Aanzuivering!$AC$10:$AC$490=D153,Aanzuivering!$O$10:$O$490,0))","v":0},0,0,0,null,null,0,0]
[null,null,null,null,null,null,null,null,"","",null,null,null,null,null,null,null,null,0,null,null,null,{"$f":"SUM(IF(Aanzuivering!$AC$10:$AC$490=D154,Aanzuivering!$O$10:$O$490,0))","v":0},0,0,0,null,null,0,0]
[null,null,null,null,null,null,null,null,"","",null,null,null,null,null,null,null,null,0,null,null,null,{"$f":"SUM(IF(Aanzuivering!$AC$10:$AC$490=D155,Aanzuivering!$O$10:$O$490,0))","v":0},0,0,0,null,null,0,0]
[null,null,null,null,null,null,null,null,"","",null,null,null,null,null,null,null,null,0,null,null,null,{"$f":"SUM(IF(Aanzuivering!$AC$10:$AC$490=D156,Aanzuivering!$O$10:$O$490,0))","v":0},0,0,0,null,null,0,0]
[null,null,null,null,null,null,null,null,"","",null,null,null,null,null,null,null,null,0,null,null,null,{"$f":"SUM(IF(Aanzuivering!$AC$10:$AC$490=D157,Aanzuivering!$O$10:$O$490,0))","v":0},0,0,0,null,null,0,0]
[null,null,null,null,null,null,null,null,"","",null,null,null,null,null,null,null,null,0,null,null,null,{"$f":"SUM(IF(Aanzuivering!$AC$10:$AC$490=D158,Aanzuivering!$O$10:$O$490,0))","v":0},0,0,0,null,null,0,0]
[null,null,null,null,null,null,null,null,"","",null,null,null,null,null,null,null,null,0,null,null,null,{"$f":"SUM(IF(Aanzuivering!$AC$10:$AC$490=D159,Aanzuivering!$O$10:$O$490,0))","v":0},0,0,0,null,null,0,0]
[null,null,null,null,null,null,null,null,"","",null,null,null,null,null,null,null,null,0,null,null,null,{"$f":"SUM(IF(Aanzuivering!$AC$10:$AC$490=D160,Aanzuivering!$O$10:$O$490,0))","v":0},0,0,0,null,null,0,0]
[null,null,null,null,null,null,null,null,"","",null,null,null,null,null,null,null,null,0,null,null,null,{"$f":"SUM(IF(Aanzuivering!$AC$10:$AC$490=D161,Aanzuivering!$O$10:$O$490,0))","v":0},0,0,0,null,null,0,0]
[null,null,null,null,null,null,null,null,"","",null,null,null,null,null,null,null,null,0,null,null,null,{"$f":"SUM(IF(Aanzuivering!$AC$10:$AC$490=D162,Aanzuivering!$O$10:$O$490,0))","v":0},0,0,0,null,null,0,0]
[null,null,null,null,null,null,null,null,"","",null,null,null,null,null,null,null,null,0,null,null,null,{"$f":"SUM(IF(Aanzuivering!$AC$10:$AC$490=D163,Aanzuivering!$O$10:$O$490,0))","v":0},0,0,0,null,null,0,0]
[null,null,null,null,null,null,null,null,"","",null,null,null,null,null,null,null,null,0,null,null,null,{"$f":"SUM(IF(Aanzuivering!$AC$10:$AC$490=D164,Aanzuivering!$O$10:$O$490,0))","v":0},0,0,0,null,null,0,0]
[null,null,null,null,null,null,null,null,"","",null,null,null,null,null,null,null,null,0,null,null,null,{"$f":"SUM(IF(Aanzuivering!$AC$10:$AC$490=D165,Aanzuivering!$O$10:$O$490,0))","v":0},0,0,0,null,null,0,0]
[null,null,null,null,null,null,null,null,"","",null,null,null,null,null,null,null,null,0,null,null,null,{"$f":"SUM(IF(Aanzuivering!$AC$10:$AC$490=D166,Aanzuivering!$O$10:$O$490,0))","v":0},0,0,0,null,null,0,0]
[null,null,null,null,null,null,null,null,"","",null,null,null,null,null,null,null,null,0,null,null,null,{"$f":"SUM(IF(Aanzuivering!$AC$10:$AC$490=D167,Aanzuivering!$O$10:$O$490,0))","v":0},0,0,0,null,null,0,0]
[null,null,null,null,null,null,null,null,"","",null,null,null,null,null,null,null,null,0,null,null,null,{"$f":"SUM(IF(Aanzuivering!$AC$10:$AC$490=D168,Aanzuivering!$O$10:$O$490,0))","v":0},0,0,0,null,null,0,0]
[null,null,null,null,null,null,null,null,"","",null,null,null,null,null,null,null,null,0,null,null,null,{"$f":"SUM(IF(Aanzuivering!$AC$10:$AC$490=D169,Aanzuivering!$O$10:$O$490,0))","v":0},0,0,0,null,null,0,0]
[null,null,null,null,null,null,null,null,"","",null,null,null,null,null,null,null,null,0,null,null,null,{"$f":"SUM(IF(Aanzuivering!$AC$10:$AC$490=D170,Aanzuivering!$O$10:$O$490,0))","v":0},0,0,0,null,null,0,0]
[null,null,null,null,null,null,null,null,"","",null,null,null,null,null,null,null,null,0,null,null,null,{"$f":"SUM(IF(Aanzuivering!$AC$10:$AC$490=D171,Aanzuivering!$O$10:$O$490,0))","v":0},0,0,0,null,null,0,0]
[null,null,null,null,null,null,null,null,"","",null,null,null,null,null,null,null,null,0,null,null,null,{"$f":"SUM(IF(Aanzuivering!$AC$10:$AC$490=D172,Aanzuivering!$O$10:$O$490,0))","v":0},0,0,0,null,null,0,0]
[null,null,null,null,null,null,null,null,"","",null,null,null,null,null,null,null,null,0,null,null,null,{"$f":"SUM(IF(Aanzuivering!$AC$10:$AC$490=D173,Aanzuivering!$O$10:$O$490,0))","v":0},0,0,0,null,null,0,0]
[null,null,null,null,null,null,null,null,"","",null,null,null,null,null,null,null,null,0,null,null,null,{"$f":"SUM(IF(Aanzuivering!$AC$10:$AC$490=D174,Aanzuivering!$O$10:$O$490,0))","v":0},0,0,0,null,null,0,0]
[null,null,null,null,null,null,null,null,"","",null,null,null,null,null,null,null,null,0,null,null,null,{"$f":"SUM(IF(Aanzuivering!$AC$10:$AC$490=D175,Aanzuivering!$O$10:$O$490,0))","v":0},0,0,0,null,null,0,0]
[null,null,null,null,null,null,null,null,"","",null,null,null,null,null,null,null,null,0,null,null,null,{"$f":"SUM(IF(Aanzuivering!$AC$10:$AC$490=D176,Aanzuivering!$O$10:$O$490,0))","v":0},0,0,0,null,null,0,0]
[null,null,null,null,null,null,null,null,"","",null,null,null,null,null,null,null,null,0,null,null,null,{"$f":"SUM(IF(Aanzuivering!$AC$10:$AC$490=D177,Aanzuivering!$O$10:$O$490,0))","v":0},0,0,0,null,null,0,0]
[null,null,null,null,null,null,null,null,"","",null,null,null,null,null,null,null,null,0,null,null,null,{"$f":"SUM(IF(Aanzuivering!$AC$10:$AC$490=D178,Aanzuivering!$O$10:$O$490,0))","v":0},0,0,0,null,null,0,0]
[null,null,null,null,null,null,null,null,"","",null,null,null,null,null,null,null,null,0,null,null,null,{"$f":"SUM(IF(Aanzuivering!$AC$10:$AC$490=D179,Aanzuivering!$O$10:$O$490,0))","v":0},0,0,0,null,null,0,0]
[null,null,null,null,null,null,null,null,"","",null,null,null,null,null,null,null,null,0,null,null,null,{"$f":"SUM(IF(Aanzuivering!$AC$10:$AC$490=D180,Aanzuivering!$O$10:$O$490,0))","v":0},0,0,0,null,null,0,0]
[null,null,null,null,null,null,null,null,"","",null,null,null,null,null,null,null,null,0,null,null,null,{"$f":"SUM(IF(Aanzuivering!$AC$10:$AC$490=D181,Aanzuivering!$O$10:$O$490,0))","v":0},0,0,0,null,null,0,0]
[null,null,null,null,null,null,null,null,"","",null,null,null,null,null,null,null,null,0,null,null,null,{"$f":"SUM(IF(Aanzuivering!$AC$10:$AC$490=D182,Aanzuivering!$O$10:$O$490,0))","v":0},0,0,0,null,null,0,0]
[null,null,null,null,null,null,null,null,"","",null,null,null,null,null,null,null,null,0,null,null,null,{"$f":"SUM(IF(Aanzuivering!$AC$10:$AC$490=D183,Aanzuivering!$O$10:$O$490,0))","v":0},0,0,0,null,null,0,0]
[null,null,null,null,null,null,null,null,"","",null,null,null,null,null,null,null,null,0,null,null,null,{"$f":"SUM(IF(Aanzuivering!$AC$10:$AC$490=D184,Aanzuivering!$O$10:$O$490,0))","v":0},0,0,0,null,null,0,0]
[null,null,null,null,null,null,null,null,"","",null,null,null,null,null,null,null,null,0,null,null,null,{"$f":"SUM(IF(Aanzuivering!$AC$10:$AC$490=D185,Aanzuivering!$O$10:$O$490,0))","v":0},0,0,0,null,null,0,0]
[null,null,null,null,null,null,null,null,"","",null,null,null,null,null,null,null,null,0,null,null,null,{"$f":"SUM(IF(Aanzuivering!$AC$10:$AC$490=D186,Aanzuivering!$O$10:$O$490,0))","v":0},0,0,0,null,null,0,0]
[null,null,null,null,null,null,null,null,"","",null,null,null,null,null,null,null,null,0,null,null,null,{"$f":"SUM(IF(Aanzuivering!$AC$10:$AC$490=D187,Aanzuivering!$O$10:$O$490,0))","v":0},0,0,0,null,null,0,0]
[null,null,null,null,null,null,null,null,"","",null,null,null,null,null,null,null,null,0,null,null,null,{"$f":"SUM(IF(Aanzuivering!$AC$10:$AC$490=D188,Aanzuivering!$O$10:$O$490,0))","v":0},0,0,0,null,null,0,0]
[null,null,null,null,null,null,null,null,"","",null,null,null,null,null,null,null,null,0,null,null,null,{"$f":"SUM(IF(Aanzuivering!$AC$10:$AC$490=D189,Aanzuivering!$O$10:$O$490,0))","v":0},0,0,0,null,null,0,0]
[null,null,null,null,null,null,null,null,"","",null,null,null,null,null,null,null,null,0,null,null,null,{"$f":"SUM(IF(Aanzuivering!$AC$10:$AC$490=D190,Aanzuivering!$O$10:$O$490,0))","v":0},0,0,0,null,null,0,0]
[null,null,null,null,null,null,null,null,"","",null,null,null,null,null,null,null,null,0,null,null,null,{"$f":"SUM(IF(Aanzuivering!$AC$10:$AC$490=D191,Aanzuivering!$O$10:$O$490,0))","v":0},0,0,0,null,null,0,0]
[null,null,null,null,null,null,null,null,"","",null,null,null,null,null,null,null,null,0,null,null,null,{"$f":"SUM(IF(Aanzuivering!$AC$10:$AC$490=D192,Aanzuivering!$O$10:$O$490,0))","v":0},0,0,0,null,null,0,0]
[null,null,null,null,null,null,null,null,"","",null,null,null,null,null,null,null,null,0,null,null,null,{"$f":"SUM(IF(Aanzuivering!$AC$10:$AC$490=D193,Aanzuivering!$O$10:$O$490,0))","v":0},0,0,0,null,null,0,0]
[null,null,null,null,null,null,null,null,"","",null,null,null,null,null,null,null,null,0,null,null,null,{"$f":"SUM(IF(Aanzuivering!$AC$10:$AC$490=D194,Aanzuivering!$O$10:$O$490,0))","v":0},0,0,0,null,null,0,0]
[null,null,null,null,null,null,null,null,"","",null,null,null,null,null,null,null,null,0,null,null,null,{"$f":"SUM(IF(Aanzuivering!$AC$10:$AC$490=D195,Aanzuivering!$O$10:$O$490,0))","v":0},0,0,0,null,null,0,0]
[null,null,null,null,null,null,null,null,"","",null,null,null,null,null,null,null,null,0,null,null,null,{"$f":"SUM(IF(Aanzuivering!$AC$10:$AC$490=D196,Aanzuivering!$O$10:$O$490,0))","v":0},0,0,0,null,null,0,0]
[null,null,null,null,null,null,null,null,{"$f":"IF(AND(G197>40000,termijn>0),EDATE(G197,termijn),\"\")","v":""},{"$f":"IF(AND(G197>0,termijn>0),IF(AND(($J$1)>I197,X197>0),\"Termijn overschreden\",\"\"),\"\")","v":""},null,null,null,null,null,null,null,null,{"$f":"R197+O197","v":0},null,null,null,{"$f":"SUM(IF(Aanzuivering!$AC$10:$AC$490=D197,Aanzuivering!$O$10:$O$490,0))","v":0},{"$f":"IF(OR((T197-V197-W197)>0.01,(T197-V197-W197)<-0.01),T197-V197-W197,0)","v":0},{"$f":"IF(AND(X197<>0,S197>0),IF(OR((S197/T197*X197) > 0.5,(S197/T197*X197) < -0.5),ROUND(S197/T197*X197,2),0),0)","v":0},{"$f":"IF(W197>0,ROUND(W197/T197*S197,2),0)","v":0},null,null,{"$f":"D197","v":0},{"$f":"X197","v":0}]
[null,null,null,null,null,null,null,null,"","",null,null,null,null,null,null,null,null,0,null,null,null,{"$f":"SUM(IF(Aanzuivering!$AC$10:$AC$490=D198,Aanzuivering!$O$10:$O$490,0))","v":0},0,0,0,null,null,0,0]
[null,null,null,null,null,null,null,null,"","",null,null,null,null,null,null,null,null,0,null,null,null,{"$f":"SUM(IF(Aanzuivering!$AC$10:$AC$490=D199,Aanzuivering!$O$10:$O$490,0))","v":0},0,0,0,null,null,0,0]
[null,null,null,null,null,null,null,null,"","",null,null,null,null,null,null,null,null,0,null,null,null,{"$f":"SUM(IF(Aanzuivering!$AC$10:$AC$490=D200,Aanzuivering!$O$10:$O$490,0))","v":0},0,0,0,null,null,0,0]
[null,null,null,null,null,null,null,null,"","",null,null,null,null,null,null,null,null,0,null,null,null,{"$f":"SUM(IF(Aanzuivering!$AC$10:$AC$490=D201,Aanzuivering!$O$10:$O$490,0))","v":0},0,0,0,null,null,0,0]
[null,null,null,null,null,null,null,null,"","",null,null,null,null,null,null,null,null,0,null,null,null,{"$f":"SUM(IF(Aanzuivering!$AC$10:$AC$490=D202,Aanzuivering!$O$10:$O$490,0))","v":0},0,0,0,null,null,0,0]
[null,null,null,null,null,null,null,null,"","",null,null,null,null,null,null,null,null,0,null,null,null,{"$f":"SUM(IF(Aanzuivering!$AC$10:$AC$490=D203,Aanzuivering!$O$10:$O$490,0))","v":0},0,0,0,null,null,0,0]
[null,null,null,null,null,null,null,null,"","",null,null,null,null,null,null,null,null,0,null,null,null,{"$f":"SUM(IF(Aanzuivering!$AC$10:$AC$490=D204,Aanzuivering!$O$10:$O$490,0))","v":0},0,0,0,null,null,0,0]
[null,null,null,null,null,null,null,null,"","",null,null,null,null,null,null,null,null,0,null,null,null,{"$f":"SUM(IF(Aanzuivering!$AC$10:$AC$490=D205,Aanzuivering!$O$10:$O$490,0))","v":0},0,0,0,null,null,0,0]
[null,null,null,null,null,null,null,null,"","",null,null,null,null,null,null,null,null,0,null,null,null,{"$f":"SUM(IF(Aanzuivering!$AC$10:$AC$490=D206,Aanzuivering!$O$10:$O$490,0))","v":0},0,0,0,null,null,0,0]
[null,null,null,null,null,null,null,null,"","",null,null,null,null,null,null,null,null,0,null,null,null,{"$f":"SUM(IF(Aanzuivering!$AC$10:$AC$490=D207,Aanzuivering!$O$10:$O$490,0))","v":0},0,0,0,null,null,0,0]
[null,null,null,null,null,null,null,null,"","",null,null,null,null,null,null,null,null,0,null,null,null,{"$f":"SUM(IF(Aanzuivering!$AC$10:$AC$490=D208,Aanzuivering!$O$10:$O$490,0))","v":0},0,0,0,null,null,0,0]
[null,null,null,null,null,null,null,null,"","",null,null,null,null,null,null,null,null,0,null,null,null,{"$f":"SUM(IF(Aanzuivering!$AC$10:$AC$490=D209,Aanzuivering!$O$10:$O$490,0))","v":0},0,0,0,null,null,0,0]
[null,null,null,null,null,null,null,null,"","",null,null,null,null,null,null,null,null,0,null,null,null,{"$f":"SUM(IF(Aanzuivering!$AC$10:$AC$490=D210,Aanzuivering!$O$10:$O$490,0))","v":0},0,0,0,null,null,0,0]
[null,null,null,null,null,null,null,null,"","",null,null,null,null,null,null,null,null,0,null,null,null,{"$f":"SUM(IF(Aanzuivering!$AC$10:$AC$490=D211,Aanzuivering!$O$10:$O$490,0))","v":0},0,0,0,null,null,0,0]
[null,null,null,null,null,null,null,null,"","",null,null,null,null,null,null,null,null,0,null,null,null,{"$f":"SUM(IF(Aanzuivering!$AC$10:$AC$490=D212,Aanzuivering!$O$10:$O$490,0))","v":0},0,0,0,null,null,0,0]
[null,null,null,null,null,null,null,null,"","",null,null,null,null,null,null,null,null,0,null,null,null,{"$f":"SUM(IF(Aanzuivering!$AC$10:$AC$490=D213,Aanzuivering!$O$10:$O$490,0))","v":0},0,0,0,null,null,0,0]
[null,null,null,null,null,null,null,null,"","",null,null,null,null,null,null,null,null,0,null,null,null,{"$f":"SUM(IF(Aanzuivering!$AC$10:$AC$490=D214,Aanzuivering!$O$10:$O$490,0))","v":0},0,0,0,null,null,0,0]
[null,null,null,null,null,null,null,null,"","",null,null,null,null,null,null,null,null,0,null,null,null,{"$f":"SUM(IF(Aanzuivering!$AC$10:$AC$490=D215,Aanzuivering!$O$10:$O$490,0))","v":0},0,0,0,null,null,0,0]
[null,null,null,null,null,null,null,null,"","",null,null,null,null,null,null,null,null,0,null,null,null,{"$f":"SUM(IF(Aanzuivering!$AC$10:$AC$490=D216,Aanzuivering!$O$10:$O$490,0))","v":0},0,0,0,null,null,0,0]
[null,null,null,null,null,null,null,null,"","",null,null,null,null,null,null,null,null,0,null,null,null,{"$f":"SUM(IF(Aanzuivering!$AC$10:$AC$490=D217,Aanzuivering!$O$10:$O$490,0))","v":0},0,0,0,null,null,0,0]
[null,null,null,null,null,null,null,null,"","",null,null,null,null,null,null,null,null,0,null,null,null,{"$f":"SUM(IF(Aanzuivering!$AC$10:$AC$490=D218,Aanzuivering!$O$10:$O$490,0))","v":0},0,0,0,null,null,0,0]
[null,null,null,null,null,null,null,null,"","",null,null,null,null,null,null,null,null,0,null,null,null,{"$f":"SUM(IF(Aanzuivering!$AC$10:$AC$490=D219,Aanzuivering!$O$10:$O$490,0))","v":0},0,0,0,null,null,0,0]
[null,null,null,null,null,null,null,null,"","",null,null,null,null,null,null,null,null,0,null,null,null,{"$f":"SUM(IF(Aanzuivering!$AC$10:$AC$490=D220,Aanzuivering!$O$10:$O$490,0))","v":0},0,0,0,null,null,0,0]
[null,null,null,null,null,null,null,null,"","",null,null,null,null,null,null,null,null,0,null,null,null,{"$f":"SUM(IF(Aanzuivering!$AC$10:$AC$490=D221,Aanzuivering!$O$10:$O$490,0))","v":0},0,0,0,null,null,0,0]
[null,null,null,null,null,null,null,null,"","",null,null,null,null,null,null,null,null,0,null,null,null,{"$f":"SUM(IF(Aanzuivering!$AC$10:$AC$490=D222,Aanzuivering!$O$10:$O$490,0))","v":0},0,0,0,null,null,0,0]
[null,null,null,null,null,null,null,null,"","",null,null,null,null,null,null,null,null,0,null,null,null,{"$f":"SUM(IF(Aanzuivering!$AC$10:$AC$490=D223,Aanzuivering!$O$10:$O$490,0))","v":0},0,0,0,null,null,0,0]
[null,null,null,null,null,null,null,null,"","",null,null,null,null,null,null,null,null,0,null,null,null,{"$f":"SUM(IF(Aanzuivering!$AC$10:$AC$490=D224,Aanzuivering!$O$10:$O$490,0))","v":0},0,0,0,null,null,0,0]
[null,null,null,null,null,null,null,null,"","",null,null,null,null,null,null,null,null,0,null,null,null,{"$f":"SUM(IF(Aanzuivering!$AC$10:$AC$490=D225,Aanzuivering!$O$10:$O$490,0))","v":0},0,0,0,null,null,0,0]
[null,null,null,null,null,null,null,null,"","",null,null,null,null,null,null,null,null,0,null,null,null,{"$f":"SUM(IF(Aanzuivering!$AC$10:$AC$490=D226,Aanzuivering!$O$10:$O$490,0))","v":0},0,0,0,null,null,0,0]
[null,null,null,null,null,null,null,null,"","",null,null,null,null,null,null,null,null,0,null,null,null,{"$f":"SUM(IF(Aanzuivering!$AC$10:$AC$490=D227,Aanzuivering!$O$10:$O$490,0))","v":0},0,0,0,null,null,0,0]
[null,null,null,null,null,null,null,null,"","",null,null,null,null,null,null,null,null,0,null,null,null,{"$f":"SUM(IF(Aanzuivering!$AC$10:$AC$490=D228,Aanzuivering!$O$10:$O$490,0))","v":0},0,0,0,null,null,0,0]
[null,null,null,null,null,null,null,null,"","",null,null,null,null,null,null,null,null,0,null,null,null,{"$f":"SUM(IF(Aanzuivering!$AC$10:$AC$490=D229,Aanzuivering!$O$10:$O$490,0))","v":0},0,0,0,null,null,0,0]
[null,null,null,null,null,null,null,null,"","",null,null,null,null,null,null,null,null,0,null,null,null,{"$f":"SUM(IF(Aanzuivering!$AC$10:$AC$490=D230,Aanzuivering!$O$10:$O$490,0))","v":0},0,0,0,null,null,0,0]
[null,null,null,null,null,null,null,null,"","",null,null,null,null,null,null,null,null,0,null,null,null,{"$f":"SUM(IF(Aanzuivering!$AC$10:$AC$490=D231,Aanzuivering!$O$10:$O$490,0))","v":0},0,0,0,null,null,0,0]
[null,null,null,null,null,null,null,null,"","",null,null,null,null,null,null,null,null,0,null,null,null,{"$f":"SUM(IF(Aanzuivering!$AC$10:$AC$490=D232,Aanzuivering!$O$10:$O$490,0))","v":0},0,0,0,null,null,0,0]
[null,null,null,null,null,null,null,null,"","",null,null,null,null,null,null,null,null,0,null,null,null,{"$f":"SUM(IF(Aanzuivering!$AC$10:$AC$490=D233,Aanzuivering!$O$10:$O$490,0))","v":0},0,0,0,null,null,0,0]
[null,null,null,null,null,null,null,null,"","",null,null,null,null,null,null,null,null,0,null,null,null,{"$f":"SUM(IF(Aanzuivering!$AC$10:$AC$490=D234,Aanzuivering!$O$10:$O$490,0))","v":0},0,0,0,null,null,0,0]
[null,null,null,null,null,null,null,null,"","",null,null,null,null,null,null,null,null,0,null,null,null,{"$f":"SUM(IF(Aanzuivering!$AC$10:$AC$490=D235,Aanzuivering!$O$10:$O$490,0))","v":0},0,0,0,null,null,0,0]
[null,null,null,null,null,null,null,null,"","",null,null,null,null,null,null,null,null,0,null,null,null,{"$f":"SUM(IF(Aanzuivering!$AC$10:$AC$490=D236,Aanzuivering!$O$10:$O$490,0))","v":0},0,0,0,null,null,0,0]
[null,null,null,null,null,null,null,null,"","",null,null,null,null,null,null,null,null,0,null,null,null,{"$f":"SUM(IF(Aanzuivering!$AC$10:$AC$490=D237,Aanzuivering!$O$10:$O$490,0))","v":0},0,0,0,null,null,0,0]
[null,null,null,null,null,null,null,null,"","",null,null,null,null,null,null,null,null,0,null,null,null,{"$f":"SUM(IF(Aanzuivering!$AC$10:$AC$490=D238,Aanzuivering!$O$10:$O$490,0))","v":0},0,0,0,null,null,0,0]
[null,null,null,null,null,null,null,null,"","",null,null,null,null,null,null,null,null,0,null,null,null,{"$f":"SUM(IF(Aanzuivering!$AC$10:$AC$490=D239,Aanzuivering!$O$10:$O$490,0))","v":0},0,0,0,null,null,0,0]
[null,null,null,null,null,null,null,null,"","",null,null,null,null,null,null,null,null,0,null,null,null,{"$f":"SUM(IF(Aanzuivering!$AC$10:$AC$490=D240,Aanzuivering!$O$10:$O$490,0))","v":0},0,0,0,null,null,0,0]
[null,null,null,null,null,null,null,null,"","",null,null,null,null,null,null,null,null,0,null,null,null,{"$f":"SUM(IF(Aanzuivering!$AC$10:$AC$490=D241,Aanzuivering!$O$10:$O$490,0))","v":0},0,0,0,null,null,0,0]
[null,null,null,null,null,null,null,null,"","",null,null,null,null,null,null,null,null,0,null,null,null,{"$f":"SUM(IF(Aanzuivering!$AC$10:$AC$490=D242,Aanzuivering!$O$10:$O$490,0))","v":0},0,0,0,null,null,0,0]
[null,null,null,null,null,null,null,null,"","",null,null,null,null,null,null,null,null,0,null,null,null,{"$f":"SUM(IF(Aanzuivering!$AC$10:$AC$490=D243,Aanzuivering!$O$10:$O$490,0))","v":0},0,0,0,null,null,0,0]
[null,null,null,null,null,null,null,null,"","",null,null,null,null,null,null,null,null,0,null,null,null,{"$f":"SUM(IF(Aanzuivering!$AC$10:$AC$490=D244,Aanzuivering!$O$10:$O$490,0))","v":0},0,0,0,null,null,0,0]
[null,null,null,null,null,null,null,null,"","",null,null,null,null,null,null,null,null,0,null,null,null,{"$f":"SUM(IF(Aanzuivering!$AC$10:$AC$490=D245,Aanzuivering!$O$10:$O$490,0))","v":0},0,0,0,null,null,0,0]
[null,null,null,null,null,null,null,null,"","",null,null,null,null,null,null,null,null,0,null,null,null,{"$f":"SUM(IF(Aanzuivering!$AC$10:$AC$490=D246,Aanzuivering!$O$10:$O$490,0))","v":0},0,0,0,null,null,0,0]
[null,null,null,null,null,null,null,null,"","",null,null,null,null,null,null,null,null,0,null,null,null,{"$f":"SUM(IF(Aanzuivering!$AC$10:$AC$490=D247,Aanzuivering!$O$10:$O$490,0))","v":0},0,0,0,null,null,0,0]
[null,null,null,null,null,null,null,null,"","",null,null,null,null,null,null,null,null,0,null,null,null,{"$f":"SUM(IF(Aanzuivering!$AC$10:$AC$490=D248,Aanzuivering!$O$10:$O$490,0))","v":0},0,0,0,null,null,0,0]
[null,null,null,null,null,null,null,null,"","",null,null,null,null,null,null,null,null,0,null,null,null,{"$f":"SUM(IF(Aanzuivering!$AC$10:$AC$490=D249,Aanzuivering!$O$10:$O$490,0))","v":0},0,0,0,null,null,0,0]
[null,null,null,null,null,null,null,null,"","",null,null,null,null,null,null,null,null,0,null,null,null,{"$f":"SUM(IF(Aanzuivering!$AC$10:$AC$490=D250,Aanzuivering!$O$10:$O$490,0))","v":0},0,0,0,null,null,0,0]
[null,null,null,null,null,null,null,null,"","",null,null,null,null,null,null,null,null,0,null,null,null,{"$f":"SUM(IF(Aanzuivering!$AC$10:$AC$490=D251,Aanzuivering!$O$10:$O$490,0))","v":0},0,0,0,null,null,0,0]
[null,null,null,null,null,null,null,null,"","",null,null,null,null,null,null,null,null,0,null,null,null,{"$f":"SUM(IF(Aanzuivering!$AC$10:$AC$490=D252,Aanzuivering!$O$10:$O$490,0))","v":0},0,0,0,null,null,0,0]
[null,null,null,null,null,null,null,null,"","",null,null,null,null,null,null,null,null,0,null,null,null,{"$f":"SUM(IF(Aanzuivering!$AC$10:$AC$490=D253,Aanzuivering!$O$10:$O$490,0))","v":0},0,0,0,null,null,0,0]
[null,null,null,null,null,null,null,null,"","",null,null,null,null,null,null,null,null,0,null,null,null,{"$f":"SUM(IF(Aanzuivering!$AC$10:$AC$490=D254,Aanzuivering!$O$10:$O$490,0))","v":0},0,0,0,null,null,0,0]
[null,null,null,null,null,null,null,null,"","",null,null,null,null,null,null,null,null,0,null,null,null,{"$f":"SUM(IF(Aanzuivering!$AC$10:$AC$490=D255,Aanzuivering!$O$10:$O$490,0))","v":0},0,0,0,null,null,0,0]
[null,null,null,null,null,null,null,null,"","",null,null,null,null,null,null,null,null,0,null,null,null,{"$f":"SUM(IF(Aanzuivering!$AC$10:$AC$490=D256,Aanzuivering!$O$10:$O$490,0))","v":0},0,0,0,null,null,0,0]
[null,null,null,null,null,null,null,null,"","",null,null,null,null,null,null,null,null,0,null,null,null,{"$f":"SUM(IF(Aanzuivering!$AC$10:$AC$490=D257,Aanzuivering!$O$10:$O$490,0))","v":0},0,0,0,null,null,0,0]
[null,null,null,null,null,null,null,null,"","",null,null,null,null,null,null,null,null,0,null,null,null,{"$f":"SUM(IF(Aanzuivering!$AC$10:$AC$490=D258,Aanzuivering!$O$10:$O$490,0))","v":0},0,0,0,null,null,0,0]
[null,null,null,null,null,null,null,null,"","",null,null,null,null,null,null,null,null,0,null,null,null,{"$f":"SUM(IF(Aanzuivering!$AC$10:$AC$490=D259,Aanzuivering!$O$10:$O$490,0))","v":0},0,0,0,null,null,0,0]
[null,null,null,null,null,null,null,null,"","",null,null,null,null,null,null,null,null,0,null,null,null,{"$f":"SUM(IF(Aanzuivering!$AC$10:$AC$490=D260,Aanzuivering!$O$10:$O$490,0))","v":0},0,0,0,null,null,0,0]
[null,null,null,null,null,null,null,null,{"$f":"IF(AND(G261>40000,termijn>0),EDATE(G261,termijn),\"\")","v":""},{"$f":"IF(AND(G261>0,termijn>0),IF(AND(($J$1)>I261,X261>0),\"Termijn overschreden\",\"\"),\"\")","v":""},null,null,null,null,null,null,null,null,{"$f":"R261+O261","v":0},null,null,null,{"$f":"SUM(IF(Aanzuivering!$AC$10:$AC$490=D261,Aanzuivering!$O$10:$O$490,0))","v":0},{"$f":"IF(OR((T261-V261-W261)>0.01,(T261-V261-W261)<-0.01),T261-V261-W261,0)","v":0},{"$f":"IF(AND(X261<>0,S261>0),IF(OR((S261/T261*X261) > 0.5,(S261/T261*X261) < -0.5),ROUND(S261/T261*X261,2),0),0)","v":0},{"$f":"IF(W261>0,ROUND(W261/T261*S261,2),0)","v":0},null,null,{"$f":"D261","v":0},{"$f":"X261","v":0}]
[null,null,null,null,null,null,null,null,"","",null,null,null,null,null,null,null,null,0,null,null,null,{"$f":"SUM(IF(Aanzuivering!$AC$10:$AC$490=D262,Aanzuivering!$O$10:$O$490,0))","v":0},0,0,0,null,null,0,0]
[null,null,null,null,null,null,null,null,"","",null,null,null,null,null,null,null,null,0,null,null,null,{"$f":"SUM(IF(Aanzuivering!$AC$10:$AC$490=D263,Aanzuivering!$O$10:$O$490,0))","v":0},0,0,0,null,null,0,0]
[null,null,null,null,null,null,null,null,"","",null,null,null,null,null,null,null,null,0,null,null,null,{"$f":"SUM(IF(Aanzuivering!$AC$10:$AC$490=D264,Aanzuivering!$O$10:$O$490,0))","v":0},0,0,0,null,null,0,0]
[null,null,null,null,null,null,null,null,"","",null,null,null,null,null,null,null,null,0,null,null,null,{"$f":"SUM(IF(Aanzuivering!$AC$10:$AC$490=D265,Aanzuivering!$O$10:$O$490,0))","v":0},0,0,0,null,null,0,0]
[null,null,null,null,null,null,null,null,"","",null,null,null,null,null,null,null,null,0,null,null,null,{"$f":"SUM(IF(Aanzuivering!$AC$10:$AC$490=D266,Aanzuivering!$O$10:$O$490,0))","v":0},0,0,0,null,null,0,0]
[null,null,null,null,null,null,null,null,"","",null,null,null,null,null,null,null,null,0,null,null,null,{"$f":"SUM(IF(Aanzuivering!$AC$10:$AC$490=D267,Aanzuivering!$O$10:$O$490,0))","v":0},0,0,0,null,null,0,0]
[null,null,null,null,null,null,null,null,"","",null,null,null,null,null,null,null,null,0,null,null,null,{"$f":"SUM(IF(Aanzuivering!$AC$10:$AC$490=D268,Aanzuivering!$O$10:$O$490,0))","v":0},0,0,0,null,null,0,0]
[null,null,null,null,null,null,null,null,"","",null,null,null,null,null,null,null,null,0,null,null,null,{"$f":"SUM(IF(Aanzuivering!$AC$10:$AC$490=D269,Aanzuivering!$O$10:$O$490,0))","v":0},0,0,0,null,null,0,0]
[null,null,null,null,null,null,null,null,"","",null,null,null,null,null,null,null,null,0,null,null,null,{"$f":"SUM(IF(Aanzuivering!$AC$10:$AC$490=D270,Aanzuivering!$O$10:$O$490,0))","v":0},0,0,0,null,null,0,0]
[null,null,null,null,null,null,null,null,"","",null,null,null,null,null,null,null,null,0,null,null,null,{"$f":"SUM(IF(Aanzuivering!$AC$10:$AC$490=D271,Aanzuivering!$O$10:$O$490,0))","v":0},0,0,0,null,null,0,0]
[null,null,null,null,null,null,null,null,"","",null,null,null,null,null,null,null,null,0,null,null,null,{"$f":"SUM(IF(Aanzuivering!$AC$10:$AC$490=D272,Aanzuivering!$O$10:$O$490,0))","v":0},0,0,0,null,null,0,0]
[null,null,null,null,null,null,null,null,"","",null,null,null,null,null,null,null,null,0,null,null,null,{"$f":"SUM(IF(Aanzuivering!$AC$10:$AC$490=D273,Aanzuivering!$O$10:$O$490,0))","v":0},0,0,0,null,null,0,0]
[null,null,null,null,null,null,null,null,"","",null,null,null,null,null,null,null,null,0,null,null,null,{"$f":"SUM(IF(Aanzuivering!$AC$10:$AC$490=D274,Aanzuivering!$O$10:$O$490,0))","v":0},0,0,0,null,null,0,0]
[null,null,null,null,null,null,null,null,"","",null,null,null,null,null,null,null,null,0,null,null,null,{"$f":"SUM(IF(Aanzuivering!$AC$10:$AC$490=D275,Aanzuivering!$O$10:$O$490,0))","v":0},0,0,0,null,null,0,0]
[null,null,null,null,null,null,null,null,"","",null,null,null,null,null,null,null,null,0,null,null,null,{"$f":"SUM(IF(Aanzuivering!$AC$10:$AC$490=D276,Aanzuivering!$O$10:$O$490,0))","v":0},0,0,0,null,null,0,0]
[null,null,null,null,null,null,null,null,"","",null,null,null,null,null,null,null,null,0,null,null,null,{"$f":"SUM(IF(Aanzuivering!$AC$10:$AC$490=D277,Aanzuivering!$O$10:$O$490,0))","v":0},0,0,0,null,null,0,0]
[null,null,null,null,null,null,null,null,"","",null,null,null,null,null,null,null,null,0,null,null,null,{"$f":"SUM(IF(Aanzuivering!$AC$10:$AC$490=D278,Aanzuivering!$O$10:$O$490,0))","v":0},0,0,0,null,null,0,0]
[null,null,null,null,null,null,null,null,"","",null,null,null,null,null,null,null,null,0,null,null,null,{"$f":"SUM(IF(Aanzuivering!$AC$10:$AC$490=D279,Aanzuivering!$O$10:$O$490,0))","v":0},0,0,0,null,null,0,0]
[null,null,null,null,null,null,null,null,"","",null,null,null,null,null,null,null,null,0,null,null,null,{"$f":"SUM(IF(Aanzuivering!$AC$10:$AC$490=D280,Aanzuivering!$O$10:$O$490,0))","v":0},0,0,0,null,null,0,0]
[null,null,null,null,null,null,null,null,"","",null,null,null,null,null,null,null,null,0,null,null,null,{"$f":"SUM(IF(Aanzuivering!$AC$10:$AC$490=D281,Aanzuivering!$O$10:$O$490,0))","v":0},0,0,0,null,null,0,0]
[null,null,null,null,null,null,null,null,"","",null,null,null,null,null,null,null,null,0,null,null,null,{"$f":"SUM(IF(Aanzuivering!$AC$10:$AC$490=D282,Aanzuivering!$O$10:$O$490,0))","v":0},0,0,0,null,null,0,0]
[null,null,null,null,null,null,null,null,"","",null,null,null,null,null,null,null,null,0,null,null,null,{"$f":"SUM(IF(Aanzuivering!$AC$10:$AC$490=D283,Aanzuivering!$O$10:$O$490,0))","v":0},0,0,0,null,null,0,0]
[null,null,null,null,null,null,null,null,"","",null,null,null,null,null,null,null,null,0,null,null,null,{"$f":"SUM(IF(Aanzuivering!$AC$10:$AC$490=D284,Aanzuivering!$O$10:$O$490,0))","v":0},0,0,0,null,null,0,0]
[null,null,null,null,null,null,null,null,"","",null,null,null,null,null,null,null,null,0,null,null,null,{"$f":"SUM(IF(Aanzuivering!$AC$10:$AC$490=D285,Aanzuivering!$O$10:$O$490,0))","v":0},0,0,0,null,null,0,0]
[null,null,null,null,null,null,null,null,"","",null,null,null,null,null,null,null,null,0,null,null,null,{"$f":"SUM(IF(Aanzuivering!$AC$10:$AC$490=D286,Aanzuivering!$O$10:$O$490,0))","v":0},0,0,0,null,null,0,0]
[null,null,null,null,null,null,null,null,"","",null,null,null,null,null,null,null,null,0,null,null,null,{"$f":"SUM(IF(Aanzuivering!$AC$10:$AC$490=D287,Aanzuivering!$O$10:$O$490,0))","v":0},0,0,0,null,null,0,0]
[null,null,null,null,null,null,null,null,"","",null,null,null,null,null,null,null,null,0,null,null,null,{"$f":"SUM(IF(Aanzuivering!$AC$10:$AC$490=D288,Aanzuivering!$O$10:$O$490,0))","v":0},0,0,0,null,null,0,0]
[null,null,null,null,null,null,null,null,"","",null,null,null,null,null,null,null,null,0,null,null,null,{"$f":"SUM(IF(Aanzuivering!$AC$10:$AC$490=D289,Aanzuivering!$O$10:$O$490,0))","v":0},0,0,0,null,null,0,0]
[null,null,null,null,null,null,null,null,"","",null,null,null,null,null,null,null,null,0,null,null,null,{"$f":"SUM(IF(Aanzuivering!$AC$10:$AC$490=D290,Aanzuivering!$O$10:$O$490,0))","v":0},0,0,0,null,null,0,0]
[null,null,null,null,null,null,null,null,"","",null,null,null,null,null,null,null,null,0,null,null,null,{"$f":"SUM(IF(Aanzuivering!$AC$10:$AC$490=D291,Aanzuivering!$O$10:$O$490,0))","v":0},0,0,0,null,null,0,0]
[null,null,null,null,null,null,null,null,"","",null,null,null,null,null,null,null,null,0,null,null,null,{"$f":"SUM(IF(Aanzuivering!$AC$10:$AC$490=D292,Aanzuivering!$O$10:$O$490,0))","v":0},0,0,0,null,null,0,0]
[null,null,null,null,null,null,null,null,"","",null,null,null,null,null,null,null,null,0,null,null,null,{"$f":"SUM(IF(Aanzuivering!$AC$10:$AC$490=D293,Aanzuivering!$O$10:$O$490,0))","v":0},0,0,0,null,null,0,0]
[null,null,null,null,null,null,null,null,"","",null,null,null,null,null,null,null,null,0,null,null,null,{"$f":"SUM(IF(Aanzuivering!$AC$10:$AC$490=D294,Aanzuivering!$O$10:$O$490,0))","v":0},0,0,0,null,null,0,0]
[null,null,null,null,null,null,null,null,"","",null,null,null,null,null,null,null,null,0,null,null,null,{"$f":"SUM(IF(Aanzuivering!$AC$10:$AC$490=D295,Aanzuivering!$O$10:$O$490,0))","v":0},0,0,0,null,null,0,0]
[null,null,null,null,null,null,null,null,"","",null,null,null,null,null,null,null,null,0,null,null,null,{"$f":"SUM(IF(Aanzuivering!$AC$10:$AC$490=D296,Aanzuivering!$O$10:$O$490,0))","v":0},0,0,0,null,null,0,0]
[null,null,null,null,null,null,null,null,"","",null,null,null,null,null,null,null,null,0,null,null,null,{"$f":"SUM(IF(Aanzuivering!$AC$10:$AC$490=D297,Aanzuivering!$O$10:$O$490,0))","v":0},0,0,0,null,null,0,0]
[null,null,null,null,null,null,null,null,"","",null,null,null,null,null,null,null,null,0,null,null,null,{"$f":"SUM(IF(Aanzuivering!$AC$10:$AC$490=D298,Aanzuivering!$O$10:$O$490,0))","v":0},0,0,0,null,null,0,0]
[null,null,null,null,null,null,null,null,"","",null,null,null,null,null,null,null,null,0,null,null,null,{"$f":"SUM(IF(Aanzuivering!$AC$10:$AC$490=D299,Aanzuivering!$O$10:$O$490,0))","v":0},0,0,0,null,null,0,0]
[null,null,null,null,null,null,null,null,"","",null,null,null,null,null,null,null,null,0,null,null,null,{"$f":"SUM(IF(Aanzuivering!$AC$10:$AC$490=D300,Aanzuivering!$O$10:$O$490,0))","v":0},0,0,0,null,null,0,0]
[null,null,null,null,null,null,null,null,"","",null,null,null,null,null,null,null,null,0,null,null,null,{"$f":"SUM(IF(Aanzuivering!$AC$10:$AC$490=D301,Aanzuivering!$O$10:$O$490,0))","v":0},0,0,0,null,null,0,0]
[null,null,null,null,null,null,null,null,"","",null,null,null,null,null,null,null,null,0,null,null,null,{"$f":"SUM(IF(Aanzuivering!$AC$10:$AC$490=D302,Aanzuivering!$O$10:$O$490,0))","v":0},0,0,0,null,null,0,0]
[null,null,null,null,null,null,null,null,"","",null,null,null,null,null,null,null,null,0,null,null,null,{"$f":"SUM(IF(Aanzuivering!$AC$10:$AC$490=D303,Aanzuivering!$O$10:$O$490,0))","v":0},0,0,0,null,null,0,0]
[null,null,null,null,null,null,null,null,"","",null,null,null,null,null,null,null,null,0,null,null,null,{"$f":"SUM(IF(Aanzuivering!$AC$10:$AC$490=D304,Aanzuivering!$O$10:$O$490,0))","v":0},0,0,0,null,null,0,0]
[null,null,null,null,null,null,null,null,"","",null,null,null,null,null,null,null,null,0,null,null,null,{"$f":"SUM(IF(Aanzuivering!$AC$10:$AC$490=D305,Aanzuivering!$O$10:$O$490,0))","v":0},0,0,0,null,null,0,0]
[null,null,null,null,null,null,null,null,"","",null,null,null,null,null,null,null,null,0,null,null,null,{"$f":"SUM(IF(Aanzuivering!$AC$10:$AC$490=D306,Aanzuivering!$O$10:$O$490,0))","v":0},0,0,0,null,null,0,0]
[null,null,null,null,null,null,null,null,"","",null,null,null,null,null,null,null,null,0,null,null,null,{"$f":"SUM(IF(Aanzuivering!$AC$10:$AC$490=D307,Aanzuivering!$O$10:$O$490,0))","v":0},0,0,0,null,null,0,0]
[null,null,null,null,null,null,null,null,"","",null,null,null,null,null,null,null,null,0,null,null,null,{"$f":"SUM(IF(Aanzuivering!$AC$10:$AC$490=D308,Aanzuivering!$O$10:$O$490,0))","v":0},0,0,0,null,null,0,0]
[null,null,null,null,null,null,null,null,"","",null,null,null,null,null,null,null,null,0,null,null,null,{"$f":"SUM(IF(Aanzuivering!$AC$10:$AC$490=D309,Aanzuivering!$O$10:$O$490,0))","v":0},0,0,0,null,null,0,0]
[null,null,null,null,null,null,null,null,"","",null,null,null,null,null,null,null,null,0,null,null,null,{"$f":"SUM(IF(Aanzuivering!$AC$10:$AC$490=D310,Aanzuivering!$O$10:$O$490,0))","v":0},0,0,0,null,null,0,0]
[null,null,null,null,null,null,null,null,"","",null,null,null,null,null,null,null,null,0,null,null,null,{"$f":"SUM(IF(Aanzuivering!$AC$10:$AC$490=D311,Aanzuivering!$O$10:$O$490,0))","v":0},0,0,0,null,null,0,0]
[null,null,null,null,null,null,null,null,"","",null,null,null,null,null,null,null,null,0,null,null,null,{"$f":"SUM(IF(Aanzuivering!$AC$10:$AC$490=D312,Aanzuivering!$O$10:$O$490,0))","v":0},0,0,0,null,null,0,0]
[null,null,null,null,null,null,null,null,"","",null,null,null,null,null,null,null,null,0,null,null,null,{"$f":"SUM(IF(Aanzuivering!$AC$10:$AC$490=D313,Aanzuivering!$O$10:$O$490,0))","v":0},0,0,0,null,null,0,0]
[null,null,null,null,null,null,null,null,"","",null,null,null,null,null,null,null,null,0,null,null,null,{"$f":"SUM(IF(Aanzuivering!$AC$10:$AC$490=D314,Aanzuivering!$O$10:$O$490,0))","v":0},0,0,0,null,null,0,0]
[null,null,null,null,null,null,null,null,"","",null,null,null,null,null,null,null,null,0,null,null,null,{"$f":"SUM(IF(Aanzuivering!$AC$10:$AC$490=D315,Aanzuivering!$O$10:$O$490,0))","v":0},0,0,0,null,null,0,0]
[null,null,null,null,null,null,null,null,"","",null,null,null,null,null,null,null,null,0,null,null,null,{"$f":"SUM(IF(Aanzuivering!$AC$10:$AC$490=D316,Aanzuivering!$O$10:$O$490,0))","v":0},0,0,0,null,null,0,0]
[null,null,null,null,null,null,null,null,"","",null,null,null,null,null,null,null,null,0,null,null,null,{"$f":"SUM(IF(Aanzuivering!$AC$10:$AC$490=D317,Aanzuivering!$O$10:$O$490,0))","v":0},0,0,0,null,null,0,0]
[null,null,null,null,null,null,null,null,"","",null,null,null,null,null,null,null,null,0,null,null,null,{"$f":"SUM(IF(Aanzuivering!$AC$10:$AC$490=D318,Aanzuivering!$O$10:$O$490,0))","v":0},0,0,0,null,null,0,0]
[null,null,null,null,null,null,null,null,"","",null,null,null,null,null,null,null,null,0,null,null,null,{"$f":"SUM(IF(Aanzuivering!$AC$10:$AC$490=D319,Aanzuivering!$O$10:$O$490,0))","v":0},0,0,0,null,null,0,0]
[null,null,null,null,null,null,null,null,"","",null,null,null,null,null,null,null,null,0,null,null,null,{"$f":"SUM(IF(Aanzuivering!$AC$10:$AC$490=D320,Aanzuivering!$O$10:$O$490,0))","v":0},0,0,0,null,null,0,0]
[null,null,null,null,null,null,null,null,"","",null,null,null,null,null,null,null,null,0,null,null,null,{"$f":"SUM(IF(Aanzuivering!$AC$10:$AC$490=D321,Aanzuivering!$O$10:$O$490,0))","v":0},0,0,0,null,null,0,0]
[null,null,null,null,null,null,null,null,"","",null,null,null,null,null,null,null,null,0,null,null,null,{"$f":"SUM(IF(Aanzuivering!$AC$10:$AC$490=D322,Aanzuivering!$O$10:$O$490,0))","v":0},0,0,0,null,null,0,0]
[null,null,null,null,null,null,null,null,"","",null,null,null,null,null,null,null,null,0,null,null,null,{"$f":"SUM(IF(Aanzuivering!$AC$10:$AC$490=D323,Aanzuivering!$O$10:$O$490,0))","v":0},0,0,0,null,null,0,0]
[null,null,null,null,null,null,null,null,"","",null,null,null,null,null,null,null,null,0,null,null,null,{"$f":"SUM(IF(Aanzuivering!$AC$10:$AC$490=D324,Aanzuivering!$O$10:$O$490,0))","v":0},0,0,0,null,null,0,0]
[null,null,null,null,null,null,null,null,{"$f":"IF(AND(G325>40000,termijn>0),EDATE(G325,termijn),\"\")","v":""},{"$f":"IF(AND(G325>0,termijn>0),IF(AND(($J$1)>I325,X325>0),\"Termijn overschreden\",\"\"),\"\")","v":""},null,null,null,null,null,null,null,null,{"$f":"R325+O325","v":0},null,null,null,{"$f":"SUM(IF(Aanzuivering!$AC$10:$AC$490=D325,Aanzuivering!$O$10:$O$490,0))","v":0},{"$f":"IF(OR((T325-V325-W325)>0.01,(T325-V325-W325)<-0.01),T325-V325-W325,0)","v":0},{"$f":"IF(AND(X325<>0,S325>0),IF(OR((S325/T325*X325) > 0.5,(S325/T325*X325) < -0.5),ROUND(S325/T325*X325,2),0),0)","v":0},{"$f":"IF(W325>0,ROUND(W325/T325*S325,2),0)","v":0},null,null,{"$f":"D325","v":0},{"$f":"X325","v":0}]
[null,null,null,null,null,null,null,null,"","",null,null,null,null,null,null,null,null,0,null,null,null,{"$f":"SUM(IF(Aanzuivering!$AC$10:$AC$490=D326,Aanzuivering!$O$10:$O$490,0))","v":0},0,0,0,null,null,0,0]
[null,null,null,null,null,null,null,null,"","",null,null,null,null,null,null,null,null,0,null,null,null,{"$f":"SUM(IF(Aanzuivering!$AC$10:$AC$490=D327,Aanzuivering!$O$10:$O$490,0))","v":0},0,0,0,null,null,0,0]
[null,null,null,null,null,null,null,null,"","",null,null,null,null,null,null,null,null,0,null,null,null,{"$f":"SUM(IF(Aanzuivering!$AC$10:$AC$490=D328,Aanzuivering!$O$10:$O$490,0))","v":0},0,0,0,null,null,0,0]
[null,null,null,null,null,null,null,null,"","",null,null,null,null,null,null,null,null,0,null,null,null,{"$f":"SUM(IF(Aanzuivering!$AC$10:$AC$490=D329,Aanzuivering!$O$10:$O$490,0))","v":0},0,0,0,null,null,0,0]
[null,null,null,null,null,null,null,null,"","",null,null,null,null,null,null,null,null,0,null,null,null,{"$f":"SUM(IF(Aanzuivering!$AC$10:$AC$490=D330,Aanzuivering!$O$10:$O$490,0))","v":0},0,0,0,null,null,0,0]
[null,null,null,null,null,null,null,null,"","",null,null,null,null,null,null,null,null,0,null,null,null,{"$f":"SUM(IF(Aanzuivering!$AC$10:$AC$490=D331,Aanzuivering!$O$10:$O$490,0))","v":0},0,0,0,null,null,0,0]
[null,null,null,null,null,null,null,null,"","",null,null,null,null,null,null,null,null,0,null,null,null,{"$f":"SUM(IF(Aanzuivering!$AC$10:$AC$490=D332,Aanzuivering!$O$10:$O$490,0))","v":0},0,0,0,null,null,0,0]
[null,null,null,null,null,null,null,null,"","",null,null,null,null,null,null,null,null,0,null,null,null,{"$f":"SUM(IF(Aanzuivering!$AC$10:$AC$490=D333,Aanzuivering!$O$10:$O$490,0))","v":0},0,0,0,null,null,0,0]
[null,null,null,null,null,null,null,null,"","",null,null,null,null,null,null,null,null,0,null,null,null,{"$f":"SUM(IF(Aanzuivering!$AC$10:$AC$490=D334,Aanzuivering!$O$10:$O$490,0))","v":0},0,0,0,null,null,0,0]
[null,null,null,null,null,null,null,null,"","",null,null,null,null,null,null,null,null,0,null,null,null,{"$f":"SUM(IF(Aanzuivering!$AC$10:$AC$490=D335,Aanzuivering!$O$10:$O$490,0))","v":0},0,0,0,null,null,0,0]
[null,null,null,null,null,null,null,null,"","",null,null,null,null,null,null,null,null,0,null,null,null,{"$f":"SUM(IF(Aanzuivering!$AC$10:$AC$490=D336,Aanzuivering!$O$10:$O$490,0))","v":0},0,0,0,null,null,0,0]
[null,null,null,null,null,null,null,null,"","",null,null,null,null,null,null,null,null,0,null,null,null,{"$f":"SUM(IF(Aanzuivering!$AC$10:$AC$490=D337,Aanzuivering!$O$10:$O$490,0))","v":0},0,0,0,null,null,0,0]
[null,null,null,null,null,null,null,null,"","",null,null,null,null,null,null,null,null,0,null,null,null,{"$f":"SUM(IF(Aanzuivering!$AC$10:$AC$490=D338,Aanzuivering!$O$10:$O$490,0))","v":0},0,0,0,null,null,0,0]
[null,null,null,null,null,null,null,null,"","",null,null,null,null,null,null,null,null,0,null,null,null,{"$f":"SUM(IF(Aanzuivering!$AC$10:$AC$490=D339,Aanzuivering!$O$10:$O$490,0))","v":0},0,0,0,null,null,0,0]
[null,null,null,null,null,null,null,null,"","",null,null,null,null,null,null,null,null,0,null,null,null,{"$f":"SUM(IF(Aanzuivering!$AC$10:$AC$490=D340,Aanzuivering!$O$10:$O$490,0))","v":0},0,0,0,null,null,0,0]
[null,null,null,null,null,null,null,null,"","",null,null,null,null,null,null,null,null,0,null,null,null,{"$f":"SUM(IF(Aanzuivering!$AC$10:$AC$490=D341,Aanzuivering!$O$10:$O$490,0))","v":0},0,0,0,null,null,0,0]
[null,null,null,null,null,null,null,null,"","",null,null,null,null,null,null,null,null,0,null,null,null,{"$f":"SUM(IF(Aanzuivering!$AC$10:$AC$490=D342,Aanzuivering!$O$10:$O$490,0))","v":0},0,0,0,null,null,0,0]
[null,null,null,null,null,null,null,null,"","",null,null,null,null,null,null,null,null,0,null,null,null,{"$f":"SUM(IF(Aanzuivering!$AC$10:$AC$490=D343,Aanzuivering!$O$10:$O$490,0))","v":0},0,0,0,null,null,0,0]
[null,null,null,null,null,null,null,null,"","",null,null,null,null,null,null,null,null,0,null,null,null,{"$f":"SUM(IF(Aanzuivering!$AC$10:$AC$490=D344,Aanzuivering!$O$10:$O$490,0))","v":0},0,0,0,null,null,0,0]
[null,null,null,null,null,null,null,null,"","",null,null,null,null,null,null,null,null,0,null,null,null,{"$f":"SUM(IF(Aanzuivering!$AC$10:$AC$490=D345,Aanzuivering!$O$10:$O$490,0))","v":0},0,0,0,null,null,0,0]
[null,null,null,null,null,null,null,null,"","",null,null,null,null,null,null,null,null,0,null,null,null,{"$f":"SUM(IF(Aanzuivering!$AC$10:$AC$490=D346,Aanzuivering!$O$10:$O$490,0))","v":0},0,0,0,null,null,0,0]
[null,null,null,null,null,null,null,null,"","",null,null,null,null,null,null,null,null,0,null,null,null,{"$f":"SUM(IF(Aanzuivering!$AC$10:$AC$490=D347,Aanzuivering!$O$10:$O$490,0))","v":0},0,0,0,null,null,0,0]
[null,null,null,null,null,null,null,null,"","",null,null,null,null,null,null,null,null,0,null,null,null,{"$f":"SUM(IF(Aanzuivering!$AC$10:$AC$490=D348,Aanzuivering!$O$10:$O$490,0))","v":0},0,0,0,null,null,0,0]
[null,null,null,null,null,null,null,null,"","",null,null,null,null,null,null,null,null,0,null,null,null,{"$f":"SUM(IF(Aanzuivering!$AC$10:$AC$490=D349,Aanzuivering!$O$10:$O$490,0))","v":0},0,0,0,null,null,0,0]
[null,null,null,null,null,null,null,null,"","",null,null,null,null,null,null,null,null,0,null,null,null,{"$f":"SUM(IF(Aanzuivering!$AC$10:$AC$490=D350,Aanzuivering!$O$10:$O$490,0))","v":0},0,0,0,null,null,0,0]
[null,null,null,null,null,null,null,null,"","",null,null,null,null,null,null,null,null,0,null,null,null,{"$f":"SUM(IF(Aanzuivering!$AC$10:$AC$490=D351,Aanzuivering!$O$10:$O$490,0))","v":0},0,0,0,null,null,0,0]
[null,null,null,null,null,null,null,null,"","",null,null,null,null,null,null,null,null,0,null,null,null,{"$f":"SUM(IF(Aanzuivering!$AC$10:$AC$490=D352,Aanzuivering!$O$10:$O$490,0))","v":0},0,0,0,null,null,0,0]
[null,null,null,null,null,null,null,null,"","",null,null,null,null,null,null,null,null,0,null,null,null,{"$f":"SUM(IF(Aanzuivering!$AC$10:$AC$490=D353,Aanzuivering!$O$10:$O$490,0))","v":0},0,0,0,null,null,0,0]
[null,null,null,null,null,null,null,null,"","",null,null,null,null,null,null,null,null,0,null,null,null,{"$f":"SUM(IF(Aanzuivering!$AC$10:$AC$490=D354,Aanzuivering!$O$10:$O$490,0))","v":0},0,0,0,null,null,0,0]
[null,null,null,null,null,null,null,null,"","",null,null,null,null,null,null,null,null,0,null,null,null,{"$f":"SUM(IF(Aanzuivering!$AC$10:$AC$490=D355,Aanzuivering!$O$10:$O$490,0))","v":0},0,0,0,null,null,0,0]
[null,null,null,null,null,null,null,null,"","",null,null,null,null,null,null,null,null,0,null,null,null,{"$f":"SUM(IF(Aanzuivering!$AC$10:$AC$490=D356,Aanzuivering!$O$10:$O$490,0))","v":0},0,0,0,null,null,0,0]
[null,null,null,null,null,null,null,null,"","",null,null,null,null,null,null,null,null,0,null,null,null,{"$f":"SUM(IF(Aanzuivering!$AC$10:$AC$490=D357,Aanzuivering!$O$10:$O$490,0))","v":0},0,0,0,null,null,0,0]
[null,null,null,null,null,null,null,null,"","",null,null,null,null,null,null,null,null,0,null,null,null,{"$f":"SUM(IF(Aanzuivering!$AC$10:$AC$490=D358,Aanzuivering!$O$10:$O$490,0))","v":0},0,0,0,null,null,0,0]
[null,null,null,null,null,null,null,null,"","",null,null,null,null,null,null,null,null,0,null,null,null,{"$f":"SUM(IF(Aanzuivering!$AC$10:$AC$490=D359,Aanzuivering!$O$10:$O$490,0))","v":0},0,0,0,null,null,0,0]
[null,null,null,null,null,null,null,null,"","",null,null,null,null,null,null,null,null,0,null,null,null,{"$f":"SUM(IF(Aanzuivering!$AC$10:$AC$490=D360,Aanzuivering!$O$10:$O$490,0))","v":0},0,0,0,null,null,0,0]
[null,null,null,null,null,null,null,null,"","",null,null,null,null,null,null,null,null,0,null,null,null,{"$f":"SUM(IF(Aanzuivering!$AC$10:$AC$490=D361,Aanzuivering!$O$10:$O$490,0))","v":0},0,0,0,null,null,0,0]
[null,null,null,null,null,null,null,null,"","",null,null,null,null,null,null,null,null,0,null,null,null,{"$f":"SUM(IF(Aanzuivering!$AC$10:$AC$490=D362,Aanzuivering!$O$10:$O$490,0))","v":0},0,0,0,null,null,0,0]
[null,null,null,null,null,null,null,null,"","",null,null,null,null,null,null,null,null,0,null,null,null,{"$f":"SUM(IF(Aanzuivering!$AC$10:$AC$490=D363,Aanzuivering!$O$10:$O$490,0))","v":0},0,0,0,null,null,0,0]
[null,null,null,null,null,null,null,null,"","",null,null,null,null,null,null,null,null,0,null,null,null,{"$f":"SUM(IF(Aanzuivering!$AC$10:$AC$490=D364,Aanzuivering!$O$10:$O$490,0))","v":0},0,0,0,null,null,0,0]
[null,null,null,null,null,null,null,null,"","",null,null,null,null,null,null,null,null,0,null,null,null,{"$f":"SUM(IF(Aanzuivering!$AC$10:$AC$490=D365,Aanzuivering!$O$10:$O$490,0))","v":0},0,0,0,null,null,0,0]
[null,null,null,null,null,null,null,null,"","",null,null,null,null,null,null,null,null,0,null,null,null,{"$f":"SUM(IF(Aanzuivering!$AC$10:$AC$490=D366,Aanzuivering!$O$10:$O$490,0))","v":0},0,0,0,null,null,0,0]
[null,null,null,null,null,null,null,null,"","",null,null,null,null,null,null,null,null,0,null,null,null,{"$f":"SUM(IF(Aanzuivering!$AC$10:$AC$490=D367,Aanzuivering!$O$10:$O$490,0))","v":0},0,0,0,null,null,0,0]
[null,null,null,null,null,null,null,null,"","",null,null,null,null,null,null,null,null,0,null,null,null,{"$f":"SUM(IF(Aanzuivering!$AC$10:$AC$490=D368,Aanzuivering!$O$10:$O$490,0))","v":0},0,0,0,null,null,0,0]
[null,null,null,null,null,null,null,null,"","",null,null,null,null,null,null,null,null,0,null,null,null,{"$f":"SUM(IF(Aanzuivering!$AC$10:$AC$490=D369,Aanzuivering!$O$10:$O$490,0))","v":0},0,0,0,null,null,0,0]
[null,null,null,null,null,null,null,null,"","",null,null,null,null,null,null,null,null,0,null,null,null,{"$f":"SUM(IF(Aanzuivering!$AC$10:$AC$490=D370,Aanzuivering!$O$10:$O$490,0))","v":0},0,0,0,null,null,0,0]
[null,null,null,null,null,null,null,null,"","",null,null,null,null,null,null,null,null,0,null,null,null,{"$f":"SUM(IF(Aanzuivering!$AC$10:$AC$490=D371,Aanzuivering!$O$10:$O$490,0))","v":0},0,0,0,null,null,0,0]
[null,null,null,null,null,null,null,null,"","",null,null,null,null,null,null,null,null,0,null,null,null,{"$f":"SUM(IF(Aanzuivering!$AC$10:$AC$490=D372,Aanzuivering!$O$10:$O$490,0))","v":0},0,0,0,null,null,0,0]
[null,null,null,null,null,null,null,null,"","",null,null,null,null,null,null,null,null,0,null,null,null,{"$f":"SUM(IF(Aanzuivering!$AC$10:$AC$490=D373,Aanzuivering!$O$10:$O$490,0))","v":0},0,0,0,null,null,0,0]
[null,null,null,null,null,null,null,null,"","",null,null,null,null,null,null,null,null,0,null,null,null,{"$f":"SUM(IF(Aanzuivering!$AC$10:$AC$490=D374,Aanzuivering!$O$10:$O$490,0))","v":0},0,0,0,null,null,0,0]
[null,null,null,null,null,null,null,null,"","",null,null,null,null,null,null,null,null,0,null,null,null,{"$f":"SUM(IF(Aanzuivering!$AC$10:$AC$490=D375,Aanzuivering!$O$10:$O$490,0))","v":0},0,0,0,null,null,0,0]
[null,null,null,null,null,null,null,null,"","",null,null,null,null,null,null,null,null,0,null,null,null,{"$f":"SUM(IF(Aanzuivering!$AC$10:$AC$490=D376,Aanzuivering!$O$10:$O$490,0))","v":0},0,0,0,null,null,0,0]
[null,null,null,null,null,null,null,null,"","",null,null,null,null,null,null,null,null,0,null,null,null,{"$f":"SUM(IF(Aanzuivering!$AC$10:$AC$490=D377,Aanzuivering!$O$10:$O$490,0))","v":0},0,0,0,null,null,0,0]
[null,null,null,null,null,null,null,null,"","",null,null,null,null,null,null,null,null,0,null,null,null,{"$f":"SUM(IF(Aanzuivering!$AC$10:$AC$490=D378,Aanzuivering!$O$10:$O$490,0))","v":0},0,0,0,null,null,0,0]
[null,null,null,null,null,null,null,null,"","",null,null,null,null,null,null,null,null,0,null,null,null,{"$f":"SUM(IF(Aanzuivering!$AC$10:$AC$490=D379,Aanzuivering!$O$10:$O$490,0))","v":0},0,0,0,null,null,0,0]
[null,null,null,null,null,null,null,null,"","",null,null,null,null,null,null,null,null,0,null,null,null,{"$f":"SUM(IF(Aanzuivering!$AC$10:$AC$490=D380,Aanzuivering!$O$10:$O$490,0))","v":0},0,0,0,null,null,0,0]
[null,null,null,null,null,null,null,null,"","",null,null,null,null,null,null,null,null,0,null,null,null,{"$f":"SUM(IF(Aanzuivering!$AC$10:$AC$490=D381,Aanzuivering!$O$10:$O$490,0))","v":0},0,0,0,null,null,0,0]
[null,null,null,null,null,null,null,null,"","",null,null,null,null,null,null,null,null,0,null,null,null,{"$f":"SUM(IF(Aanzuivering!$AC$10:$AC$490=D382,Aanzuivering!$O$10:$O$490,0))","v":0},0,0,0,null,null,0,0]
[null,null,null,null,null,null,null,null,"","",null,null,null,null,null,null,null,null,0,null,null,null,{"$f":"SUM(IF(Aanzuivering!$AC$10:$AC$490=D383,Aanzuivering!$O$10:$O$490,0))","v":0},0,0,0,null,null,0,0]
[null,null,null,null,null,null,null,null,"","",null,null,null,null,null,null,null,null,0,null,null,null,{"$f":"SUM(IF(Aanzuivering!$AC$10:$AC$490=D384,Aanzuivering!$O$10:$O$490,0))","v":0},0,0,0,null,null,0,0]
[null,null,null,null,null,null,null,null,"","",null,null,null,null,null,null,null,null,0,null,null,null,{"$f":"SUM(IF(Aanzuivering!$AC$10:$AC$490=D385,Aanzuivering!$O$10:$O$490,0))","v":0},0,0,0,null,null,0,0]
[null,null,null,null,null,null,null,null,"","",null,null,null,null,null,null,null,null,0,null,null,null,{"$f":"SUM(IF(Aanzuivering!$AC$10:$AC$490=D386,Aanzuivering!$O$10:$O$490,0))","v":0},0,0,0,null,null,0,0]
[null,null,null,null,null,null,null,null,"","",null,null,null,null,null,null,null,null,0,null,null,null,{"$f":"SUM(IF(Aanzuivering!$AC$10:$AC$490=D387,Aanzuivering!$O$10:$O$490,0))","v":0},0,0,0,null,null,0,0]
[null,null,null,null,null,null,null,null,"","",null,null,null,null,null,null,null,null,0,null,null,null,{"$f":"SUM(IF(Aanzuivering!$AC$10:$AC$490=D388,Aanzuivering!$O$10:$O$490,0))","v":0},0,0,0,null,null,0,0]
[null,null,null,null,null,null,null,null,{"$f":"IF(AND(G389>40000,termijn>0),EDATE(G389,termijn),\"\")","v":""},{"$f":"IF(AND(G389>0,termijn>0),IF(AND(($J$1)>I389,X389>0),\"Termijn overschreden\",\"\"),\"\")","v":""},null,null,null,null,null,null,null,null,{"$f":"R389+O389","v":0},null,null,null,{"$f":"SUM(IF(Aanzuivering!$AC$10:$AC$490=D389,Aanzuivering!$O$10:$O$490,0))","v":0},{"$f":"IF(OR((T389-V389-W389)>0.01,(T389-V389-W389)<-0.01),T389-V389-W389,0)","v":0},{"$f":"IF(AND(X389<>0,S389>0),IF(OR((S389/T389*X389) > 0.5,(S389/T389*X389) < -0.5),ROUND(S389/T389*X389,2),0),0)","v":0},{"$f":"IF(W389>0,ROUND(W389/T389*S389,2),0)","v":0},null,null,{"$f":"D389","v":0},{"$f":"X389","v":0}]
[null,null,null,null,null,null,null,null,"","",null,null,null,null,null,null,null,null,0,null,null,null,{"$f":"SUM(IF(Aanzuivering!$AC$10:$AC$490=D390,Aanzuivering!$O$10:$O$490,0))","v":0},0,0,0,null,null,0,0]
[null,null,null,null,null,null,null,null,"","",null,null,null,null,null,null,null,null,0,null,null,null,{"$f":"SUM(IF(Aanzuivering!$AC$10:$AC$490=D391,Aanzuivering!$O$10:$O$490,0))","v":0},0,0,0,null,null,0,0]
[null,null,null,null,null,null,null,null,"","",null,null,null,null,null,null,null,null,0,null,null,null,{"$f":"SUM(IF(Aanzuivering!$AC$10:$AC$490=D392,Aanzuivering!$O$10:$O$490,0))","v":0},0,0,0,null,null,0,0]
[null,null,null,null,null,null,null,null,"","",null,null,null,null,null,null,null,null,0,null,null,null,{"$f":"SUM(IF(Aanzuivering!$AC$10:$AC$490=D393,Aanzuivering!$O$10:$O$490,0))","v":0},0,0,0,null,null,0,0]
[null,null,null,null,null,null,null,null,"","",null,null,null,null,null,null,null,null,0,null,null,null,{"$f":"SUM(IF(Aanzuivering!$AC$10:$AC$490=D394,Aanzuivering!$O$10:$O$490,0))","v":0},0,0,0,null,null,0,0]
[null,null,null,null,null,null,null,null,"","",null,null,null,null,null,null,null,null,0,null,null,null,{"$f":"SUM(IF(Aanzuivering!$AC$10:$AC$490=D395,Aanzuivering!$O$10:$O$490,0))","v":0},0,0,0,null,null,0,0]
[null,null,null,null,null,null,null,null,"","",null,null,null,null,null,null,null,null,0,null,null,null,{"$f":"SUM(IF(Aanzuivering!$AC$10:$AC$490=D396,Aanzuivering!$O$10:$O$490,0))","v":0},0,0,0,null,null,0,0]
[null,null,null,null,null,null,null,null,"","",null,null,null,null,null,null,null,null,0,null,null,null,{"$f":"SUM(IF(Aanzuivering!$AC$10:$AC$490=D397,Aanzuivering!$O$10:$O$490,0))","v":0},0,0,0,null,null,0,0]
[null,null,null,null,null,null,null,null,"","",null,null,null,null,null,null,null,null,0,null,null,null,{"$f":"SUM(IF(Aanzuivering!$AC$10:$AC$490=D398,Aanzuivering!$O$10:$O$490,0))","v":0},0,0,0,null,null,0,0]
[null,null,null,null,null,null,null,null,"","",null,null,null,null,null,null,null,null,0,null,null,null,{"$f":"SUM(IF(Aanzuivering!$AC$10:$AC$490=D399,Aanzuivering!$O$10:$O$490,0))","v":0},0,0,0,null,null,0,0]
[null,null,null,null,null,null,null,null,"","",null,null,null,null,null,null,null,null,0,null,null,null,{"$f":"SUM(IF(Aanzuivering!$AC$10:$AC$490=D400,Aanzuivering!$O$10:$O$490,0))","v":0},0,0,0,null,null,0,0]
[null,null,null,null,null,null,null,null,"","",null,null,null,null,null,null,null,null,0,null,null,null,{"$f":"SUM(IF(Aanzuivering!$AC$10:$AC$490=D401,Aanzuivering!$O$10:$O$490,0))","v":0},0,0,0,null,null,0,0]
[null,null,null,null,null,null,null,null,"","",null,null,null,null,null,null,null,null,0,null,null,null,{"$f":"SUM(IF(Aanzuivering!$AC$10:$AC$490=D402,Aanzuivering!$O$10:$O$490,0))","v":0},0,0,0,null,null,0,0]
[null,null,null,null,null,null,null,null,"","",null,null,null,null,null,null,null,null,0,null,null,null,{"$f":"SUM(IF(Aanzuivering!$AC$10:$AC$490=D403,Aanzuivering!$O$10:$O$490,0))","v":0},0,0,0,null,null,0,0]
[null,null,null,null,null,null,null,null,"","",null,null,null,null,null,null,null,null,0,null,null,null,{"$f":"SUM(IF(Aanzuivering!$AC$10:$AC$490=D404,Aanzuivering!$O$10:$O$490,0))","v":0},0,0,0,null,null,0,0]
[null,null,null,null,null,null,null,null,"","",null,null,null,null,null,null,null,null,0,null,null,null,{"$f":"SUM(IF(Aanzuivering!$AC$10:$AC$490=D405,Aanzuivering!$O$10:$O$490,0))","v":0},0,0,0,null,null,0,0]
[null,null,null,null,null,null,null,null,"","",null,null,null,null,null,null,null,null,0,null,null,null,{"$f":"SUM(IF(Aanzuivering!$AC$10:$AC$490=D406,Aanzuivering!$O$10:$O$490,0))","v":0},0,0,0,null,null,0,0]
[null,null,null,null,null,null,null,null,"","",null,null,null,null,null,null,null,null,0,null,null,null,{"$f":"SUM(IF(Aanzuivering!$AC$10:$AC$490=D407,Aanzuivering!$O$10:$O$490,0))","v":0},0,0,0,null,null,0,0]
[null,null,null,null,null,null,null,null,"","",null,null,null,null,null,null,null,null,0,null,null,null,{"$f":"SUM(IF(Aanzuivering!$AC$10:$AC$490=D408,Aanzuivering!$O$10:$O$490,0))","v":0},0,0,0,null,null,0,0]
[null,null,null,null,null,null,null,null,"","",null,null,null,null,null,null,null,null,0,null,null,null,{"$f":"SUM(IF(Aanzuivering!$AC$10:$AC$490=D409,Aanzuivering!$O$10:$O$490,0))","v":0},0,0,0,null,null,0,0]
[null,null,null,null,null,null,null,null,"","",null,null,null,null,null,null,null,null,0,null,null,null,{"$f":"SUM(IF(Aanzuivering!$AC$10:$AC$490=D410,Aanzuivering!$O$10:$O$490,0))","v":0},0,0,0,null,null,0,0]
[null,null,null,null,null,null,null,null,"","",null,null,null,null,null,null,null,null,0,null,null,null,{"$f":"SUM(IF(Aanzuivering!$AC$10:$AC$490=D411,Aanzuivering!$O$10:$O$490,0))","v":0},0,0,0,null,null,0,0]
[null,null,null,null,null,null,null,null,"","",null,null,null,null,null,null,null,null,0,null,null,null,{"$f":"SUM(IF(Aanzuivering!$AC$10:$AC$490=D412,Aanzuivering!$O$10:$O$490,0))","v":0},0,0,0,null,null,0,0]
[null,null,null,null,null,null,null,null,"","",null,null,null,null,null,null,null,null,0,null,null,null,{"$f":"SUM(IF(Aanzuivering!$AC$10:$AC$490=D413,Aanzuivering!$O$10:$O$490,0))","v":0},0,0,0,null,null,0,0]
[null,null,null,null,null,null,null,null,"","",null,null,null,null,null,null,null,null,0,null,null,null,{"$f":"SUM(IF(Aanzuivering!$AC$10:$AC$490=D414,Aanzuivering!$O$10:$O$490,0))","v":0},0,0,0,null,null,0,0]
[null,null,null,null,null,null,null,null,"","",null,null,null,null,null,null,null,null,0,null,null,null,{"$f":"SUM(IF(Aanzuivering!$AC$10:$AC$490=D415,Aanzuivering!$O$10:$O$490,0))","v":0},0,0,0,null,null,0,0]
[null,null,null,null,null,null,null,null,"","",null,null,null,null,null,null,null,null,0,null,null,null,{"$f":"SUM(IF(Aanzuivering!$AC$10:$AC$490=D416,Aanzuivering!$O$10:$O$490,0))","v":0},0,0,0,null,null,0,0]
[null,null,null,null,null,null,null,null,"","",null,null,null,null,null,null,null,null,0,null,null,null,{"$f":"SUM(IF(Aanzuivering!$AC$10:$AC$490=D417,Aanzuivering!$O$10:$O$490,0))","v":0},0,0,0,null,null,0,0]
[null,null,null,null,null,null,null,null,"","",null,null,null,null,null,null,null,null,0,null,null,null,{"$f":"SUM(IF(Aanzuivering!$AC$10:$AC$490=D418,Aanzuivering!$O$10:$O$490,0))","v":0},0,0,0,null,null,0,0]
[null,null,null,null,null,null,null,null,"","",null,null,null,null,null,null,null,null,0,null,null,null,{"$f":"SUM(IF(Aanzuivering!$AC$10:$AC$490=D419,Aanzuivering!$O$10:$O$490,0))","v":0},0,0,0,null,null,0,0]
[null,null,null,null,null,null,null,null,"","",null,null,null,null,null,null,null,null,0,null,null,null,{"$f":"SUM(IF(Aanzuivering!$AC$10:$AC$490=D420,Aanzuivering!$O$10:$O$490,0))","v":0},0,0,0,null,null,0,0]
[null,null,null,null,null,null,null,null,"","",null,null,null,null,null,null,null,null,0,null,null,null,{"$f":"SUM(IF(Aanzuivering!$AC$10:$AC$490=D421,Aanzuivering!$O$10:$O$490,0))","v":0},0,0,0,null,null,0,0]
[null,null,null,null,null,null,null,null,"","",null,null,null,null,null,null,null,null,0,null,null,null,{"$f":"SUM(IF(Aanzuivering!$AC$10:$AC$490=D422,Aanzuivering!$O$10:$O$490,0))","v":0},0,0,0,null,null,0,0]
[null,null,null,null,null,null,null,null,"","",null,null,null,null,null,null,null,null,0,null,null,null,{"$f":"SUM(IF(Aanzuivering!$AC$10:$AC$490=D423,Aanzuivering!$O$10:$O$490,0))","v":0},0,0,0,null,null,0,0]
[null,null,null,null,null,null,null,null,"","",null,null,null,null,null,null,null,null,0,null,null,null,{"$f":"SUM(IF(Aanzuivering!$AC$10:$AC$490=D424,Aanzuivering!$O$10:$O$490,0))","v":0},0,0,0,null,null,0,0]
[null,null,null,null,null,null,null,null,"","",null,null,null,null,null,null,null,null,0,null,null,null,{"$f":"SUM(IF(Aanzuivering!$AC$10:$AC$490=D425,Aanzuivering!$O$10:$O$490,0))","v":0},0,0,0,null,null,0,0]
[null,null,null,null,null,null,null,null,"","",null,null,null,null,null,null,null,null,0,null,null,null,{"$f":"SUM(IF(Aanzuivering!$AC$10:$AC$490=D426,Aanzuivering!$O$10:$O$490,0))","v":0},0,0,0,null,null,0,0]
[null,null,null,null,null,null,null,null,"","",null,null,null,null,null,null,null,null,0,null,null,null,{"$f":"SUM(IF(Aanzuivering!$AC$10:$AC$490=D427,Aanzuivering!$O$10:$O$490,0))","v":0},0,0,0,null,null,0,0]
[null,null,null,null,null,null,null,null,"","",null,null,null,null,null,null,null,null,0,null,null,null,{"$f":"SUM(IF(Aanzuivering!$AC$10:$AC$490=D428,Aanzuivering!$O$10:$O$490,0))","v":0},0,0,0,null,null,0,0]
[null,null,null,null,null,null,null,null,"","",null,null,null,null,null,null,null,null,0,null,null,null,{"$f":"SUM(IF(Aanzuivering!$AC$10:$AC$490=D429,Aanzuivering!$O$10:$O$490,0))","v":0},0,0,0,null,null,0,0]
[null,null,null,null,null,null,null,null,"","",null,null,null,null,null,null,null,null,0,null,null,null,{"$f":"SUM(IF(Aanzuivering!$AC$10:$AC$490=D430,Aanzuivering!$O$10:$O$490,0))","v":0},0,0,0,null,null,0,0]
[null,null,null,null,null,null,null,null,"","",null,null,null,null,null,null,null,null,0,null,null,null,{"$f":"SUM(IF(Aanzuivering!$AC$10:$AC$490=D431,Aanzuivering!$O$10:$O$490,0))","v":0},0,0,0,null,null,0,0]
[null,null,null,null,null,null,null,null,"","",null,null,null,null,null,null,null,null,0,null,null,null,{"$f":"SUM(IF(Aanzuivering!$AC$10:$AC$490=D432,Aanzuivering!$O$10:$O$490,0))","v":0},0,0,0,null,null,0,0]
[null,null,null,null,null,null,null,null,"","",null,null,null,null,null,null,null,null,0,null,null,null,{"$f":"SUM(IF(Aanzuivering!$AC$10:$AC$490=D433,Aanzuivering!$O$10:$O$490,0))","v":0},0,0,0,null,null,0,0]
[null,null,null,null,null,null,null,null,"","",null,null,null,null,null,null,null,null,0,null,null,null,{"$f":"SUM(IF(Aanzuivering!$AC$10:$AC$490=D434,Aanzuivering!$O$10:$O$490,0))","v":0},0,0,0,null,null,0,0]
[null,null,null,null,null,null,null,null,"","",null,null,null,null,null,null,null,null,0,null,null,null,{"$f":"SUM(IF(Aanzuivering!$AC$10:$AC$490=D435,Aanzuivering!$O$10:$O$490,0))","v":0},0,0,0,null,null,0,0]
[null,null,null,null,null,null,null,null,"","",null,null,null,null,null,null,null,null,0,null,null,null,{"$f":"SUM(IF(Aanzuivering!$AC$10:$AC$490=D436,Aanzuivering!$O$10:$O$490,0))","v":0},0,0,0,null,null,0,0]
[null,null,null,null,null,null,null,null,"","",null,null,null,null,null,null,null,null,0,null,null,null,{"$f":"SUM(IF(Aanzuivering!$AC$10:$AC$490=D437,Aanzuivering!$O$10:$O$490,0))","v":0},0,0,0,null,null,0,0]
[null,null,null,null,null,null,null,null,"","",null,null,null,null,null,null,null,null,0,null,null,null,{"$f":"SUM(IF(Aanzuivering!$AC$10:$AC$490=D438,Aanzuivering!$O$10:$O$490,0))","v":0},0,0,0,null,null,0,0]
[null,null,null,null,null,null,null,null,"","",null,null,null,null,null,null,null,null,0,null,null,null,{"$f":"SUM(IF(Aanzuivering!$AC$10:$AC$490=D439,Aanzuivering!$O$10:$O$490,0))","v":0},0,0,0,null,null,0,0]
[null,null,null,null,null,null,null,null,"","",null,null,null,null,null,null,null,null,0,null,null,null,{"$f":"SUM(IF(Aanzuivering!$AC$10:$AC$490=D440,Aanzuivering!$O$10:$O$490,0))","v":0},0,0,0,null,null,0,0]
[null,null,null,null,null,null,null,null,"","",null,null,null,null,null,null,null,null,0,null,null,null,{"$f":"SUM(IF(Aanzuivering!$AC$10:$AC$490=D441,Aanzuivering!$O$10:$O$490,0))","v":0},0,0,0,null,null,0,0]
[null,null,null,null,null,null,null,null,"","",null,null,null,null,null,null,null,null,0,null,null,null,{"$f":"SUM(IF(Aanzuivering!$AC$10:$AC$490=D442,Aanzuivering!$O$10:$O$490,0))","v":0},0,0,0,null,null,0,0]
[null,null,null,null,null,null,null,null,"","",null,null,null,null,null,null,null,null,0,null,null,null,{"$f":"SUM(IF(Aanzuivering!$AC$10:$AC$490=D443,Aanzuivering!$O$10:$O$490,0))","v":0},0,0,0,null,null,0,0]
[null,null,null,null,null,null,null,null,"","",null,null,null,null,null,null,null,null,0,null,null,null,{"$f":"SUM(IF(Aanzuivering!$AC$10:$AC$490=D444,Aanzuivering!$O$10:$O$490,0))","v":0},0,0,0,null,null,0,0]
[null,null,null,null,null,null,null,null,"","",null,null,null,null,null,null,null,null,0,null,null,null,{"$f":"SUM(IF(Aanzuivering!$AC$10:$AC$490=D445,Aanzuivering!$O$10:$O$490,0))","v":0},0,0,0,null,null,0,0]
[null,null,null,null,null,null,null,null,"","",null,null,null,null,null,null,null,null,0,null,null,null,{"$f":"SUM(IF(Aanzuivering!$AC$10:$AC$490=D446,Aanzuivering!$O$10:$O$490,0))","v":0},0,0,0,null,null,0,0]
[null,null,null,null,null,null,null,null,"","",null,null,null,null,null,null,null,null,0,null,null,null,{"$f":"SUM(IF(Aanzuivering!$AC$10:$AC$490=D447,Aanzuivering!$O$10:$O$490,0))","v":0},0,0,0,null,null,0,0]
[null,null,null,null,null,null,null,null,"","",null,null,null,null,null,null,null,null,0,null,null,null,{"$f":"SUM(IF(Aanzuivering!$AC$10:$AC$490=D448,Aanzuivering!$O$10:$O$490,0))","v":0},0,0,0,null,null,0,0]
[null,null,null,null,null,null,null,null,"","",null,null,null,null,null,null,null,null,0,null,null,null,{"$f":"SUM(IF(Aanzuivering!$AC$10:$AC$490=D449,Aanzuivering!$O$10:$O$490,0))","v":0},0,0,0,null,null,0,0]
[null,null,null,null,null,null,null,null,"","",null,null,null,null,null,null,null,null,0,null,null,null,{"$f":"SUM(IF(Aanzuivering!$AC$10:$AC$490=D450,Aanzuivering!$O$10:$O$490,0))","v":0},0,0,0,null,null,0,0]
[null,null,null,null,null,null,null,null,"","",null,null,null,null,null,null,null,null,0,null,null,null,{"$f":"SUM(IF(Aanzuivering!$AC$10:$AC$490=D451,Aanzuivering!$O$10:$O$490,0))","v":0},0,0,0,null,null,0,0]
[null,null,null,null,null,null,null,null,"","",null,null,null,null,null,null,null,null,0,null,null,null,{"$f":"SUM(IF(Aanzuivering!$AC$10:$AC$490=D452,Aanzuivering!$O$10:$O$490,0))","v":0},0,0,0,null,null,0,0]
[null,null,null,null,null,null,null,null,{"$f":"IF(AND(G453>40000,termijn>0),EDATE(G453,termijn),\"\")","v":""},{"$f":"IF(AND(G453>0,termijn>0),IF(AND(($J$1)>I453,X453>0),\"Termijn overschreden\",\"\"),\"\")","v":""},null,null,null,null,null,null,null,null,{"$f":"R453+O453","v":0},null,null,null,{"$f":"SUM(IF(Aanzuivering!$AC$10:$AC$490=D453,Aanzuivering!$O$10:$O$490,0))","v":0},{"$f":"IF(OR((T453-V453-W453)>0.01,(T453-V453-W453)<-0.01),T453-V453-W453,0)","v":0},{"$f":"IF(AND(X453<>0,S453>0),IF(OR((S453/T453*X453) > 0.5,(S453/T453*X453) < -0.5),ROUND(S453/T453*X453,2),0),0)","v":0},{"$f":"IF(W453>0,ROUND(W453/T453*S453,2),0)","v":0},null,null,{"$f":"D453","v":0},{"$f":"X453","v":0}]
[null,null,null,null,null,null,null,null,"","",null,null,null,null,null,null,null,null,0,null,null,null,{"$f":"SUM(IF(Aanzuivering!$AC$10:$AC$490=D454,Aanzuivering!$O$10:$O$490,0))","v":0},0,0,0,null,null,0,0]
[null,null,null,null,null,null,null,null,"","",null,null,null,null,null,null,null,null,0,null,null,null,{"$f":"SUM(IF(Aanzuivering!$AC$10:$AC$490=D455,Aanzuivering!$O$10:$O$490,0))","v":0},0,0,0,null,null,0,0]
[null,null,null,null,null,null,null,null,"","",null,null,null,null,null,null,null,null,0,null,null,null,{"$f":"SUM(IF(Aanzuivering!$AC$10:$AC$490=D456,Aanzuivering!$O$10:$O$490,0))","v":0},0,0,0,null,null,0,0]
[null,null,null,null,null,null,null,null,"","",null,null,null,null,null,null,null,null,0,null,null,null,{"$f":"SUM(IF(Aanzuivering!$AC$10:$AC$490=D457,Aanzuivering!$O$10:$O$490,0))","v":0},0,0,0,null,null,0,0]
[null,null,null,null,null,null,null,null,"","",null,null,null,null,null,null,null,null,0,null,null,null,{"$f":"SUM(IF(Aanzuivering!$AC$10:$AC$490=D458,Aanzuivering!$O$10:$O$490,0))","v":0},0,0,0,null,null,0,0]
[null,null,null,null,null,null,null,null,"","",null,null,null,null,null,null,null,null,0,null,null,null,{"$f":"SUM(IF(Aanzuivering!$AC$10:$AC$490=D459,Aanzuivering!$O$10:$O$490,0))","v":0},0,0,0,null,null,0,0]
[null,null,null,null,null,null,null,null,"","",null,null,null,null,null,null,null,null,0,null,null,null,{"$f":"SUM(IF(Aanzuivering!$AC$10:$AC$490=D460,Aanzuivering!$O$10:$O$490,0))","v":0},0,0,0,null,null,0,0]
[null,null,null,null,null,null,null,null,"","",null,null,null,null,null,null,null,null,0,null,null,null,{"$f":"SUM(IF(Aanzuivering!$AC$10:$AC$490=D461,Aanzuivering!$O$10:$O$490,0))","v":0},0,0,0,null,null,0,0]
[null,null,null,null,null,null,null,null,"","",null,null,null,null,null,null,null,null,0,null,null,null,{"$f":"SUM(IF(Aanzuivering!$AC$10:$AC$490=D462,Aanzuivering!$O$10:$O$490,0))","v":0},0,0,0,null,null,0,0]
[null,null,null,null,null,null,null,null,"","",null,null,null,null,null,null,null,null,0,null,null,null,{"$f":"SUM(IF(Aanzuivering!$AC$10:$AC$490=D463,Aanzuivering!$O$10:$O$490,0))","v":0},0,0,0,null,null,0,0]
[null,null,null,null,null,null,null,null,"","",null,null,null,null,null,null,null,null,0,null,null,null,{"$f":"SUM(IF(Aanzuivering!$AC$10:$AC$490=D464,Aanzuivering!$O$10:$O$490,0))","v":0},0,0,0,null,null,0,0]
[null,null,null,null,null,null,null,null,"","",null,null,null,null,null,null,null,null,0,null,null,null,{"$f":"SUM(IF(Aanzuivering!$AC$10:$AC$490=D465,Aanzuivering!$O$10:$O$490,0))","v":0},0,0,0,null,null,0,0]
[null,null,null,null,null,null,null,null,"","",null,null,null,null,null,null,null,null,0,null,null,null,{"$f":"SUM(IF(Aanzuivering!$AC$10:$AC$490=D466,Aanzuivering!$O$10:$O$490,0))","v":0},0,0,0,null,null,0,0]
[null,null,null,null,null,null,null,null,"","",null,null,null,null,null,null,null,null,0,null,null,null,{"$f":"SUM(IF(Aanzuivering!$AC$10:$AC$490=D467,Aanzuivering!$O$10:$O$490,0))","v":0},0,0,0,null,null,0,0]
[null,null,null,null,null,null,null,null,"","",null,null,null,null,null,null,null,null,0,null,null,null,{"$f":"SUM(IF(Aanzuivering!$AC$10:$AC$490=D468,Aanzuivering!$O$10:$O$490,0))","v":0},0,0,0,null,null,0,0]
[null,null,null,null,null,null,null,null,"","",null,null,null,null,null,null,null,null,0,null,null,null,{"$f":"SUM(IF(Aanzuivering!$AC$10:$AC$490=D469,Aanzuivering!$O$10:$O$490,0))","v":0},0,0,0,null,null,0,0]
[null,null,null,null,null,null,null,null,"","",null,null,null,null,null,null,null,null,0,null,null,null,{"$f":"SUM(IF(Aanzuivering!$AC$10:$AC$490=D470,Aanzuivering!$O$10:$O$490,0))","v":0},0,0,0,null,null,0,0]
[null,null,null,null,null,null,null,null,"","",null,null,null,null,null,null,null,null,0,null,null,null,{"$f":"SUM(IF(Aanzuivering!$AC$10:$AC$490=D471,Aanzuivering!$O$10:$O$490,0))","v":0},0,0,0,null,null,0,0]
[null,null,null,null,null,null,null,null,"","",null,null,null,null,null,null,null,null,0,null,null,null,{"$f":"SUM(IF(Aanzuivering!$AC$10:$AC$490=D472,Aanzuivering!$O$10:$O$490,0))","v":0},0,0,0,null,null,0,0]
[null,null,null,null,null,null,null,null,"","",null,null,null,null,null,null,null,null,0,null,null,null,{"$f":"SUM(IF(Aanzuivering!$AC$10:$AC$490=D473,Aanzuivering!$O$10:$O$490,0))","v":0},0,0,0,null,null,0,0]
[null,null,null,null,null,null,null,null,"","",null,null,null,null,null,null,null,null,0,null,null,null,{"$f":"SUM(IF(Aanzuivering!$AC$10:$AC$490=D474,Aanzuivering!$O$10:$O$490,0))","v":0},0,0,0,null,null,0,0]
[null,null,null,null,null,null,null,null,"","",null,null,null,null,null,null,null,null,0,null,null,null,{"$f":"SUM(IF(Aanzuivering!$AC$10:$AC$490=D475,Aanzuivering!$O$10:$O$490,0))","v":0},0,0,0,null,null,0,0]
[null,null,null,null,null,null,null,null,"","",null,null,null,null,null,null,null,null,0,null,null,null,{"$f":"SUM(IF(Aanzuivering!$AC$10:$AC$490=D476,Aanzuivering!$O$10:$O$490,0))","v":0},0,0,0,null,null,0,0]
[null,null,null,null,null,null,null,null,"","",null,null,null,null,null,null,null,null,0,null,null,null,{"$f":"SUM(IF(Aanzuivering!$AC$10:$AC$490=D477,Aanzuivering!$O$10:$O$490,0))","v":0},0,0,0,null,null,0,0]
[null,null,null,null,null,null,null,null,"","",null,null,null,null,null,null,null,null,0,null,null,null,{"$f":"SUM(IF(Aanzuivering!$AC$10:$AC$490=D478,Aanzuivering!$O$10:$O$490,0))","v":0},0,0,0,null,null,0,0]
[null,null,null,null,null,null,null,null,"","",null,null,null,null,null,null,null,null,0,null,null,null,{"$f":"SUM(IF(Aanzuivering!$AC$10:$AC$490=D479,Aanzuivering!$O$10:$O$490,0))","v":0},0,0,0,null,null,0,0]
[null,null,null,null,null,null,null,null,"","",null,null,null,null,null,null,null,null,0,null,null,null,{"$f":"SUM(IF(Aanzuivering!$AC$10:$AC$490=D480,Aanzuivering!$O$10:$O$490,0))","v":0},0,0,0,null,null,0,0]
[null,null,null,null,null,null,null,null,"","",null,null,null,null,null,null,null,null,0,null,null,null,{"$f":"SUM(IF(Aanzuivering!$AC$10:$AC$490=D481,Aanzuivering!$O$10:$O$490,0))","v":0},0,0,0,null,null,0,0]
[null,null,null,null,null,null,null,null,"","",null,null,null,null,null,null,null,null,0,null,null,null,{"$f":"SUM(IF(Aanzuivering!$AC$10:$AC$490=D482,Aanzuivering!$O$10:$O$490,0))","v":0},0,0,0,null,null,0,0]
[null,null,null,null,null,null,null,null,"","",null,null,null,null,null,null,null,null,0,null,null,null,{"$f":"SUM(IF(Aanzuivering!$AC$10:$AC$490=D483,Aanzuivering!$O$10:$O$490,0))","v":0},0,0,0,null,null,0,0]
[null,null,null,null,null,null,null,null,"","",null,null,null,null,null,null,null,null,0,null,null,null,{"$f":"SUM(IF(Aanzuivering!$AC$10:$AC$490=D484,Aanzuivering!$O$10:$O$490,0))","v":0},0,0,0,null,null,0,0]
[null,null,null,null,null,null,null,null,"","",null,null,null,null,null,null,null,null,0,null,null,null,{"$f":"SUM(IF(Aanzuivering!$AC$10:$AC$490=D485,Aanzuivering!$O$10:$O$490,0))","v":0},0,0,0,null,null,0,0]
[null,null,null,null,null,null,null,null,"","",null,null,null,null,null,null,null,null,0,null,null,null,{"$f":"SUM(IF(Aanzuivering!$AC$10:$AC$490=D486,Aanzuivering!$O$10:$O$490,0))","v":0},0,0,0,null,null,0,0]
[null,null,null,null,null,null,null,null,"","",null,null,null,null,null,null,null,null,0,null,null,null,{"$f":"SUM(IF(Aanzuivering!$AC$10:$AC$490=D487,Aanzuivering!$O$10:$O$490,0))","v":0},0,0,0,null,null,0,0]
[null,null,null,null,null,null,null,null,{"$f":"IF(AND(G488>40000,termijn>0),EDATE(G488,termijn),\"\")","v":""},{"$f":"IF(AND(G488>0,termijn>0),IF(AND(($J$1)>I488,X488>0),\"Termijn overschreden\",\"\"),\"\")","v":""},null,null,null,null,null,null,null,null,{"$f":"R488+O488","v":0},null,null,null,{"$f":"SUM(IF(Aanzuivering!$AC$10:$AC$490=D488,Aanzuivering!$O$10:$O$490,0))","v":0},{"$f":"IF(OR((T488-V488-W488)>0.01,(T488-V488-W488)<-0.01),T488-V488-W488,0)","v":0},{"$f":"IF(AND(X488<>0,S488>0),IF(OR((S488/T488*X488) > 0.5,(S488/T488*X488) < -0.5),ROUND(S488/T488*X488,2),0),0)","v":0},{"$f":"IF(W488>0,ROUND(W488/T488*S488,2),0)","v":0},null,null,{"$f":"D488","v":0},{"$f":"X488","v":0}]
[null,null,null,null,null,null,null,null,"","",null,null,null,null,null,null,null,null,0,null,null,null,{"$f":"SUM(IF(Aanzuivering!$AC$10:$AC$490=D489,Aanzuivering!$O$10:$O$490,0))","v":0},0,0,0,null,null,0,0]
[null,null,null,null,null,null,null,null,"","",null,null,null,null,null,null,null,null,0,null,null,null,{"$f":"SUM(IF(Aanzuivering!$AC$10:$AC$490=D490,Aanzuivering!$O$10:$O$490,0))","v":0},0,0,0,null,null,0,0]
[]
[null,"Extra regels toevoegen mag alleen met deze knop:"]

{"sheet":"Aanzuivering","index":2,"n_rows":492,"n_cols":35,"rows_kept":492,"cut":false,"hidden":false,"merged":[[491,1,491,3],[7,23,7,25],[25,0,35,0],[7,1,7,4],[0,0,22,0],[0,1,0,2],[0,13,3,13],[1,1,1,2],[6,6,6,10],[7,20,7,22],[1,25,1,26]]}
[{"$f":"'Algemene gegevens'!A1:A23","v":"Aanzuiveringsafrekening BB"},"Douane",null,null,null,null,null,{"$f":"periode","v":0},{"$f":"IF(VALUE(LEFT(H1,4))>1990,DATE(LEFT(H1,4),RIGHT(H1,2)+1,1),\"Geen datum ingevuld\")","v":"Geen datum ingevuld"}]
[null,"Blad 'Aanzuivering' ",null,null,null,"Worksheets(\"BV & Plaatsing\").Range(\"af1:af2\").Name = \"keuzelijst\"",null,null,null,null,null,null,null,null,null,null,null,null,null,null,null,null,null,"EX",null,"Rechten art. 79-1-b"]
[null,"Naam:",{"$f":"naam","v":0},null,null,null,null,null,null,null,null,null,null,null,null,null,null,null,null,null,null,null,null,"EU",null,null,{"$f":"ROUND(SUM($W$11:$W$490)+SUM($Z$11:$Z$490)-SUM($AA$11:$AA$490),2)","v":0}]
[null,"Periode:",{"$f":"periode","v":0}]
[null,null,null,null,null,null,null,null,null,null,"art513"]
[]
[]
[null,"Gegevens aanzuivering",null,null,null,null,null,null,null,null,null,null,null,null,null,null,null,null,null,null,"Ad valorem recht",null,null,"Specifiek recht"]
[null,"Soort aanzuivering","Identificatie aanzuivering","Is sprake van equivalente goederen","Datum        (DD-MM-JJ)","Soort product","Omschrijving product","Datum bereiken bestemming bij overdracht aan NIET-TORO      (DD-MM-JJ)","Hoeveelheid product","Omschrijving geplaatste goederen in het product","Hoeveelheid geplaatste goederen fysiek aanwezig in het product","Totale opbrengst%","Land van bestemming ","Referentienummer","Hoeveelheid geplaatste goederen aan te zuiveren","Aan te zuiveren plaatsingsaangifte (Aangifte Identificatie Nummer) en [omschrijving goederen]","Informatie over plaatsingsaangifte","Foutinformatie","Berekening rechten bij art79","Taric-code","Inv.recht%","Douanewaarde","Rechten AVR","Tarief","Heffingsgrondslag","Rechten SR","Betaalde rechten","Wel of niet OK?","alleen aangiftenummers:",null,null,null,null,null,"Opmerkingen (vrij tekstveld)"]
[null,"lege regel","a","a","a","lege regel","a","a","a","a","a","a","a","a","a","a","a","a","x","x","x","x","x","x","x","x","x",null,null,null,null,null,null,null,"x"]
[null,null,null,null,null,null,null,null,null,null,null,null,null,null,{"$f":"IF(AND(K11>0,L11>0),ROUND(K11/L11*100,2),0)","v":0},null,{"$f":"IF(AC11=\"*****\",\"\",IF(ISERROR(MATCH(AC11,OFFSET(AC11,1,0):$AC$490,0)),INDEX('BV & Plaatsing'!$AC$12:$AD$490,MATCH(AC11,'BV & Plaatsing'!$AC$12:$AC$490,0),2),\"\"))","v":""},{"$f":"IF(AC11=\"*****\",\"\",IF(J11<>MID(P11,SEARCH(\"[\",P11,1)+1,SEARCH(\"]\",P11,1)-SEARCH(\"[\",P11,1)-1),\">> Omschrijving goederen plaatsingsaangifte <> omschrijving geplaatste goederen in product\",\"\"))","v":""},null,null,null,null,null,null,null,null,null,null,{"$f":"IF(RIGHT(P11,1)=\"]\",LEFT(P11,SEARCH(\"[\",P11)-2),\"*****\")","v":"*****"}]
[null,null,null,null,null,null,null,null,null,null,null,null,null,null,{"$f":"IF(AND(K12>0,L12>0),ROUND(K12/L12*100,2),0)","v":0},null,{"$f":"IF(AC12=\"*****\",\"\",IF(ISERROR(MATCH(AC12,OFFSET(AC12,1,0):$AC$490,0)),INDEX('BV & Plaatsing'!$AC$12:$AD$490,MATCH(AC12,'BV & Plaatsing'!$AC$12:$AC$490,0),2),\"\"))","v":""},{"$f":"IF(AC12=\"*****\",\"\",IF(J12<>MID(P12,SEARCH(\"[\",P12,1)+1,SEARCH(\"]\",P12,1)-SEARCH(\"[\",P12,1)-1),\">> Omschrijving goederen plaatsingsaangifte <> omschrijving geplaatste goederen in product\",\"\"))","v":""},null,null,null,null,null,null,null,null,null,null,{"$f":"IF(RIGHT(P12,1)=\"]\",LEFT(P12,SEARCH(\"[\",P12)-2),\"*****\")","v":"*****"}]
[null,null,null,null,null,null,null,null,null,null,null,null,null,null,{"$f":"IF(AND(K13>0,L13>0),ROUND(K13/L13*100,2),0)","v":0},null,{"$f":"IF(AC13=\"*****\",\"\",IF(ISERROR(MATCH(AC13,OFFSET(AC13,1,0):$AC$490,0)),INDEX('BV & Plaatsing'!$AC$12:$AD$490,MATCH(AC13,'BV & Plaatsing'!$AC$12:$AC$490,0),2),\"\"))","v":""},{"$f":"IF(AC13=\"*****\",\"\",IF(J13<>MID(P13,SEARCH(\"[\",P13,1)+1,SEARCH(\"]\",P13,1)-SEARCH(\"[\",P13,1)-1),\">> Omschrijving goederen plaatsingsaangifte <> omschrijving geplaatste goederen in product\",\"\"))","v":""},null,null,null,null,null,null,null,null,null,null,"*****"]
[null,null,null,null,null,null,null,null,null,null,null,null,null,null,0,null,{"$f":"IF(AC14=\"*****\",\"\",IF(ISERROR(MATCH(AC14,OFFSET(AC14,1,0):$AC$490,0)),INDEX('BV & Plaatsing'!$AC$12:$AD$490,MATCH(AC14,'BV & Plaatsing'!$AC$12:$AC$490,0),2),\"\"))","v":""},"",null,null,null,null,null,null,null,null,null,null,"*****"]
[null,null,null,null,null,null,null,null,null,null,null,null,null,null,0,null,{"$f":"IF(AC15=\"*****\",\"\",IF(ISERROR(MATCH(AC15,OFFSET(AC15,1,0):$AC$490,0)),INDEX('BV & Plaatsing'!$AC$12:$AD$490,MATCH(AC15,'BV & Plaatsing'!$AC$12:$AC$490,0),2),\"\"))","v":""},"",null,null,null,null,null,null,null,null,null,null,"*****"]
[null,null,null,null,null,null,null,null,null,null,null,null,null,null,0,null,{"$f":"IF(AC16=\"*****\",\"\",IF(ISERROR(MATCH(AC16,OFFSET(AC16,1,0):$AC$490,0)),INDEX('BV & Plaatsing'!$AC$12:$AD$490,MATCH(AC16,'BV & Plaatsing'!$AC$12:$AC$490,0),2),\"\"))","v":""},"",null,null,null,null,null,null,null,null,null,null,"*****"]
[null,null,null,null,null,null,null,null,null,null,null,null,null,null,0,null,{"$f":"IF(AC17=\"*****\",\"\",IF(ISERROR(MATCH(AC17,OFFSET(AC17,1,0):$AC$490,0)),INDEX('BV & Plaatsing'!$AC$12:$AD$490,MATCH(AC17,'BV & Plaatsing'!$AC$12:$AC$490,0),2),\"\"))","v":""},"",null,null,null,null,null,null,null,null,null,null,"*****"]
[null,null,null,null,null,null,null,null,null,null,null,null,null,null,0,null,{"$f":"IF(AC18=\"*****\",\"\",IF(ISERROR(MATCH(AC18,OFFSET(AC18,1,0):$AC$490,0)),INDEX('BV & Plaatsing'!$AC$12:$AD$490,MATCH(AC18,'BV & Plaatsing'!$AC$12:$AC$490,0),2),\"\"))","v":""},"",null,null,null,null,null,null,null,null,null,null,"*****"]
[null,null,null,null,null,null,null,null,null,null,null,null,null,null,0,null,{"$f":"IF(AC19=\"*****\",\"\",IF(ISERROR(MATCH(AC19,OFFSET(AC19,1,0):$AC$490,0)),INDEX('BV & Plaatsing'!$AC$12:$AD$490,MATCH(AC19,'BV & Plaatsing'!$AC$12:$AC$490,0),2),\"\"))","v":""},"",null,null,null,null,null,null,null,null,null,null,"*****"]
[null,null,null,null,null,null,null,null,null,null,null,null,null,null,0,null,{"$f":"IF(AC20=\"*****\",\"\",IF(ISERROR(MATCH(AC20,OFFSET(AC20,1,0):$AC$490,0)),INDEX('BV & Plaatsing'!$AC$12:$AD$490,MATCH(AC20,'BV & Plaatsing'!$AC$12:$AC$490,0),2),\"\"))","v":""},"",null,null,null,null,null,null,null,null,null,null,"*****"]
[null,null,null,null,null,null,null,null,null,null,null,null,null,null,0,null,{"$f":"IF(AC21=\"*****\",\"\",IF(ISERROR(MATCH(AC21,OFFSET(AC21,1,0):$AC$490,0)),INDEX('BV & Plaatsing'!$AC$12:$AD$490,MATCH(AC21,'BV & Plaatsing'!$AC$12:$AC$490,0),2),\"\"))","v":""},"",null,null,null,null,null,null,null,null,null,null,"*****"]
[null,null,null,null,null,null,null,null,null,null,null,null,null,null,0,null,{"$f":"IF(AC22=\"*****\",\"\",IF(ISERROR(MATCH(AC22,OFFSET(AC22,1,0):$AC$490,0)),INDEX('BV & Plaatsing'!$AC$12:$AD$490,MATCH(AC22,'BV & Plaatsing'!$AC$12:$AC$490,0),2),\"\"))","v":""},"",null,null,null,null,null,null,null,null,null,null,"*****"]
[null,null,null,null,null,null,null,null,null,null,null,null,null,null,0,null,{"$f":"IF(AC23=\"*****\",\"\",IF(ISERROR(MATCH(AC23,OFFSET(AC23,1,0):$AC$490,0)),INDEX('BV & Plaatsing'!$AC$12:$AD$490,MATCH(AC23,'BV & Plaatsing'!$AC$12:$AC$490,0),2),\"\"))","v":""},"",null,null,null,null,null,null,null,null,null,null,"*****"]
[null,null,null,null,null,null,null,null,null,null,null,null,null,null,0,null,{"$f":"IF(AC24=\"*****\",\"\",IF(ISERROR(MATCH(AC24,OFFSET(AC24,1,0):$AC$490,0)),INDEX('BV & Plaatsing'!$AC$12:$AD$490,MATCH(AC24,'BV & Plaatsing'!$AC$12:$AC$490,0),2),\"\"))","v":""},"",null,null,null,null,null,null,null,null,null,null,"*****"]
[null,null,null,null,null,null,null,null,null,null,null,null,null,null,0,null,{"$f":"IF(AC25=\"*****\",\"\",IF(ISERROR(MATCH(AC25,OFFSET(AC25,1,0):$AC$490,0)),INDEX('BV & Plaatsing'!$AC$12:$AD$490,MATCH(AC25,'BV & Plaatsing'!$AC$12:$AC$490,0),2),\"\"))","v":""},"",null,null,null,null,null,null,null,null,null,null,"*****"]
[{"$f":"'Algemene gegevens'!A26:A36","v":"Versie 2021-06"},null,null,null,null,null,null,null,null,null,null,null,null,null,0,null,{"$f":"IF(AC26=\"*****\",\"\",IF(ISERROR(MATCH(AC26,OFFSET(AC26,1,0):$AC$490,0)),INDEX('BV & Plaatsing'!$AC$12:$AD$490,MATCH(AC26,'BV & Plaatsing'!$AC$12:$AC$490,0),2),\"\"))","v":""},"",null,null,null,null,null,null,null,null,null,null,"*****"]
[null,null,null,null,null,null,null,null,null,null,null,null,null,null,0,null,{"$f":"IF(AC27=\"*****\",\"\",IF(ISERROR(MATCH(AC27,OFFSET(AC27,1,0):$AC$490,0)),INDEX('BV & Plaatsing'!$AC$12:$AD$490,MATCH(AC27,'BV & Plaatsing'!$AC$12:$AC$490,0),2),\"\"))","v":""},"",null,null,null,null,null,null,null,null,null,null,"*****"]
[null,null,null,null,null,null,null,null,null,null,null,null,null,null,0,null,{"$f":"IF(AC28=\"*****\",\"\",IF(ISERROR(MATCH(AC28,OFFSET(AC28,1,0):$AC$490,0)),INDEX('BV & Plaatsing'!$AC$12:$AD$490,MATCH(AC28,'BV & Plaatsing'!$AC$12:$AC$490,0),2),\"\"))","v":""},"",null,null,null,null,null,null,null,null,null,null,"*****"]
[null,null,null,null,null,null,null,null,null,null,null,null,null,null,0,null,{"$f":"IF(AC29=\"*****\",\"\",IF(ISERROR(MATCH(AC29,OFFSET(AC29,1,0):$AC$490,0)),INDEX('BV & Plaatsing'!$AC$12:$AD$490,MATCH(AC29,'BV & Plaatsing'!$AC$12:$AC$490,0),2),\"\"))","v":""},"",null,null,null,null,null,null,null,null,null,null,"*****"]
[null,null,null,null,null,null,null,null,null,null,null,null,null,null,0,null,{"$f":"IF(AC30=\"*****\",\"\",IF(ISERROR(MATCH(AC30,OFFSET(AC30,1,0):$AC$490,0)),INDEX('BV & Plaatsing'!$AC$12:$AD$490,MATCH(AC30,'BV & Plaatsing'!$AC$12:$AC$490,0),2),\"\"))","v":""},"",null,null,null,null,null,null,null,null,null,null,"*****"]
[null,null,null,null,null,null,null,null,null,null,null,null,null,null,0,null,{"$f":"IF(AC31=\"*****\",\"\",IF(ISERROR(MATCH(AC31,OFFSET(AC31,1,0):$AC$490,0)),INDEX('BV & Plaatsing'!$AC$12:$AD$490,MATCH(AC31,'BV & Plaatsing'!$AC$12:$AC$490,0),2),\"\"))","v":""},"",null,null,null,null,null,null,null,null,null,null,"*****"]
[null,null,null,null,null,null,null,null,null,null,null,null,null,null,0,null,{"$f":"IF(AC32=\"*****\",\"\",IF(ISERROR(MATCH(AC32,OFFSET(AC32,1,0):$AC$490,0)),INDEX('BV & Plaatsing'!$AC$12:$AD$490,MATCH(AC32,'BV & Plaatsing'!$AC$12:$AC$490,0),2),\"\"))","v":""},"",null,null,null,null,null,null,null,null,null,null,"*****"]
[null,null,null,null,null,null,null,null,null,null,null,null,null,null,0,null,{"$f":"IF(AC33=\"*****\",\"\",IF(ISERROR(MATCH(AC33,OFFSET(AC33,1,0):$AC$490,0)),INDEX('BV & Plaatsing'!$AC$12:$AD$490,MATCH(AC33,'BV & Plaatsing'!$AC$12:$AC$490,0),2),\"\"))","v":""},"",null,null,null,null,null,null,null,null,null,null,"*****"]
[null,null,null,null,null,null,null,null,null,null,null,null,null,null,0,null,{"$f":"IF(AC34=\"*****\",\"\",IF(ISERROR(MATCH(AC34,OFFSET(AC34,1,0):$AC$490,0)),INDEX('BV & Plaatsing'!$AC$12:$AD$490,MATCH(AC34,'BV & Plaatsing'!$AC$12:$AC$490,0),2),\"\"))","v":""},"",null,null,null,null,null,null,null,null,null,null,"*****"]
[null,null,null,null,null,null,null,null,null,null,null,null,null,null,0,null,{"$f":"IF(AC35=\"*****\",\"\",IF(ISERROR(MATCH(AC35,OFFSET(AC35,1,0):$AC$490,0)),INDEX('BV & Plaatsing'!$AC$12:$AD$490,MATCH(AC35,'BV & Plaatsing'!$AC$12:$AC$490,0),2),\"\"))","v":""},"",null,null,null,null,null,null,null,null,null,null,"*****"]
[null,null,null,null,null,null,null,null,null,null,null,null,null,null,0,null,{"$f":"IF(AC36=\"*****\",\"\",IF(ISERROR(MATCH(AC36,OFFSET(AC36,1,0):$AC$490,0)),INDEX('BV & Plaatsing'!$AC$12:$AD$490,MATCH(AC36,'BV & Plaatsing'!$AC$12:$AC$490,0),2),\"\"))","v":""},"",null,null,null,null,null,null,null,null,null,null,"*****"]
[null,null,null,null,null,null,null,null,null,null,null,null,null,null,0,null,{"$f":"IF(AC37=\"*****\",\"\",IF(ISERROR(MATCH(AC37,OFFSET(AC37,1,0):$AC$490,0)),INDEX('BV & Plaatsing'!$AC$12:$AD$490,MATCH(AC37,'BV & Plaatsing'!$AC$12:$AC$490,0),2),\"\"))","v":""},"",null,null,null,null,null,null,null,null,null,null,"*****"]
[null,null,null,null,null,null,null,null,null,null,null,null,null,null,0,null,{"$f":"IF(AC38=\"*****\",\"\",IF(ISERROR(MATCH(AC38,OFFSET(AC38,1,0):$AC$490,0)),INDEX('BV & Plaatsing'!$AC$12:$AD$490,MATCH(AC38,'BV & Plaatsing'!$AC$12:$AC$490,0),2),\"\"))","v":""},"",null,null,null,null,null,null,null,null,null,null,"*****"]
[null,null,null,null,null,null,null,null,null,null,null,null,null,null,0,null,{"$f":"IF(AC39=\"*****\",\"\",IF(ISERROR(MATCH(AC39,OFFSET(AC39,1,0):$AC$490,0)),INDEX('BV & Plaatsing'!$AC$12:$AD$490,MATCH(AC39,'BV & Plaatsing'!$AC$12:$AC$490,0),2),\"\"))","v":""},"",null,null,null,null,null,null,null,null,null,null,"*****"]
[null,null,null,null,null,null,null,null,null,null,null,null,null,null,0,null,{"$f":"IF(AC40=\"*****\",\"\",IF(ISERROR(MATCH(AC40,OFFSET(AC40,1,0):$AC$490,0)),INDEX('BV & Plaatsing'!$AC$12:$AD$490,MATCH(AC40,'BV & Plaatsing'!$AC$12:$AC$490,0),2),\"\"))","v":""},"",null,null,null,null,null,null,null,null,null,null,"*****"]
[null,null,null,null,null,null,null,null,null,null,null,null,null,null,0,null,{"$f":"IF(AC41=\"*****\",\"\",IF(ISERROR(MATCH(AC41,OFFSET(AC41,1,0):$AC$490,0)),INDEX('BV & Plaatsing'!$AC$12:$AD$490,MATCH(AC41,'BV & Plaatsing'!$AC$12:$AC$490,0),2),\"\"))","v":""},"",null,null,null,null,null,null,null,null,null,null,"*****"]
[null,null,null,null,null,null,null,null,null,null,null,null,null,null,0,null,{"$f":"IF(AC42=\"*****\",\"\",IF(ISERROR(MATCH(AC42,OFFSET(AC42,1,0):$AC$490,0)),INDEX('BV & Plaatsing'!$AC$12:$AD$490,MATCH(AC42,'BV & Plaatsing'!$AC$12:$AC$490,0),2),\"\"))","v":""},"",null,null,null,null,null,null,null,null,null,null,"*****"]
[null,null,null,null,null,null,null,null,null,null,null,null,null,null,{"$f":"IF(AND(K43>0,L43>0),ROUND(K43/L43*100,2),0)","v":0},null,{"$f":"IF(AC43=\"*****\",\"\",IF(ISERROR(MATCH(AC43,OFFSET(AC43,1,0):$AC$490,0)),INDEX('BV & Plaatsing'!$AC$12:$AD$490,MATCH(AC43,'BV & Plaatsing'!$AC$12:$AC$490,0),2),\"\"))","v":""},"",null,null,null,null,null,null,null,null,null,null,{"$f":"IF(RIGHT(P43,1)=\"]\",LEFT(P43,SEARCH(\"[\",P43)-2),\"*****\")","v":"*****"}]
[null,null,null,null,null,null,null,null,null,null,null,null,null,null,0,null,{"$f":"IF(AC44=\"*****\",\"\",IF(ISERROR(MATCH(AC44,OFFSET(AC44,1,0):$AC$490,0)),INDEX('BV & Plaatsing'!$AC$12:$AD$490,MATCH(AC44,'BV & Plaatsing'!$AC$12:$AC$490,0),2),\"\"))","v":""},"",null,null,null,null,null,null,null,null,null,null,"*****"]
[null,null,null,null,null,null,null,null,null,null,null,null,null,null,0,null,{"$f":"IF(AC45=\"*****\",\"\",IF(ISERROR(MATCH(AC45,OFFSET(AC45,1,0):$AC$490,0)),INDEX('BV & Plaatsing'!$AC$12:$AD$490,MATCH(AC45,'BV & Plaatsing'!$AC$12:$AC$490,0),2),\"\"))","v":""},"",null,null,null,null,null,null,null,null,null,null,"*****"]
[null,null,null,null,null,null,null,null,null,null,null,null,null,null,0,null,{"$f":"IF(AC46=\"*****\",\"\",IF(ISERROR(MATCH(AC46,OFFSET(AC46,1,0):$AC$490,0)),INDEX('BV & Plaatsing'!$AC$12:$AD$490,MATCH(AC46,'BV & Plaatsing'!$AC$12:$AC$490,0),2),\"\"))","v":""},"",null,null,null,null,null,null,null,null,null,null,"*****"]
[null,null,null,null,null,null,null,null,null,null,null,null,null,null,0,null,{"$f":"IF(AC47=\"*****\",\"\",IF(ISERROR(MATCH(AC47,OFFSET(AC47,1,0):$AC$490,0)),INDEX('BV & Plaatsing'!$AC$12:$AD$490,MATCH(AC47,'BV & Plaatsing'!$AC$12:$AC$490,0),2),\"\"))","v":""},"",null,null,null,null,null,null,null,null,null,null,"*****"]
[null,null,null,null,null,null,null,null,null,null,null,null,null,null,0,null,{"$f":"IF(AC48=\"*****\",\"\",IF(ISERROR(MATCH(AC48,OFFSET(AC48,1,0):$AC$490,0)),INDEX('BV & Plaatsing'!$AC$12:$AD$490,MATCH(AC48,'BV & Plaatsing'!$AC$12:$AC$490,0),2),\"\"))","v":""},"",null,null,null,null,null,null,null,null,null,null,"*****"]
[null,null,null,null,null,null,null,null,null,null,null,null,null,null,0,null,{"$f":"IF(AC49=\"*****\",\"\",IF(ISERROR(MATCH(AC49,OFFSET(AC49,1,0):$AC$490,0)),INDEX('BV & Plaatsing'!$AC$12:$AD$490,MATCH(AC49,'BV & Plaatsing'!$AC$12:$AC$490,0),2),\"\"))","v":""},"",null,null,null,null,null,null,null,null,null,null,"*****"]
[null,null,null,null,null,null,null,null,null,null,null,null,null,null,0,null,{"$f":"IF(AC50=\"*****\",\"\",IF(ISERROR(MATCH(AC50,OFFSET(AC50,1,0):$AC$490,0)),INDEX('BV & Plaatsing'!$AC$12:$AD$490,MATCH(AC50,'BV & Plaatsing'!$AC$12:$AC$490,0),2),\"\"))","v":""},"",null,null,null,null,null,null,null,null,null,null,"*****"]
[null,null,null,null,null,null,null,null,null,null,null,null,null,null,0,null,{"$f":"IF(AC51=\"*****\",\"\",IF(ISERROR(MATCH(AC51,OFFSET(AC51,1,0):$AC$490,0)),INDEX('BV & Plaatsing'!$AC$12:$AD$490,MATCH(AC51,'BV & Plaatsing'!$AC$12:$AC$490,0),2),\"\"))","v":""},"",null,null,null,null,null,null,null,null,null,null,"*****"]
[null,null,null,null,null,null,null,null,null,null,null,null,null,null,0,null,{"$f":"IF(AC52=\"*****\",\"\",IF(ISERROR(MATCH(AC52,OFFSET(AC52,1,0):$AC$490,0)),INDEX('BV & Plaatsing'!$AC$12:$AD$490,MATCH(AC52,'BV & Plaatsing'!$AC$12:$AC$490,0),2),\"\"))","v":""},"",null,null,null,null,null,null,null,null,null,null,"*****"]
[null,null,null,null,null,null,null,null,null,null,null,null,null,null,0,null,{"$f":"IF(AC53=\"*****\",\"\",IF(ISERROR(MATCH(AC53,OFFSET(AC53,1,0):$AC$490,0)),INDEX('BV & Plaatsing'!$AC$12:$AD$490,MATCH(AC53,'BV & Plaatsing'!$AC$12:$AC$490,0),2),\"\"))","v":""},"",null,null,null,null,null,null,null,null,null,null,"*****"]
[null,null,null,null,null,null,null,null,null,null,null,null,null,null,0,null,{"$f":"IF(AC54=\"*****\",\"\",IF(ISERROR(MATCH(AC54,OFFSET(AC54,1,0):$AC$490,0)),INDEX('BV & Plaatsing'!$AC$12:$AD$490,MATCH(AC54,'BV & Plaatsing'!$AC$12:$AC$490,0),2),\"\"))","v":""},"",null,null,null,null,null,null,null,null,null,null,"*****"]
[null,null,null,null,null,null,null,null,null,null,null,null,null,null,0,null,{"$f":"IF(AC55=\"*****\",\"\",IF(ISERROR(MATCH(AC55,OFFSET(AC55,1,0):$AC$490,0)),INDEX('BV & Plaatsing'!$AC$12:$AD$490,MATCH(AC55,'BV & Plaatsing'!$AC$12:$AC$490,0),2),\"\"))","v":""},"",null,null,null,null,null,null,null,null,null,null,"*****"]
[null,null,null,null,null,null,null,null,null,null,null,null,null,null,0,null,{"$f":"IF(AC56=\"*****\",\"\",IF(ISERROR(MATCH(AC56,OFFSET(AC56,1,0):$AC$490,0)),INDEX('BV & Plaatsing'!$AC$12:$AD$490,MATCH(AC56,'BV & Plaatsing'!$AC$12:$AC$490,0),2),\"\"))","v":""},"",null,null,null,null,null,null,null,null,null,null,"*****"]
[null,null,null,null,null,null,null,null,null,null,null,null,null,null,0,null,{"$f":"IF(AC57=\"*****\",\"\",IF(ISERROR(MATCH(AC57,OFFSET(AC57,1,0):$AC$490,0)),INDEX('BV & Plaatsing'!$AC$12:$AD$490,MATCH(AC57,'BV & Plaatsing'!$AC$12:$AC$490,0),2),\"\"))","v":""},"",null,null,null,null,null,null,null,null,null,null,"*****"]
[null,null,null,null,null,null,null,null,null,null,null,null,null,null,0,null,{"$f":"IF(AC58=\"*****\",\"\",IF(ISERROR(MATCH(AC58,OFFSET(AC58,1,0):$AC$490,0)),INDEX('BV & Plaatsing'!$AC$12:$AD$490,MATCH(AC58,'BV & Plaatsing'!$AC$12:$AC$490,0),2),\"\"))","v":""},"",null,null,null,null,null,null,null,null,null,null,"*****"]
[null,null,null,null,null,null,null,null,null,null,null,null,null,null,0,null,{"$f":"IF(AC59=\"*****\",\"\",IF(ISERROR(MATCH(AC59,OFFSET(AC59,1,0):$AC$490,0)),INDEX('BV & Plaatsing'!$AC$12:$AD$490,MATCH(AC59,'BV & Plaatsing'!$AC$12:$AC$490,0),2),\"\"))","v":""},"",null,null,null,null,null,null,null,null,null,null,"*****"]
[null,null,null,null,null,null,null,null,null,null,null,null,null,null,0,null,{"$f":"IF(AC60=\"*****\",\"\",IF(ISERROR(MATCH(AC60,OFFSET(AC60,1,0):$AC$490,0)),INDEX('BV & Plaatsing'!$AC$12:$AD$490,MATCH(AC60,'BV & Plaatsing'!$AC$12:$AC$490,0),2),\"\"))","v":""},"",null,null,null,null,null,null,null,null,null,null,"*****"]
[null,null,null,null,null,null,null,null,null,null,null,null,null,null,0,null,{"$f":"IF(AC61=\"*****\",\"\",IF(ISERROR(MATCH(AC61,OFFSET(AC61,1,0):$AC$490,0)),INDEX('BV & Plaatsing'!$AC$12:$AD$490,MATCH(AC61,'BV & Plaatsing'!$AC$12:$AC$490,0),2),\"\"))","v":""},"",null,null,null,null,null,null,null,null,null,null,"*****"]
[null,null,null,null,null,null,null,null,null,null,null,null,null,null,0,null,{"$f":"IF(AC62=\"*****\",\"\",IF(ISERROR(MATCH(AC62,OFFSET(AC62,1,0):$AC$490,0)),INDEX('BV & Plaatsing'!$AC$12:$AD$490,MATCH(AC62,'BV & Plaatsing'!$AC$12:$AC$490,0),2),\"\"))","v":""},"",null,null,null,null,null,null,null,null,null,null,"*****"]
[null,null,null,null,null,null,null,null,null,null,null,null,null,null,0,null,{"$f":"IF(AC63=\"*****\",\"\",IF(ISERROR(MATCH(AC63,OFFSET(AC63,1,0):$AC$490,0)),INDEX('BV & Plaatsing'!$AC$12:$AD$490,MATCH(AC63,'BV & Plaatsing'!$AC$12:$AC$490,0),2),\"\"))","v":""},"",null,null,null,null,null,null,null,null,null,null,"*****"]
[null,null,null,null,null,null,null,null,null,null,null,null,null,null,0,null,{"$f":"IF(AC64=\"*****\",\"\",IF(ISERROR(MATCH(AC64,OFFSET(AC64,1,0):$AC$490,0)),INDEX('BV & Plaatsing'!$AC$12:$AD$490,MATCH(AC64,'BV & Plaatsing'!$AC$12:$AC$490,0),2),\"\"))","v":""},"",null,null,null,null,null,null,null,null,null,null,"*****"]
[null,null,null,null,null,null,null,null,null,null,null,null,null,null,0,null,{"$f":"IF(AC65=\"*****\",\"\",IF(ISERROR(MATCH(AC65,OFFSET(AC65,1,0):$AC$490,0)),INDEX('BV & Plaatsing'!$AC$12:$AD$490,MATCH(AC65,'BV & Plaatsing'!$AC$12:$AC$490,0),2),\"\"))","v":""},"",null,null,null,null,null,null,null,null,null,null,"*****"]
[null,null,null,null,null,null,null,null,null,null,null,null,null,null,0,null,{"$f":"IF(AC66=\"*****\",\"\",IF(ISERROR(MATCH(AC66,OFFSET(AC66,1,0):$AC$490,0)),INDEX('BV & Plaatsing'!$AC$12:$AD$490,MATCH(AC66,'BV & Plaatsing'!$AC$12:$AC$490,0),2),\"\"))","v":""},"",null,null,null,null,null,null,null,null,null,null,"*****"]
[null,null,null,null,null,null,null,null,null,null,null,null,null,null,0,null,{"$f":"IF(AC67=\"*****\",\"\",IF(ISERROR(MATCH(AC67,OFFSET(AC67,1,0):$AC$490,0)),INDEX('BV & Plaatsing'!$AC$12:$AD$490,MATCH(AC67,'BV & Plaatsing'!$AC$12:$AC$490,0),2),\"\"))","v":""},"",null,null,null,null,null,null,null,null,null,null,"*****"]
[null,null,null,null,null,null,null,null,null,null,null,null,null,null,0,null,{"$f":"IF(AC68=\"*****\",\"\",IF(ISERROR(MATCH(AC68,OFFSET(AC68,1,0):$AC$490,0)),INDEX('BV & Plaatsing'!$AC$12:$AD$490,MATCH(AC68,'BV & Plaatsing'!$AC$12:$AC$490,0),2),\"\"))","v":""},"",null,null,null,null,null,null,null,null,null,null,"*****"]
[null,null,null,null,null,null,null,null,null,null,null,null,null,null,0,null,{"$f":"IF(AC69=\"*****\",\"\",IF(ISERROR(MATCH(AC69,OFFSET(AC69,1,0):$AC$490,0)),INDEX('BV & Plaatsing'!$AC$12:$AD$490,MATCH(AC69,'BV & Plaatsing'!$AC$12:$AC$490,0),2),\"\"))","v":""},"",null,null,null,null,null,null,null,null,null,null,"*****"]
[null,null,null,null,null,null,null,null,null,null,null,null,null,null,0,null,{"$f":"IF(AC70=\"*****\",\"\",IF(ISERROR(MATCH(AC70,OFFSET(AC70,1,0):$AC$490,0)),INDEX('BV & Plaatsing'!$AC$12:$AD$490,MATCH(AC70,'BV & Plaatsing'!$AC$12:$AC$490,0),2),\"\"))","v":""},"",null,null,null,null,null,null,null,null,null,null,"*****"]
[null,null,null,null,null,null,null,null,null,null,null,null,null,null,0,null,{"$f":"IF(AC71=\"*****\",\"\",IF(ISERROR(MATCH(AC71,OFFSET(AC71,1,0):$AC$490,0)),INDEX('BV & Plaatsing'!$AC$12:$AD$490,MATCH(AC71,'BV & Plaatsing'!$AC$12:$AC$490,0),2),\"\"))","v":""},"",null,null,null,null,null,null,null,null,null,null,"*****"]
[null,null,null,null,null,null,null,null,null,null,null,null,null,null,0,null,{"$f":"IF(AC72=\"*****\",\"\",IF(ISERROR(MATCH(AC72,OFFSET(AC72,1,0):$AC$490,0)),INDEX('BV & Plaatsing'!$AC$12:$AD$490,MATCH(AC72,'BV & Plaatsing'!$AC$12:$AC$490,0),2),\"\"))","v":""},"",null,null,null,null,null,null,null,null,null,null,"*****"]
[null,null,null,null,null,null,null,null,null,null,null,null,null,null,0,null,{"$f":"IF(AC73=\"*****\",\"\",IF(ISERROR(MATCH(AC73,OFFSET(AC73,1,0):$AC$490,0)),INDEX('BV & Plaatsing'!$AC$12:$AD$490,MATCH(AC73,'BV & Plaatsing'!$AC$12:$AC$490,0),2),\"\"))","v":""},"",null,null,null,null,null,null,null,null,null,null,"*****"]
[null,null,null,null,null,null,null,null,null,null,null,null,null,null,0,null,{"$f":"IF(AC74=\"*****\",\"\",IF(ISERROR(MATCH(AC74,OFFSET(AC74,1,0):$AC$490,0)),INDEX('BV & Plaatsing'!$AC$12:$AD$490,MATCH(AC74,'BV & Plaatsing'!$AC$12:$AC$490,0),2),\"\"))","v":""},"",null,null,null,null,null,null,null,null,null,null,"*****"]
[null,null,null,null,null,null,null,null,null,null,null,null,null,null,0,null,{"$f":"IF(AC75=\"*****\",\"\",IF(ISERROR(MATCH(AC75,OFFSET(AC75,1,0):$AC$490,0)),INDEX('BV & Plaatsing'!$AC$12:$AD$490,MATCH(AC75,'BV & Plaatsing'!$AC$12:$AC$490,0),2),\"\"))","v":""},"",null,null,null,null,null,null,null,null,null,null,"*****"]
[null,null,null,null,null,null,null,null,null,null,null,null,null,null,0,null,{"$f":"IF(AC76=\"*****\",\"\",IF(ISERROR(MATCH(AC76,OFFSET(AC76,1,0):$AC$490,0)),INDEX('BV & Plaatsing'!$AC$12:$AD$490,MATCH(AC76,'BV & Plaatsing'!$AC$12:$AC$490,0),2),\"\"))","v":""},"",null,null,null,null,null,null,null,null,null,null,"*****"]
[null,null,null,null,null,null,null,null,null,null,null,null,null,null,0,null,{"$f":"IF(AC77=\"*****\",\"\",IF(ISERROR(MATCH(AC77,OFFSET(AC77,1,0):$AC$490,0)),INDEX('BV & Plaatsing'!$AC$12:$AD$490,MATCH(AC77,'BV & Plaatsing'!$AC$12:$AC$490,0),2),\"\"))","v":""},{"$f":"IF(AC77=\"*****\",\"\",IF(J77<>MID(P77,SEARCH(\"[\",P77,1)+1,SEARCH(\"]\",P77,1)-SEARCH(\"[\",P77,1)-1),\">> Omschrijving goederen plaatsingsaangifte <> omschrijving geplaatste goederen in product\",\"\"))","v":""},null,null,null,null,null,null,null,null,null,null,"*****"]
[null,null,null,null,null,null,null,null,null,null,null,null,null,null,0,null,{"$f":"IF(AC78=\"*****\",\"\",IF(ISERROR(MATCH(AC78,OFFSET(AC78,1,0):$AC$490,0)),INDEX('BV & Plaatsing'!$AC$12:$AD$490,MATCH(AC78,'BV & Plaatsing'!$AC$12:$AC$490,0),2),\"\"))","v":""},"",null,null,null,null,null,null,null,null,null,null,"*****"]
[null,null,null,null,null,null,null,null,null,null,null,null,null,null,0,null,{"$f":"IF(AC79=\"*****\",\"\",IF(ISERROR(MATCH(AC79,OFFSET(AC79,1,0):$AC$490,0)),INDEX('BV & Plaatsing'!$AC$12:$AD$490,MATCH(AC79,'BV & Plaatsing'!$AC$12:$AC$490,0),2),\"\"))","v":""},"",null,null,null,null,null,null,null,null,null,null,"*****"]
[null,null,null,null,null,null,null,null,null,null,null,null,null,null,0,null,{"$f":"IF(AC80=\"*****\",\"\",IF(ISERROR(MATCH(AC80,OFFSET(AC80,1,0):$AC$490,0)),INDEX('BV & Plaatsing'!$AC$12:$AD$490,MATCH(AC80,'BV & Plaatsing'!$AC$12:$AC$490,0),2),\"\"))","v":""},"",null,null,null,null,null,null,null,null,null,null,"*****"]
[null,null,null,null,null,null,null,null,null,null,null,null,null,null,0,null,{"$f":"IF(AC81=\"*****\",\"\",IF(ISERROR(MATCH(AC81,OFFSET(AC81,1,0):$AC$490,0)),INDEX('BV & Plaatsing'!$AC$12:$AD$490,MATCH(AC81,'BV & Plaatsing'!$AC$12:$AC$490,0),2),\"\"))","v":""},"",null,null,null,null,null,null,null,null,null,null,"*****"]
[null,null,null,null,null,null,null,null,null,null,null,null,null,null,0,null,{"$f":"IF(AC82=\"*****\",\"\",IF(ISERROR(MATCH(AC82,OFFSET(AC82,1,0):$AC$490,0)),INDEX('BV & Plaatsing'!$AC$12:$AD$490,MATCH(AC82,'BV & Plaatsing'!$AC$12:$AC$490,0),2),\"\"))","v":""},"",null,null,null,null,null,null,null,null,null,null,"*****"]
[null,null,null,null,null,null,null,null,null,null,null,null,null,null,0,null,{"$f":"IF(AC83=\"*****\",\"\",IF(ISERROR(MATCH(AC83,OFFSET(AC83,1,0):$AC$490,0)),INDEX('BV & Plaatsing'!$AC$12:$AD$490,MATCH(AC83,'BV & Plaatsing'!$AC$12:$AC$490,0),2),\"\"))","v":""},"",null,null,null,null,null,null,null,null,null,null,"*****"]
[null,null,null,null,null,null,null,null,null,null,null,null,null,null,0,null,{"$f":"IF(AC84=\"*****\",\"\",IF(ISERROR(MATCH(AC84,OFFSET(AC84,1,0):$AC$490,0)),INDEX('BV & Plaatsing'!$AC$12:$AD$490,MATCH(AC84,'BV & Plaatsing'!$AC$12:$AC$490,0),2),\"\"))","v":""},"",null,null,null,null,null,null,null,null,null,null,"*****"]
[null,null,null,null,null,null,null,null,null,null,null,null,null,null,0,null,{"$f":"IF(AC85=\"*****\",\"\",IF(ISERROR(MATCH(AC85,OFFSET(AC85,1,0):$AC$490,0)),INDEX('BV & Plaatsing'!$AC$12:$AD$490,MATCH(AC85,'BV & Plaatsing'!$AC$12:$AC$490,0),2),\"\"))","v":""},"",null,null,null,null,null,null,null,null,null,null,"*****"]
[null,null,null,null,null,null,null,null,null,null,null,null,null,null,0,null,{"$f":"IF(AC86=\"*****\",\"\",IF(ISERROR(MATCH(AC86,OFFSET(AC86,1,0):$AC$490,0)),INDEX('BV & Plaatsing'!$AC$12:$AD$490,MATCH(AC86,'BV & Plaatsing'!$AC$12:$AC$490,0),2),\"\"))","v":""},"",null,null,null,null,null,null,null,null,null,null,"*****"]
[null,null,null,null,null,null,null,null,null,null,null,null,null,null,0,null,{"$f":"IF(AC87=\"*****\",\"\",IF(ISERROR(MATCH(AC87,OFFSET(AC87,1,0):$AC$490,0)),INDEX('BV & Plaatsing'!$AC$12:$AD$490,MATCH(AC87,'BV & Plaatsing'!$AC$12:$AC$490,0),2),\"\"))","v":""},"",null,null,null,null,null,null,null,null,null,null,"*****"]
[null,null,null,null,null,null,null,null,null,null,null,null,null,null,0,null,{"$f":"IF(AC88=\"*****\",\"\",IF(ISERROR(MATCH(AC88,OFFSET(AC88,1,0):$AC$490,0)),INDEX('BV & Plaatsing'!$AC$12:$AD$490,MATCH(AC88,'BV & Plaatsing'!$AC$12:$AC$490,0),2),\"\"))","v":""},"",null,null,null,null,null,null,null,null,null,null,"*****"]
[null,null,null,null,null,null,null,null,null,null,null,null,null,null,0,null,{"$f":"IF(AC89=\"*****\",\"\",IF(ISERROR(MATCH(AC89,OFFSET(AC89,1,0):$AC$490,0)),INDEX('BV & Plaatsing'!$AC$12:$AD$490,MATCH(AC89,'BV & Plaatsing'!$AC$12:$AC$490,0),2),\"\"))","v":""},"",null,null,null,null,null,null,null,null,null,null,"*****"]
[null,null,null,null,null,null,null,null,null,null,null,null,null,null,0,null,{"$f":"IF(AC90=\"*****\",\"\",IF(ISERROR(MATCH(AC90,OFFSET(AC90,1,0):$AC$490,0)),INDEX('BV & Plaatsing'!$AC$12:$AD$490,MATCH(AC90,'BV & Plaatsing'!$AC$12:$AC$490,0),2),\"\"))","v":""},"",null,null,null,null,null,null,null,null,null,null,"*****"]
[null,null,null,null,null,null,null,null,null,null,null,null,null,null,0,null,{"$f":"IF(AC91=\"*****\",\"\",IF(ISERROR(MATCH(AC91,OFFSET(AC91,1,0):$AC$490,0)),INDEX('BV & Plaatsing'!$AC$12:$AD$490,MATCH(AC91,'BV & Plaatsing'!$AC$12:$AC$490,0),2),\"\"))","v":""},"",null,null,null,null,null,null,null,null,null,null,"*****"]
[null,null,null,null,null,null,null,null,null,null,null,null,null,null,0,null,{"$f":"IF(AC92=\"*****\",\"\",IF(ISERROR(MATCH(AC92,OFFSET(AC92,1,0):$AC$490,0)),INDEX('BV & Plaatsing'!$AC$12:$AD$490,MATCH(AC92,'BV & Plaatsing'!$AC$12:$AC$490,0),2),\"\"))","v":""},"",null,null,null,null,null,null,null,null,null,null,"*****"]
[null,null,null,null,null,null,null,null,null,null,null,null,null,null,0,null,{"$f":"IF(AC93=\"*****\",\"\",IF(ISERROR(MATCH(AC93,OFFSET(AC93,1,0):$AC$490,0)),INDEX('BV & Plaatsing'!$AC$12:$AD$490,MATCH(AC93,'BV & Plaatsing'!$AC$12:$AC$490,0),2),\"\"))","v":""},"",null,null,null,null,null,null,null,null,null,null,"*****"]
[null,null,null,null,null,null,null,null,null,null,null,null,null,null,0,null,{"$f":"IF(AC94=\"*****\",\"\",IF(ISERROR(MATCH(AC94,OFFSET(AC94,1,0):$AC$490,0)),INDEX('BV & Plaatsing'!$AC$12:$AD$490,MATCH(AC94,'BV & Plaatsing'!$AC$12:$AC$490,0),2),\"\"))","v":""},"",null,null,null,null,null,null,null,null,null,null,"*****"]
[null,null,null,null,null,null,null,null,null,null,null,null,null,null,0,null,{"$f":"IF(AC95=\"*****\",\"\",IF(ISERROR(MATCH(AC95,OFFSET(AC95,1,0):$AC$490,0)),INDEX('BV & Plaatsing'!$AC$12:$AD$490,MATCH(AC95,'BV & Plaatsing'!$AC$12:$AC$490,0),2),\"\"))","v":""},"",null,null,null,null,null,null,null,null,null,null,"*****"]
[null,null,null,null,null,null,null,null,null,null,null,null,null,null,0,null,{"$f":"IF(AC96=\"*****\",\"\",IF(ISERROR(MATCH(AC96,OFFSET(AC96,1,0):$AC$490,0)),INDEX('BV & Plaatsing'!$AC$12:$AD$490,MATCH(AC96,'BV & Plaatsing'!$AC$12:$AC$490,0),2),\"\"))","v":""},"",null,null,null,null,null,null,null,null,null,null,"*****"]
[null,null,null,null,null,null,null,null,null,null,null,null,null,null,0,null,{"$f":"IF(AC97=\"*****\",\"\",IF(ISERROR(MATCH(AC97,OFFSET(AC97,1,0):$AC$490,0)),INDEX('BV & Plaatsing'!$AC$12:$AD$490,MATCH(AC97,'BV & Plaatsing'!$AC$12:$AC$490,0),2),\"\"))","v":""},"",null,null,null,null,null,null,null,null,null,null,"*****"]
[null,null,null,null,null,null,null,null,null,null,null,null,null,null,0,null,{"$f":"IF(AC98=\"*****\",\"\",IF(ISERROR(MATCH(AC98,OFFSET(AC98,1,0):$AC$490,0)),INDEX('BV & Plaatsing'!$AC$12:$AD$490,MATCH(AC98,'BV & Plaatsing'!$AC$12:$AC$490,0),2),\"\"))","v":""},"",null,null,null,null,null,null,null,null,null,null,"*****"]
[null,null,null,null,null,null,null,null,null,null,null,null,null,null,0,null,{"$f":"IF(AC99=\"*****\",\"\",IF(ISERROR(MATCH(AC99,OFFSET(AC99,1,0):$AC$490,0)),INDEX('BV & Plaatsing'!$AC$12:$AD$490,MATCH(AC99,'BV & Plaatsing'!$AC$12:$AC$490,0),2),\"\"))","v":""},"",null,null,null,null,null,null,null,null,null,null,"*****"]
[null,null,null,null,null,null,null,null,null,null,null,null,null,null,0,null,{"$f":"IF(AC100=\"*****\",\"\",IF(ISERROR(MATCH(AC100,OFFSET(AC100,1,0):$AC$490,0)),INDEX('BV & Plaatsing'!$AC$12:$AD$490,MATCH(AC100,'BV & Plaatsing'!$AC$12:$AC$490,0),2),\"\"))","v":""},"",null,null,null,null,null,null,null,null,null,null,"*****"]
[null,null,null,null,null,null,null,null,null,null,null,null,null,null,0,null,{"$f":"IF(AC101=\"*****\",\"\",IF(ISERROR(MATCH(AC101,OFFSET(AC101,1,0):$AC$490,0)),INDEX('BV & Plaatsing'!$AC$12:$AD$490,MATCH(AC101,'BV & Plaatsing'!$AC$12:$AC$490,0),2),\"\"))","v":""},"",null,null,null,null,null,null,null,null,null,null,"*****"]
[null,null,null,null,null,null,null,null,null,null,null,null,null,null,0,null,{"$f":"IF(AC102=\"*****\",\"\",IF(ISERROR(MATCH(AC102,OFFSET(AC102,1,0):$AC$490,0)),INDEX('BV & Plaatsing'!$AC$12:$AD$490,MATCH(AC102,'BV & Plaatsing'!$AC$12:$AC$490,0),2),\"\"))","v":""},"",null,null,null,null,null,null,null,null,null,null,"*****"]
[null,null,null,null,null,null,null,null,null,null,null,null,null,null,0,null,{"$f":"IF(AC103=\"*****\",\"\",IF(ISERROR(MATCH(AC103,OFFSET(AC103,1,0):$AC$490,0)),INDEX('BV & Plaatsing'!$AC$12:$AD$490,MATCH(AC103,'BV & Plaatsing'!$AC$12:$AC$490,0),2),\"\"))","v":""},"",null,null,null,null,null,null,null,null,null,null,"*****"]
[null,null,null,null,null,null,null,null,null,null,null,null,null,null,0,null,{"$f":"IF(AC104=\"*****\",\"\",IF(ISERROR(MATCH(AC104,OFFSET(AC104,1,0):$AC$490,0)),INDEX('BV & Plaatsing'!$AC$12:$AD$490,MATCH(AC104,'BV & Plaatsing'!$AC$12:$AC$490,0),2),\"\"))","v":""},"",null,null,null,null,null,null,null,null,null,null,"*****"]
[null,null,null,null,null,null,null,null,null,null,null,null,null,null,0,null,{"$f":"IF(AC105=\"*****\",\"\",IF(ISERROR(MATCH(AC105,OFFSET(AC105,1,0):$AC$490,0)),INDEX('BV & Plaatsing'!$AC$12:$AD$490,MATCH(AC105,'BV & Plaatsing'!$AC$12:$AC$490,0),2),\"\"))","v":""},"",null,null,null,null,null,null,null,null,null,null,"*****"]
[null,null,null,null,null,null,null,null,null,null,null,null,null,null,0,null,{"$f":"IF(AC106=\"*****\",\"\",IF(ISERROR(MATCH(AC106,OFFSET(AC106,1,0):$AC$490,0)),INDEX('BV & Plaatsing'!$AC$12:$AD$490,MATCH(AC106,'BV & Plaatsing'!$AC$12:$AC$490,0),2),\"\"))","v":""},"",null,null,null,null,null,null,null,null,null,null,"*****"]
[null,null,null,null,null,null,null,null,null,null,null,null,null,null,{"$f":"IF(AND(K107>0,L107>0),ROUND(K107/L107*100,2),0)","v":0},null,{"$f":"IF(AC107=\"*****\",\"\",IF(ISERROR(MATCH(AC107,OFFSET(AC107,1,0):$AC$490,0)),INDEX('BV & Plaatsing'!$AC$12:$AD$490,MATCH(AC107,'BV & Plaatsing'!$AC$12:$AC$490,0),2),\"\"))","v":""},"",null,null,null,null,null,null,null,null,null,null,{"$f":"IF(RIGHT(P107,1)=\"]\",LEFT(P107,SEARCH(\"[\",P107)-2),\"*****\")","v":"*****"}]
[null,null,null,null,null,null,null,null,null,null,null,null,null,null,0,null,{"$f":"IF(AC108=\"*****\",\"\",IF(ISERROR(MATCH(AC108,OFFSET(AC108,1,0):$AC$490,0)),INDEX('BV & Plaatsing'!$AC$12:$AD$490,MATCH(AC108,'BV & Plaatsing'!$AC$12:$AC$490,0),2),\"\"))","v":""},"",null,null,null,null,null,null,null,null,null,null,"*****"]
[null,null,null,null,null,null,null,null,null,null,null,null,null,null,0,null,{"$f":"IF(AC109=\"*****\",\"\",IF(ISERROR(MATCH(AC109,OFFSET(AC109,1,0):$AC$490,0)),INDEX('BV & Plaatsing'!$AC$12:$AD$490,MATCH(AC109,'BV & Plaatsing'!$AC$12:$AC$490,0),2),\"\"))","v":""},"",null,null,null,null,null,null,null,null,null,null,"*****"]
[null,null,null,null,null,null,null,null,null,null,null,null,null,null,0,null,{"$f":"IF(AC110=\"*****\",\"\",IF(ISERROR(MATCH(AC110,OFFSET(AC110,1,0):$AC$490,0)),INDEX('BV & Plaatsing'!$AC$12:$AD$490,MATCH(AC110,'BV & Plaatsing'!$AC$12:$AC$490,0),2),\"\"))","v":""},"",null,null,null,null,null,null,null,null,null,null,"*****"]
[null,null,null,null,null,null,null,null,null,null,null,null,null,null,0,null,{"$f":"IF(AC111=\"*****\",\"\",IF(ISERROR(MATCH(AC111,OFFSET(AC111,1,0):$AC$490,0)),INDEX('BV & Plaatsing'!$AC$12:$AD$490,MATCH(AC111,'BV & Plaatsing'!$AC$12:$AC$490,0),2),\"\"))","v":""},"",null,null,null,null,null,null,null,null,null,null,"*****"]
[null,null,null,null,null,null,null,null,null,null,null,null,null,null,0,null,{"$f":"IF(AC112=\"*****\",\"\",IF(ISERROR(MATCH(AC112,OFFSET(AC112,1,0):$AC$490,0)),INDEX('BV & Plaatsing'!$AC$12:$AD$490,MATCH(AC112,'BV & Plaatsing'!$AC$12:$AC$490,0),2),\"\"))","v":""},"",null,null,null,null,null,null,null,null,null,null,"*****"]
[null,null,null,null,null,null,null,null,null,null,null,null,null,null,0,null,{"$f":"IF(AC113=\"*****\",\"\",IF(ISERROR(MATCH(AC113,OFFSET(AC113,1,0):$AC$490,0)),INDEX('BV & Plaatsing'!$AC$12:$AD$490,MATCH(AC113,'BV & Plaatsing'!$AC$12:$AC$490,0),2),\"\"))","v":""},"",null,null,null,null,null,null,null,null,null,null,"*****"]
[null,null,null,null,null,null,null,null,null,null,null,null,null,null,0,null,{"$f":"IF(AC114=\"*****\",\"\",IF(ISERROR(MATCH(AC114,OFFSET(AC114,1,0):$AC$490,0)),INDEX('BV & Plaatsing'!$AC$12:$AD$490,MATCH(AC114,'BV & Plaatsing'!$AC$12:$AC$490,0),2),\"\"))","v":""},"",null,null,null,null,null,null,null,null,null,null,"*****"]
[null,null,null,null,null,null,null,null,null,null,null,null,null,null,0,null,{"$f":"IF(AC115=\"*****\",\"\",IF(ISERROR(MATCH(AC115,OFFSET(AC115,1,0):$AC$490,0)),INDEX('BV & Plaatsing'!$AC$12:$AD$490,MATCH(AC115,'BV & Plaatsing'!$AC$12:$AC$490,0),2),\"\"))","v":""},"",null,null,null,null,null,null,null,null,null,null,"*****"]
[null,null,null,null,null,null,null,null,null,null,null,null,null,null,0,null,{"$f":"IF(AC116=\"*****\",\"\",IF(ISERROR(MATCH(AC116,OFFSET(AC116,1,0):$AC$490,0)),INDEX('BV & Plaatsing'!$AC$12:$AD$490,MATCH(AC116,'BV & Plaatsing'!$AC$12:$AC$490,0),2),\"\"))","v":""},"",null,null,null,null,null,null,null,null,null,null,"*****"]
[null,null,null,null,null,null,null,null,null,null,null,null,null,null,0,null,{"$f":"IF(AC117=\"*****\",\"\",IF(ISERROR(MATCH(AC117,OFFSET(AC117,1,0):$AC$490,0)),INDEX('BV & Plaatsing'!$AC$12:$AD$490,MATCH(AC117,'BV & Plaatsing'!$AC$12:$AC$490,0),2),\"\"))","v":""},"",null,null,null,null,null,null,null,null,null,null,"*****"]
[null,null,null,null,null,null,null,null,null,null,null,null,null,null,0,null,{"$f":"IF(AC118=\"*****\",\"\",IF(ISERROR(MATCH(AC118,OFFSET(AC118,1,0):$AC$490,0)),INDEX('BV & Plaatsing'!$AC$12:$AD$490,MATCH(AC118,'BV & Plaatsing'!$AC$12:$AC$490,0),2),\"\"))","v":""},"",null,null,null,null,null,null,null,null,null,null,"*****"]
[null,null,null,null,null,null,null,null,null,null,null,null,null,null,0,null,{"$f":"IF(AC119=\"*****\",\"\",IF(ISERROR(MATCH(AC119,OFFSET(AC119,1,0):$AC$490,0)),INDEX('BV & Plaatsing'!$AC$12:$AD$490,MATCH(AC119,'BV & Plaatsing'!$AC$12:$AC$490,0),2),\"\"))","v":""},"",null,null,null,null,null,null,null,null,null,null,"*****"]
[null,null,null,null,null,null,null,null,null,null,null,null,null,null,0,null,{"$f":"IF(AC120=\"*****\",\"\",IF(ISERROR(MATCH(AC120,OFFSET(AC120,1,0):$AC$490,0)),INDEX('BV & Plaatsing'!$AC$12:$AD$490,MATCH(AC120,'BV & Plaatsing'!$AC$12:$AC$490,0),2),\"\"))","v":""},"",null,null,null,null,null,null,null,null,null,null,"*****"]
[null,null,null,null,null,null,null,null,null,null,null,null,null,null,0,null,{"$f":"IF(AC121=\"*****\",\"\",IF(ISERROR(MATCH(AC121,OFFSET(AC121,1,0):$AC$490,0)),INDEX('BV & Plaatsing'!$AC$12:$AD$490,MATCH(AC121,'BV & Plaatsing'!$AC$12:$AC$490,0),2),\"\"))","v":""},"",null,null,null,null,null,null,null,null,null,null,"*****"]
[null,null,null,null,null,null,null,null,null,null,null,null,null,null,0,null,{"$f":"IF(AC122=\"*****\",\"\",IF(ISERROR(MATCH(AC122,OFFSET(AC122,1,0):$AC$490,0)),INDEX('BV & Plaatsing'!$AC$12:$AD$490,MATCH(AC122,'BV & Plaatsing'!$AC$12:$AC$490,0),2),\"\"))","v":""},"",null,null,null,null,null,null,null,null,null,null,"*****"]
[null,null,null,null,null,null,null,null,null,null,null,null,null,null,0,null,{"$f":"IF(AC123=\"*****\",\"\",IF(ISERROR(MATCH(AC123,OFFSET(AC123,1,0):$AC$490,0)),INDEX('BV & Plaatsing'!$AC$12:$AD$490,MATCH(AC123,'BV & Plaatsing'!$AC$12:$AC$490,0),2),\"\"))","v":""},"",null,null,null,null,null,null,null,null,null,null,"*****"]
[null,null,null,null,null,null,null,null,null,null,null,null,null,null,0,null,{"$f":"IF(AC124=\"*****\",\"\",IF(ISERROR(MATCH(AC124,OFFSET(AC124,1,0):$AC$490,0)),INDEX('BV & Plaatsing'!$AC$12:$AD$490,MATCH(AC124,'BV & Plaatsing'!$AC$12:$AC$490,0),2),\"\"))","v":""},"",null,null,null,null,null,null,null,null,null,null,"*****"]
[null,null,null,null,null,null,null,null,null,null,null,null,null,null,0,null,{"$f":"IF(AC125=\"*****\",\"\",IF(ISERROR(MATCH(AC125,OFFSET(AC125,1,0):$AC$490,0)),INDEX('BV & Plaatsing'!$AC$12:$AD$490,MATCH(AC125,'BV & Plaatsing'!$AC$12:$AC$490,0),2),\"\"))","v":""},"",null,null,null,null,null,null,null,null,null,null,"*****"]
[null,null,null,null,null,null,null,null,null,null,null,null,null,null,0,null,{"$f":"IF(AC126=\"*****\",\"\",IF(ISERROR(MATCH(AC126,OFFSET(AC126,1,0):$AC$490,0)),INDEX('BV & Plaatsing'!$AC$12:$AD$490,MATCH(AC126,'BV & Plaatsing'!$AC$12:$AC$490,0),2),\"\"))","v":""},"",null,null,null,null,null,null,null,null,null,null,"*****"]
[null,null,null,null,null,null,null,null,null,null,null,null,null,null,0,null,{"$f":"IF(AC127=\"*****\",\"\",IF(ISERROR(MATCH(AC127,OFFSET(AC127,1,0):$AC$490,0)),INDEX('BV & Plaatsing'!$AC$12:$AD$490,MATCH(AC127,'BV & Plaatsing'!$AC$12:$AC$490,0),2),\"\"))","v":""},"",null,null,null,null,null,null,null,null,null,null,"*****"]
[null,null,null,null,null,null,null,null,null,null,null,null,null,null,0,null,{"$f":"IF(AC128=\"*****\",\"\",IF(ISERROR(MATCH(AC128,OFFSET(AC128,1,0):$AC$490,0)),INDEX('BV & Plaatsing'!$AC$12:$AD$490,MATCH(AC128,'BV & Plaatsing'!$AC$12:$AC$490,0),2),\"\"))","v":""},"",null,null,null,null,null,null,null,null,null,null,"*****"]
[null,null,null,null,null,null,null,null,null,null,null,null,null,null,0,null,{"$f":"IF(AC129=\"*****\",\"\",IF(ISERROR(MATCH(AC129,OFFSET(AC129,1,0):$AC$490,0)),INDEX('BV & Plaatsing'!$AC$12:$AD$490,MATCH(AC129,'BV & Plaatsing'!$AC$12:$AC$490,0),2),\"\"))","v":""},"",null,null,null,null,null,null,null,null,null,null,"*****"]
[null,null,null,null,null,null,null,null,null,null,null,null,null,null,0,null,{"$f":"IF(AC130=\"*****\",\"\",IF(ISERROR(MATCH(AC130,OFFSET(AC130,1,0):$AC$490,0)),INDEX('BV & Plaatsing'!$AC$12:$AD$490,MATCH(AC130,'BV & Plaatsing'!$AC$12:$AC$490,0),2),\"\"))","v":""},"",null,null,null,null,null,null,null,null,null,null,"*****"]
[null,null,null,null,null,null,null,null,null,null,null,null,null,null,0,null,{"$f":"IF(AC131=\"*****\",\"\",IF(ISERROR(MATCH(AC131,OFFSET(AC131,1,0):$AC$490,0)),INDEX('BV & Plaatsing'!$AC$12:$AD$490,MATCH(AC131,'BV & Plaatsing'!$AC$12:$AC$490,0),2),\"\"))","v":""},"",null,null,null,null,null,null,null,null,null,null,"*****"]
[null,null,null,null,null,null,null,null,null,null,null,null,null,null,0,null,{"$f":"IF(AC132=\"*****\",\"\",IF(ISERROR(MATCH(AC132,OFFSET(AC132,1,0):$AC$490,0)),INDEX('BV & Plaatsing'!$AC$12:$AD$490,MATCH(AC132,'BV & Plaatsing'!$AC$12:$AC$490,0),2),\"\"))","v":""},"",null,null,null,null,null,null,null,null,null,null,"*****"]
[null,null,null,null,null,null,null,null,null,null,null,null,null,null,0,null,{"$f":"IF(AC133=\"*****\",\"\",IF(ISERROR(MATCH(AC133,OFFSET(AC133,1,0):$AC$490,0)),INDEX('BV & Plaatsing'!$AC$12:$AD$490,MATCH(AC133,'BV & Plaatsing'!$AC$12:$AC$490,0),2),\"\"))","v":""},"",null,null,null,null,null,null,null,null,null,null,"*****"]
[null,null,null,null,null,null,null,null,null,null,null,null,null,null,0,null,{"$f":"IF(AC134=\"*****\",\"\",IF(ISERROR(MATCH(AC134,OFFSET(AC134,1,0):$AC$490,0)),INDEX('BV & Plaatsing'!$AC$12:$AD$490,MATCH(AC134,'BV & Plaatsing'!$AC$12:$AC$490,0),2),\"\"))","v":""},"",null,null,null,null,null,null,null,null,null,null,"*****"]
[null,null,null,null,null,null,null,null,null,null,null,null,null,null,0,null,{"$f":"IF(AC135=\"*****\",\"\",IF(ISERROR(MATCH(AC135,OFFSET(AC135,1,0):$AC$490,0)),INDEX('BV & Plaatsing'!$AC$12:$AD$490,MATCH(AC135,'BV & Plaatsing'!$AC$12:$AC$490,0),2),\"\"))","v":""},"",null,null,null,null,null,null,null,null,null,null,"*****"]
[null,null,null,null,null,null,null,null,null,null,null,null,null,null,0,null,{"$f":"IF(AC136=\"*****\",\"\",IF(ISERROR(MATCH(AC136,OFFSET(AC136,1,0):$AC$490,0)),INDEX('BV & Plaatsing'!$AC$12:$AD$490,MATCH(AC136,'BV & Plaatsing'!$AC$12:$AC$490,0),2),\"\"))","v":""},"",null,null,null,null,null,null,null,null,null,null,"*****"]
[null,null,null,null,null,null,null,null,null,null,null,null,null,null,0,null,{"$f":"IF(AC137=\"*****\",\"\",IF(ISERROR(MATCH(AC137,OFFSET(AC137,1,0):$AC$490,0)),INDEX('BV & Plaatsing'!$AC$12:$AD$490,MATCH(AC137,'BV & Plaatsing'!$AC$12:$AC$490,0),2),\"\"))","v":""},"",null,null,null,null,null,null,null,null,null,null,"*****"]
[null,null,null,null,null,null,null,null,null,null,null,null,null,null,0,null,{"$f":"IF(AC138=\"*****\",\"\",IF(ISERROR(MATCH(AC138,OFFSET(AC138,1,0):$AC$490,0)),INDEX('BV & Plaatsing'!$AC$12:$AD$490,MATCH(AC138,'BV & Plaatsing'!$AC$12:$AC$490,0),2),\"\"))","v":""},"",null,null,null,null,null,null,null,null,null,null,"*****"]
[null,null,null,null,null,null,null,null,null,null,null,null,null,null,0,null,{"$f":"IF(AC139=\"*****\",\"\",IF(ISERROR(MATCH(AC139,OFFSET(AC139,1,0):$AC$490,0)),INDEX('BV & Plaatsing'!$AC$12:$AD$490,MATCH(AC139,'BV & Plaatsing'!$AC$12:$AC$490,0),2),\"\"))","v":""},"",null,null,null,null,null,null,null,null,null,null,"*****"]
[null,null,null,null,null,null,null,null,null,null,null,null,null,null,0,null,{"$f":"IF(AC140=\"*****\",\"\",IF(ISERROR(MATCH(AC140,OFFSET(AC140,1,0):$AC$490,0)),INDEX('BV & Plaatsing'!$AC$12:$AD$490,MATCH(AC140,'BV & Plaatsing'!$AC$12:$AC$490,0),2),\"\"))","v":""},"",null,null,null,null,null,null,null,null,null,null,"*****"]
[null,null,null,null,null,null,null,null,null,null,null,null,null,null,0,null,{"$f":"IF(AC141=\"*****\",\"\",IF(ISERROR(MATCH(AC141,OFFSET(AC141,1,0):$AC$490,0)),INDEX('BV & Plaatsing'!$AC$12:$AD$490,MATCH(AC141,'BV & Plaatsing'!$AC$12:$AC$490,0),2),\"\"))","v":""},{"$f":"IF(AC141=\"*****\",\"\",IF(J141<>MID(P141,SEARCH(\"[\",P141,1)+1,SEARCH(\"]\",P141,1)-SEARCH(\"[\",P141,1)-1),\">> Omschrijving goederen plaatsingsaangifte <> omschrijving geplaatste goederen in product\",\"\"))","v":""},null,null,null,null,null,null,null,null,null,null,"*****"]
[null,null,null,null,null,null,null,null,null,null,null,null,null,null,0,null,{"$f":"IF(AC142=\"*****\",\"\",IF(ISERROR(MATCH(AC142,OFFSET(AC142,1,0):$AC$490,0)),INDEX('BV & Plaatsing'!$AC$12:$AD$490,MATCH(AC142,'BV & Plaatsing'!$AC$12:$AC$490,0),2),\"\"))","v":""},"",null,null,null,null,null,null,null,null,null,null,"*****"]
[null,null,null,null,null,null,null,null,null,null,null,null,null,null,0,null,{"$f":"IF(AC143=\"*****\",\"\",IF(ISERROR(MATCH(AC143,OFFSET(AC143,1,0):$AC$490,0)),INDEX('BV & Plaatsing'!$AC$12:$AD$490,MATCH(AC143,'BV & Plaatsing'!$AC$12:$AC$490,0),2),\"\"))","v":""},"",null,null,null,null,null,null,null,null,null,null,"*****"]
[null,null,null,null,null,null,null,null,null,null,null,null,null,null,0,null,{"$f":"IF(AC144=\"*****\",\"\",IF(ISERROR(MATCH(AC144,OFFSET(AC144,1,0):$AC$490,0)),INDEX('BV & Plaatsing'!$AC$12:$AD$490,MATCH(AC144,'BV & Plaatsing'!$AC$12:$AC$490,0),2),\"\"))","v":""},"",null,null,null,null,null,null,null,null,null,null,"*****"]
[null,null,null,null,null,null,null,null,null,null,null,null,null,null,0,null,{"$f":"IF(AC145=\"*****\",\"\",IF(ISERROR(MATCH(AC145,OFFSET(AC145,1,0):$AC$490,0)),INDEX('BV & Plaatsing'!$AC$12:$AD$490,MATCH(AC145,'BV & Plaatsing'!$AC$12:$AC$490,0),2),\"\"))","v":""},"",null,null,null,null,null,null,null,null,null,null,"*****"]
[null,null,null,null,null,null,null,null,null,null,null,null,null,null,0,null,{"$f":"IF(AC146=\"*****\",\"\",IF(ISERROR(MATCH(AC146,OFFSET(AC146,1,0):$AC$490,0)),INDEX('BV & Plaatsing'!$AC$12:$AD$490,MATCH(AC146,'BV & Plaatsing'!$AC$12:$AC$490,0),2),\"\"))","v":""},"",null,null,null,null,null,null,null,null,null,null,"*****"]
[null,null,null,null,null,null,null,null,null,null,null,null,null,null,0,null,{"$f":"IF(AC147=\"*****\",\"\",IF(ISERROR(MATCH(AC147,OFFSET(AC147,1,0):$AC$490,0)),INDEX('BV & Plaatsing'!$AC$12:$AD$490,MATCH(AC147,'BV & Plaatsing'!$AC$12:$AC$490,0),2),\"\"))","v":""},"",null,null,null,null,null,null,null,null,null,null,"*****"]
[null,null,null,null,null,null,null,null,null,null,null,null,null,null,0,null,{"$f":"IF(AC148=\"*****\",\"\",IF(ISERROR(MATCH(AC148,OFFSET(AC148,1,0):$AC$490,0)),INDEX('BV & Plaatsing'!$AC$12:$AD$490,MATCH(AC148,'BV & Plaatsing'!$AC$12:$AC$490,0),2),\"\"))","v":""},"",null,null,null,null,null,null,null,null,null,null,"*****"]
[null,null,null,null,null,null,null,null,null,null,null,null,null,null,0,null,{"$f":"IF(AC149=\"*****\",\"\",IF(ISERROR(MATCH(AC149,OFFSET(AC149,1,0):$AC$490,0)),INDEX('BV & Plaatsing'!$AC$12:$AD$490,MATCH(AC149,'BV & Plaatsing'!$AC$12:$AC$490,0),2),\"\"))","v":""},"",null,null,null,null,null,null,null,null,null,null,"*****"]
[null,null,null,null,null,null,null,null,null,null,null,null,null,null,0,null,{"$f":"IF(AC150=\"*****\",\"\",IF(ISERROR(MATCH(AC150,OFFSET(AC150,1,0):$AC$490,0)),INDEX('BV & Plaatsing'!$AC$12:$AD$490,MATCH(AC150,'BV & Plaatsing'!$AC$12:$AC$490,0),2),\"\"))","v":""},"",null,null,null,null,null,null,null,null,null,null,"*****"]
[null,null,null,null,null,null,null,null,null,null,null,null,null,null,0,null,{"$f":"IF(AC151=\"*****\",\"\",IF(ISERROR(MATCH(AC151,OFFSET(AC151,1,0):$AC$490,0)),INDEX('BV & Plaatsing'!$AC$12:$AD$490,MATCH(AC151,'BV & Plaatsing'!$AC$12:$AC$490,0),2),\"\"))","v":""},"",null,null,null,null,null,null,null,null,null,null,"*****"]
[null,null,null,null,null,null,null,null,null,null,null,null,null,null,0,null,{"$f":"IF(AC152=\"*****\",\"\",IF(ISERROR(MATCH(AC152,OFFSET(AC152,1,0):$AC$490,0)),INDEX('BV & Plaatsing'!$AC$12:$AD$490,MATCH(AC152,'BV & Plaatsing'!$AC$12:$AC$490,0),2),\"\"))","v":""},"",null,null,null,null,null,null,null,null,null,null,"*****"]
[null,null,null,null,null,null,null,null,null,null,null,null,null,null,0,null,{"$f":"IF(AC153=\"*****\",\"\",IF(ISERROR(MATCH(AC153,OFFSET(AC153,1,0):$AC$490,0)),INDEX('BV & Plaatsing'!$AC$12:$AD$490,MATCH(AC153,'BV & Plaatsing'!$AC$12:$AC$490,0),2),\"\"))","v":""},"",null,null,null,null,null,null,null,null,null,null,"*****"]
[null,null,null,null,null,null,null,null,null,null,null,null,null,null,0,null,{"$f":"IF(AC154=\"*****\",\"\",IF(ISERROR(MATCH(AC154,OFFSET(AC154,1,0):$AC$490,0)),INDEX('BV & Plaatsing'!$AC$12:$AD$490,MATCH(AC154,'BV & Plaatsing'!$AC$12:$AC$490,0),2),\"\"))","v":""},"",null,null,null,null,null,null,null,null,null,null,"*****"]
[null,null,null,null,null,null,null,null,null,null,null,null,null,null,0,null,{"$f":"IF(AC155=\"*****\",\"\",IF(ISERROR(MATCH(AC155,OFFSET(AC155,1,0):$AC$490,0)),INDEX('BV & Plaatsing'!$AC$12:$AD$490,MATCH(AC155,'BV & Plaatsing'!$AC$12:$AC$490,0),2),\"\"))","v":""},"",null,null,null,null,null,null,null,null,null,null,"*****"]
[null,null,null,null,null,null,null,null,null,null,null,null,null,null,0,null,{"$f":"IF(AC156=\"*****\",\"\",IF(ISERROR(MATCH(AC156,OFFSET(AC156,1,0):$AC$490,0)),INDEX('BV & Plaatsing'!$AC$12:$AD$490,MATCH(AC156,'BV & Plaatsing'!$AC$12:$AC$490,0),2),\"\"))","v":""},"",null,null,null,null,null,null,null,null,null,null,"*****"]
[null,null,null,null,null,null,null,null,null,null,null,null,null,null,0,null,{"$f":"IF(AC157=\"*****\",\"\",IF(ISERROR(MATCH(AC157,OFFSET(AC157,1,0):$AC$490,0)),INDEX('BV & Plaatsing'!$AC$12:$AD$490,MATCH(AC157,'BV & Plaatsing'!$AC$12:$AC$490,0),2),\"\"))","v":""},"",null,null,null,null,null,null,null,null,null,null,"*****"]
[null,null,null,null,null,null,null,null,null,null,null,null,null,null,0,null,{"$f":"IF(AC158=\"*****\",\"\",IF(ISERROR(MATCH(AC158,OFFSET(AC158,1,0):$AC$490,0)),INDEX('BV & Plaatsing'!$AC$12:$AD$490,MATCH(AC158,'BV & Plaatsing'!$AC$12:$AC$490,0),2),\"\"))","v":""},"",null,null,null,null,null,null,null,null,null,null,"*****"]
[null,null,null,null,null,null,null,null,null,null,null,null,null,null,0,null,{"$f":"IF(AC159=\"*****\",\"\",IF(ISERROR(MATCH(AC159,OFFSET(AC159,1,0):$AC$490,0)),INDEX('BV & Plaatsing'!$AC$12:$AD$490,MATCH(AC159,'BV & Plaatsing'!$AC$12:$AC$490,0),2),\"\"))","v":""},"",null,null,null,null,null,null,null,null,null,null,"*****"]
[null,null,null,null,null,null,null,null,null,null,null,null,null,null,0,null,{"$f":"IF(AC160=\"*****\",\"\",IF(ISERROR(MATCH(AC160,OFFSET(AC160,1,0):$AC$490,0)),INDEX('BV & Plaatsing'!$AC$12:$AD$490,MATCH(AC160,'BV & Plaatsing'!$AC$12:$AC$490,0),2),\"\"))","v":""},"",null,null,null,null,null,null,null,null,null,null,"*****"]
[null,null,null,null,null,null,null,null,null,null,null,null,null,null,0,null,{"$f":"IF(AC161=\"*****\",\"\",IF(ISERROR(MATCH(AC161,OFFSET(AC161,1,0):$AC$490,0)),INDEX('BV & Plaatsing'!$AC$12:$AD$490,MATCH(AC161,'BV & Plaatsing'!$AC$12:$AC$490,0),2),\"\"))","v":""},"",null,null,null,null,null,null,null,null,null,null,"*****"]
[null,null,null,null,null,null,null,null,null,null,null,null,null,null,0,null,{"$f":"IF(AC162=\"*****\",\"\",IF(ISERROR(MATCH(AC162,OFFSET(AC162,1,0):$AC$490,0)),INDEX('BV & Plaatsing'!$AC$12:$AD$490,MATCH(AC162,'BV & Plaatsing'!$AC$12:$AC$490,0),2),\"\"))","v":""},"",null,null,null,null,null,null,null,null,null,null,"*****"]
[null,null,null,null,null,null,null,null,null,null,null,null,null,null,0,null,{"$f":"IF(AC163=\"*****\",\"\",IF(ISERROR(MATCH(AC163,OFFSET(AC163,1,0):$AC$490,0)),INDEX('BV & Plaatsing'!$AC$12:$AD$490,MATCH(AC163,'BV & Plaatsing'!$AC$12:$AC$490,0),2),\"\"))","v":""},"",null,null,null,null,null,null,null,null,null,null,"*****"]
[null,null,null,null,null,null,null,null,null,null,null,null,null,null,0,null,{"$f":"IF(AC164=\"*****\",\"\",IF(ISERROR(MATCH(AC164,OFFSET(AC164,1,0):$AC$490,0)),INDEX('BV & Plaatsing'!$AC$12:$AD$490,MATCH(AC164,'BV & Plaatsing'!$AC$12:$AC$490,0),2),\"\"))","v":""},"",null,null,null,null,null,null,null,null,null,null,"*****"]
[null,null,null,null,null,null,null,null,null,null,null,null,null,null,0,null,{"$f":"IF(AC165=\"*****\",\"\",IF(ISERROR(MATCH(AC165,OFFSET(AC165,1,0):$AC$490,0)),INDEX('BV & Plaatsing'!$AC$12:$AD$490,MATCH(AC165,'BV & Plaatsing'!$AC$12:$AC$490,0),2),\"\"))","v":""},"",null,null,null,null,null,null,null,null,null,null,"*****"]
[null,null,null,null,null,null,null,null,null,null,null,null,null,null,0,null,{"$f":"IF(AC166=\"*****\",\"\",IF(ISERROR(MATCH(AC166,OFFSET(AC166,1,0):$AC$490,0)),INDEX('BV & Plaatsing'!$AC$12:$AD$490,MATCH(AC166,'BV & Plaatsing'!$AC$12:$AC$490,0),2),\"\"))","v":""},"",null,null,null,null,null,null,null,null,null,null,"*****"]
[null,null,null,null,null,null,null,null,null,null,null,null,null,null,0,null,{"$f":"IF(AC167=\"*****\",\"\",IF(ISERROR(MATCH(AC167,OFFSET(AC167,1,0):$AC$490,0)),INDEX('BV & Plaatsing'!$AC$12:$AD$490,MATCH(AC167,'BV & Plaatsing'!$AC$12:$AC$490,0),2),\"\"))","v":""},"",null,null,null,null,null,null,null,null,null,null,"*****"]
[null,null,null,null,null,null,null,null,null,null,null,null,null,null,0,null,{"$f":"IF(AC168=\"*****\",\"\",IF(ISERROR(MATCH(AC168,OFFSET(AC168,1,0):$AC$490,0)),INDEX('BV & Plaatsing'!$AC$12:$AD$490,MATCH(AC168,'BV & Plaatsing'!$AC$12:$AC$490,0),2),\"\"))","v":""},"",null,null,null,null,null,null,null,null,null,null,"*****"]
[null,null,null,null,null,null,null,null,null,null,null,null,null,null,0,null,{"$f":"IF(AC169=\"*****\",\"\",IF(ISERROR(MATCH(AC169,OFFSET(AC169,1,0):$AC$490,0)),INDEX('BV & Plaatsing'!$AC$12:$AD$490,MATCH(AC169,'BV & Plaatsing'!$AC$12:$AC$490,0),2),\"\"))","v":""},"",null,null,null,null,null,null,null,null,null,null,"*****"]
[null,null,null,null,null,null,null,null,null,null,null,null,null,null,0,null,{"$f":"IF(AC170=\"*****\",\"\",IF(ISERROR(MATCH(AC170,OFFSET(AC170,1,0):$AC$490,0)),INDEX('BV & Plaatsing'!$AC$12:$AD$490,MATCH(AC170,'BV & Plaatsing'!$AC$12:$AC$490,0),2),\"\"))","v":""},"",null,null,null,null,null,null,null,null,null,null,"*****"]
[null,null,null,null,null,null,null,null,null,null,null,null,null,null,{"$f":"IF(AND(K171>0,L171>0),ROUND(K171/L171*100,2),0)","v":0},null,{"$f":"IF(AC171=\"*****\",\"\",IF(ISERROR(MATCH(AC171,OFFSET(AC171,1,0):$AC$490,0)),INDEX('BV & Plaatsing'!$AC$12:$AD$490,MATCH(AC171,'BV & Plaatsing'!$AC$12:$AC$490,0),2),\"\"))","v":""},"",null,null,null,null,null,null,null,null,null,null,{"$f":"IF(RIGHT(P171,1)=\"]\",LEFT(P171,SEARCH(\"[\",P171)-2),\"*****\")","v":"*****"}]
[null,null,null,null,null,null,null,null,null,null,null,null,null,null,0,null,{"$f":"IF(AC172=\"*****\",\"\",IF(ISERROR(MATCH(AC172,OFFSET(AC172,1,0):$AC$490,0)),INDEX('BV & Plaatsing'!$AC$12:$AD$490,MATCH(AC172,'BV & Plaatsing'!$AC$12:$AC$490,0),2),\"\"))","v":""},"",null,null,null,null,null,null,null,null,null,null,"*****"]
[null,null,null,null,null,null,null,null,null,null,null,null,null,null,0,null,{"$f":"IF(AC173=\"*****\",\"\",IF(ISERROR(MATCH(AC173,OFFSET(AC173,1,0):$AC$490,0)),INDEX('BV & Plaatsing'!$AC$12:$AD$490,MATCH(AC173,'BV & Plaatsing'!$AC$12:$AC$490,0),2),\"\"))","v":""},"",null,null,null,null,null,null,null,null,null,null,"*****"]
[null,null,null,null,null,null,null,null,null,null,null,null,null,null,0,null,{"$f":"IF(AC174=\"*****\",\"\",IF(ISERROR(MATCH(AC174,OFFSET(AC174,1,0):$AC$490,0)),INDEX('BV & Plaatsing'!$AC$12:$AD$490,MATCH(AC174,'BV & Plaatsing'!$AC$12:$AC$490,0),2),\"\"))","v":""},"",null,null,null,null,null,null,null,null,null,null,"*****"]
[null,null,null,null,null,null,null,null,null,null,null,null,null,null,0,null,{"$f":"IF(AC175=\"*****\",\"\",IF(ISERROR(MATCH(AC175,OFFSET(AC175,1,0):$AC$490,0)),INDEX('BV & Plaatsing'!$AC$12:$AD$490,MATCH(AC175,'BV & Plaatsing'!$AC$12:$AC$490,0),2),\"\"))","v":""},"",null,null,null,null,null,null,null,null,null,null,"*****"]
[null,null,null,null,null,null,null,null,null,null,null,null,null,null,0,null,{"$f":"IF(AC176=\"*****\",\"\",IF(ISERROR(MATCH(AC176,OFFSET(AC176,1,0):$AC$490,0)),INDEX('BV & Plaatsing'!$AC$12:$AD$490,MATCH(AC176,'BV & Plaatsing'!$AC$12:$AC$490,0),2),\"\"))","v":""},"",null,null,null,null,null,null,null,null,null,null,"*****"]
[null,null,null,null,null,null,null,null,null,null,null,null,null,null,0,null,{"$f":"IF(AC177=\"*****\",\"\",IF(ISERROR(MATCH(AC177,OFFSET(AC177,1,0):$AC$490,0)),INDEX('BV & Plaatsing'!$AC$12:$AD$490,MATCH(AC177,'BV & Plaatsing'!$AC$12:$AC$490,0),2),\"\"))","v":""},"",null,null,null,null,null,null,null,null,null,null,"*****"]
[null,null,null,null,null,null,null,null,null,null,null,null,null,null,0,null,{"$f":"IF(AC178=\"*****\",\"\",IF(ISERROR(MATCH(AC178,OFFSET(AC178,1,0):$AC$490,0)),INDEX('BV & Plaatsing'!$AC$12:$AD$490,MATCH(AC178,'BV & Plaatsing'!$AC$12:$AC$490,0),2),\"\"))","v":""},"",null,null,null,null,null,null,null,null,null,null,"*****"]
[null,null,null,null,null,null,null,null,null,null,null,null,null,null,0,null,{"$f":"IF(AC179=\"*****\",\"\",IF(ISERROR(MATCH(AC179,OFFSET(AC179,1,0):$AC$490,0)),INDEX('BV & Plaatsing'!$AC$12:$AD$490,MATCH(AC179,'BV & Plaatsing'!$AC$12:$AC$490,0),2),\"\"))","v":""},"",null,null,null,null,null,null,null,null,null,null,"*****"]
[null,null,null,null,null,null,null,null,null,null,null,null,null,null,0,null,{"$f":"IF(AC180=\"*****\",\"\",IF(ISERROR(MATCH(AC180,OFFSET(AC180,1,0):$AC$490,0)),INDEX('BV & Plaatsing'!$AC$12:$AD$490,MATCH(AC180,'BV & Plaatsing'!$AC$12:$AC$490,0),2),\"\"))","v":""},"",null,null,null,null,null,null,null,null,null,null,"*****"]
[null,null,null,null,null,null,null,null,null,null,null,null,null,null,0,null,{"$f":"IF(AC181=\"*****\",\"\",IF(ISERROR(MATCH(AC181,OFFSET(AC181,1,0):$AC$490,0)),INDEX('BV & Plaatsing'!$AC$12:$AD$490,MATCH(AC181,'BV & Plaatsing'!$AC$12:$AC$490,0),2),\"\"))","v":""},"",null,null,null,null,null,null,null,null,null,null,"*****"]
[null,null,null,null,null,null,null,null,null,null,null,null,null,null,0,null,{"$f":"IF(AC182=\"*****\",\"\",IF(ISERROR(MATCH(AC182,OFFSET(AC182,1,0):$AC$490,0)),INDEX('BV & Plaatsing'!$AC$12:$AD$490,MATCH(AC182,'BV & Plaatsing'!$AC$12:$AC$490,0),2),\"\"))","v":""},"",null,null,null,null,null,null,null,null,null,null,"*****"]
[null,null,null,null,null,null,null,null,null,null,null,null,null,null,0,null,{"$f":"IF(AC183=\"*****\",\"\",IF(ISERROR(MATCH(AC183,OFFSET(AC183,1,0):$AC$490,0)),INDEX('BV & Plaatsing'!$AC$12:$AD$490,MATCH(AC183,'BV & Plaatsing'!$AC$12:$AC$490,0),2),\"\"))","v":""},"",null,null,null,null,null,null,null,null,null,null,"*****"]
[null,null,null,null,null,null,null,null,null,null,null,null,null,null,0,null,{"$f":"IF(AC184=\"*****\",\"\",IF(ISERROR(MATCH(AC184,OFFSET(AC184,1,0):$AC$490,0)),INDEX('BV & Plaatsing'!$AC$12:$AD$490,MATCH(AC184,'BV & Plaatsing'!$AC$12:$AC$490,0),2),\"\"))","v":""},"",null,null,null,null,null,null,null,null,null,null,"*****"]
[null,null,null,null,null,null,null,null,null,null,null,null,null,null,0,null,{"$f":"IF(AC185=\"*****\",\"\",IF(ISERROR(MATCH(AC185,OFFSET(AC185,1,0):$AC$490,0)),INDEX('BV & Plaatsing'!$AC$12:$AD$490,MATCH(AC185,'BV & Plaatsing'!$AC$12:$AC$490,0),2),\"\"))","v":""},"",null,null,null,null,null,null,null,null,null,null,"*****"]
[null,null,null,null,null,null,null,null,null,null,null,null,null,null,0,null,{"$f":"IF(AC186=\"*****\",\"\",IF(ISERROR(MATCH(AC186,OFFSET(AC186,1,0):$AC$490,0)),INDEX('BV & Plaatsing'!$AC$12:$AD$490,MATCH(AC186,'BV & Plaatsing'!$AC$12:$AC$490,0),2),\"\"))","v":""},"",null,null,null,null,null,null,null,null,null,null,"*****"]
[null,null,null,null,null,null,null,null,null,null,null,null,null,null,0,null,{"$f":"IF(AC187=\"*****\",\"\",IF(ISERROR(MATCH(AC187,OFFSET(AC187,1,0):$AC$490,0)),INDEX('BV & Plaatsing'!$AC$12:$AD$490,MATCH(AC187,'BV & Plaatsing'!$AC$12:$AC$490,0),2),\"\"))","v":""},"",null,null,null,null,null,null,null,null,null,null,"*****"]
[null,null,null,null,null,null,null,null,null,null,null,null,null,null,0,null,{"$f":"IF(AC188=\"*****\",\"\",IF(ISERROR(MATCH(AC188,OFFSET(AC188,1,0):$AC$490,0)),INDEX('BV & Plaatsing'!$AC$12:$AD$490,MATCH(AC188,'BV & Plaatsing'!$AC$12:$AC$490,0),2),\"\"))","v":""},"",null,null,null,null,null,null,null,null,null,null,"*****"]
[null,null,null,null,null,null,null,null,null,null,null,null,null,null,0,null,{"$f":"IF(AC189=\"*****\",\"\",IF(ISERROR(MATCH(AC189,OFFSET(AC189,1,0):$AC$490,0)),INDEX('BV & Plaatsing'!$AC$12:$AD$490,MATCH(AC189,'BV & Plaatsing'!$AC$12:$AC$490,0),2),\"\"))","v":""},"",null,null,null,null,null,null,null,null,null,null,"*****"]
[null,null,null,null,null,null,null,null,null,null,null,null,null,null,0,null,{"$f":"IF(AC190=\"*****\",\"\",IF(ISERROR(MATCH(AC190,OFFSET(AC190,1,0):$AC$490,0)),INDEX('BV & Plaatsing'!$AC$12:$AD$490,MATCH(AC190,'BV & Plaatsing'!$AC$12:$AC$490,0),2),\"\"))","v":""},"",null,null,null,null,null,null,null,null,null,null,"*****"]
[null,null,null,null,null,null,null,null,null,null,null,null,null,null,0,null,{"$f":"IF(AC191=\"*****\",\"\",IF(ISERROR(MATCH(AC191,OFFSET(AC191,1,0):$AC$490,0)),INDEX('BV & Plaatsing'!$AC$12:$AD$490,MATCH(AC191,'BV & Plaatsing'!$AC$12:$AC$490,0),2),\"\"))","v":""},"",null,null,null,null,null,null,null,null,null,null,"*****"]
[null,null,null,null,null,null,null,null,null,null,null,null,null,null,0,null,{"$f":"IF(AC192=\"*****\",\"\",IF(ISERROR(MATCH(AC192,OFFSET(AC192,1,0):$AC$490,0)),INDEX('BV & Plaatsing'!$AC$12:$AD$490,MATCH(AC192,'BV & Plaatsing'!$AC$12:$AC$490,0),2),\"\"))","v":""},"",null,null,null,null,null,null,null,null,null,null,"*****"]
[null,null,null,null,null,null,null,null,null,null,null,null,null,null,0,null,{"$f":"IF(AC193=\"*****\",\"\",IF(ISERROR(MATCH(AC193,OFFSET(AC193,1,0):$AC$490,0)),INDEX('BV & Plaatsing'!$AC$12:$AD$490,MATCH(AC193,'BV & Plaatsing'!$AC$12:$AC$490,0),2),\"\"))","v":""},"",null,null,null,null,null,null,null,null,null,null,"*****"]
[null,null,null,null,null,null,null,null,null,null,null,null,null,null,0,null,{"$f":"IF(AC194=\"*****\",\"\",IF(ISERROR(MATCH(AC194,OFFSET(AC194,1,0):$AC$490,0)),INDEX('BV & Plaatsing'!$AC$12:$AD$490,MATCH(AC194,'BV & Plaatsing'!$AC$12:$AC$490,0),2),\"\"))","v":""},"",null,null,null,null,null,null,null,null,null,null,"*****"]
[null,null,null,null,null,null,null,null,null,null,null,null,null,null,0,null,{"$f":"IF(AC195=\"*****\",\"\",IF(ISERROR(MATCH(AC195,OFFSET(AC195,1,0):$AC$490,0)),INDEX('BV & Plaatsing'!$AC$12:$AD$490,MATCH(AC195,'BV & Plaatsing'!$AC$12:$AC$490,0),2),\"\"))","v":""},"",null,null,null,null,null,null,null,null,null,null,"*****"]
[null,null,null,null,null,null,null,null,null,null,null,null,null,null,0,null,{"$f":"IF(AC196=\"*****\",\"\",IF(ISERROR(MATCH(AC196,OFFSET(AC196,1,0):$AC$490,0)),INDEX('BV & Plaatsing'!$AC$12:$AD$490,MATCH(AC196,'BV & Plaatsing'!$AC$12:$AC$490,0),2),\"\"))","v":""},"",null,null,null,null,null,null,null,null,null,null,"*****"]
[null,null,null,null,null,null,null,null,null,null,null,null,null,null,0,null,{"$f":"IF(AC197=\"*****\",\"\",IF(ISERROR(MATCH(AC197,OFFSET(AC197,1,0):$AC$490,0)),INDEX('BV & Plaatsing'!$AC$12:$AD$490,MATCH(AC197,'BV & Plaatsing'!$AC$12:$AC$490,0),2),\"\"))","v":""},"",null,null,null,null,null,null,null,null,null,null,"*****"]
[null,null,null,null,null,null,null,null,null,null,null,null,null,null,0,null,{"$f":"IF(AC198=\"*****\",\"\",IF(ISERROR(MATCH(AC198,OFFSET(AC198,1,0):$AC$490,0)),INDEX('BV & Plaatsing'!$AC$12:$AD$490,MATCH(AC198,'BV & Plaatsing'!$AC$12:$AC$490,0),2),\"\"))","v":""},"",null,null,null,null,null,null,null,null,null,null,"*****"]
[null,null,null,null,null,null,null,null,null,null,null,null,null,null,0,null,{"$f":"IF(AC199=\"*****\",\"\",IF(ISERROR(MATCH(AC199,OFFSET(AC199,1,0):$AC$490,0)),INDEX('BV & Plaatsing'!$AC$12:$AD$490,MATCH(AC199,'BV & Plaatsing'!$AC$12:$AC$490,0),2),\"\"))","v":""},"",null,null,null,null,null,null,null,null,null,null,"*****"]
[null,null,null,null,null,null,null,null,null,null,null,null,null,null,0,null,{"$f":"IF(AC200=\"*****\",\"\",IF(ISERROR(MATCH(AC200,OFFSET(AC200,1,0):$AC$490,0)),INDEX('BV & Plaatsing'!$AC$12:$AD$490,MATCH(AC200,'BV & Plaatsing'!$AC$12:$AC$490,0),2),\"\"))","v":""},"",null,null,null,null,null,null,null,null,null,null,"*****"]
[null,null,null,null,null,null,null,null,null,null,null,null,null,null,0,null,{"$f":"IF(AC201=\"*****\",\"\",IF(ISERROR(MATCH(AC201,OFFSET(AC201,1,0):$AC$490,0)),INDEX('BV & Plaatsing'!$AC$12:$AD$490,MATCH(AC201,'BV & Plaatsing'!$AC$12:$AC$490,0),2),\"\"))","v":""},"",null,null,null,null,null,null,null,null,null,null,"*****"]
[null,null,null,null,null,null,null,null,null,null,null,null,null,null,0,null,{"$f":"IF(AC202=\"*****\",\"\",IF(ISERROR(MATCH(AC202,OFFSET(AC202,1,0):$AC$490,0)),INDEX('BV & Plaatsing'!$AC$12:$AD$490,MATCH(AC202,'BV & Plaatsing'!$AC$12:$AC$490,0),2),\"\"))","v":""},"",null,null,null,null,null,null,null,null,null,null,"*****"]
[null,null,null,null,null,null,null,null,null,null,null,null,null,null,0,null,{"$f":"IF(AC203=\"*****\",\"\",IF(ISERROR(MATCH(AC203,OFFSET(AC203,1,0):$AC$490,0)),INDEX('BV & Plaatsing'!$AC$12:$AD$490,MATCH(AC203,'BV & Plaatsing'!$AC$12:$AC$490,0),2),\"\"))","v":""},"",null,null,null,null,null,null,null,null,null,null,"*****"]
[null,null,null,null,null,null,null,null,null,null,null,null,null,null,0,null,{"$f":"IF(AC204=\"*****\",\"\",IF(ISERROR(MATCH(AC204,OFFSET(AC204,1,0):$AC$490,0)),INDEX('BV & Plaatsing'!$AC$12:$AD$490,MATCH(AC204,'BV & Plaatsing'!$AC$12:$AC$490,0),2),\"\"))","v":""},"",null,null,null,null,null,null,null,null,null,null,"*****"]
[null,null,null,null,null,null,null,null,null,null,null,null,null,null,0,null,{"$f":"IF(AC205=\"*****\",\"\",IF(ISERROR(MATCH(AC205,OFFSET(AC205,1,0):$AC$490,0)),INDEX('BV & Plaatsing'!$AC$12:$AD$490,MATCH(AC205,'BV & Plaatsing'!$AC$12:$AC$490,0),2),\"\"))","v":""},{"$f":"IF(AC205=\"*****\",\"\",IF(J205<>MID(P205,SEARCH(\"[\",P205,1)+1,SEARCH(\"]\",P205,1)-SEARCH(\"[\",P205,1)-1),\">> Omschrijving goederen plaatsingsaangifte <> omschrijving geplaatste goederen in product\",\"\"))","v":""},null,null,null,null,null,null,null,null,null,null,"*****"]
[null,null,null,null,null,null,null,null,null,null,null,null,null,null,0,null,{"$f":"IF(AC206=\"*****\",\"\",IF(ISERROR(MATCH(AC206,OFFSET(AC206,1,0):$AC$490,0)),INDEX('BV & Plaatsing'!$AC$12:$AD$490,MATCH(AC206,'BV & Plaatsing'!$AC$12:$AC$490,0),2),\"\"))","v":""},"",null,null,null,null,null,null,null,null,null,null,"*****"]
[null,null,null,null,null,null,null,null,null,null,null,null,null,null,0,null,{"$f":"IF(AC207=\"*****\",\"\",IF(ISERROR(MATCH(AC207,OFFSET(AC207,1,0):$AC$490,0)),INDEX('BV & Plaatsing'!$AC$12:$AD$490,MATCH(AC207,'BV & Plaatsing'!$AC$12:$AC$490,0),2),\"\"))","v":""},"",null,null,null,null,null,null,null,null,null,null,"*****"]
[null,null,null,null,null,null,null,null,null,null,null,null,null,null,0,null,{"$f":"IF(AC208=\"*****\",\"\",IF(ISERROR(MATCH(AC208,OFFSET(AC208,1,0):$AC$490,0)),INDEX('BV & Plaatsing'!$AC$12:$AD$490,MATCH(AC208,'BV & Plaatsing'!$AC$12:$AC$490,0),2),\"\"))","v":""},"",null,null,null,null,null,null,null,null,null,null,"*****"]
[null,null,null,null,null,null,null,null,null,null,null,null,null,null,0,null,{"$f":"IF(AC209=\"*****\",\"\",IF(ISERROR(MATCH(AC209,OFFSET(AC209,1,0):$AC$490,0)),INDEX('BV & Plaatsing'!$AC$12:$AD$490,MATCH(AC209,'BV & Plaatsing'!$AC$12:$AC$490,0),2),\"\"))","v":""},"",null,null,null,null,null,null,null,null,null,null,"*****"]
[null,null,null,null,null,null,null,null,null,null,null,null,null,null,0,null,{"$f":"IF(AC210=\"*****\",\"\",IF(ISERROR(MATCH(AC210,OFFSET(AC210,1,0):$AC$490,0)),INDEX('BV & Plaatsing'!$AC$12:$AD$490,MATCH(AC210,'BV & Plaatsing'!$AC$12:$AC$490,0),2),\"\"))","v":""},"",null,null,null,null,null,null,null,null,null,null,"*****"]
[null,null,null,null,null,null,null,null,null,null,null,null,null,null,0,null,{"$f":"IF(AC211=\"*****\",\"\",IF(ISERROR(MATCH(AC211,OFFSET(AC211,1,0):$AC$490,0)),INDEX('BV & Plaatsing'!$AC$12:$AD$490,MATCH(AC211,'BV & Plaatsing'!$AC$12:$AC$490,0),2),\"\"))","v":""},"",null,null,null,null,null,null,null,null,null,null,"*****"]
[null,null,null,null,null,null,null,null,null,null,null,null,null,null,0,null,{"$f":"IF(AC212=\"*****\",\"\",IF(ISERROR(MATCH(AC212,OFFSET(AC212,1,0):$AC$490,0)),INDEX('BV & Plaatsing'!$AC$12:$AD$490,MATCH(AC212,'BV & Plaatsing'!$AC$12:$AC$490,0),2),\"\"))","v":""},"",null,null,null,null,null,null,null,null,null,null,"*****"]
[null,null,null,null,null,null,null,null,null,null,null,null,null,null,0,null,{"$f":"IF(AC213=\"*****\",\"\",IF(ISERROR(MATCH(AC213,OFFSET(AC213,1,0):$AC$490,0)),INDEX('BV & Plaatsing'!$AC$12:$AD$490,MATCH(AC213,'BV & Plaatsing'!$AC$12:$AC$490,0),2),\"\"))","v":""},"",null,null,null,null,null,null,null,null,null,null,"*****"]
[null,null,null,null,null,null,null,null,null,null,null,null,null,null,0,null,{"$f":"IF(AC214=\"*****\",\"\",IF(ISERROR(MATCH(AC214,OFFSET(AC214,1,0):$AC$490,0)),INDEX('BV & Plaatsing'!$AC$12:$AD$490,MATCH(AC214,'BV & Plaatsing'!$AC$12:$AC$490,0),2),\"\"))","v":""},"",null,null,null,null,null,null,null,null,null,null,"*****"]
[null,null,null,null,null,null,null,null,null,null,null,null,null,null,0,null,{"$f":"IF(AC215=\"*****\",\"\",IF(ISERROR(MATCH(AC215,OFFSET(AC215,1,0):$AC$490,0)),INDEX('BV & Plaatsing'!$AC$12:$AD$490,MATCH(AC215,'BV & Plaatsing'!$AC$12:$AC$490,0),2),\"\"))","v":""},"",null,null,null,null,null,null,null,null,null,null,"*****"]
[null,null,null,null,null,null,null,null,null,null,null,null,null,null,0,null,{"$f":"IF(AC216=\"*****\",\"\",IF(ISERROR(MATCH(AC216,OFFSET(AC216,1,0):$AC$490,0)),INDEX('BV & Plaatsing'!$AC$12:$AD$490,MATCH(AC216,'BV & Plaatsing'!$AC$12:$AC$490,0),2),\"\"))","v":""},"",null,null,null,null,null,null,null,null,null,null,"*****"]
[null,null,null,null,null,null,null,null,null,null,null,null,null,null,0,null,{"$f":"IF(AC217=\"*****\",\"\",IF(ISERROR(MATCH(AC217,OFFSET(AC217,1,0):$AC$490,0)),INDEX('BV & Plaatsing'!$AC$12:$AD$490,MATCH(AC217,'BV & Plaatsing'!$AC$12:$AC$490,0),2),\"\"))","v":""},"",null,null,null,null,null,null,null,null,null,null,"*****"]
[null,null,null,null,null,null,null,null,null,null,null,null,null,null,0,null,{"$f":"IF(AC218=\"*****\",\"\",IF(ISERROR(MATCH(AC218,OFFSET(AC218,1,0):$AC$490,0)),INDEX('BV & Plaatsing'!$AC$12:$AD$490,MATCH(AC218,'BV & Plaatsing'!$AC$12:$AC$490,0),2),\"\"))","v":""},"",null,null,null,null,null,null,null,null,null,null,"*****"]
[null,null,null,null,null,null,null,null,null,null,null,null,null,null,0,null,{"$f":"IF(AC219=\"*****\",\"\",IF(ISERROR(MATCH(AC219,OFFSET(AC219,1,0):$AC$490,0)),INDEX('BV & Plaatsing'!$AC$12:$AD$490,MATCH(AC219,'BV & Plaatsing'!$AC$12:$AC$490,0),2),\"\"))","v":""},"",null,null,null,null,null,null,null,null,null,null,"*****"]
[null,null,null,null,null,null,null,null,null,null,null,null,null,null,0,null,{"$f":"IF(AC220=\"*****\",\"\",IF(ISERROR(MATCH(AC220,OFFSET(AC220,1,0):$AC$490,0)),INDEX('BV & Plaatsing'!$AC$12:$AD$490,MATCH(AC220,'BV & Plaatsing'!$AC$12:$AC$490,0),2),\"\"))","v":""},"",null,null,null,null,null,null,null,null,null,null,"*****"]
[null,null,null,null,null,null,null,null,null,null,null,null,null,null,0,null,{"$f":"IF(AC221=\"*****\",\"\",IF(ISERROR(MATCH(AC221,OFFSET(AC221,1,0):$AC$490,0)),INDEX('BV & Plaatsing'!$AC$12:$AD$490,MATCH(AC221,'BV & Plaatsing'!$AC$12:$AC$490,0),2),\"\"))","v":""},"",null,null,null,null,null,null,null,null,null,null,"*****"]
[null,null,null,null,null,null,null,null,null,null,null,null,null,null,0,null,{"$f":"IF(AC222=\"*****\",\"\",IF(ISERROR(MATCH(AC222,OFFSET(AC222,1,0):$AC$490,0)),INDEX('BV & Plaatsing'!$AC$12:$AD$490,MATCH(AC222,'BV & Plaatsing'!$AC$12:$AC$490,0),2),\"\"))","v":""},"",null,null,null,null,null,null,null,null,null,null,"*****"]
[null,null,null,null,null,null,null,null,null,null,null,null,null,null,0,null,{"$f":"IF(AC223=\"*****\",\"\",IF(ISERROR(MATCH(AC223,OFFSET(AC223,1,0):$AC$490,0)),INDEX('BV & Plaatsing'!$AC$12:$AD$490,MATCH(AC223,'BV & Plaatsing'!$AC$12:$AC$490,0),2),\"\"))","v":""},"",null,null,null,null,null,null,null,null,null,null,"*****"]
[null,null,null,null,null,null,null,null,null,null,null,null,null,null,0,null,{"$f":"IF(AC224=\"*****\",\"\",IF(ISERROR(MATCH(AC224,OFFSET(AC224,1,0):$AC$490,0)),INDEX('BV & Plaatsing'!$AC$12:$AD$490,MATCH(AC224,'BV & Plaatsing'!$AC$12:$AC$490,0),2),\"\"))","v":""},"",null,null,null,null,null,null,null,null,null,null,"*****"]
[null,null,null,null,null,null,null,null,null,null,null,null,null,null,0,null,{"$f":"IF(AC225=\"*****\",\"\",IF(ISERROR(MATCH(AC225,OFFSET(AC225,1,0):$AC$490,0)),INDEX('BV & Plaatsing'!$AC$12:$AD$490,MATCH(AC225,'BV & Plaatsing'!$AC$12:$AC$490,0),2),\"\"))","v":""},"",null,null,null,null,null,null,null,null,null,null,"*****"]
[null,null,null,null,null,null,null,null,null,null,null,null,null,null,0,null,{"$f":"IF(AC226=\"*****\",\"\",IF(ISERROR(MATCH(AC226,OFFSET(AC226,1,0):$AC$490,0)),INDEX('BV & Plaatsing'!$AC$12:$AD$490,MATCH(AC226,'BV & Plaatsing'!$AC$12:$AC$490,0),2),\"\"))","v":""},"",null,null,null,null,null,null,null,null,null,null,"*****"]
[null,null,null,null,null,null,null,null,null,null,null,null,null,null,0,null,{"$f":"IF(AC227=\"*****\",\"\",IF(ISERROR(MATCH(AC227,OFFSET(AC227,1,0):$AC$490,0)),INDEX('BV & Plaatsing'!$AC$12:$AD$490,MATCH(AC227,'BV & Plaatsing'!$AC$12:$AC$490,0),2),\"\"))","v":""},"",null,null,null,null,null,null,null,null,null,null,"*****"]
[null,null,null,null,null,null,null,null,null,null,null,null,null,null,0,null,{"$f":"IF(AC228=\"*****\",\"\",IF(ISERROR(MATCH(AC228,OFFSET(AC228,1,0):$AC$490,0)),INDEX('BV & Plaatsing'!$AC$12:$AD$490,MATCH(AC228,'BV & Plaatsing'!$AC$12:$AC$490,0),2),\"\"))","v":""},"",null,null,null,null,null,null,null,null,null,null,"*****"]
[null,null,null,null,null,null,null,null,null,null,null,null,null,null,0,null,{"$f":"IF(AC229=\"*****\",\"\",IF(ISERROR(MATCH(AC229,OFFSET(AC229,1,0):$AC$490,0)),INDEX('BV & Plaatsing'!$AC$12:$AD$490,MATCH(AC229,'BV & Plaatsing'!$AC$12:$AC$490,0),2),\"\"))","v":""},"",null,null,null,null,null,null,null,null,null,null,"*****"]
[null,null,null,null,null,null,null,null,null,null,null,null,null,null,0,null,{"$f":"IF(AC230=\"*****\",\"\",IF(ISERROR(MATCH(AC230,OFFSET(AC230,1,0):$AC$490,0)),INDEX('BV & Plaatsing'!$AC$12:$AD$490,MATCH(AC230,'BV & Plaatsing'!$AC$12:$AC$490,0),2),\"\"))","v":""},"",null,null,null,null,null,null,null,null,null,null,"*****"]
[null,null,null,null,null,null,null,null,null,null,null,null,null,null,0,null,{"$f":"IF(AC231=\"*****\",\"\",IF(ISERROR(MATCH(AC231,OFFSET(AC231,1,0):$AC$490,0)),INDEX('BV & Plaatsing'!$AC$12:$AD$490,MATCH(AC231,'BV & Plaatsing'!$AC$12:$AC$490,0),2),\"\"))","v":""},"",null,null,null,null,null,null,null,null,null,null,"*****"]
[null,null,null,null,null,null,null,null,null,null,null,null,null,null,0,null,{"$f":"IF(AC232=\"*****\",\"\",IF(ISERROR(MATCH(AC232,OFFSET(AC232,1,0):$AC$490,0)),INDEX('BV & Plaatsing'!$AC$12:$AD$490,MATCH(AC232,'BV & Plaatsing'!$AC$12:$AC$490,0),2),\"\"))","v":""},"",null,null,null,null,null,null,null,null,null,null,"*****"]
[null,null,null,null,null,null,null,null,null,null,null,null,null,null,0,null,{"$f":"IF(AC233=\"*****\",\"\",IF(ISERROR(MATCH(AC233,OFFSET(AC233,1,0):$AC$490,0)),INDEX('BV & Plaatsing'!$AC$12:$AD$490,MATCH(AC233,'BV & Plaatsing'!$AC$12:$AC$490,0),2),\"\"))","v":""},"",null,null,null,null,null,null,null,null,null,null,"*****"]
[null,null,null,null,null,null,null,null,null,null,null,null,null,null,0,null,{"$f":"IF(AC234=\"*****\",\"\",IF(ISERROR(MATCH(AC234,OFFSET(AC234,1,0):$AC$490,0)),INDEX('BV & Plaatsing'!$AC$12:$AD$490,MATCH(AC234,'BV & Plaatsing'!$AC$12:$AC$490,0),2),\"\"))","v":""},"",null,null,null,null,null,null,null,null,null,null,"*****"]
[null,null,null,null,null,null,null,null,null,null,null,null,null,null,{"$f":"IF(AND(K235>0,L235>0),ROUND(K235/L235*100,2),0)","v":0},null,{"$f":"IF(AC235=\"*****\",\"\",IF(ISERROR(MATCH(AC235,OFFSET(AC235,1,0):$AC$490,0)),INDEX('BV & Plaatsing'!$AC$12:$AD$490,MATCH(AC235,'BV & Plaatsing'!$AC$12:$AC$490,0),2),\"\"))","v":""},"",null,null,null,null,null,null,null,null,null,null,{"$f":"IF(RIGHT(P235,1)=\"]\",LEFT(P235,SEARCH(\"[\",P235)-2),\"*****\")","v":"*****"}]
[null,null,null,null,null,null,null,null,null,null,null,null,null,null,0,null,{"$f":"IF(AC236=\"*****\",\"\",IF(ISERROR(MATCH(AC236,OFFSET(AC236,1,0):$AC$490,0)),INDEX('BV & Plaatsing'!$AC$12:$AD$490,MATCH(AC236,'BV & Plaatsing'!$AC$12:$AC$490,0),2),\"\"))","v":""},"",null,null,null,null,null,null,null,null,null,null,"*****"]
[null,null,null,null,null,null,null,null,null,null,null,null,null,null,0,null,{"$f":"IF(AC237=\"*****\",\"\",IF(ISERROR(MATCH(AC237,OFFSET(AC237,1,0):$AC$490,0)),INDEX('BV & Plaatsing'!$AC$12:$AD$490,MATCH(AC237,'BV & Plaatsing'!$AC$12:$AC$490,0),2),\"\"))","v":""},"",null,null,null,null,null,null,null,null,null,null,"*****"]
[null,null,null,null,null,null,null,null,null,null,null,null,null,null,0,null,{"$f":"IF(AC238=\"*****\",\"\",IF(ISERROR(MATCH(AC238,OFFSET(AC238,1,0):$AC$490,0)),INDEX('BV & Plaatsing'!$AC$12:$AD$490,MATCH(AC238,'BV & Plaatsing'!$AC$12:$AC$490,0),2),\"\"))","v":""},"",null,null,null,null,null,null,null,null,null,null,"*****"]
[null,null,null,null,null,null,null,null,null,null,null,null,null,null,0,null,{"$f":"IF(AC239=\"*****\",\"\",IF(ISERROR(MATCH(AC239,OFFSET(AC239,1,0):$AC$490,0)),INDEX('BV & Plaatsing'!$AC$12:$AD$490,MATCH(AC239,'BV & Plaatsing'!$AC$12:$AC$490,0),2),\"\"))","v":""},"",null,null,null,null,null,null,null,null,null,null,"*****"]
[null,null,null,null,null,null,null,null,null,null,null,null,null,null,0,null,{"$f":"IF(AC240=\"*****\",\"\",IF(ISERROR(MATCH(AC240,OFFSET(AC240,1,0):$AC$490,0)),INDEX('BV & Plaatsing'!$AC$12:$AD$490,MATCH(AC240,'BV & Plaatsing'!$AC$12:$AC$490,0),2),\"\"))","v":""},"",null,null,null,null,null,null,null,null,null,null,"*****"]
[null,null,null,null,null,null,null,null,null,null,null,null,null,null,0,null,{"$f":"IF(AC241=\"*****\",\"\",IF(ISERROR(MATCH(AC241,OFFSET(AC241,1,0):$AC$490,0)),INDEX('BV & Plaatsing'!$AC$12:$AD$490,MATCH(AC241,'BV & Plaatsing'!$AC$12:$AC$490,0),2),\"\"))","v":""},"",null,null,null,null,null,null,null,null,null,null,"*****"]
[null,null,null,null,null,null,null,null,null,null,null,null,null,null,0,null,{"$f":"IF(AC242=\"*****\",\"\",IF(ISERROR(MATCH(AC242,OFFSET(AC242,1,0):$AC$490,0)),INDEX('BV & Plaatsing'!$AC$12:$AD$490,MATCH(AC242,'BV & Plaatsing'!$AC$12:$AC$490,0),2),\"\"))","v":""},"",null,null,null,null,null,null,null,null,null,null,"*****"]
[null,null,null,null,null,null,null,null,null,null,null,null,null,null,0,null,{"$f":"IF(AC243=\"*****\",\"\",IF(ISERROR(MATCH(AC243,OFFSET(AC243,1,0):$AC$490,0)),INDEX('BV & Plaatsing'!$AC$12:$AD$490,MATCH(AC243,'BV & Plaatsing'!$AC$12:$AC$490,0),2),\"\"))","v":""},"",null,null,null,null,null,null,null,null,null,null,"*****"]
[null,null,null,null,null,null,null,null,null,null,null,null,null,null,0,null,{"$f":"IF(AC244=\"*****\",\"\",IF(ISERROR(MATCH(AC244,OFFSET(AC244,1,0):$AC$490,0)),INDEX('BV & Plaatsing'!$AC$12:$AD$490,MATCH(AC244,'BV & Plaatsing'!$AC$12:$AC$490,0),2),\"\"))","v":""},"",null,null,null,null,null,null,null,null,null,null,"*****"]
[null,null,null,null,null,null,null,null,null,null,null,null,null,null,0,null,{"$f":"IF(AC245=\"*****\",\"\",IF(ISERROR(MATCH(AC245,OFFSET(AC245,1,0):$AC$490,0)),INDEX('BV & Plaatsing'!$AC$12:$AD$490,MATCH(AC245,'BV & Plaatsing'!$AC$12:$AC$490,0),2),\"\"))","v":""},"",null,null,null,null,null,null,null,null,null,null,"*****"]
[null,null,null,null,null,null,null,null,null,null,null,null,null,null,0,null,{"$f":"IF(AC246=\"*****\",\"\",IF(ISERROR(MATCH(AC246,OFFSET(AC246,1,0):$AC$490,0)),INDEX('BV & Plaatsing'!$AC$12:$AD$490,MATCH(AC246,'BV & Plaatsing'!$AC$12:$AC$490,0),2),\"\"))","v":""},"",null,null,null,null,null,null,null,null,null,null,"*****"]
[null,null,null,null,null,null,null,null,null,null,null,null,null,null,0,null,{"$f":"IF(AC247=\"*****\",\"\",IF(ISERROR(MATCH(AC247,OFFSET(AC247,1,0):$AC$490,0)),INDEX('BV & Plaatsing'!$AC$12:$AD$490,MATCH(AC247,'BV & Plaatsing'!$AC$12:$AC$490,0),2),\"\"))","v":""},"",null,null,null,null,null,null,null,null,null,null,"*****"]
[null,null,null,null,null,null,null,null,null,null,null,null,null,null,0,null,{"$f":"IF(AC248=\"*****\",\"\",IF(ISERROR(MATCH(AC248,OFFSET(AC248,1,0):$AC$490,0)),INDEX('BV & Plaatsing'!$AC$12:$AD$490,MATCH(AC248,'BV & Plaatsing'!$AC$12:$AC$490,0),2),\"\"))","v":""},"",null,null,null,null,null,null,null,null,null,null,"*****"]
[null,null,null,null,null,null,null,null,null,null,null,null,null,null,0,null,{"$f":"IF(AC249=\"*****\",\"\",IF(ISERROR(MATCH(AC249,OFFSET(AC249,1,0):$AC$490,0)),INDEX('BV & Plaatsing'!$AC$12:$AD$490,MATCH(AC249,'BV & Plaatsing'!$AC$12:$AC$490,0),2),\"\"))","v":""},"",null,null,null,null,null,null,null,null,null,null,"*****"]
[null,null,null,null,null,null,null,null,null,null,null,null,null,null,0,null,{"$f":"IF(AC250=\"*****\",\"\",IF(ISERROR(MATCH(AC250,OFFSET(AC250,1,0):$AC$490,0)),INDEX('BV & Plaatsing'!$AC$12:$AD$490,MATCH(AC250,'BV & Plaatsing'!$AC$12:$AC$490,0),2),\"\"))","v":""},"",null,null,null,null,null,null,null,null,null,null,"*****"]
[null,null,null,null,null,null,null,null,null,null,null,null,null,null,0,null,{"$f":"IF(AC251=\"*****\",\"\",IF(ISERROR(MATCH(AC251,OFFSET(AC251,1,0):$AC$490,0)),INDEX('BV & Plaatsing'!$AC$12:$AD$490,MATCH(AC251,'BV & Plaatsing'!$AC$12:$AC$490,0),2),\"\"))","v":""},"",null,null,null,null,null,null,null,null,null,null,"*****"]
[null,null,null,null,null,null,null,null,null,null,null,null,null,null,0,null,{"$f":"IF(AC252=\"*****\",\"\",IF(ISERROR(MATCH(AC252,OFFSET(AC252,1,0):$AC$490,0)),INDEX('BV & Plaatsing'!$AC$12:$AD$490,MATCH(AC252,'BV & Plaatsing'!$AC$12:$AC$490,0),2),\"\"))","v":""},"",null,null,null,null,null,null,null,null,null,null,"*****"]
[null,null,null,null,null,null,null,null,null,null,null,null,null,null,0,null,{"$f":"IF(AC253=\"*****\",\"\",IF(ISERROR(MATCH(AC253,OFFSET(AC253,1,0):$AC$490,0)),INDEX('BV & Plaatsing'!$AC$12:$AD$490,MATCH(AC253,'BV & Plaatsing'!$AC$12:$AC$490,0),2),\"\"))","v":""},"",null,null,null,null,null,null,null,null,null,null,"*****"]
[null,null,null,null,null,null,null,null,null,null,null,null,null,null,0,null,{"$f":"IF(AC254=\"*****\",\"\",IF(ISERROR(MATCH(AC254,OFFSET(AC254,1,0):$AC$490,0)),INDEX('BV & Plaatsing'!$AC$12:$AD$490,MATCH(AC254,'BV & Plaatsing'!$AC$12:$AC$490,0),2),\"\"))","v":""},"",null,null,null,null,null,null,null,null,null,null,"*****"]
[null,null,null,null,null,null,null,null,null,null,null,null,null,null,0,null,{"$f":"IF(AC255=\"*****\",\"\",IF(ISERROR(MATCH(AC255,OFFSET(AC255,1,0):$AC$490,0)),INDEX('BV & Plaatsing'!$AC$12:$AD$490,MATCH(AC255,'BV & Plaatsing'!$AC$12:$AC$490,0),2),\"\"))","v":""},"",null,null,null,null,null,null,null,null,null,null,"*****"]
[null,null,null,null,null,null,null,null,null,null,null,null,null,null,0,null,{"$f":"IF(AC256=\"*****\",\"\",IF(ISERROR(MATCH(AC256,OFFSET(AC256,1,0):$AC$490,0)),INDEX('BV & Plaatsing'!$AC$12:$AD$490,MATCH(AC256,'BV & Plaatsing'!$AC$12:$AC$490,0),2),\"\"))","v":""},"",null,null,null,null,null,null,null,null,null,null,"*****"]
[null,null,null,null,null,null,null,null,null,null,null,null,null,null,0,null,{"$f":"IF(AC257=\"*****\",\"\",IF(ISERROR(MATCH(AC257,OFFSET(AC257,1,0):$AC$490,0)),INDEX('BV & Plaatsing'!$AC$12:$AD$490,MATCH(AC257,'BV & Plaatsing'!$AC$12:$AC$490,0),2),\"\"))","v":""},"",null,null,null,null,null,null,null,null,null,null,"*****"]
[null,null,null,null,null,null,null,null,null,null,null,null,null,null,0,null,{"$f":"IF(AC258=\"*****\",\"\",IF(ISERROR(MATCH(AC258,OFFSET(AC258,1,0):$AC$490,0)),INDEX('BV & Plaatsing'!$AC$12:$AD$490,MATCH(AC258,'BV & Plaatsing'!$AC$12:$AC$490,0),2),\"\"))","v":""},"",null,null,null,null,null,null,null,null,null,null,"*****"]
[null,null,null,null,null,null,null,null,null,null,null,null,null,null,0,null,{"$f":"IF(AC259=\"*****\",\"\",IF(ISERROR(MATCH(AC259,OFFSET(AC259,1,0):$AC$490,0)),INDEX('BV & Plaatsing'!$AC$12:$AD$490,MATCH(AC259,'BV & Plaatsing'!$AC$12:$AC$490,0),2),\"\"))","v":""},"",null,null,null,null,null,null,null,null,null,null,"*****"]
[null,null,null,null,null,null,null,null,null,null,null,null,null,null,0,null,{"$f":"IF(AC260=\"*****\",\"\",IF(ISERROR(MATCH(AC260,OFFSET(AC260,1,0):$AC$490,0)),INDEX('BV & Plaatsing'!$AC$12:$AD$490,MATCH(AC260,'BV & Plaatsing'!$AC$12:$AC$490,0),2),\"\"))","v":""},"",null,null,null,null,null,null,null,null,null,null,"*****"]
[null,null,null,null,null,null,null,null,null,null,null,null,null,null,0,null,{"$f":"IF(AC261=\"*****\",\"\",IF(ISERROR(MATCH(AC261,OFFSET(AC261,1,0):$AC$490,0)),INDEX('BV & Plaatsing'!$AC$12:$AD$490,MATCH(AC261,'BV & Plaatsing'!$AC$12:$AC$490,0),2),\"\"))","v":""},"",null,null,null,null,null,null,null,null,null,null,"*****"]
[null,null,null,null,null,null,null,null,null,null,null,null,null,null,0,null,{"$f":"IF(AC262=\"*****\",\"\",IF(ISERROR(MATCH(AC262,OFFSET(AC262,1,0):$AC$490,0)),INDEX('BV & Plaatsing'!$AC$12:$AD$490,MATCH(AC262,'BV & Plaatsing'!$AC$12:$AC$490,0),2),\"\"))","v":""},"",null,null,null,null,null,null,null,null,null,null,"*****"]
[null,null,null,null,null,null,null,null,null,null,null,null,null,null,0,null,{"$f":"IF(AC263=\"*****\",\"\",IF(ISERROR(MATCH(AC263,OFFSET(AC263,1,0):$AC$490,0)),INDEX('BV & Plaatsing'!$AC$12:$AD$490,MATCH(AC263,'BV & Plaatsing'!$AC$12:$AC$490,0),2),\"\"))","v":""},"",null,null,null,null,null,null,null,null,null,null,"*****"]
[null,null,null,null,null,null,null,null,null,null,null,null,null,null,0,null,{"$f":"IF(AC264=\"*****\",\"\",IF(ISERROR(MATCH(AC264,OFFSET(AC264,1,0):$AC$490,0)),INDEX('BV & Plaatsing'!$AC$12:$AD$490,MATCH(AC264,'BV & Plaatsing'!$AC$12:$AC$490,0),2),\"\"))","v":""},"",null,null,null,null,null,null,null,null,null,null,"*****"]
[null,null,null,null,null,null,null,null,null,null,null,null,null,null,0,null,{"$f":"IF(AC265=\"*****\",\"\",IF(ISERROR(MATCH(AC265,OFFSET(AC265,1,0):$AC$490,0)),INDEX('BV & Plaatsing'!$AC$12:$AD$490,MATCH(AC265,'BV & Plaatsing'!$AC$12:$AC$490,0),2),\"\"))","v":""},"",null,null,null,null,null,null,null,null,null,null,"*****"]
[null,null,null,null,null,null,null,null,null,null,null,null,null,null,0,null,{"$f":"IF(AC266=\"*****\",\"\",IF(ISERROR(MATCH(AC266,OFFSET(AC266,1,0):$AC$490,0)),INDEX('BV & Plaatsing'!$AC$12:$AD$490,MATCH(AC266,'BV & Plaatsing'!$AC$12:$AC$490,0),2),\"\"))","v":""},"",null,null,null,null,null,null,null,null,null,null,"*****"]
[null,null,null,null,null,null,null,null,null,null,null,null,null,null,0,null,{"$f":"IF(AC267=\"*****\",\"\",IF(ISERROR(MATCH(AC267,OFFSET(AC267,1,0):$AC$490,0)),INDEX('BV & Plaatsing'!$AC$12:$AD$490,MATCH(AC267,'BV & Plaatsing'!$AC$12:$AC$490,0),2),\"\"))","v":""},"",null,null,null,null,null,null,null,null,null,null,"*****"]
[null,null,null,null,null,null,null,null,null,null,null,null,null,null,0,null,{"$f":"IF(AC268=\"*****\",\"\",IF(ISERROR(MATCH(AC268,OFFSET(AC268,1,0):$AC$490,0)),INDEX('BV & Plaatsing'!$AC$12:$AD$490,MATCH(AC268,'BV & Plaatsing'!$AC$12:$AC$490,0),2),\"\"))","v":""},"",null,null,null,null,null,null,null,null,null,null,"*****"]
[null,null,null,null,null,null,null,null,null,null,null,null,null,null,0,null,{"$f":"IF(AC269=\"*****\",\"\",IF(ISERROR(MATCH(AC269,OFFSET(AC269,1,0):$AC$490,0)),INDEX('BV & Plaatsing'!$AC$12:$AD$490,MATCH(AC269,'BV & Plaatsing'!$AC$12:$AC$490,0),2),\"\"))","v":""},{"$f":"IF(AC269=\"*****\",\"\",IF(J269<>MID(P269,SEARCH(\"[\",P269,1)+1,SEARCH(\"]\",P269,1)-SEARCH(\"[\",P269,1)-1),\">> Omschrijving goederen plaatsingsaangifte <> omschrijving geplaatste goederen in product\",\"\"))","v":""},null,null,null,null,null,null,null,null,null,null,"*****"]
[null,null,null,null,null,null,null,null,null,null,null,null,null,null,0,null,{"$f":"IF(AC270=\"*****\",\"\",IF(ISERROR(MATCH(AC270,OFFSET(AC270,1,0):$AC$490,0)),INDEX('BV & Plaatsing'!$AC$12:$AD$490,MATCH(AC270,'BV & Plaatsing'!$AC$12:$AC$490,0),2),\"\"))","v":""},"",null,null,null,null,null,null,null,null,null,null,"*****"]
[null,null,null,null,null,null,null,null,null,null,null,null,null,null,0,null,{"$f":"IF(AC271=\"*****\",\"\",IF(ISERROR(MATCH(AC271,OFFSET(AC271,1,0):$AC$490,0)),INDEX('BV & Plaatsing'!$AC$12:$AD$490,MATCH(AC271,'BV & Plaatsing'!$AC$12:$AC$490,0),2),\"\"))","v":""},"",null,null,null,null,null,null,null,null,null,null,"*****"]
[null,null,null,null,null,null,null,null,null,null,null,null,null,null,0,null,{"$f":"IF(AC272=\"*****\",\"\",IF(ISERROR(MATCH(AC272,OFFSET(AC272,1,0):$AC$490,0)),INDEX('BV & Plaatsing'!$AC$12:$AD$490,MATCH(AC272,'BV & Plaatsing'!$AC$12:$AC$490,0),2),\"\"))","v":""},"",null,null,null,null,null,null,null,null,null,null,"*****"]
[null,null,null,null,null,null,null,null,null,null,null,null,null,null,0,null,{"$f":"IF(AC273=\"*****\",\"\",IF(ISERROR(MATCH(AC273,OFFSET(AC273,1,0):$AC$490,0)),INDEX('BV & Plaatsing'!$AC$12:$AD$490,MATCH(AC273,'BV & Plaatsing'!$AC$12:$AC$490,0),2),\"\"))","v":""},"",null,null,null,null,null,null,null,null,null,null,"*****"]
[null,null,null,null,null,null,null,null,null,null,null,null,null,null,0,null,{"$f":"IF(AC274=\"*****\",\"\",IF(ISERROR(MATCH(AC274,OFFSET(AC274,1,0):$AC$490,0)),INDEX('BV & Plaatsing'!$AC$12:$AD$490,MATCH(AC274,'BV & Plaatsing'!$AC$12:$AC$490,0),2),\"\"))","v":""},"",null,null,null,null,null,null,null,null,null,null,"*****"]
[null,null,null,null,null,null,null,null,null,null,null,null,null,null,0,null,{"$f":"IF(AC275=\"*****\",\"\",IF(ISERROR(MATCH(AC275,OFFSET(AC275,1,0):$AC$490,0)),INDEX('BV & Plaatsing'!$AC$12:$AD$490,MATCH(AC275,'BV & Plaatsing'!$AC$12:$AC$490,0),2),\"\"))","v":""},"",null,null,null,null,null,null,null,null,null,null,"*****"]
[null,null,null,null,null,null,null,null,null,null,null,null,null,null,0,null,{"$f":"IF(AC276=\"*****\",\"\",IF(ISERROR(MATCH(AC276,OFFSET(AC276,1,0):$AC$490,0)),INDEX('BV & Plaatsing'!$AC$12:$AD$490,MATCH(AC276,'BV & Plaatsing'!$AC$12:$AC$490,0),2),\"\"))","v":""},"",null,null,null,null,null,null,null,null,null,null,"*****"]
[null,null,null,null,null,null,null,null,null,null,null,null,null,null,0,null,{"$f":"IF(AC277=\"*****\",\"\",IF(ISERROR(MATCH(AC277,OFFSET(AC277,1,0):$AC$490,0)),INDEX('BV & Plaatsing'!$AC$12:$AD$490,MATCH(AC277,'BV & Plaatsing'!$AC$12:$AC$490,0),2),\"\"))","v":""},"",null,null,null,null,null,null,null,null,null,null,"*****"]
[null,null,null,null,null,null,null,null,null,null,null,null,null,null,0,null,{"$f":"IF(AC278=\"*****\",\"\",IF(ISERROR(MATCH(AC278,OFFSET(AC278,1,0):$AC$490,0)),INDEX('BV & Plaatsing'!$AC$12:$AD$490,MATCH(AC278,'BV & Plaatsing'!$AC$12:$AC$490,0),2),\"\"))","v":""},"",null,null,null,null,null,null,null,null,null,null,"*****"]
[null,null,null,null,null,null,null,null,null,null,null,null,null,null,0,null,{"$f":"IF(AC279=\"*****\",\"\",IF(ISERROR(MATCH(AC279,OFFSET(AC279,1,0):$AC$490,0)),INDEX('BV & Plaatsing'!$AC$12:$AD$490,MATCH(AC279,'BV & Plaatsing'!$AC$12:$AC$490,0),2),\"\"))","v":""},"",null,null,null,null,null,null,null,null,null,null,"*****"]
[null,null,null,null,null,null,null,null,null,null,null,null,null,null,0,null,{"$f":"IF(AC280=\"*****\",\"\",IF(ISERROR(MATCH(AC280,OFFSET(AC280,1,0):$AC$490,0)),INDEX('BV & Plaatsing'!$AC$12:$AD$490,MATCH(AC280,'BV & Plaatsing'!$AC$12:$AC$490,0),2),\"\"))","v":""},"",null,null,null,null,null,null,null,null,null,null,"*****"]
[null,null,null,null,null,null,null,null,null,null,null,null,null,null,0,null,{"$f":"IF(AC281=\"*****\",\"\",IF(ISERROR(MATCH(AC281,OFFSET(AC281,1,0):$AC$490,0)),INDEX('BV & Plaatsing'!$AC$12:$AD$490,MATCH(AC281,'BV & Plaatsing'!$AC$12:$AC$490,0),2),\"\"))","v":""},"",null,null,null,null,null,null,null,null,null,null,"*****"]
[null,null,null,null,null,null,null,null,null,null,null,null,null,null,0,null,{"$f":"IF(AC282=\"*****\",\"\",IF(ISERROR(MATCH(AC282,OFFSET(AC282,1,0):$AC$490,0)),INDEX('BV & Plaatsing'!$AC$12:$AD$490,MATCH(AC282,'BV & Plaatsing'!$AC$12:$AC$490,0),2),\"\"))","v":""},"",null,null,null,null,null,null,null,null,null,null,"*****"]
[null,null,null,null,null,null,null,null,null,null,null,null,null,null,0,null,{"$f":"IF(AC283=\"*****\",\"\",IF(ISERROR(MATCH(AC283,OFFSET(AC283,1,0):$AC$490,0)),INDEX('BV & Plaatsing'!$AC$12:$AD$490,MATCH(AC283,'BV & Plaatsing'!$AC$12:$AC$490,0),2),\"\"))","v":""},"",null,null,null,null,null,null,null,null,null,null,"*****"]
[null,null,null,null,null,null,null,null,null,null,null,null,null,null,0,null,{"$f":"IF(AC284=\"*****\",\"\",IF(ISERROR(MATCH(AC284,OFFSET(AC284,1,0):$AC$490,0)),INDEX('BV & Plaatsing'!$AC$12:$AD$490,MATCH(AC284,'BV & Plaatsing'!$AC$12:$AC$490,0),2),\"\"))","v":""},"",null,null,null,null,null,null,null,null,null,null,"*****"]
[null,null,null,null,null,null,null,null,null,null,null,null,null,null,0,null,{"$f":"IF(AC285=\"*****\",\"\",IF(ISERROR(MATCH(AC285,OFFSET(AC285,1,0):$AC$490,0)),INDEX('BV & Plaatsing'!$AC$12:$AD$490,MATCH(AC285,'BV & Plaatsing'!$AC$12:$AC$490,0),2),\"\"))","v":""},"",null,null,null,null,null,null,null,null,null,null,"*****"]
[null,null,null,null,null,null,null,null,null,null,null,null,null,null,0,null,{"$f":"IF(AC286=\"*****\",\"\",IF(ISERROR(MATCH(AC286,OFFSET(AC286,1,0):$AC$490,0)),INDEX('BV & Plaatsing'!$AC$12:$AD$490,MATCH(AC286,'BV & Plaatsing'!$AC$12:$AC$490,0),2),\"\"))","v":""},"",null,null,null,null,null,null,null,null,null,null,"*****"]
[null,null,null,null,null,null,null,null,null,null,null,null,null,null,0,null,{"$f":"IF(AC287=\"*****\",\"\",IF(ISERROR(MATCH(AC287,OFFSET(AC287,1,0):$AC$490,0)),INDEX('BV & Plaatsing'!$AC$12:$AD$490,MATCH(AC287,'BV & Plaatsing'!$AC$12:$AC$490,0),2),\"\"))","v":""},"",null,null,null,null,null,null,null,null,null,null,"*****"]
[null,null,null,null,null,null,null,null,null,null,null,null,null,null,0,null,{"$f":"IF(AC288=\"*****\",\"\",IF(ISERROR(MATCH(AC288,OFFSET(AC288,1,0):$AC$490,0)),INDEX('BV & Plaatsing'!$AC$12:$AD$490,MATCH(AC288,'BV & Plaatsing'!$AC$12:$AC$490,0),2),\"\"))","v":""},"",null,null,null,null,null,null,null,null,null,null,"*****"]
[null,null,null,null,null,null,null,null,null,null,null,null,null,null,0,null,{"$f":"IF(AC289=\"*****\",\"\",IF(ISERROR(MATCH(AC289,OFFSET(AC289,1,0):$AC$490,0)),INDEX('BV & Plaatsing'!$AC$12:$AD$490,MATCH(AC289,'BV & Plaatsing'!$AC$12:$AC$490,0),2),\"\"))","v":""},"",null,null,null,null,null,null,null,null,null,null,"*****"]
[null,null,null,null,null,null,null,null,null,null,null,null,null,null,0,null,{"$f":"IF(AC290=\"*****\",\"\",IF(ISERROR(MATCH(AC290,OFFSET(AC290,1,0):$AC$490,0)),INDEX('BV & Plaatsing'!$AC$12:$AD$490,MATCH(AC290,'BV & Plaatsing'!$AC$12:$AC$490,0),2),\"\"))","v":""},"",null,null,null,null,null,null,null,null,null,null,"*****"]
[null,null,null,null,null,null,null,null,null,null,null,null,null,null,0,null,{"$f":"IF(AC291=\"*****\",\"\",IF(ISERROR(MATCH(AC291,OFFSET(AC291,1,0):$AC$490,0)),INDEX('BV & Plaatsing'!$AC$12:$AD$490,MATCH(AC291,'BV & Plaatsing'!$AC$12:$AC$490,0),2),\"\"))","v":""},"",null,null,null,null,null,null,null,null,null,null,"*****"]
[null,null,null,null,null,null,null,null,null,null,null,null,null,null,0,null,{"$f":"IF(AC292=\"*****\",\"\",IF(ISERROR(MATCH(AC292,OFFSET(AC292,1,0):$AC$490,0)),INDEX('BV & Plaatsing'!$AC$12:$AD$490,MATCH(AC292,'BV & Plaatsing'!$AC$12:$AC$490,0),2),\"\"))","v":""},"",null,null,null,null,null,null,null,null,null,null,"*****"]
[null,null,null,null,null,null,null,null,null,null,null,null,null,null,0,null,{"$f":"IF(AC293=\"*****\",\"\",IF(ISERROR(MATCH(AC293,OFFSET(AC293,1,0):$AC$490,0)),INDEX('BV & Plaatsing'!$AC$12:$AD$490,MATCH(AC293,'BV & Plaatsing'!$AC$12:$AC$490,0),2),\"\"))","v":""},"",null,null,null,null,null,null,null,null,null,null,"*****"]
[null,null,null,null,null,null,null,null,null,null,null,null,null,null,0,null,{"$f":"IF(AC294=\"*****\",\"\",IF(ISERROR(MATCH(AC294,OFFSET(AC294,1,0):$AC$490,0)),INDEX('BV & Plaatsing'!$AC$12:$AD$490,MATCH(AC294,'BV & Plaatsing'!$AC$12:$AC$490,0),2),\"\"))","v":""},"",null,null,null,null,null,null,null,null,null,null,"*****"]
[null,null,null,null,null,null,null,null,null,null,null,null,null,null,0,null,{"$f":"IF(AC295=\"*****\",\"\",IF(ISERROR(MATCH(AC295,OFFSET(AC295,1,0):$AC$490,0)),INDEX('BV & Plaatsing'!$AC$12:$AD$490,MATCH(AC295,'BV & Plaatsing'!$AC$12:$AC$490,0),2),\"\"))","v":""},"",null,null,null,null,null,null,null,null,null,null,"*****"]
[null,null,null,null,null,null,null,null,null,null,null,null,null,null,0,null,{"$f":"IF(AC296=\"*****\",\"\",IF(ISERROR(MATCH(AC296,OFFSET(AC296,1,0):$AC$490,0)),INDEX('BV & Plaatsing'!$AC$12:$AD$490,MATCH(AC296,'BV & Plaatsing'!$AC$12:$AC$490,0),2),\"\"))","v":""},"",null,null,null,null,null,null,null,null,null,null,"*****"]
[null,null,null,null,null,null,null,null,null,null,null,null,null,null,0,null,{"$f":"IF(AC297=\"*****\",\"\",IF(ISERROR(MATCH(AC297,OFFSET(AC297,1,0):$AC$490,0)),INDEX('BV & Plaatsing'!$AC$12:$AD$490,MATCH(AC297,'BV & Plaatsing'!$AC$12:$AC$490,0),2),\"\"))","v":""},"",null,null,null,null,null,null,null,null,null,null,"*****"]
[null,null,null,null,null,null,null,null,null,null,null,null,null,null,0,null,{"$f":"IF(AC298=\"*****\",\"\",IF(ISERROR(MATCH(AC298,OFFSET(AC298,1,0):$AC$490,0)),INDEX('BV & Plaatsing'!$AC$12:$AD$490,MATCH(AC298,'BV & Plaatsing'!$AC$12:$AC$490,0),2),\"\"))","v":""},"",null,null,null,null,null,null,null,null,null,null,"*****"]
[null,null,null,null,null,null,null,null,null,null,null,null,null,null,{"$f":"IF(AND(K299>0,L299>0),ROUND(K299/L299*100,2),0)","v":0},null,{"$f":"IF(AC299=\"*****\",\"\",IF(ISERROR(MATCH(AC299,OFFSET(AC299,1,0):$AC$490,0)),INDEX('BV & Plaatsing'!$AC$12:$AD$490,MATCH(AC299,'BV & Plaatsing'!$AC$12:$AC$490,0),2),\"\"))","v":""},"",null,null,null,null,null,null,null,null,null,null,{"$f":"IF(RIGHT(P299,1)=\"]\",LEFT(P299,SEARCH(\"[\",P299)-2),\"*****\")","v":"*****"}]
[null,null,null,null,null,null,null,null,null,null,null,null,null,null,0,null,{"$f":"IF(AC300=\"*****\",\"\",IF(ISERROR(MATCH(AC300,OFFSET(AC300,1,0):$AC$490,0)),INDEX('BV & Plaatsing'!$AC$12:$AD$490,MATCH(AC300,'BV & Plaatsing'!$AC$12:$AC$490,0),2),\"\"))","v":""},"",null,null,null,null,null,null,null,null,null,null,"*****"]
[null,null,null,null,null,null,null,null,null,null,null,null,null,null,0,null,{"$f":"IF(AC301=\"*****\",\"\",IF(ISERROR(MATCH(AC301,OFFSET(AC301,1,0):$AC$490,0)),INDEX('BV & Plaatsing'!$AC$12:$AD$490,MATCH(AC301,'BV & Plaatsing'!$AC$12:$AC$490,0),2),\"\"))","v":""},"",null,null,null,null,null,null,null,null,null,null,"*****"]
[null,null,null,null,null,null,null,null,null,null,null,null,null,null,0,null,{"$f":"IF(AC302=\"*****\",\"\",IF(ISERROR(MATCH(AC302,OFFSET(AC302,1,0):$AC$490,0)),INDEX('BV & Plaatsing'!$AC$12:$AD$490,MATCH(AC302,'BV & Plaatsing'!$AC$12:$AC$490,0),2),\"\"))","v":""},"",null,null,null,null,null,null,null,null,null,null,"*****"]
[null,null,null,null,null,null,null,null,null,null,null,null,null,null,0,null,{"$f":"IF(AC303=\"*****\",\"\",IF(ISERROR(MATCH(AC303,OFFSET(AC303,1,0):$AC$490,0)),INDEX('BV & Plaatsing'!$AC$12:$AD$490,MATCH(AC303,'BV & Plaatsing'!$AC$12:$AC$490,0),2),\"\"))","v":""},"",null,null,null,null,null,null,null,null,null,null,"*****"]
[null,null,null,null,null,null,null,null,null,null,null,null,null,null,0,null,{"$f":"IF(AC304=\"*****\",\"\",IF(ISERROR(MATCH(AC304,OFFSET(AC304,1,0):$AC$490,0)),INDEX('BV & Plaatsing'!$AC$12:$AD$490,MATCH(AC304,'BV & Plaatsing'!$AC$12:$AC$490,0),2),\"\"))","v":""},"",null,null,null,null,null,null,null,null,null,null,"*****"]
[null,null,null,null,null,null,null,null,null,null,null,null,null,null,0,null,{"$f":"IF(AC305=\"*****\",\"\",IF(ISERROR(MATCH(AC305,OFFSET(AC305,1,0):$AC$490,0)),INDEX('BV & Plaatsing'!$AC$12:$AD$490,MATCH(AC305,'BV & Plaatsing'!$AC$12:$AC$490,0),2),\"\"))","v":""},"",null,null,null,null,null,null,null,null,null,null,"*****"]
[null,null,null,null,null,null,null,null,null,null,null,null,null,null,0,null,{"$f":"IF(AC306=\"*****\",\"\",IF(ISERROR(MATCH(AC306,OFFSET(AC306,1,0):$AC$490,0)),INDEX('BV & Plaatsing'!$AC$12:$AD$490,MATCH(AC306,'BV & Plaatsing'!$AC$12:$AC$490,0),2),\"\"))","v":""},"",null,null,null,null,null,null,null,null,null,null,"*****"]
[null,null,null,null,null,null,null,null,null,null,null,null,null,null,0,null,{"$f":"IF(AC307=\"*****\",\"\",IF(ISERROR(MATCH(AC307,OFFSET(AC307,1,0):$AC$490,0)),INDEX('BV & Plaatsing'!$AC$12:$AD$490,MATCH(AC307,'BV & Plaatsing'!$AC$12:$AC$490,0),2),\"\"))","v":""},"",null,null,null,null,null,null,null,null,null,null,"*****"]
[null,null,null,null,null,null,null,null,null,null,null,null,null,null,0,null,{"$f":"IF(AC308=\"*****\",\"\",IF(ISERROR(MATCH(AC308,OFFSET(AC308,1,0):$AC$490,0)),INDEX('BV & Plaatsing'!$AC$12:$AD$490,MATCH(AC308,'BV & Plaatsing'!$AC$12:$AC$490,0),2),\"\"))","v":""},"",null,null,null,null,null,null,null,null,null,null,"*****"]
[null,null,null,null,null,null,null,null,null,null,null,null,null,null,0,null,{"$f":"IF(AC309=\"*****\",\"\",IF(ISERROR(MATCH(AC309,OFFSET(AC309,1,0):$AC$490,0)),INDEX('BV & Plaatsing'!$AC$12:$AD$490,MATCH(AC309,'BV & Plaatsing'!$AC$12:$AC$490,0),2),\"\"))","v":""},"",null,null,null,null,null,null,null,null,null,null,"*****"]
[null,null,null,null,null,null,null,null,null,null,null,null,null,null,0,null,{"$f":"IF(AC310=\"*****\",\"\",IF(ISERROR(MATCH(AC310,OFFSET(AC310,1,0):$AC$490,0)),INDEX('BV & Plaatsing'!$AC$12:$AD$490,MATCH(AC310,'BV & Plaatsing'!$AC$12:$AC$490,0),2),\"\"))","v":""},"",null,null,null,null,null,null,null,null,null,null,"*****"]
[null,null,null,null,null,null,null,null,null,null,null,null,null,null,0,null,{"$f":"IF(AC311=\"*****\",\"\",IF(ISERROR(MATCH(AC311,OFFSET(AC311,1,0):$AC$490,0)),INDEX('BV & Plaatsing'!$AC$12:$AD$490,MATCH(AC311,'BV & Plaatsing'!$AC$12:$AC$490,0),2),\"\"))","v":""},"",null,null,null,null,null,null,null,null,null,null,"*****"]
[null,null,null,null,null,null,null,null,null,null,null,null,null,null,0,null,{"$f":"IF(AC312=\"*****\",\"\",IF(ISERROR(MATCH(AC312,OFFSET(AC312,1,0):$AC$490,0)),INDEX('BV & Plaatsing'!$AC$12:$AD$490,MATCH(AC312,'BV & Plaatsing'!$AC$12:$AC$490,0),2),\"\"))","v":""},"",null,null,null,null,null,null,null,null,null,null,"*****"]
[null,null,null,null,null,null,null,null,null,null,null,null,null,null,0,null,{"$f":"IF(AC313=\"*****\",\"\",IF(ISERROR(MATCH(AC313,OFFSET(AC313,1,0):$AC$490,0)),INDEX('BV & Plaatsing'!$AC$12:$AD$490,MATCH(AC313,'BV & Plaatsing'!$AC$12:$AC$490,0),2),\"\"))","v":""},"",null,null,null,null,null,null,null,null,null,null,"*****"]
[null,null,null,null,null,null,null,null,null,null,null,null,null,null,0,null,{"$f":"IF(AC314=\"*****\",\"\",IF(ISERROR(MATCH(AC314,OFFSET(AC314,1,0):$AC$490,0)),INDEX('BV & Plaatsing'!$AC$12:$AD$490,MATCH(AC314,'BV & Plaatsing'!$AC$12:$AC$490,0),2),\"\"))","v":""},"",null,null,null,null,null,null,null,null,null,null,"*****"]
[null,null,null,null,null,null,null,null,null,null,null,null,null,null,0,null,{"$f":"IF(AC315=\"*****\",\"\",IF(ISERROR(MATCH(AC315,OFFSET(AC315,1,0):$AC$490,0)),INDEX('BV & Plaatsing'!$AC$12:$AD$490,MATCH(AC315,'BV & Plaatsing'!$AC$12:$AC$490,0),2),\"\"))","v":""},"",null,null,null,null,null,null,null,null,null,null,"*****"]
[null,null,null,null,null,null,null,null,null,null,null,null,null,null,0,null,{"$f":"IF(AC316=\"*****\",\"\",IF(ISERROR(MATCH(AC316,OFFSET(AC316,1,0):$AC$490,0)),INDEX('BV & Plaatsing'!$AC$12:$AD$490,MATCH(AC316,'BV & Plaatsing'!$AC$12:$AC$490,0),2),\"\"))","v":""},"",null,null,null,null,null,null,null,null,null,null,"*****"]
[null,null,null,null,null,null,null,null,null,null,null,null,null,null,0,null,{"$f":"IF(AC317=\"*****\",\"\",IF(ISERROR(MATCH(AC317,OFFSET(AC317,1,0):$AC$490,0)),INDEX('BV & Plaatsing'!$AC$12:$AD$490,MATCH(AC317,'BV & Plaatsing'!$AC$12:$AC$490,0),2),\"\"))","v":""},"",null,null,null,null,null,null,null,null,null,null,"*****"]
[null,null,null,null,null,null,null,null,null,null,null,null,null,null,0,null,{"$f":"IF(AC318=\"*****\",\"\",IF(ISERROR(MATCH(AC318,OFFSET(AC318,1,0):$AC$490,0)),INDEX('BV & Plaatsing'!$AC$12:$AD$490,MATCH(AC318,'BV & Plaatsing'!$AC$12:$AC$490,0),2),\"\"))","v":""},"",null,null,null,null,null,null,null,null,null,null,"*****"]
[null,null,null,null,null,null,null,null,null,null,null,null,null,null,0,null,{"$f":"IF(AC319=\"*****\",\"\",IF(ISERROR(MATCH(AC319,OFFSET(AC319,1,0):$AC$490,0)),INDEX('BV & Plaatsing'!$AC$12:$AD$490,MATCH(AC319,'BV & Plaatsing'!$AC$12:$AC$490,0),2),\"\"))","v":""},"",null,null,null,null,null,null,null,null,null,null,"*****"]
[null,null,null,null,null,null,null,null,null,null,null,null,null,null,0,null,{"$f":"IF(AC320=\"*****\",\"\",IF(ISERROR(MATCH(AC320,OFFSET(AC320,1,0):$AC$490,0)),INDEX('BV & Plaatsing'!$AC$12:$AD$490,MATCH(AC320,'BV & Plaatsing'!$AC$12:$AC$490,0),2),\"\"))","v":""},"",null,null,null,null,null,null,null,null,null,null,"*****"]
[null,null,null,null,null,null,null,null,null,null,null,null,null,null,0,null,{"$f":"IF(AC321=\"*****\",\"\",IF(ISERROR(MATCH(AC321,OFFSET(AC321,1,0):$AC$490,0)),INDEX('BV & Plaatsing'!$AC$12:$AD$490,MATCH(AC321,'BV & Plaatsing'!$AC$12:$AC$490,0),2),\"\"))","v":""},"",null,null,null,null,null,null,null,null,null,null,"*****"]
[null,null,null,null,null,null,null,null,null,null,null,null,null,null,0,null,{"$f":"IF(AC322=\"*****\",\"\",IF(ISERROR(MATCH(AC322,OFFSET(AC322,1,0):$AC$490,0)),INDEX('BV & Plaatsing'!$AC$12:$AD$490,MATCH(AC322,'BV & Plaatsing'!$AC$12:$AC$490,0),2),\"\"))","v":""},"",null,null,null,null,null,null,null,null,null,null,"*****"]
[null,null,null,null,null,null,null,null,null,null,null,null,null,null,0,null,{"$f":"IF(AC323=\"*****\",\"\",IF(ISERROR(MATCH(AC323,OFFSET(AC323,1,0):$AC$490,0)),INDEX('BV & Plaatsing'!$AC$12:$AD$490,MATCH(AC323,'BV & Plaatsing'!$AC$12:$AC$490,0),2),\"\"))","v":""},"",null,null,null,null,null,null,null,null,null,null,"*****"]
[null,null,null,null,null,null,null,null,null,null,null,null,null,null,0,null,{"$f":"IF(AC324=\"*****\",\"\",IF(ISERROR(MATCH(AC324,OFFSET(AC324,1,0):$AC$490,0)),INDEX('BV & Plaatsing'!$AC$12:$AD$490,MATCH(AC324,'BV & Plaatsing'!$AC$12:$AC$490,0),2),\"\"))","v":""},"",null,null,null,null,null,null,null,null,null,null,"*****"]
[null,null,null,null,null,null,null,null,null,null,null,null,null,null,0,null,{"$f":"IF(AC325=\"*****\",\"\",IF(ISERROR(MATCH(AC325,OFFSET(AC325,1,0):$AC$490,0)),INDEX('BV & Plaatsing'!$AC$12:$AD$490,MATCH(AC325,'BV & Plaatsing'!$AC$12:$AC$490,0),2),\"\"))","v":""},"",null,null,null,null,null,null,null,null,null,null,"*****"]
[null,null,null,null,null,null,null,null,null,null,null,null,null,null,0,null,{"$f":"IF(AC326=\"*****\",\"\",IF(ISERROR(MATCH(AC326,OFFSET(AC326,1,0):$AC$490,0)),INDEX('BV & Plaatsing'!$AC$12:$AD$490,MATCH(AC326,'BV & Plaatsing'!$AC$12:$AC$490,0),2),\"\"))","v":""},"",null,null,null,null,null,null,null,null,null,null,"*****"]
[null,null,null,null,null,null,null,null,null,null,null,null,null,null,0,null,{"$f":"IF(AC327=\"*****\",\"\",IF(ISERROR(MATCH(AC327,OFFSET(AC327,1,0):$AC$490,0)),INDEX('BV & Plaatsing'!$AC$12:$AD$490,MATCH(AC327,'BV & Plaatsing'!$AC$12:$AC$490,0),2),\"\"))","v":""},"",null,null,null,null,null,null,null,null,null,null,"*****"]
[null,null,null,null,null,null,null,null,null,null,null,null,null,null,0,null,{"$f":"IF(AC328=\"*****\",\"\",IF(ISERROR(MATCH(AC328,OFFSET(AC328,1,0):$AC$490,0)),INDEX('BV & Plaatsing'!$AC$12:$AD$490,MATCH(AC328,'BV & Plaatsing'!$AC$12:$AC$490,0),2),\"\"))","v":""},"",null,null,null,null,null,null,null,null,null,null,"*****"]
[null,null,null,null,null,null,null,null,null,null,null,null,null,null,0,null,{"$f":"IF(AC329=\"*****\",\"\",IF(ISERROR(MATCH(AC329,OFFSET(AC329,1,0):$AC$490,0)),INDEX('BV & Plaatsing'!$AC$12:$AD$490,MATCH(AC329,'BV & Plaatsing'!$AC$12:$AC$490,0),2),\"\"))","v":""},"",null,null,null,null,null,null,null,null,null,null,"*****"]
[null,null,null,null,null,null,null,null,null,null,null,null,null,null,0,null,{"$f":"IF(AC330=\"*****\",\"\",IF(ISERROR(MATCH(AC330,OFFSET(AC330,1,0):$AC$490,0)),INDEX('BV & Plaatsing'!$AC$12:$AD$490,MATCH(AC330,'BV & Plaatsing'!$AC$12:$AC$490,0),2),\"\"))","v":""},"",null,null,null,null,null,null,null,null,null,null,"*****"]
[null,null,null,null,null,null,null,null,null,null,null,null,null,null,0,null,{"$f":"IF(AC331=\"*****\",\"\",IF(ISERROR(MATCH(AC331,OFFSET(AC331,1,0):$AC$490,0)),INDEX('BV & Plaatsing'!$AC$12:$AD$490,MATCH(AC331,'BV & Plaatsing'!$AC$12:$AC$490,0),2),\"\"))","v":""},"",null,null,null,null,null,null,null,null,null,null,"*****"]
[null,null,null,null,null,null,null,null,null,null,null,null,null,null,0,null,{"$f":"IF(AC332=\"*****\",\"\",IF(ISERROR(MATCH(AC332,OFFSET(AC332,1,0):$AC$490,0)),INDEX('BV & Plaatsing'!$AC$12:$AD$490,MATCH(AC332,'BV & Plaatsing'!$AC$12:$AC$490,0),2),\"\"))","v":""},"",null,null,null,null,null,null,null,null,null,null,"*****"]
[null,null,null,null,null,null,null,null,null,null,null,null,null,null,0,null,{"$f":"IF(AC333=\"*****\",\"\",IF(ISERROR(MATCH(AC333,OFFSET(AC333,1,0):$AC$490,0)),INDEX('BV & Plaatsing'!$AC$12:$AD$490,MATCH(AC333,'BV & Plaatsing'!$AC$12:$AC$490,0),2),\"\"))","v":""},{"$f":"IF(AC333=\"*****\",\"\",IF(J333<>MID(P333,SEARCH(\"[\",P333,1)+1,SEARCH(\"]\",P333,1)-SEARCH(\"[\",P333,1)-1),\">> Omschrijving goederen plaatsingsaangifte <> omschrijving geplaatste goederen in product\",\"\"))","v":""},null,null,null,null,null,null,null,null,null,null,"*****"]
[null,null,null,null,null,null,null,null,null,null,null,null,null,null,0,null,{"$f":"IF(AC334=\"*****\",\"\",IF(ISERROR(MATCH(AC334,OFFSET(AC334,1,0):$AC$490,0)),INDEX('BV & Plaatsing'!$AC$12:$AD$490,MATCH(AC334,'BV & Plaatsing'!$AC$12:$AC$490,0),2),\"\"))","v":""},"",null,null,null,null,null,null,null,null,null,null,"*****"]
[null,null,null,null,null,null,null,null,null,null,null,null,null,null,0,null,{"$f":"IF(AC335=\"*****\",\"\",IF(ISERROR(MATCH(AC335,OFFSET(AC335,1,0):$AC$490,0)),INDEX('BV & Plaatsing'!$AC$12:$AD$490,MATCH(AC335,'BV & Plaatsing'!$AC$12:$AC$490,0),2),\"\"))","v":""},"",null,null,null,null,null,null,null,null,null,null,"*****"]
[null,null,null,null,null,null,null,null,null,null,null,null,null,null,0,null,{"$f":"IF(AC336=\"*****\",\"\",IF(ISERROR(MATCH(AC336,OFFSET(AC336,1,0):$AC$490,0)),INDEX('BV & Plaatsing'!$AC$12:$AD$490,MATCH(AC336,'BV & Plaatsing'!$AC$12:$AC$490,0),2),\"\"))","v":""},"",null,null,null,null,null,null,null,null,null,null,"*****"]
[null,null,null,null,null,null,null,null,null,null,null,null,null,null,0,null,{"$f":"IF(AC337=\"*****\",\"\",IF(ISERROR(MATCH(AC337,OFFSET(AC337,1,0):$AC$490,0)),INDEX('BV & Plaatsing'!$AC$12:$AD$490,MATCH(AC337,'BV & Plaatsing'!$AC$12:$AC$490,0),2),\"\"))","v":""},"",null,null,null,null,null,null,null,null,null,null,"*****"]
[null,null,null,null,null,null,null,null,null,null,null,null,null,null,0,null,{"$f":"IF(AC338=\"*****\",\"\",IF(ISERROR(MATCH(AC338,OFFSET(AC338,1,0):$AC$490,0)),INDEX('BV & Plaatsing'!$AC$12:$AD$490,MATCH(AC338,'BV & Plaatsing'!$AC$12:$AC$490,0),2),\"\"))","v":""},"",null,null,null,null,null,null,null,null,null,null,"*****"]
[null,null,null,null,null,null,null,null,null,null,null,null,null,null,0,null,{"$f":"IF(AC339=\"*****\",\"\",IF(ISERROR(MATCH(AC339,OFFSET(AC339,1,0):$AC$490,0)),INDEX('BV & Plaatsing'!$AC$12:$AD$490,MATCH(AC339,'BV & Plaatsing'!$AC$12:$AC$490,0),2),\"\"))","v":""},"",null,null,null,null,null,null,null,null,null,null,"*****"]
[null,null,null,null,null,null,null,null,null,null,null,null,null,null,0,null,{"$f":"IF(AC340=\"*****\",\"\",IF(ISERROR(MATCH(AC340,OFFSET(AC340,1,0):$AC$490,0)),INDEX('BV & Plaatsing'!$AC$12:$AD$490,MATCH(AC340,'BV & Plaatsing'!$AC$12:$AC$490,0),2),\"\"))","v":""},"",null,null,null,null,null,null,null,null,null,null,"*****"]
[null,null,null,null,null,null,null,null,null,null,null,null,null,null,0,null,{"$f":"IF(AC341=\"*****\",\"\",IF(ISERROR(MATCH(AC341,OFFSET(AC341,1,0):$AC$490,0)),INDEX('BV & Plaatsing'!$AC$12:$AD$490,MATCH(AC341,'BV & Plaatsing'!$AC$12:$AC$490,0),2),\"\"))","v":""},"",null,null,null,null,null,null,null,null,null,null,"*****"]
[null,null,null,null,null,null,null,null,null,null,null,null,null,null,0,null,{"$f":"IF(AC342=\"*****\",\"\",IF(ISERROR(MATCH(AC342,OFFSET(AC342,1,0):$AC$490,0)),INDEX('BV & Plaatsing'!$AC$12:$AD$490,MATCH(AC342,'BV & Plaatsing'!$AC$12:$AC$490,0),2),\"\"))","v":""},"",null,null,null,null,null,null,null,null,null,null,"*****"]
[null,null,null,null,null,null,null,null,null,null,null,null,null,null,0,null,{"$f":"IF(AC343=\"*****\",\"\",IF(ISERROR(MATCH(AC343,OFFSET(AC343,1,0):$AC$490,0)),INDEX('BV & Plaatsing'!$AC$12:$AD$490,MATCH(AC343,'BV & Plaatsing'!$AC$12:$AC$490,0),2),\"\"))","v":""},"",null,null,null,null,null,null,null,null,null,null,"*****"]
[null,null,null,null,null,null,null,null,null,null,null,null,null,null,0,null,{"$f":"IF(AC344=\"*****\",\"\",IF(ISERROR(MATCH(AC344,OFFSET(AC344,1,0):$AC$490,0)),INDEX('BV & Plaatsing'!$AC$12:$AD$490,MATCH(AC344,'BV & Plaatsing'!$AC$12:$AC$490,0),2),\"\"))","v":""},"",null,null,null,null,null,null,null,null,null,null,"*****"]
[null,null,null,null,null,null,null,null,null,null,null,null,null,null,0,null,{"$f":"IF(AC345=\"*****\",\"\",IF(ISERROR(MATCH(AC345,OFFSET(AC345,1,0):$AC$490,0)),INDEX('BV & Plaatsing'!$AC$12:$AD$490,MATCH(AC345,'BV & Plaatsing'!$AC$12:$AC$490,0),2),\"\"))","v":""},"",null,null,null,null,null,null,null,null,null,null,"*****"]
[null,null,null,null,null,null,null,null,null,null,null,null,null,null,0,null,{"$f":"IF(AC346=\"*****\",\"\",IF(ISERROR(MATCH(AC346,OFFSET(AC346,1,0):$AC$490,0)),INDEX('BV & Plaatsing'!$AC$12:$AD$490,MATCH(AC346,'BV & Plaatsing'!$AC$12:$AC$490,0),2),\"\"))","v":""},"",null,null,null,null,null,null,null,null,null,null,"*****"]
[null,null,null,null,null,null,null,null,null,null,null,null,null,null,0,null,{"$f":"IF(AC347=\"*****\",\"\",IF(ISERROR(MATCH(AC347,OFFSET(AC347,1,0):$AC$490,0)),INDEX('BV & Plaatsing'!$AC$12:$AD$490,MATCH(AC347,'BV & Plaatsing'!$AC$12:$AC$490,0),2),\"\"))","v":""},"",null,null,null,null,null,null,null,null,null,null,"*****"]
[null,null,null,null,null,null,null,null,null,null,null,null,null,null,0,null,{"$f":"IF(AC348=\"*****\",\"\",IF(ISERROR(MATCH(AC348,OFFSET(AC348,1,0):$AC$490,0)),INDEX('BV & Plaatsing'!$AC$12:$AD$490,MATCH(AC348,'BV & Plaatsing'!$AC$12:$AC$490,0),2),\"\"))","v":""},"",null,null,null,null,null,null,null,null,null,null,"*****"]
[null,null,null,null,null,null,null,null,null,null,null,null,null,null,0,null,{"$f":"IF(AC349=\"*****\",\"\",IF(ISERROR(MATCH(AC349,OFFSET(AC349,1,0):$AC$490,0)),INDEX('BV & Plaatsing'!$AC$12:$AD$490,MATCH(AC349,'BV & Plaatsing'!$AC$12:$AC$490,0),2),\"\"))","v":""},"",null,null,null,null,null,null,null,null,null,null,"*****"]
[null,null,null,null,null,null,null,null,null,null,null,null,null,null,0,null,{"$f":"IF(AC350=\"*****\",\"\",IF(ISERROR(MATCH(AC350,OFFSET(AC350,1,0):$AC$490,0)),INDEX('BV & Plaatsing'!$AC$12:$AD$490,MATCH(AC350,'BV & Plaatsing'!$AC$12:$AC$490,0),2),\"\"))","v":""},"",null,null,null,null,null,null,null,null,null,null,"*****"]
[null,null,null,null,null,null,null,null,null,null,null,null,null,null,0,null,{"$f":"IF(AC351=\"*****\",\"\",IF(ISERROR(MATCH(AC351,OFFSET(AC351,1,0):$AC$490,0)),INDEX('BV & Plaatsing'!$AC$12:$AD$490,MATCH(AC351,'BV & Plaatsing'!$AC$12:$AC$490,0),2),\"\"))","v":""},"",null,null,null,null,null,null,null,null,null,null,"*****"]
[null,null,null,null,null,null,null,null,null,null,null,null,null,null,0,null,{"$f":"IF(AC352=\"*****\",\"\",IF(ISERROR(MATCH(AC352,OFFSET(AC352,1,0):$AC$490,0)),INDEX('BV & Plaatsing'!$AC$12:$AD$490,MATCH(AC352,'BV & Plaatsing'!$AC$12:$AC$490,0),2),\"\"))","v":""},"",null,null,null,null,null,null,null,null,null,null,"*****"]
[null,null,null,null,null,null,null,null,null,null,null,null,null,null,0,null,{"$f":"IF(AC353=\"*****\",\"\",IF(ISERROR(MATCH(AC353,OFFSET(AC353,1,0):$AC$490,0)),INDEX('BV & Plaatsing'!$AC$12:$AD$490,MATCH(AC353,'BV & Plaatsing'!$AC$12:$AC$490,0),2),\"\"))","v":""},"",null,null,null,null,null,null,null,null,null,null,"*****"]
[null,null,null,null,null,null,null,null,null,null,null,null,null,null,0,null,{"$f":"IF(AC354=\"*****\",\"\",IF(ISERROR(MATCH(AC354,OFFSET(AC354,1,0):$AC$490,0)),INDEX('BV & Plaatsing'!$AC$12:$AD$490,MATCH(AC354,'BV & Plaatsing'!$AC$12:$AC$490,0),2),\"\"))","v":""},"",null,null,null,null,null,null,null,null,null,null,"*****"]
[null,null,null,null,null,null,null,null,null,null,null,null,null,null,0,null,{"$f":"IF(AC355=\"*****\",\"\",IF(ISERROR(MATCH(AC355,OFFSET(AC355,1,0):$AC$490,0)),INDEX('BV & Plaatsing'!$AC$12:$AD$490,MATCH(AC355,'BV & Plaatsing'!$AC$12:$AC$490,0),2),\"\"))","v":""},"",null,null,null,null,null,null,null,null,null,null,"*****"]
[null,null,null,null,null,null,null,null,null,null,null,null,null,null,0,null,{"$f":"IF(AC356=\"*****\",\"\",IF(ISERROR(MATCH(AC356,OFFSET(AC356,1,0):$AC$490,0)),INDEX('BV & Plaatsing'!$AC$12:$AD$490,MATCH(AC356,'BV & Plaatsing'!$AC$12:$AC$490,0),2),\"\"))","v":""},"",null,null,null,null,null,null,null,null,null,null,"*****"]
[null,null,null,null,null,null,null,null,null,null,null,null,null,null,0,null,{"$f":"IF(AC357=\"*****\",\"\",IF(ISERROR(MATCH(AC357,OFFSET(AC357,1,0):$AC$490,0)),INDEX('BV & Plaatsing'!$AC$12:$AD$490,MATCH(AC357,'BV & Plaatsing'!$AC$12:$AC$490,0),2),\"\"))","v":""},"",null,null,null,null,null,null,null,null,null,null,"*****"]
[null,null,null,null,null,null,null,null,null,null,null,null,null,null,0,null,{"$f":"IF(AC358=\"*****\",\"\",IF(ISERROR(MATCH(AC358,OFFSET(AC358,1,0):$AC$490,0)),INDEX('BV & Plaatsing'!$AC$12:$AD$490,MATCH(AC358,'BV & Plaatsing'!$AC$12:$AC$490,0),2),\"\"))","v":""},"",null,null,null,null,null,null,null,null,null,null,"*****"]
[null,null,null,null,null,null,null,null,null,null,null,null,null,null,0,null,{"$f":"IF(AC359=\"*****\",\"\",IF(ISERROR(MATCH(AC359,OFFSET(AC359,1,0):$AC$490,0)),INDEX('BV & Plaatsing'!$AC$12:$AD$490,MATCH(AC359,'BV & Plaatsing'!$AC$12:$AC$490,0),2),\"\"))","v":""},"",null,null,null,null,null,null,null,null,null,null,"*****"]
[null,null,null,null,null,null,null,null,null,null,null,null,null,null,0,null,{"$f":"IF(AC360=\"*****\",\"\",IF(ISERROR(MATCH(AC360,OFFSET(AC360,1,0):$AC$490,0)),INDEX('BV & Plaatsing'!$AC$12:$AD$490,MATCH(AC360,'BV & Plaatsing'!$AC$12:$AC$490,0),2),\"\"))","v":""},"",null,null,null,null,null,null,null,null,null,null,"*****"]
[null,null,null,null,null,null,null,null,null,null,null,null,null,null,0,null,{"$f":"IF(AC361=\"*****\",\"\",IF(ISERROR(MATCH(AC361,OFFSET(AC361,1,0):$AC$490,0)),INDEX('BV & Plaatsing'!$AC$12:$AD$490,MATCH(AC361,'BV & Plaatsing'!$AC$12:$AC$490,0),2),\"\"))","v":""},"",null,null,null,null,null,null,null,null,null,null,"*****"]
[null,null,null,null,null,null,null,null,null,null,null,null,null,null,0,null,{"$f":"IF(AC362=\"*****\",\"\",IF(ISERROR(MATCH(AC362,OFFSET(AC362,1,0):$AC$490,0)),INDEX('BV & Plaatsing'!$AC$12:$AD$490,MATCH(AC362,'BV & Plaatsing'!$AC$12:$AC$490,0),2),\"\"))","v":""},"",null,null,null,null,null,null,null,null,null,null,"*****"]
[null,null,null,null,null,null,null,null,null,null,null,null,null,null,{"$f":"IF(AND(K363>0,L363>0),ROUND(K363/L363*100,2),0)","v":0},null,{"$f":"IF(AC363=\"*****\",\"\",IF(ISERROR(MATCH(AC363,OFFSET(AC363,1,0):$AC$490,0)),INDEX('BV & Plaatsing'!$AC$12:$AD$490,MATCH(AC363,'BV & Plaatsing'!$AC$12:$AC$490,0),2),\"\"))","v":""},"",null,null,null,null,null,null,null,null,null,null,{"$f":"IF(RIGHT(P363,1)=\"]\",LEFT(P363,SEARCH(\"[\",P363)-2),\"*****\")","v":"*****"}]
[null,null,null,null,null,null,null,null,null,null,null,null,null,null,0,null,{"$f":"IF(AC364=\"*****\",\"\",IF(ISERROR(MATCH(AC364,OFFSET(AC364,1,0):$AC$490,0)),INDEX('BV & Plaatsing'!$AC$12:$AD$490,MATCH(AC364,'BV & Plaatsing'!$AC$12:$AC$490,0),2),\"\"))","v":""},"",null,null,null,null,null,null,null,null,null,null,"*****"]
[null,null,null,null,null,null,null,null,null,null,null,null,null,null,0,null,{"$f":"IF(AC365=\"*****\",\"\",IF(ISERROR(MATCH(AC365,OFFSET(AC365,1,0):$AC$490,0)),INDEX('BV & Plaatsing'!$AC$12:$AD$490,MATCH(AC365,'BV & Plaatsing'!$AC$12:$AC$490,0),2),\"\"))","v":""},"",null,null,null,null,null,null,null,null,null,null,"*****"]
[null,null,null,null,null,null,null,null,null,null,null,null,null,null,0,null,{"$f":"IF(AC366=\"*****\",\"\",IF(ISERROR(MATCH(AC366,OFFSET(AC366,1,0):$AC$490,0)),INDEX('BV & Plaatsing'!$AC$12:$AD$490,MATCH(AC366,'BV & Plaatsing'!$AC$12:$AC$490,0),2),\"\"))","v":""},"",null,null,null,null,null,null,null,null,null,null,"*****"]
[null,null,null,null,null,null,null,null,null,null,null,null,null,null,0,null,{"$f":"IF(AC367=\"*****\",\"\",IF(ISERROR(MATCH(AC367,OFFSET(AC367,1,0):$AC$490,0)),INDEX('BV & Plaatsing'!$AC$12:$AD$490,MATCH(AC367,'BV & Plaatsing'!$AC$12:$AC$490,0),2),\"\"))","v":""},"",null,null,null,null,null,null,null,null,null,null,"*****"]
[null,null,null,null,null,null,null,null,null,null,null,null,null,null,0,null,{"$f":"IF(AC368=\"*****\",\"\",IF(ISERROR(MATCH(AC368,OFFSET(AC368,1,0):$AC$490,0)),INDEX('BV & Plaatsing'!$AC$12:$AD$490,MATCH(AC368,'BV & Plaatsing'!$AC$12:$AC$490,0),2),\"\"))","v":""},"",null,null,null,null,null,null,null,null,null,null,"*****"]
[null,null,null,null,null,null,null,null,null,null,null,null,null,null,0,null,{"$f":"IF(AC369=\"*****\",\"\",IF(ISERROR(MATCH(AC369,OFFSET(AC369,1,0):$AC$490,0)),INDEX('BV & Plaatsing'!$AC$12:$AD$490,MATCH(AC369,'BV & Plaatsing'!$AC$12:$AC$490,0),2),\"\"))","v":""},"",null,null,null,null,null,null,null,null,null,null,"*****"]
[null,null,null,null,null,null,null,null,null,null,null,null,null,null,0,null,{"$f":"IF(AC370=\"*****\",\"\",IF(ISERROR(MATCH(AC370,OFFSET(AC370,1,0):$AC$490,0)),INDEX('BV & Plaatsing'!$AC$12:$AD$490,MATCH(AC370,'BV & Plaatsing'!$AC$12:$AC$490,0),2),\"\"))","v":""},"",null,null,null,null,null,null,null,null,null,null,"*****"]
[null,null,null,null,null,null,null,null,null,null,null,null,null,null,0,null,{"$f":"IF(AC371=\"*****\",\"\",IF(ISERROR(MATCH(AC371,OFFSET(AC371,1,0):$AC$490,0)),INDEX('BV & Plaatsing'!$AC$12:$AD$490,MATCH(AC371,'BV & Plaatsing'!$AC$12:$AC$490,0),2),\"\"))","v":""},"",null,null,null,null,null,null,null,null,null,null,"*****"]
[null,null,null,null,null,null,null,null,null,null,null,null,null,null,0,null,{"$f":"IF(AC372=\"*****\",\"\",IF(ISERROR(MATCH(AC372,OFFSET(AC372,1,0):$AC$490,0)),INDEX('BV & Plaatsing'!$AC$12:$AD$490,MATCH(AC372,'BV & Plaatsing'!$AC$12:$AC$490,0),2),\"\"))","v":""},"",null,null,null,null,null,null,null,null,null,null,"*****"]
[null,null,null,null,null,null,null,null,null,null,null,null,null,null,0,null,{"$f":"IF(AC373=\"*****\",\"\",IF(ISERROR(MATCH(AC373,OFFSET(AC373,1,0):$AC$490,0)),INDEX('BV & Plaatsing'!$AC$12:$AD$490,MATCH(AC373,'BV & Plaatsing'!$AC$12:$AC$490,0),2),\"\"))","v":""},"",null,null,null,null,null,null,null,null,null,null,"*****"]
[null,null,null,null,null,null,null,null,null,null,null,null,null,null,0,null,{"$f":"IF(AC374=\"*****\",\"\",IF(ISERROR(MATCH(AC374,OFFSET(AC374,1,0):$AC$490,0)),INDEX('BV & Plaatsing'!$AC$12:$AD$490,MATCH(AC374,'BV & Plaatsing'!$AC$12:$AC$490,0),2),\"\"))","v":""},"",null,null,null,null,null,null,null,null,null,null,"*****"]
[null,null,null,null,null,null,null,null,null,null,null,null,null,null,0,null,{"$f":"IF(AC375=\"*****\",\"\",IF(ISERROR(MATCH(AC375,OFFSET(AC375,1,0):$AC$490,0)),INDEX('BV & Plaatsing'!$AC$12:$AD$490,MATCH(AC375,'BV & Plaatsing'!$AC$12:$AC$490,0),2),\"\"))","v":""},"",null,null,null,null,null,null,null,null,null,null,"*****"]
[null,null,null,null,null,null,null,null,null,null,null,null,null,null,0,null,{"$f":"IF(AC376=\"*****\",\"\",IF(ISERROR(MATCH(AC376,OFFSET(AC376,1,0):$AC$490,0)),INDEX('BV & Plaatsing'!$AC$12:$AD$490,MATCH(AC376,'BV & Plaatsing'!$AC$12:$AC$490,0),2),\"\"))","v":""},"",null,null,null,null,null,null,null,null,null,null,"*****"]
[null,null,null,null,null,null,null,null,null,null,null,null,null,null,0,null,{"$f":"IF(AC377=\"*****\",\"\",IF(ISERROR(MATCH(AC377,OFFSET(AC377,1,0):$AC$490,0)),INDEX('BV & Plaatsing'!$AC$12:$AD$490,MATCH(AC377,'BV & Plaatsing'!$AC$12:$AC$490,0),2),\"\"))","v":""},"",null,null,null,null,null,null,null,null,null,null,"*****"]
[null,null,null,null,null,null,null,null,null,null,null,null,null,null,0,null,{"$f":"IF(AC378=\"*****\",\"\",IF(ISERROR(MATCH(AC378,OFFSET(AC378,1,0):$AC$490,0)),INDEX('BV & Plaatsing'!$AC$12:$AD$490,MATCH(AC378,'BV & Plaatsing'!$AC$12:$AC$490,0),2),\"\"))","v":""},"",null,null,null,null,null,null,null,null,null,null,"*****"]
[null,null,null,null,null,null,null,null,null,null,null,null,null,null,0,null,{"$f":"IF(AC379=\"*****\",\"\",IF(ISERROR(MATCH(AC379,OFFSET(AC379,1,0):$AC$490,0)),INDEX('BV & Plaatsing'!$AC$12:$AD$490,MATCH(AC379,'BV & Plaatsing'!$AC$12:$AC$490,0),2),\"\"))","v":""},"",null,null,null,null,null,null,null,null,null,null,"*****"]
[null,null,null,null,null,null,null,null,null,null,null,null,null,null,0,null,{"$f":"IF(AC380=\"*****\",\"\",IF(ISERROR(MATCH(AC380,OFFSET(AC380,1,0):$AC$490,0)),INDEX('BV & Plaatsing'!$AC$12:$AD$490,MATCH(AC380,'BV & Plaatsing'!$AC$12:$AC$490,0),2),\"\"))","v":""},"",null,null,null,null,null,null,null,null,null,null,"*****"]
[null,null,null,null,null,null,null,null,null,null,null,null,null,null,0,null,{"$f":"IF(AC381=\"*****\",\"\",IF(ISERROR(MATCH(AC381,OFFSET(AC381,1,0):$AC$490,0)),INDEX('BV & Plaatsing'!$AC$12:$AD$490,MATCH(AC381,'BV & Plaatsing'!$AC$12:$AC$490,0),2),\"\"))","v":""},"",null,null,null,null,null,null,null,null,null,null,"*****"]
[null,null,null,null,null,null,null,null,null,null,null,null,null,null,0,null,{"$f":"IF(AC382=\"*****\",\"\",IF(ISERROR(MATCH(AC382,OFFSET(AC382,1,0):$AC$490,0)),INDEX('BV & Plaatsing'!$AC$12:$AD$490,MATCH(AC382,'BV & Plaatsing'!$AC$12:$AC$490,0),2),\"\"))","v":""},"",null,null,null,null,null,null,null,null,null,null,"*****"]
[null,null,null,null,null,null,null,null,null,null,null,null,null,null,0,null,{"$f":"IF(AC383=\"*****\",\"\",IF(ISERROR(MATCH(AC383,OFFSET(AC383,1,0):$AC$490,0)),INDEX('BV & Plaatsing'!$AC$12:$AD$490,MATCH(AC383,'BV & Plaatsing'!$AC$12:$AC$490,0),2),\"\"))","v":""},"",null,null,null,null,null,null,null,null,null,null,"*****"]
[null,null,null,null,null,null,null,null,null,null,null,null,null,null,0,null,{"$f":"IF(AC384=\"*****\",\"\",IF(ISERROR(MATCH(AC384,OFFSET(AC384,1,0):$AC$490,0)),INDEX('BV & Plaatsing'!$AC$12:$AD$490,MATCH(AC384,'BV & Plaatsing'!$AC$12:$AC$490,0),2),\"\"))","v":""},"",null,null,null,null,null,null,null,null,null,null,"*****"]
[null,null,null,null,null,null,null,null,null,null,null,null,null,null,0,null,{"$f":"IF(AC385=\"*****\",\"\",IF(ISERROR(MATCH(AC385,OFFSET(AC385,1,0):$AC$490,0)),INDEX('BV & Plaatsing'!$AC$12:$AD$490,MATCH(AC385,'BV & Plaatsing'!$AC$12:$AC$490,0),2),\"\"))","v":""},"",null,null,null,null,null,null,null,null,null,null,"*****"]
[null,null,null,null,null,null,null,null,null,null,null,null,null,null,0,null,{"$f":"IF(AC386=\"*****\",\"\",IF(ISERROR(MATCH(AC386,OFFSET(AC386,1,0):$AC$490,0)),INDEX('BV & Plaatsing'!$AC$12:$AD$490,MATCH(AC386,'BV & Plaatsing'!$AC$12:$AC$490,0),2),\"\"))","v":""},"",null,null,null,null,null,null,null,null,null,null,"*****"]
[null,null,null,null,null,null,null,null,null,null,null,null,null,null,0,null,{"$f":"IF(AC387=\"*****\",\"\",IF(ISERROR(MATCH(AC387,OFFSET(AC387,1,0):$AC$490,0)),INDEX('BV & Plaatsing'!$AC$12:$AD$490,MATCH(AC387,'BV & Plaatsing'!$AC$12:$AC$490,0),2),\"\"))","v":""},"",null,null,null,null,null,null,null,null,null,null,"*****"]
[null,null,null,null,null,null,null,null,null,null,null,null,null,null,0,null,{"$f":"IF(AC388=\"*****\",\"\",IF(ISERROR(MATCH(AC388,OFFSET(AC388,1,0):$AC$490,0)),INDEX('BV & Plaatsing'!$AC$12:$AD$490,MATCH(AC388,'BV & Plaatsing'!$AC$12:$AC$490,0),2),\"\"))","v":""},"",null,null,null,null,null,null,null,null,null,null,"*****"]
[null,null,null,null,null,null,null,null,null,null,null,null,null,null,0,null,{"$f":"IF(AC389=\"*****\",\"\",IF(ISERROR(MATCH(AC389,OFFSET(AC389,1,0):$AC$490,0)),INDEX('BV & Plaatsing'!$AC$12:$AD$490,MATCH(AC389,'BV & Plaatsing'!$AC$12:$AC$490,0),2),\"\"))","v":""},"",null,null,null,null,null,null,null,null,null,null,"*****"]
[null,null,null,null,null,null,null,null,null,null,null,null,null,null,0,null,{"$f":"IF(AC390=\"*****\",\"\",IF(ISERROR(MATCH(AC390,OFFSET(AC390,1,0):$AC$490,0)),INDEX('BV & Plaatsing'!$AC$12:$AD$490,MATCH(AC390,'BV & Plaatsing'!$AC$12:$AC$490,0),2),\"\"))","v":""},"",null,null,null,null,null,null,null,null,null,null,"*****"]
[null,null,null,null,null,null,null,null,null,null,null,null,null,null,0,null,{"$f":"IF(AC391=\"*****\",\"\",IF(ISERROR(MATCH(AC391,OFFSET(AC391,1,0):$AC$490,0)),INDEX('BV & Plaatsing'!$AC$12:$AD$490,MATCH(AC391,'BV & Plaatsing'!$AC$12:$AC$490,0),2),\"\"))","v":""},"",null,null,null,null,null,null,null,null,null,null,"*****"]
[null,null,null,null,null,null,null,null,null,null,null,null,null,null,0,null,{"$f":"IF(AC392=\"*****\",\"\",IF(ISERROR(MATCH(AC392,OFFSET(AC392,1,0):$AC$490,0)),INDEX('BV & Plaatsing'!$AC$12:$AD$490,MATCH(AC392,'BV & Plaatsing'!$AC$12:$AC$490,0),2),\"\"))","v":""},"",null,null,null,null,null,null,null,null,null,null,"*****"]
[null,null,null,null,null,null,null,null,null,null,null,null,null,null,0,null,{"$f":"IF(AC393=\"*****\",\"\",IF(ISERROR(MATCH(AC393,OFFSET(AC393,1,0):$AC$490,0)),INDEX('BV & Plaatsing'!$AC$12:$AD$490,MATCH(AC393,'BV & Plaatsing'!$AC$12:$AC$490,0),2),\"\"))","v":""},"",null,null,null,null,null,null,null,null,null,null,"*****"]
[null,null,null,null,null,null,null,null,null,null,null,null,null,null,0,null,{"$f":"IF(AC394=\"*****\",\"\",IF(ISERROR(MATCH(AC394,OFFSET(AC394,1,0):$AC$490,0)),INDEX('BV & Plaatsing'!$AC$12:$AD$490,MATCH(AC394,'BV & Plaatsing'!$AC$12:$AC$490,0),2),\"\"))","v":""},"",null,null,null,null,null,null,null,null,null,null,"*****"]
[null,null,null,null,null,null,null,null,null,null,null,null,null,null,0,null,{"$f":"IF(AC395=\"*****\",\"\",IF(ISERROR(MATCH(AC395,OFFSET(AC395,1,0):$AC$490,0)),INDEX('BV & Plaatsing'!$AC$12:$AD$490,MATCH(AC395,'BV & Plaatsing'!$AC$12:$AC$490,0),2),\"\"))","v":""},"",null,null,null,null,null,null,null,null,null,null,"*****"]
[null,null,null,null,null,null,null,null,null,null,null,null,null,null,0,null,{"$f":"IF(AC396=\"*****\",\"\",IF(ISERROR(MATCH(AC396,OFFSET(AC396,1,0):$AC$490,0)),INDEX('BV & Plaatsing'!$AC$12:$AD$490,MATCH(AC396,'BV & Plaatsing'!$AC$12:$AC$490,0),2),\"\"))","v":""},"",null,null,null,null,null,null,null,null,null,null,"*****"]
[null,null,null,null,null,null,null,null,null,null,null,null,null,null,0,null,{"$f":"IF(AC397=\"*****\",\"\",IF(ISERROR(MATCH(AC397,OFFSET(AC397,1,0):$AC$490,0)),INDEX('BV & Plaatsing'!$AC$12:$AD$490,MATCH(AC397,'BV & Plaatsing'!$AC$12:$AC$490,0),2),\"\"))","v":""},{"$f":"IF(AC397=\"*****\",\"\",IF(J397<>MID(P397,SEARCH(\"[\",P397,1)+1,SEARCH(\"]\",P397,1)-SEARCH(\"[\",P397,1)-1),\">> Omschrijving goederen plaatsingsaangifte <> omschrijving geplaatste goederen in product\",\"\"))","v":""},null,null,null,null,null,null,null,null,null,null,"*****"]
[null,null,null,null,null,null,null,null,null,null,null,null,null,null,0,null,{"$f":"IF(AC398=\"*****\",\"\",IF(ISERROR(MATCH(AC398,OFFSET(AC398,1,0):$AC$490,0)),INDEX('BV & Plaatsing'!$AC$12:$AD$490,MATCH(AC398,'BV & Plaatsing'!$AC$12:$AC$490,0),2),\"\"))","v":""},"",null,null,null,null,null,null,null,null,null,null,"*****"]
[null,null,null,null,null,null,null,null,null,null,null,null,null,null,0,null,{"$f":"IF(AC399=\"*****\",\"\",IF(ISERROR(MATCH(AC399,OFFSET(AC399,1,0):$AC$490,0)),INDEX('BV & Plaatsing'!$AC$12:$AD$490,MATCH(AC399,'BV & Plaatsing'!$AC$12:$AC$490,0),2),\"\"))","v":""},"",null,null,null,null,null,null,null,null,null,null,"*****"]
[null,null,null,null,null,null,null,null,null,null,null,null,null,null,0,null,{"$f":"IF(AC400=\"*****\",\"\",IF(ISERROR(MATCH(AC400,OFFSET(AC400,1,0):$AC$490,0)),INDEX('BV & Plaatsing'!$AC$12:$AD$490,MATCH(AC400,'BV & Plaatsing'!$AC$12:$AC$490,0),2),\"\"))","v":""},"",null,null,null,null,null,null,null,null,null,null,"*****"]
[null,null,null,null,null,null,null,null,null,null,null,null,null,null,0,null,{"$f":"IF(AC401=\"*****\",\"\",IF(ISERROR(MATCH(AC401,OFFSET(AC401,1,0):$AC$490,0)),INDEX('BV & Plaatsing'!$AC$12:$AD$490,MATCH(AC401,'BV & Plaatsing'!$AC$12:$AC$490,0),2),\"\"))","v":""},"",null,null,null,null,null,null,null,null,null,null,"*****"]
[null,null,null,null,null,null,null,null,null,null,null,null,null,null,0,null,{"$f":"IF(AC402=\"*****\",\"\",IF(ISERROR(MATCH(AC402,OFFSET(AC402,1,0):$AC$490,0)),INDEX('BV & Plaatsing'!$AC$12:$AD$490,MATCH(AC402,'BV & Plaatsing'!$AC$12:$AC$490,0),2),\"\"))","v":""},"",null,null,null,null,null,null,null,null,null,null,"*****"]
[null,null,null,null,null,null,null,null,null,null,null,null,null,null,0,null,{"$f":"IF(AC403=\"*****\",\"\",IF(ISERROR(MATCH(AC403,OFFSET(AC403,1,0):$AC$490,0)),INDEX('BV & Plaatsing'!$AC$12:$AD$490,MATCH(AC403,'BV & Plaatsing'!$AC$12:$AC$490,0),2),\"\"))","v":""},"",null,null,null,null,null,null,null,null,null,null,"*****"]
[null,null,null,null,null,null,null,null,null,null,null,null,null,null,0,null,{"$f":"IF(AC404=\"*****\",\"\",IF(ISERROR(MATCH(AC404,OFFSET(AC404,1,0):$AC$490,0)),INDEX('BV & Plaatsing'!$AC$12:$AD$490,MATCH(AC404,'BV & Plaatsing'!$AC$12:$AC$490,0),2),\"\"))","v":""},"",null,null,null,null,null,null,null,null,null,null,"*****"]
[null,null,null,null,null,null,null,null,null,null,null,null,null,null,0,null,{"$f":"IF(AC405=\"*****\",\"\",IF(ISERROR(MATCH(AC405,OFFSET(AC405,1,0):$AC$490,0)),INDEX('BV & Plaatsing'!$AC$12:$AD$490,MATCH(AC405,'BV & Plaatsing'!$AC$12:$AC$490,0),2),\"\"))","v":""},"",null,null,null,null,null,null,null,null,null,null,"*****"]
[null,null,null,null,null,null,null,null,null,null,null,null,null,null,0,null,{"$f":"IF(AC406=\"*****\",\"\",IF(ISERROR(MATCH(AC406,OFFSET(AC406,1,0):$AC$490,0)),INDEX('BV & Plaatsing'!$AC$12:$AD$490,MATCH(AC406,'BV & Plaatsing'!$AC$12:$AC$490,0),2),\"\"))","v":""},"",null,null,null,null,null,null,null,null,null,null,"*****"]
[null,null,null,null,null,null,null,null,null,null,null,null,null,null,0,null,{"$f":"IF(AC407=\"*****\",\"\",IF(ISERROR(MATCH(AC407,OFFSET(AC407,1,0):$AC$490,0)),INDEX('BV & Plaatsing'!$AC$12:$AD$490,MATCH(AC407,'BV & Plaatsing'!$AC$12:$AC$490,0),2),\"\"))","v":""},"",null,null,null,null,null,null,null,null,null,null,"*****"]
[null,null,null,null,null,null,null,null,null,null,null,null,null,null,0,null,{"$f":"IF(AC408=\"*****\",\"\",IF(ISERROR(MATCH(AC408,OFFSET(AC408,1,0):$AC$490,0)),INDEX('BV & Plaatsing'!$AC$12:$AD$490,MATCH(AC408,'BV & Plaatsing'!$AC$12:$AC$490,0),2),\"\"))","v":""},"",null,null,null,null,null,null,null,null,null,null,"*****"]
[null,null,null,null,null,null,null,null,null,null,null,null,null,null,0,null,{"$f":"IF(AC409=\"*****\",\"\",IF(ISERROR(MATCH(AC409,OFFSET(AC409,1,0):$AC$490,0)),INDEX('BV & Plaatsing'!$AC$12:$AD$490,MATCH(AC409,'BV & Plaatsing'!$AC$12:$AC$490,0),2),\"\"))","v":""},"",null,null,null,null,null,null,null,null,null,null,"*****"]
[null,null,null,null,null,null,null,null,null,null,null,null,null,null,0,null,{"$f":"IF(AC410=\"*****\",\"\",IF(ISERROR(MATCH(AC410,OFFSET(AC410,1,0):$AC$490,0)),INDEX('BV & Plaatsing'!$AC$12:$AD$490,MATCH(AC410,'BV & Plaatsing'!$AC$12:$AC$490,0),2),\"\"))","v":""},"",null,null,null,null,null,null,null,null,null,null,"*****"]
[null,null,null,null,null,null,null,null,null,null,null,null,null,null,0,null,{"$f":"IF(AC411=\"*****\",\"\",IF(ISERROR(MATCH(AC411,OFFSET(AC411,1,0):$AC$490,0)),INDEX('BV & Plaatsing'!$AC$12:$AD$490,MATCH(AC411,'BV & Plaatsing'!$AC$12:$AC$490,0),2),\"\"))","v":""},"",null,null,null,null,null,null,null,null,null,null,"*****"]
[null,null,null,null,null,null,null,null,null,null,null,null,null,null,0,null,{"$f":"IF(AC412=\"*****\",\"\",IF(ISERROR(MATCH(AC412,OFFSET(AC412,1,0):$AC$490,0)),INDEX('BV & Plaatsing'!$AC$12:$AD$490,MATCH(AC412,'BV & Plaatsing'!$AC$12:$AC$490,0),2),\"\"))","v":""},"",null,null,null,null,null,null,null,null,null,null,"*****"]
[null,null,null,null,null,null,null,null,null,null,null,null,null,null,0,null,{"$f":"IF(AC413=\"*****\",\"\",IF(ISERROR(MATCH(AC413,OFFSET(AC413,1,0):$AC$490,0)),INDEX('BV & Plaatsing'!$AC$12:$AD$490,MATCH(AC413,'BV & Plaatsing'!$AC$12:$AC$490,0),2),\"\"))","v":""},"",null,null,null,null,null,null,null,null,null,null,"*****"]
[null,null,null,null,null,null,null,null,null,null,null,null,null,null,0,null,{"$f":"IF(AC414=\"*****\",\"\",IF(ISERROR(MATCH(AC414,OFFSET(AC414,1,0):$AC$490,0)),INDEX('BV & Plaatsing'!$AC$12:$AD$490,MATCH(AC414,'BV & Plaatsing'!$AC$12:$AC$490,0),2),\"\"))","v":""},"",null,null,null,null,null,null,null,null,null,null,"*****"]
[null,null,null,null,null,null,null,null,null,null,null,null,null,null,0,null,{"$f":"IF(AC415=\"*****\",\"\",IF(ISERROR(MATCH(AC415,OFFSET(AC415,1,0):$AC$490,0)),INDEX('BV & Plaatsing'!$AC$12:$AD$490,MATCH(AC415,'BV & Plaatsing'!$AC$12:$AC$490,0),2),\"\"))","v":""},"",null,null,null,null,null,null,null,null,null,null,"*****"]
[null,null,null,null,null,null,null,null,null,null,null,null,null,null,0,null,{"$f":"IF(AC416=\"*****\",\"\",IF(ISERROR(MATCH(AC416,OFFSET(AC416,1,0):$AC$490,0)),INDEX('BV & Plaatsing'!$AC$12:$AD$490,MATCH(AC416,'BV & Plaatsing'!$AC$12:$AC$490,0),2),\"\"))","v":""},"",null,null,null,null,null,null,null,null,null,null,"*****"]
[null,null,null,null,null,null,null,null,null,null,null,null,null,null,0,null,{"$f":"IF(AC417=\"*****\",\"\",IF(ISERROR(MATCH(AC417,OFFSET(AC417,1,0):$AC$490,0)),INDEX('BV & Plaatsing'!$AC$12:$AD$490,MATCH(AC417,'BV & Plaatsing'!$AC$12:$AC$490,0),2),\"\"))","v":""},"",null,null,null,null,null,null,null,null,null,null,"*****"]
[null,null,null,null,null,null,null,null,null,null,null,null,null,null,0,null,{"$f":"IF(AC418=\"*****\",\"\",IF(ISERROR(MATCH(AC418,OFFSET(AC418,1,0):$AC$490,0)),INDEX('BV & Plaatsing'!$AC$12:$AD$490,MATCH(AC418,'BV & Plaatsing'!$AC$12:$AC$490,0),2),\"\"))","v":""},"",null,null,null,null,null,null,null,null,null,null,"*****"]
[null,null,null,null,null,null,null,null,null,null,null,null,null,null,0,null,{"$f":"IF(AC419=\"*****\",\"\",IF(ISERROR(MATCH(AC419,OFFSET(AC419,1,0):$AC$490,0)),INDEX('BV & Plaatsing'!$AC$12:$AD$490,MATCH(AC419,'BV & Plaatsing'!$AC$12:$AC$490,0),2),\"\"))","v":""},"",null,null,null,null,null,null,null,null,null,null,"*****"]
[null,null,null,null,null,null,null,null,null,null,null,null,null,null,0,null,{"$f":"IF(AC420=\"*****\",\"\",IF(ISERROR(MATCH(AC420,OFFSET(AC420,1,0):$AC$490,0)),INDEX('BV & Plaatsing'!$AC$12:$AD$490,MATCH(AC420,'BV & Plaatsing'!$AC$12:$AC$490,0),2),\"\"))","v":""},"",null,null,null,null,null,null,null,null,null,null,"*****"]
[null,null,null,null,null,null,null,null,null,null,null,null,null,null,0,null,{"$f":"IF(AC421=\"*****\",\"\",IF(ISERROR(MATCH(AC421,OFFSET(AC421,1,0):$AC$490,0)),INDEX('BV & Plaatsing'!$AC$12:$AD$490,MATCH(AC421,'BV & Plaatsing'!$AC$12:$AC$490,0),2),\"\"))","v":""},"",null,null,null,null,null,null,null,null,null,null,"*****"]
[null,null,null,null,null,null,null,null,null,null,null,null,null,null,0,null,{"$f":"IF(AC422=\"*****\",\"\",IF(ISERROR(MATCH(AC422,OFFSET(AC422,1,0):$AC$490,0)),INDEX('BV & Plaatsing'!$AC$12:$AD$490,MATCH(AC422,'BV & Plaatsing'!$AC$12:$AC$490,0),2),\"\"))","v":""},"",null,null,null,null,null,null,null,null,null,null,"*****"]
[null,null,null,null,null,null,null,null,null,null,null,null,null,null,0,null,{"$f":"IF(AC423=\"*****\",\"\",IF(ISERROR(MATCH(AC423,OFFSET(AC423,1,0):$AC$490,0)),INDEX('BV & Plaatsing'!$AC$12:$AD$490,MATCH(AC423,'BV & Plaatsing'!$AC$12:$AC$490,0),2),\"\"))","v":""},"",null,null,null,null,null,null,null,null,null,null,"*****"]
[null,null,null,null,null,null,null,null,null,null,null,null,null,null,0,null,{"$f":"IF(AC424=\"*****\",\"\",IF(ISERROR(MATCH(AC424,OFFSET(AC424,1,0):$AC$490,0)),INDEX('BV & Plaatsing'!$AC$12:$AD$490,MATCH(AC424,'BV & Plaatsing'!$AC$12:$AC$490,0),2),\"\"))","v":""},"",null,null,null,null,null,null,null,null,null,null,"*****"]
[null,null,null,null,null,null,null,null,null,null,null,null,null,null,0,null,{"$f":"IF(AC425=\"*****\",\"\",IF(ISERROR(MATCH(AC425,OFFSET(AC425,1,0):$AC$490,0)),INDEX('BV & Plaatsing'!$AC$12:$AD$490,MATCH(AC425,'BV & Plaatsing'!$AC$12:$AC$490,0),2),\"\"))","v":""},"",null,null,null,null,null,null,null,null,null,null,"*****"]
[null,null,null,null,null,null,null,null,null,null,null,null,null,null,0,null,{"$f":"IF(AC426=\"*****\",\"\",IF(ISERROR(MATCH(AC426,OFFSET(AC426,1,0):$AC$490,0)),INDEX('BV & Plaatsing'!$AC$12:$AD$490,MATCH(AC426,'BV & Plaatsing'!$AC$12:$AC$490,0),2),\"\"))","v":""},"",null,null,null,null,null,null,null,null,null,null,"*****"]
[null,null,null,null,null,null,null,null,null,null,null,null,null,null,{"$f":"IF(AND(K427>0,L427>0),ROUND(K427/L427*100,2),0)","v":0},null,{"$f":"IF(AC427=\"*****\",\"\",IF(ISERROR(MATCH(AC427,OFFSET(AC427,1,0):$AC$490,0)),INDEX('BV & Plaatsing'!$AC$12:$AD$490,MATCH(AC427,'BV & Plaatsing'!$AC$12:$AC$490,0),2),\"\"))","v":""},"",null,null,null,null,null,null,null,null,null,null,{"$f":"IF(RIGHT(P427,1)=\"]\",LEFT(P427,SEARCH(\"[\",P427)-2),\"*****\")","v":"*****"}]
[null,null,null,null,null,null,null,null,null,null,null,null,null,null,0,null,{"$f":"IF(AC428=\"*****\",\"\",IF(ISERROR(MATCH(AC428,OFFSET(AC428,1,0):$AC$490,0)),INDEX('BV & Plaatsing'!$AC$12:$AD$490,MATCH(AC428,'BV & Plaatsing'!$AC$12:$AC$490,0),2),\"\"))","v":""},"",null,null,null,null,null,null,null,null,null,null,"*****"]
[null,null,null,null,null,null,null,null,null,null,null,null,null,null,0,null,{"$f":"IF(AC429=\"*****\",\"\",IF(ISERROR(MATCH(AC429,OFFSET(AC429,1,0):$AC$490,0)),INDEX('BV & Plaatsing'!$AC$12:$AD$490,MATCH(AC429,'BV & Plaatsing'!$AC$12:$AC$490,0),2),\"\"))","v":""},"",null,null,null,null,null,null,null,null,null,null,"*****"]
[null,null,null,null,null,null,null,null,null,null,null,null,null,null,0,null,{"$f":"IF(AC430=\"*****\",\"\",IF(ISERROR(MATCH(AC430,OFFSET(AC430,1,0):$AC$490,0)),INDEX('BV & Plaatsing'!$AC$12:$AD$490,MATCH(AC430,'BV & Plaatsing'!$AC$12:$AC$490,0),2),\"\"))","v":""},"",null,null,null,null,null,null,null,null,null,null,"*****"]
[null,null,null,null,null,null,null,null,null,null,null,null,null,null,0,null,{"$f":"IF(AC431=\"*****\",\"\",IF(ISERROR(MATCH(AC431,OFFSET(AC431,1,0):$AC$490,0)),INDEX('BV & Plaatsing'!$AC$12:$AD$490,MATCH(AC431,'BV & Plaatsing'!$AC$12:$AC$490,0),2),\"\"))","v":""},"",null,null,null,null,null,null,null,null,null,null,"*****"]
[null,null,null,null,null,null,null,null,null,null,null,null,null,null,0,null,{"$f":"IF(AC432=\"*****\",\"\",IF(ISERROR(MATCH(AC432,OFFSET(AC432,1,0):$AC$490,0)),INDEX('BV & Plaatsing'!$AC$12:$AD$490,MATCH(AC432,'BV & Plaatsing'!$AC$12:$AC$490,0),2),\"\"))","v":""},"",null,null,null,null,null,null,null,null,null,null,"*****"]
[null,null,null,null,null,null,null,null,null,null,null,null,null,null,0,null,{"$f":"IF(AC433=\"*****\",\"\",IF(ISERROR(MATCH(AC433,OFFSET(AC433,1,0):$AC$490,0)),INDEX('BV & Plaatsing'!$AC$12:$AD$490,MATCH(AC433,'BV & Plaatsing'!$AC$12:$AC$490,0),2),\"\"))","v":""},"",null,null,null,null,null,null,null,null,null,null,"*****"]
[null,null,null,null,null,null,null,null,null,null,null,null,null,null,0,null,{"$f":"IF(AC434=\"*****\",\"\",IF(ISERROR(MATCH(AC434,OFFSET(AC434,1,0):$AC$490,0)),INDEX('BV & Plaatsing'!$AC$12:$AD$490,MATCH(AC434,'BV & Plaatsing'!$AC$12:$AC$490,0),2),\"\"))","v":""},"",null,null,null,null,null,null,null,null,null,null,"*****"]
[null,null,null,null,null,null,null,null,null,null,null,null,null,null,0,null,{"$f":"IF(AC435=\"*****\",\"\",IF(ISERROR(MATCH(AC435,OFFSET(AC435,1,0):$AC$490,0)),INDEX('BV & Plaatsing'!$AC$12:$AD$490,MATCH(AC435,'BV & Plaatsing'!$AC$12:$AC$490,0),2),\"\"))","v":""},"",null,null,null,null,null,null,null,null,null,null,"*****"]
[null,null,null,null,null,null,null,null,null,null,null,null,null,null,0,null,{"$f":"IF(AC436=\"*****\",\"\",IF(ISERROR(MATCH(AC436,OFFSET(AC436,1,0):$AC$490,0)),INDEX('BV & Plaatsing'!$AC$12:$AD$490,MATCH(AC436,'BV & Plaatsing'!$AC$12:$AC$490,0),2),\"\"))","v":""},"",null,null,null,null,null,null,null,null,null,null,"*****"]
[null,null,null,null,null,null,null,null,null,null,null,null,null,null,0,null,{"$f":"IF(AC437=\"*****\",\"\",IF(ISERROR(MATCH(AC437,OFFSET(AC437,1,0):$AC$490,0)),INDEX('BV & Plaatsing'!$AC$12:$AD$490,MATCH(AC437,'BV & Plaatsing'!$AC$12:$AC$490,0),2),\"\"))","v":""},"",null,null,null,null,null,null,null,null,null,null,"*****"]
[null,null,null,null,null,null,null,null,null,null,null,null,null,null,0,null,{"$f":"IF(AC438=\"*****\",\"\",IF(ISERROR(MATCH(AC438,OFFSET(AC438,1,0):$AC$490,0)),INDEX('BV & Plaatsing'!$AC$12:$AD$490,MATCH(AC438,'BV & Plaatsing'!$AC$12:$AC$490,0),2),\"\"))","v":""},"",null,null,null,null,null,null,null,null,null,null,"*****"]
[null,null,null,null,null,null,null,null,null,null,null,null,null,null,0,null,{"$f":"IF(AC439=\"*****\",\"\",IF(ISERROR(MATCH(AC439,OFFSET(AC439,1,0):$AC$490,0)),INDEX('BV & Plaatsing'!$AC$12:$AD$490,MATCH(AC439,'BV & Plaatsing'!$AC$12:$AC$490,0),2),\"\"))","v":""},"",null,null,null,null,null,null,null,null,null,null,"*****"]
[null,null,null,null,null,null,null,null,null,null,null,null,null,null,0,null,{"$f":"IF(AC440=\"*****\",\"\",IF(ISERROR(MATCH(AC440,OFFSET(AC440,1,0):$AC$490,0)),INDEX('BV & Plaatsing'!$AC$12:$AD$490,MATCH(AC440,'BV & Plaatsing'!$AC$12:$AC$490,0),2),\"\"))","v":""},"",null,null,null,null,null,null,null,null,null,null,"*****"]
[null,null,null,null,null,null,null,null,null,null,null,null,null,null,0,null,{"$f":"IF(AC441=\"*****\",\"\",IF(ISERROR(MATCH(AC441,OFFSET(AC441,1,0):$AC$490,0)),INDEX('BV & Plaatsing'!$AC$12:$AD$490,MATCH(AC441,'BV & Plaatsing'!$AC$12:$AC$490,0),2),\"\"))","v":""},"",null,null,null,null,null,null,null,null,null,null,"*****"]
[null,null,null,null,null,null,null,null,null,null,null,null,null,null,0,null,{"$f":"IF(AC442=\"*****\",\"\",IF(ISERROR(MATCH(AC442,OFFSET(AC442,1,0):$AC$490,0)),INDEX('BV & Plaatsing'!$AC$12:$AD$490,MATCH(AC442,'BV & Plaatsing'!$AC$12:$AC$490,0),2),\"\"))","v":""},"",null,null,null,null,null,null,null,null,null,null,"*****"]
[null,null,null,null,null,null,null,null,null,null,null,null,null,null,0,null,{"$f":"IF(AC443=\"*****\",\"\",IF(ISERROR(MATCH(AC443,OFFSET(AC443,1,0):$AC$490,0)),INDEX('BV & Plaatsing'!$AC$12:$AD$490,MATCH(AC443,'BV & Plaatsing'!$AC$12:$AC$490,0),2),\"\"))","v":""},"",null,null,null,null,null,null,null,null,null,null,"*****"]
[null,null,null,null,null,null,null,null,null,null,null,null,null,null,0,null,{"$f":"IF(AC444=\"*****\",\"\",IF(ISERROR(MATCH(AC444,OFFSET(AC444,1,0):$AC$490,0)),INDEX('BV & Plaatsing'!$AC$12:$AD$490,MATCH(AC444,'BV & Plaatsing'!$AC$12:$AC$490,0),2),\"\"))","v":""},"",null,null,null,null,null,null,null,null,null,null,"*****"]
[null,null,null,null,null,null,null,null,null,null,null,null,null,null,0,null,{"$f":"IF(AC445=\"*****\",\"\",IF(ISERROR(MATCH(AC445,OFFSET(AC445,1,0):$AC$490,0)),INDEX('BV & Plaatsing'!$AC$12:$AD$490,MATCH(AC445,'BV & Plaatsing'!$AC$12:$AC$490,0),2),\"\"))","v":""},"",null,null,null,null,null,null,null,null,null,null,"*****"]
[null,null,null,null,null,null,null,null,null,null,null,null,null,null,0,null,{"$f":"IF(AC446=\"*****\",\"\",IF(ISERROR(MATCH(AC446,OFFSET(AC446,1,0):$AC$490,0)),INDEX('BV & Plaatsing'!$AC$12:$AD$490,MATCH(AC446,'BV & Plaatsing'!$AC$12:$AC$490,0),2),\"\"))","v":""},"",null,null,null,null,null,null,null,null,null,null,"*****"]
[null,null,null,null,null,null,null,null,null,null,null,null,null,null,0,null,{"$f":"IF(AC447=\"*****\",\"\",IF(ISERROR(MATCH(AC447,OFFSET(AC447,1,0):$AC$490,0)),INDEX('BV & Plaatsing'!$AC$12:$AD$490,MATCH(AC447,'BV & Plaatsing'!$AC$12:$AC$490,0),2),\"\"))","v":""},"",null,null,null,null,null,null,null,null,null,null,"*****"]
[null,null,null,null,null,null,null,null,null,null,null,null,null,null,0,null,{"$f":"IF(AC448=\"*****\",\"\",IF(ISERROR(MATCH(AC448,OFFSET(AC448,1,0):$AC$490,0)),INDEX('BV & Plaatsing'!$AC$12:$AD$490,MATCH(AC448,'BV & Plaatsing'!$AC$12:$AC$490,0),2),\"\"))","v":""},"",null,null,null,null,null,null,null,null,null,null,"*****"]
[null,null,null,null,null,null,null,null,null,null,null,null,null,null,0,null,{"$f":"IF(AC449=\"*****\",\"\",IF(ISERROR(MATCH(AC449,OFFSET(AC449,1,0):$AC$490,0)),INDEX('BV & Plaatsing'!$AC$12:$AD$490,MATCH(AC449,'BV & Plaatsing'!$AC$12:$AC$490,0),2),\"\"))","v":""},"",null,null,null,null,null,null,null,null,null,null,"*****"]
[null,null,null,null,null,null,null,null,null,null,null,null,null,null,0,null,{"$f":"IF(AC450=\"*****\",\"\",IF(ISERROR(MATCH(AC450,OFFSET(AC450,1,0):$AC$490,0)),INDEX('BV & Plaatsing'!$AC$12:$AD$490,MATCH(AC450,'BV & Plaatsing'!$AC$12:$AC$490,0),2),\"\"))","v":""},"",null,null,null,null,null,null,null,null,null,null,"*****"]
[null,null,null,null,null,null,null,null,null,null,null,null,null,null,0,null,{"$f":"IF(AC451=\"*****\",\"\",IF(ISERROR(MATCH(AC451,OFFSET(AC451,1,0):$AC$490,0)),INDEX('BV & Plaatsing'!$AC$12:$AD$490,MATCH(AC451,'BV & Plaatsing'!$AC$12:$AC$490,0),2),\"\"))","v":""},"",null,null,null,null,null,null,null,null,null,null,"*****"]
[null,null,null,null,null,null,null,null,null,null,null,null,null,null,0,null,{"$f":"IF(AC452=\"*****\",\"\",IF(ISERROR(MATCH(AC452,OFFSET(AC452,1,0):$AC$490,0)),INDEX('BV & Plaatsing'!$AC$12:$AD$490,MATCH(AC452,'BV & Plaatsing'!$AC$12:$AC$490,0),2),\"\"))","v":""},"",null,null,null,null,null,null,null,null,null,null,"*****"]
[null,null,null,null,null,null,null,null,null,null,null,null,null,null,0,null,{"$f":"IF(AC453=\"*****\",\"\",IF(ISERROR(MATCH(AC453,OFFSET(AC453,1,0):$AC$490,0)),INDEX('BV & Plaatsing'!$AC$12:$AD$490,MATCH(AC453,'BV & Plaatsing'!$AC$12:$AC$490,0),2),\"\"))","v":""},"",null,null,null,null,null,null,null,null,null,null,"*****"]
[null,null,null,null,null,null,null,null,null,null,null,null,null,null,0,null,{"$f":"IF(AC454=\"*****\",\"\",IF(ISERROR(MATCH(AC454,OFFSET(AC454,1,0):$AC$490,0)),INDEX('BV & Plaatsing'!$AC$12:$AD$490,MATCH(AC454,'BV & Plaatsing'!$AC$12:$AC$490,0),2),\"\"))","v":""},"",null,null,null,null,null,null,null,null,null,null,"*****"]
[null,null,null,null,null,null,null,null,null,null,null,null,null,null,0,null,{"$f":"IF(AC455=\"*****\",\"\",IF(ISERROR(MATCH(AC455,OFFSET(AC455,1,0):$AC$490,0)),INDEX('BV & Plaatsing'!$AC$12:$AD$490,MATCH(AC455,'BV & Plaatsing'!$AC$12:$AC$490,0),2),\"\"))","v":""},"",null,null,null,null,null,null,null,null,null,null,"*****"]
[null,null,null,null,null,null,null,null,null,null,null,null,null,null,0,null,{"$f":"IF(AC456=\"*****\",\"\",IF(ISERROR(MATCH(AC456,OFFSET(AC456,1,0):$AC$490,0)),INDEX('BV & Plaatsing'!$AC$12:$AD$490,MATCH(AC456,'BV & Plaatsing'!$AC$12:$AC$490,0),2),\"\"))","v":""},"",null,null,null,null,null,null,null,null,null,null,"*****"]
[null,null,null,null,null,null,null,null,null,null,null,null,null,null,0,null,{"$f":"IF(AC457=\"*****\",\"\",IF(ISERROR(MATCH(AC457,OFFSET(AC457,1,0):$AC$490,0)),INDEX('BV & Plaatsing'!$AC$12:$AD$490,MATCH(AC457,'BV & Plaatsing'!$AC$12:$AC$490,0),2),\"\"))","v":""},"",null,null,null,null,null,null,null,null,null,null,"*****"]
[null,null,null,null,null,null,null,null,null,null,null,null,null,null,0,null,{"$f":"IF(AC458=\"*****\",\"\",IF(ISERROR(MATCH(AC458,OFFSET(AC458,1,0):$AC$490,0)),INDEX('BV & Plaatsing'!$AC$12:$AD$490,MATCH(AC458,'BV & Plaatsing'!$AC$12:$AC$490,0),2),\"\"))","v":""},"",null,null,null,null,null,null,null,null,null,null,"*****"]
[null,null,null,null,null,null,null,null,null,null,null,null,null,null,0,null,{"$f":"IF(AC459=\"*****\",\"\",IF(ISERROR(MATCH(AC459,OFFSET(AC459,1,0):$AC$490,0)),INDEX('BV & Plaatsing'!$AC$12:$AD$490,MATCH(AC459,'BV & Plaatsing'!$AC$12:$AC$490,0),2),\"\"))","v":""},"",null,null,null,null,null,null,null,null,null,null,"*****"]
[null,null,null,null,null,null,null,null,null,null,null,null,null,null,0,null,{"$f":"IF(AC460=\"*****\",\"\",IF(ISERROR(MATCH(AC460,OFFSET(AC460,1,0):$AC$490,0)),INDEX('BV & Plaatsing'!$AC$12:$AD$490,MATCH(AC460,'BV & Plaatsing'!$AC$12:$AC$490,0),2),\"\"))","v":""},"",null,null,null,null,null,null,null,null,null,null,"*****"]
[null,null,null,null,null,null,null,null,null,null,null,null,null,null,0,null,{"$f":"IF(AC461=\"*****\",\"\",IF(ISERROR(MATCH(AC461,OFFSET(AC461,1,0):$AC$490,0)),INDEX('BV & Plaatsing'!$AC$12:$AD$490,MATCH(AC461,'BV & Plaatsing'!$AC$12:$AC$490,0),2),\"\"))","v":""},{"$f":"IF(AC461=\"*****\",\"\",IF(J461<>MID(P461,SEARCH(\"[\",P461,1)+1,SEARCH(\"]\",P461,1)-SEARCH(\"[\",P461,1)-1),\">> Omschrijving goederen plaatsingsaangifte <> omschrijving geplaatste goederen in product\",\"\"))","v":""},null,null,null,null,null,null,null,null,null,null,"*****"]
[null,null,null,null,null,null,null,null,null,null,null,null,null,null,0,null,{"$f":"IF(AC462=\"*****\",\"\",IF(ISERROR(MATCH(AC462,OFFSET(AC462,1,0):$AC$490,0)),INDEX('BV & Plaatsing'!$AC$12:$AD$490,MATCH(AC462,'BV & Plaatsing'!$AC$12:$AC$490,0),2),\"\"))","v":""},"",null,null,null,null,null,null,null,null,null,null,"*****"]
[null,null,null,null,null,null,null,null,null,null,null,null,null,null,0,null,{"$f":"IF(AC463=\"*****\",\"\",IF(ISERROR(MATCH(AC463,OFFSET(AC463,1,0):$AC$490,0)),INDEX('BV & Plaatsing'!$AC$12:$AD$490,MATCH(AC463,'BV & Plaatsing'!$AC$12:$AC$490,0),2),\"\"))","v":""},"",null,null,null,null,null,null,null,null,null,null,"*****"]
[null,null,null,null,null,null,null,null,null,null,null,null,null,null,0,null,{"$f":"IF(AC464=\"*****\",\"\",IF(ISERROR(MATCH(AC464,OFFSET(AC464,1,0):$AC$490,0)),INDEX('BV & Plaatsing'!$AC$12:$AD$490,MATCH(AC464,'BV & Plaatsing'!$AC$12:$AC$490,0),2),\"\"))","v":""},"",null,null,null,null,null,null,null,null,null,null,"*****"]
[null,null,null,null,null,null,null,null,null,null,null,null,null,null,0,null,{"$f":"IF(AC465=\"*****\",\"\",IF(ISERROR(MATCH(AC465,OFFSET(AC465,1,0):$AC$490,0)),INDEX('BV & Plaatsing'!$AC$12:$AD$490,MATCH(AC465,'BV & Plaatsing'!$AC$12:$AC$490,0),2),\"\"))","v":""},"",null,null,null,null,null,null,null,null,null,null,"*****"]
[null,null,null,null,null,null,null,null,null,null,null,null,null,null,0,null,{"$f":"IF(AC466=\"*****\",\"\",IF(ISERROR(MATCH(AC466,OFFSET(AC466,1,0):$AC$490,0)),INDEX('BV & Plaatsing'!$AC$12:$AD$490,MATCH(AC466,'BV & Plaatsing'!$AC$12:$AC$490,0),2),\"\"))","v":""},"",null,null,null,null,null,null,null,null,null,null,"*****"]
[null,null,null,null,null,null,null,null,null,null,null,null,null,null,0,null,{"$f":"IF(AC467=\"*****\",\"\",IF(ISERROR(MATCH(AC467,OFFSET(AC467,1,0):$AC$490,0)),INDEX('BV & Plaatsing'!$AC$12:$AD$490,MATCH(AC467,'BV & Plaatsing'!$AC$12:$AC$490,0),2),\"\"))","v":""},"",null,null,null,null,null,null,null,null,null,null,"*****"]
[null,null,null,null,null,null,null,null,null,null,null,null,null,null,0,null,{"$f":"IF(AC468=\"*****\",\"\",IF(ISERROR(MATCH(AC468,OFFSET(AC468,1,0):$AC$490,0)),INDEX('BV & Plaatsing'!$AC$12:$AD$490,MATCH(AC468,'BV & Plaatsing'!$AC$12:$AC$490,0),2),\"\"))","v":""},"",null,null,null,null,null,null,null,null,null,null,"*****"]
[null,null,null,null,null,null,null,null,null,null,null,null,null,null,0,null,{"$f":"IF(AC469=\"*****\",\"\",IF(ISERROR(MATCH(AC469,OFFSET(AC469,1,0):$AC$490,0)),INDEX('BV & Plaatsing'!$AC$12:$AD$490,MATCH(AC469,'BV & Plaatsing'!$AC$12:$AC$490,0),2),\"\"))","v":""},"",null,null,null,null,null,null,null,null,null,null,"*****"]
[null,null,null,null,null,null,null,null,null,null,null,null,null,null,0,null,{"$f":"IF(AC470=\"*****\",\"\",IF(ISERROR(MATCH(AC470,OFFSET(AC470,1,0):$AC$490,0)),INDEX('BV & Plaatsing'!$AC$12:$AD$490,MATCH(AC470,'BV & Plaatsing'!$AC$12:$AC$490,0),2),\"\"))","v":""},"",null,null,null,null,null,null,null,null,null,null,"*****"]
[null,null,null,null,null,null,null,null,null,null,null,null,null,null,0,null,{"$f":"IF(AC471=\"*****\",\"\",IF(ISERROR(MATCH(AC471,OFFSET(AC471,1,0):$AC$490,0)),INDEX('BV & Plaatsing'!$AC$12:$AD$490,MATCH(AC471,'BV & Plaatsing'!$AC$12:$AC$490,0),2),\"\"))","v":""},"",null,null,null,null,null,null,null,null,null,null,"*****"]
[null,null,null,null,null,null,null,null,null,null,null,null,null,null,0,null,{"$f":"IF(AC472=\"*****\",\"\",IF(ISERROR(MATCH(AC472,OFFSET(AC472,1,0):$AC$490,0)),INDEX('BV & Plaatsing'!$AC$12:$AD$490,MATCH(AC472,'BV & Plaatsing'!$AC$12:$AC$490,0),2),\"\"))","v":""},"",null,null,null,null,null,null,null,null,null,null,"*****"]
[null,null,null,null,null,null,null,null,null,null,null,null,null,null,0,null,{"$f":"IF(AC473=\"*****\",\"\",IF(ISERROR(MATCH(AC473,OFFSET(AC473,1,0):$AC$490,0)),INDEX('BV & Plaatsing'!$AC$12:$AD$490,MATCH(AC473,'BV & Plaatsing'!$AC$12:$AC$490,0),2),\"\"))","v":""},"",null,null,null,null,null,null,null,null,null,null,"*****"]
[null,null,null,null,null,null,null,null,null,null,null,null,null,null,0,null,{"$f":"IF(AC474=\"*****\",\"\",IF(ISERROR(MATCH(AC474,OFFSET(AC474,1,0):$AC$490,0)),INDEX('BV & Plaatsing'!$AC$12:$AD$490,MATCH(AC474,'BV & Plaatsing'!$AC$12:$AC$490,0),2),\"\"))","v":""},"",null,null,null,null,null,null,null,null,null,null,"*****"]
[null,null,null,null,null,null,null,null,null,null,null,null,null,null,0,null,{"$f":"IF(AC475=\"*****\",\"\",IF(ISERROR(MATCH(AC475,OFFSET(AC475,1,0):$AC$490,0)),INDEX('BV & Plaatsing'!$AC$12:$AD$490,MATCH(AC475,'BV & Plaatsing'!$AC$12:$AC$490,0),2),\"\"))","v":""},"",null,null,null,null,null,null,null,null,null,null,"*****"]
[null,null,null,null,null,null,null,null,null,null,null,null,null,null,0,null,{"$f":"IF(AC476=\"*****\",\"\",IF(ISERROR(MATCH(AC476,OFFSET(AC476,1,0):$AC$490,0)),INDEX('BV & Plaatsing'!$AC$12:$AD$490,MATCH(AC476,'BV & Plaatsing'!$AC$12:$AC$490,0),2),\"\"))","v":""},"",null,null,null,null,null,null,null,null,null,null,"*****"]
[null,null,null,null,null,null,null,null,null,null,null,null,null,null,0,null,{"$f":"IF(AC477=\"*****\",\"\",IF(ISERROR(MATCH(AC477,OFFSET(AC477,1,0):$AC$490,0)),INDEX('BV & Plaatsing'!$AC$12:$AD$490,MATCH(AC477,'BV & Plaatsing'!$AC$12:$AC$490,0),2),\"\"))","v":""},"",null,null,null,null,null,null,null,null,null,null,"*****"]
[null,null,null,null,null,null,null,null,null,null,null,null,null,null,0,null,{"$f":"IF(AC478=\"*****\",\"\",IF(ISERROR(MATCH(AC478,OFFSET(AC478,1,0):$AC$490,0)),INDEX('BV & Plaatsing'!$AC$12:$AD$490,MATCH(AC478,'BV & Plaatsing'!$AC$12:$AC$490,0),2),\"\"))","v":""},"",null,null,null,null,null,null,null,null,null,null,"*****"]
[null,null,null,null,null,null,null,null,null,null,null,null,null,null,0,null,{"$f":"IF(AC479=\"*****\",\"\",IF(ISERROR(MATCH(AC479,OFFSET(AC479,1,0):$AC$490,0)),INDEX('BV & Plaatsing'!$AC$12:$AD$490,MATCH(AC479,'BV & Plaatsing'!$AC$12:$AC$490,0),2),\"\"))","v":""},"",null,null,null,null,null,null,null,null,null,null,"*****"]
[null,null,null,null,null,null,null,null,null,null,null,null,null,null,0,null,{"$f":"IF(AC480=\"*****\",\"\",IF(ISERROR(MATCH(AC480,OFFSET(AC480,1,0):$AC$490,0)),INDEX('BV & Plaatsing'!$AC$12:$AD$490,MATCH(AC480,'BV & Plaatsing'!$AC$12:$AC$490,0),2),\"\"))","v":""},"",null,null,null,null,null,null,null,null,null,null,"*****"]
[null,null,null,null,null,null,null,null,null,null,null,null,null,null,0,null,{"$f":"IF(AC481=\"*****\",\"\",IF(ISERROR(MATCH(AC481,OFFSET(AC481,1,0):$AC$490,0)),INDEX('BV & Plaatsing'!$AC$12:$AD$490,MATCH(AC481,'BV & Plaatsing'!$AC$12:$AC$490,0),2),\"\"))","v":""},"",null,null,null,null,null,null,null,null,null,null,"*****"]
[null,null,null,null,null,null,null,null,null,null,null,null,null,null,0,null,{"$f":"IF(AC482=\"*****\",\"\",IF(ISERROR(MATCH(AC482,OFFSET(AC482,1,0):$AC$490,0)),INDEX('BV & Plaatsing'!$AC$12:$AD$490,MATCH(AC482,'BV & Plaatsing'!$AC$12:$AC$490,0),2),\"\"))","v":""},"",null,null,null,null,null,null,null,null,null,null,"*****"]
[null,null,null,null,null,null,null,null,null,null,null,null,null,null,0,null,{"$f":"IF(AC483=\"*****\",\"\",IF(ISERROR(MATCH(AC483,OFFSET(AC483,1,0):$AC$490,0)),INDEX('BV & Plaatsing'!$AC$12:$AD$490,MATCH(AC483,'BV & Plaatsing'!$AC$12:$AC$490,0),2),\"\"))","v":""},"",null,null,null,null,null,null,null,null,null,null,"*****"]
[null,null,null,null,null,null,null,null,null,null,null,null,null,null,0,null,{"$f":"IF(AC484=\"*****\",\"\",IF(ISERROR(MATCH(AC484,OFFSET(AC484,1,0):$AC$490,0)),INDEX('BV & Plaatsing'!$AC$12:$AD$490,MATCH(AC484,'BV & Plaatsing'!$AC$12:$AC$490,0),2),\"\"))","v":""},"",null,null,null,null,null,null,null,null,null,null,"*****"]
[null,null,null,null,null,null,null,null,null,null,null,null,null,null,0,null,{"$f":"IF(AC485=\"*****\",\"\",IF(ISERROR(MATCH(AC485,OFFSET(AC485,1,0):$AC$490,0)),INDEX('BV & Plaatsing'!$AC$12:$AD$490,MATCH(AC485,'BV & Plaatsing'!$AC$12:$AC$490,0),2),\"\"))","v":""},"",null,null,null,null,null,null,null,null,null,null,"*****"]
[null,null,null,null,null,null,null,null,null,null,null,null,null,null,0,null,{"$f":"IF(AC486=\"*****\",\"\",IF(ISERROR(MATCH(AC486,OFFSET(AC486,1,0):$AC$490,0)),INDEX('BV & Plaatsing'!$AC$12:$AD$490,MATCH(AC486,'BV & Plaatsing'!$AC$12:$AC$490,0),2),\"\"))","v":""},"",null,null,null,null,null,null,null,null,null,null,"*****"]
[null,null,null,null,null,null,null,null,null,null,null,null,null,null,0,null,{"$f":"IF(AC487=\"*****\",\"\",IF(ISERROR(MATCH(AC487,OFFSET(AC487,1,0):$AC$490,0)),INDEX('BV & Plaatsing'!$AC$12:$AD$490,MATCH(AC487,'BV & Plaatsing'!$AC$12:$AC$490,0),2),\"\"))","v":""},"",null,null,null,null,null,null,null,null,null,null,"*****"]
[null,null,null,null,null,null,null,null,null,null,null,null,null,null,{"$f":"IF(AND(K488>0,L488>0),ROUND(K488/L488*100,2),0)","v":0},null,{"$f":"IF(AC488=\"*****\",\"\",IF(ISERROR(MATCH(AC488,OFFSET(AC488,1,0):$AC$490,0)),INDEX('BV & Plaatsing'!$AC$12:$AD$490,MATCH(AC488,'BV & Plaatsing'!$AC$12:$AC$490,0),2),\"\"))","v":""},"",null,null,null,null,null,null,null,null,null,null,{"$f":"IF(RIGHT(P488,1)=\"]\",LEFT(P488,SEARCH(\"[\",P488)-2),\"*****\")","v":"*****"}]
[null,null,null,null,null,null,null,null,null,null,null,null,null,null,0,null,{"$f":"IF(AC489=\"*****\",\"\",IF(ISERROR(MATCH(AC489,OFFSET(AC489,1,0):$AC$490,0)),INDEX('BV & Plaatsing'!$AC$12:$AD$490,MATCH(AC489,'BV & Plaatsing'!$AC$12:$AC$490,0),2),\"\"))","v":""},"",null,null,null,null,null,null,null,null,null,null,"*****"]
[null,null,null,null,null,null,null,null,null,null,null,null,null,null,0,null,{"$f":"IF(AC490=\"*****\",\"\",IF(ISERROR(MATCH(AC490,OFFSET(AC490,1,0):$AC$490,0)),INDEX('BV & Plaatsing'!$AC$12:$AD$490,MATCH(AC490,'BV & Plaatsing'!$AC$12:$AC$490,0),2),\"\"))","v":""},"",null,null,null,null,null,null,null,null,null,null,"*****"]
[]
[null,"Extra regels toevoegen mag alleen met deze knop:"]

{"sheet":"Tussenblad","index":3,"n_rows":2,"n_cols":27,"rows_kept":2,"cut":false,"hidden":true,"merged":[[1,26,2,26],[1,24,2,24],[1,25,2,25],[1,17,2,17],[1,18,2,18],[1,19,2,19],[1,20,2,20],[1,21,2,21],[1,1,2,1],[1,2,2,2],[1,3,2,3],[1,4,2,4],[1,5,2,5],[1,11,2,11],[1,22,2,22],[1,23,2,23],[1,6,2,6],[1,7,2,7],[1,8,2,8],[1,9,2,9],[1,10,2,10],[1,12,2,12],[1,13,2,13],[1,14,2,14],[1,15,2,15],[1,16,2,16]]}
[]
[null,"Soort mutatie","Soort aangifte","Aangifte Identificatie Nummer","Plaats van afgifte","Datum aanvaarding (DD-MM-JJ)","Datum plaatsing onder de regeling (DD-MM-JJ)","Referentienummer in de administratie","Datum aanzuivering","Is de datum van aanzuivering overschreden?","Omschrijving grondstof (evt.in de vorm van een artikelnummer)","Taric-code","Inv.recht %","Douanewaarde","Invoerrecht","Tarief","Heffingsgrondslag","Rechten SR","Totaal invoerrecht","Hoeveelheid geplaatste goederen","Eenheid hoeveelheid (b.v. kgs)","Hoeveelheid vorige periode(n) aangezuiverd","Hoeveelheid in deze periode aangezuiverd","Restant hoeveelheid","Restant invoerrecht (gerelateerd aan hoeveelheid)","Totaal invoerrecht in deze periode afgeschreven (gerelateerd aan hoeveelheid)","Opmerkingen (vrij tekstveld)"]

{"sheet":"Schriftelijke verklaring","index":4,"n_rows":42,"n_cols":53,"rows_kept":42,"cut":false,"hidden":false,"merged":[[19,1,19,5],[6,3,6,9],[10,1,10,9],[2,11,3,18],[8,11,12,18],[17,11,25,18],[18,1,18,9],[20,1,20,9],[7,3,7,9],[0,1,2,9],[3,1,3,9],[4,1,4,9],[5,3,5,9],[6,1,6,2],[5,1,5,2],[8,3,8,9],[21,1,21,9],[23,8,23,9],[24,8,24,9],[0,0,20,0],[23,0,33,0],[17,1,17,9],[11,1,11,3],[14,1,14,5],[14,6,14,9],[11,4,11,9],[12,1,12,9],[13,1,13,9],[16,1,16,9],[15,1,15,5],[15,6,15,9],[19,6,19,9],[9,1,9,9],[7,1,7,2],[8,1,8,2],[30,11,35,18],[29,1,29,2],[30,1,30,9],[29,3,29,9],[22,1,22,9],[23,1,23,7],[27,1,27,9],[31,3,31,9],[26,1,26,9],[25,8,25,9],[25,1,25,7],[24,1,24,7],[28,1,28,9],[42,1,43,9],[36,1,40,9],[32,1,32,9],[33,2,33,4],[33,6,33,9],[34,1,34,9],[41,1,41,4],[41,5,41,9],[35,1,35,9]]}
[{"$f":"'Algemene gegevens'!A1:A23","v":"Aanzuiveringsafrekening BB"},"De Aanzuiveringsafrekening moet worden begeleid door een schriftelijke verklaring. De daarop vermelde gegevens worden mede gebruikt voor de beoordeling van de betrouwbaarheid van de Aanzuiveringsafrekening.\nAls er geen handelingen zijn en geen voorraad is moet u dit ook schriftelijk verklaren. Hiervoor gebruikt u ook deze verklaring.",null,null,null,null,null,null,null,null,null,null,null,null,null,null,null,null,null,null,null,null,null,null,null,null,null,null,null,null,null,null,null,null,null,null,null,null,null,null,null,null,null,null,null,null,null,null,null,null,null,null,">> maak hier een keuze uit één van de twee opties <<"]
[null,null,null,null,null,null,null,null,null,null,null,null,null,null,null,null,null,null,null,null,null,null,null,null,null,null,null,null,null,null,null,null,null,null,null,null,null,null,null,null,null,null,null,null,null,null,null,null,null,null,null,null,"dat de gegevens in de Aanzuiveringsafrekening juist en volledig zijn."]
[null,null,null,null,null,null,null,null,null,null,null,"Door de knop 'Invullen formulier' te gebruiken wordt het formulier gedeeltelijk ingevuld. De overige velden dienen handmatig te worden ingevuld.  De juistheid van de ingevulde velden blijft uw verantwoordelijkheid. ",null,null,null,null,null,null,null,null,null,null,null,null,null,null,null,null,null,null,null,null,null,null,null,null,null,null,null,null,null,null,null,null,null,null,null,null,null,null,null,null,"dat er geen handelingen zijn en geen voorraad is."]
[]
[null,"Vergunninghouder"]
[null,"Naam: ",null,""]
[null,"Adres:",null,""]
[null,"Plaats:",null,""]
[null,"EORI nummer:",null,"",null,null,null,null,null,null,null,"Met de knop 'Printen formuilier' wordt het formulier opgeslagen in de map van de AAR als pdf (Verklaring van 'bedrijf' over periode 'periode'.pdf). \nHet formulier dient ondertekend te worden door een gemachtigde en dient de AAR te begeleiden. U kunt de handtekening eventueel elektronisch zetten, dit in overleg met het controlekantoor."]
[]
[null,"Periode"]
[null,"Periode en jaar: ",null,null,""]
[]
[null,"Vergunning"]
[null,"Soort vergunning: ",null,null,null,null,""]
[null,"Vergunningnummer: ",null,null,null,null,""]
[]
[null,"Te betalen invoerrecht (art. 79, lid 1, letter b DWU)",null,null,null,null,null,null,null,null,null,"Met de knop hieronder kunt u een nieuwe periode starten:\n- de aangiften met voorraad uit het tabblad 'BV & Plaatsing' worden overgenomen;\n- alle aanzuiveringen uit het tabblad 'Aanzuivering' worden verwijderd; \n- de gegevens in het tabblad 'Schriftelijke verklaring' worden verwijderd. \nLet op: vóórdat u deze knop gebruikt moet u de huidige (oude) periode onder een andere naam hebben opgeslagen. \nNadat de nieuwe periode is gemaakt moet u zelf de periode invullen in het tabblad 'Algemene gegevens'."]
[]
[null,"Het te betalen bedrag aan invoerrecht bedraagt: ",null,null,null,null,""]
[null,"Hiervoor ontvangt u een UTB van de Douane."]
[]
[null,"Specificatie van de aanzuiveringsafrekening"]
[{"$f":"'Algemene gegevens'!A26","v":"Versie 2021-06"},"Aantal records op het tabblad 'BV & Plaatsing':",null,null,null,null,null,null,""]
[null,"Aantal records op het tabblad 'Aanzuivering':",null,null,null,null,null,null,""]
[null,"Restant geplaatste goederen op het tabblad 'BV & Plaatsing': ",null,null,null,null,null,null,""]
[]
[null,"Schriftelijke verklaring"]
[null,"Ondergetekende verklaart hierbij namens Vergunninghouder"]
[null,"over de periode:",null,""]
[null,">> maak hier een keuze uit één van de twee opties <<",null,null,null,null,null,null,null,null,null,"De Douane kan een detailoverzicht maken van het te betalen bedrag aan\r\ninvoerrecht; het overzicht wordt naar een nieuwe spreadsheet geëxporteerd.\r\nHet overzicht wordt gesorteerd op Taric-code - Inv.recht% - Tarief - Omschrijving product - Datum aanzuivering - Hoeveelheid, met daarbij Douanewaarde - Rechten (AVR) - Grondslag - Rechten SR - Reeds betaald"]
[null,"","bijlagen."]
[]
[null,"Datum:",null,null,null,"Plaats:"]
[]
[null,"Handtekening gemachtigde:"]
[]
[]
[]
[]
[]
[null,"Naam gemachtigde in blokletters:"]

{"sheet":"Vrij blad","index":5,"n_rows":0,"n_cols":0,"rows_kept":0,"cut":false,"hidden":false,"merged":[]}

{"sheet":"Validaties","index":6,"n_rows":68,"n_cols":34,"rows_kept":68,"cut":false,"hidden":true,"merged":[]}
["Mutatiesoorten BV&Inslagen:","Mutatiesoorten Uitslagen:","Mutatiesoorten Bijzonder:","DocSoort:","Administratieve eenheden:","DocSoort Uit:","Mutatie Doorvoeren","Soort uit te voeren","Equivalente goederen","Berekening",null,null,null,null,null,null,null,null,null,null,null,null,null,null,null,null,null,null,null,null,null,null,null,"Rijlabels"]
["BI","AF","BZ","IM","AL (Liters alcohol 100%)","BEREIKT",null,"Geplaatste goederen",null,null,null,null,null,null,null,null,null,null,null,null,null,null,null,null,null,null,null,null,null,null,null,null,null,"3512C HD SRN 0PXF00410"]
["MB","VM","BM","EU","BDLS (Bundels)","NIET-BEREIKT","Ja","Bewerkte goederen","Ja","art. 79-1-b",null,null,null,null,null,null,null,null,null,null,null,null,null,null,null,null,null,null,null,null,null,null,null,"Anchor Pool HHP"]
["CO","VN","CO","GPA","BLEN (Balen)","TORO",null,"Resten en afvallen",null,null,null,null,null,null,null,null,null,null,null,null,null,null,null,null,null,null,null,null,null,null,null,null,null,"Andere scheepsschroeven"]
["BM","VT","OE",null,"BLKN (Blikken)","NIET-TORO",null,null,null,null,null,null,null,null,null,null,null,null,null,null,null,null,null,null,null,null,null,null,null,null,null,null,null,"Andere werken gietijzer staal "]
["BZ","CO",null,null,"BT (Bruto-registerton (2,8316 M3))","UITVOER",null,null,null,null,null,null,null,null,null,null,null,null,null,null,null,null,null,null,null,null,null,null,null,null,null,null,null,"Andere werken gietijzer staal + wire sheaves"]
["OE","BM",null,null,"CC (Milliliters)","VERN",null,null,null,null,null,null,null,null,null,null,null,null,null,null,null,null,null,null,null,null,null,null,null,null,null,null,null,"BOILER PART, LEVEL FLOAT SWITCH"]
[null,"BZ",null,null,"CL (Aantal cellen)","OVERIGE",null,null,null,null,null,null,null,null,null,null,null,null,null,null,null,null,null,null,null,null,null,null,null,null,null,null,null,"Bouten of schroeven van 800 Mpa of meer Bar Bump fastener kit"]
[null,"OE",null,null,"CM2 (Vierkante centimeter)",null,null,null,null,null,null,null,null,null,null,null,null,null,null,null,null,null,null,null,null,null,null,null,null,null,null,null,null,"CAT dieselmotor 3512 1350 bkW S/N 0PXF00416"]
[null,null,null,null,"COLL (Colli)",null,null,null,null,null,null,null,null,null,null,null,null,null,null,null,null,null,null,null,null,null,null,null,null,null,null,null,null,"CAT Marine Engine 3512 1350 bkW S/N 0PXF00423"]
[null,null,null,null,"CONT (Containers)",null,null,null,null,null,null,null,null,null,null,null,null,null,null,null,null,null,null,null,null,null,null,null,null,null,null,null,null,"Caterpilar Marine Engine SRN OPXF00375"]
[null,null,null,null,"CT (Aantal karaat (1 metriekkaraat=2x10-4))",null,null,null,null,null,null,null,null,null,null,null,null,null,null,null,null,null,null,null,null,null,null,null,null,null,null,null,null,"Caterpillar Marine Diesel Engine Model 3512C 1350 bkW s/n 0PXF00343"]
[null,null,null,null,"CTNS (Kartons of dozen)",null,null,null,null,null,null,null,null,null,null,null,null,null,null,null,null,null,null,null,null,null,null,null,null,null,null,null,null,"Caterpillar Marine Diesel Engine model 3516 1825 Kw s/n PXH00252"]
[null,null,null,null,"FLSN (Flessen)",null,null,null,null,null,null,null,null,null,null,null,null,null,null,null,null,null,null,null,null,null,null,null,null,null,null,null,null,"Caterpillar Marine Diesel Engine model C32 994 Kw s/n RSD00494"]
[null,null,null,null,"GR (Gram)",null,null,null,null,null,null,null,null,null,null,null,null,null,null,null,null,null,null,null,null,null,null,null,null,null,null,null,null,"Caterpillar Marine Engine C32 SRN0AX200201"]
[null,null,null,null,"GS (Gram splijtbare isotopen)",null,null,null,null,null,null,null,null,null,null,null,null,null,null,null,null,null,null,null,null,null,null,null,null,null,null,null,null,"Condensate pump ( baggerpomp )"]
[null,null,null,null,"HSPL (Haspels)",null,null,null,null,null,null,null,null,null,null,null,null,null,null,null,null,null,null,null,null,null,null,null,null,null,null,null,null,"Constructiewerken en delen van constructiewerken"]
[null,null,null,null,"K1 (Kilogram ad. 100%)",null,null,"Inslagsoort",null,null,null,null,null,null,null,null,null,null,null,null,null,null,null,null,null,null,null,null,null,null,null,null,null,"Coupling Guard; pipelay products bracket"]
[null,null,null,null,"K2 (Kilogram netto uitlekgewicht)",null,null,"BV",null,null,null,null,null,null,null,null,null,null,null,null,null,null,null,null,null,null,null,null,null,null,null,null,null,"Davit system"]
[null,null,null,null,"KB (Kilogram kaliumhydroxyde (bijtende potas))",null,null,"PLAATSING",null,null,null,null,null,null,null,null,null,null,null,null,null,null,null,null,null,null,null,null,null,null,null,null,null,"Diesel Generator en sets 8H32/40"]
["Melding:",null,null,null,"KC (Kilogram choline chloride)",null,null,null,null,null,null,null,null,null,null,null,null,null,null,null,null,null,null,null,null,null,null,null,null,null,null,null,null,"Diesel Generator set 01299-2082-121048/3"]
[null,null,null,null,"KD (Kilogram drooggewicht ad 90%)",null,null,null,null,null,null,null,null,null,null,null,null,null,null,null,null,null,null,null,null,null,null,null,null,null,null,null,null,"Diesel generatoren en sets CO1298"]
["Sheet:",null,null,null,"KG (Kilogram)",null,null,null,null,null,null,null,null,null,null,null,null,null,null,null,null,null,null,null,null,null,null,null,null,null,null,null,null,"Drums"]
[null,null,null,null,"KH (Kilogram waterstofperoxyde)",null,null,null,null,null,null,null,null,null,null,null,null,null,null,null,null,null,null,null,null,null,null,null,null,null,null,null,null,"DW Pipes"]
[null,null,null,null,"KK (Kilogram K2O)",null,null,null,null,null,null,null,null,null,null,null,null,null,null,null,null,null,null,null,null,null,null,null,null,null,null,null,null,"DW pipes and bends"]
[null,null,null,null,"KM (Kilogram methylaminen)",null,null,null,null,null,null,null,null,null,null,null,null,null,null,null,null,null,null,null,null,null,null,null,null,null,null,null,null,"Electrical system 14598"]
[null,null,null,null,"KN (Kilogram N)",null,null,null,null,null,null,null,null,null,null,null,null,null,null,null,null,null,null,null,null,null,null,null,null,null,null,null,null,"elevatoren voor vloeistoffen Serial; 018248099973342939-11300-TAG SDP"]
[null,null,null,null,"KO (Kilogram suiker met een opbrengst aan witte suiker van 92%)",null,null,null,null,null,null,null,null,null,null,null,null,null,null,null,null,null,null,null,null,null,null,null,null,null,null,null,null,"Expansie tank 1000L > SP/02800 - Spartacus"]
[null,null,null,null,"KP (Kilogram P2O5)",null,null,null,null,null,null,null,null,null,null,null,null,null,null,null,null,null,null,null,null,null,null,null,null,null,null,null,null,"FS2510 Transverse Thruster FI171024"]
[null,null,null,null,"KRTN (Kratten)",null,null,null,null,null,null,null,null,null,null,null,null,null,null,null,null,null,null,null,null,null,null,null,null,null,null,null,null,"gen set (diesel- of semi-dieselmotor)"]
[null,null,null,null,"KS (Kilogram kaliumhydroxyde (bijtende soda))",null,null,null,null,null,null,null,null,null,null,null,null,null,null,null,null,null,null,null,null,null,null,null,null,null,null,null,null,"Heating Media Skid"]
[null,null,null,null,"KSTN (Kisten)",null,null,null,null,null,null,null,null,null,null,null,null,null,null,null,null,null,null,null,null,null,null,null,null,null,null,null,null,"Hot well tank CINV734471"]
[null,null,null,null,"KU (Kilogram U)",null,null,null,null,null,null,null,null,null,null,null,null,null,null,null,null,null,null,null,null,null,null,null,null,null,null,null,null,"Impellers"]
[null,null,null,null,"KW (1000 kWh)",null,null,null,null,null,null,null,null,null,null,null,null,null,null,null,null,null,null,null,null,null,null,null,null,null,null,null,null,"Incinerator"]
[null,null,null,null,"L1 (1000 Liter)",null,null,null,null,null,null,null,null,null,null,null,null,null,null,null,null,null,null,null,null,null,null,null,null,null,null,null,null,"Incinerators type GS1000C"]
[null,null,null,null,"LSGS (Los gestort)",null,null,null,null,null,null,null,null,null,null,null,null,null,null,null,null,null,null,null,null,null,null,null,null,null,null,null,null,"Koelkasten, vrieskasten"]
[null,null,null,null,"LT (Liter)",null,null,null,null,null,null,null,null,null,null,null,null,null,null,null,null,null,null,null,null,null,null,null,null,null,null,null,null,"Kraan Primary Spooling Gantry, Lifting Beam, Consol "]
[null,null,null,null,"M2 (Vierkante meter)",null,null,null,null,null,null,null,null,null,null,null,null,null,null,null,null,null,null,null,null,null,null,null,null,null,null,null,null,"Launching Appliance Free Fall Boat"]
[null,null,null,null,"M3 (Kubieke meter)",null,null,null,null,null,null,null,null,null,null,null,null,null,null,null,null,null,null,null,null,null,null,null,null,null,null,null,null,"Lifting devices OC-9973342939 SP 3"]
[null,null,null,null,"M4 (1000 kubieke meter)",null,null,null,null,null,null,null,null,null,null,null,null,null,null,null,null,null,null,null,null,null,null,null,null,null,null,null,null,"Liner gate valve"]
[null,null,null,null,"MB (Kubieke meter, bij een druk van 1013 mbar en een temperatuur van 15°C)",null,null,null,null,null,null,null,null,null,null,null,null,null,null,null,null,null,null,null,null,null,null,null,null,null,null,null,null,"Lips Modular Thruster FS1510"]
[null,null,null,null,"MG (Milligrammen)",null,null,null,null,null,null,null,null,null,null,null,null,null,null,null,null,null,null,null,null,null,null,null,null,null,null,null,null,"LNG Vapour return valve skids"]
[null,null,null,null,"MK (Kilometer)",null,null,null,null,null,null,null,null,null,null,null,null,null,null,null,null,null,null,null,null,null,null,null,null,null,null,null,null,"Mounting plate and foundation"]
[null,null,null,null,"ML (Strekkende meter)",null,null,null,null,null,null,null,null,null,null,null,null,null,null,null,null,null,null,null,null,null,null,null,null,null,null,null,null,"numerieke besturingskast"]
[null,null,null,null,"MML (Strekkende millimeter)",null,null,null,null,null,null,null,null,null,null,null,null,null,null,null,null,null,null,null,null,null,null,null,null,null,null,null,null,"Oil supply units - Delen machines of van toestellen"]
[null,null,null,null,"MT (Laadvermogen in metrieke ton)",null,null,null,null,null,null,null,null,null,null,null,null,null,null,null,null,null,null,null,null,null,null,null,null,null,null,null,null,"onderdelen andere haspels"]
[null,null,null,null,"PA (Paar)",null,null,null,null,null,null,null,null,null,null,null,null,null,null,null,null,null,null,null,null,null,null,null,null,null,null,null,null,"Onderdelen lieren zijnde touw voor reddingsboot"]
[null,null,null,null,"PLTS (Pallets)",null,null,null,null,null,null,null,null,null,null,null,null,null,null,null,null,null,null,null,null,null,null,null,null,null,null,null,null,"Onderdelen scheepsdieselmotoren V damo GKOR identificatie: 2863-860"]
[null,null,null,null,"RLEN (Rollen)",null,null,null,null,null,null,null,null,null,null,null,null,null,null,null,null,null,null,null,null,null,null,null,null,null,null,null,null,"Pakking en sluitringen van ribber"]
[null,null,null,null,"S0 (100 stuks)",null,null,null,null,null,null,null,null,null,null,null,null,null,null,null,null,null,null,null,null,null,null,null,null,null,null,null,null,"Parts for CPP - Delen machines of van toestellen"]
[null,null,null,null,"S1 (1000 stuks)",null,null,null,null,null,null,null,null,null,null,null,null,null,null,null,null,null,null,null,null,null,null,null,null,null,null,null,null,"Parts for installation"]
[null,null,null,null,"ST (Stuks)",null,null,null,null,null,null,null,null,null,null,null,null,null,null,null,null,null,null,null,null,null,null,null,null,null,null,null,null,"Propel. shaft assy - Delen machines of van toestellen"]
[null,null,null,null,"STKS (Stuks)",null,null,null,null,null,null,null,null,null,null,null,null,null,null,null,null,null,null,null,null,null,null,null,null,null,null,null,null,"Propulsion parts SP/03271"]
[null,null,null,null,"TJ (Terrajoule)",null,null,null,null,null,null,null,null,null,null,null,null,null,null,null,null,null,null,null,null,null,null,null,null,null,null,null,null,"Reddingsboten (lifeboat)"]
[null,null,null,null,"TNKS (Tanks)",null,null,null,null,null,null,null,null,null,null,null,null,null,null,null,null,null,null,null,null,null,null,null,null,null,null,null,null,"roller gates for subsea 7"]
[null,null,null,null,"VTEN (Vaten)",null,null,null,null,null,null,null,null,null,null,null,null,null,null,null,null,null,null,null,null,null,null,null,null,null,null,null,null,"Slangen"]
[null,null,null,null,"WT (Aantal watt)",null,null,null,null,null,null,null,null,null,null,null,null,null,null,null,null,null,null,null,null,null,null,null,null,null,null,null,null,"STC10-1419I63243- Sewage Treatment Plant"]
[null,null,null,null,"ZKEN (Zakken)",null,null,null,null,null,null,null,null,null,null,null,null,null,null,null,null,null,null,null,null,null,null,null,null,null,null,null,null,"Thrusterseal package"]
[null,null,null,null,null,null,null,null,null,null,null,null,null,null,null,null,null,null,null,null,null,null,null,null,null,null,null,null,null,null,null,null,null,"Transverse Thruster"]
[null,null,null,null,null,null,null,null,null,null,null,null,null,null,null,null,null,null,null,null,null,null,null,null,null,null,null,null,null,null,null,null,null,"Transverse Thrusters"]
[null,null,null,null,null,null,null,null,null,null,null,null,null,null,null,null,null,null,null,null,null,null,null,null,null,null,null,null,null,null,null,null,null,"Trusther loose parts SP/03271"]
[null,null,null,null,null,null,null,null,null,null,null,null,null,null,null,null,null,null,null,null,null,null,null,null,null,null,null,null,null,null,null,null,null,"Turbine control panel"]
[null,null,null,null,null,null,null,null,null,null,null,null,null,null,null,null,null,null,null,null,null,null,null,null,null,null,null,null,null,null,null,null,null,"turbines voor de voortstuwing van schepen"]
[null,null,null,null,null,null,null,null,null,null,null,null,null,null,null,null,null,null,null,null,null,null,null,null,null,null,null,null,null,null,null,null,null,"Underwater dredge pump Serial 9973342939-11300-TAG SDP"]
[null,null,null,null,null,null,null,null,null,null,null,null,null,null,null,null,null,null,null,null,null,null,null,null,null,null,null,null,null,null,null,null,null,"Vloeistof pompen voor Waste Heat Recovery system"]
[null,null,null,null,null,null,null,null,null,null,null,null,null,null,null,null,null,null,null,null,null,null,null,null,null,null,null,null,null,null,null,null,null,"Waste heat recovery system"]
[null,null,null,null,null,null,null,null,null,null,null,null,null,null,null,null,null,null,null,null,null,null,null,null,null,null,null,null,null,null,null,null,null,"Waste heat Recovery unit"]
[null,null,null,null,null,null,null,null,null,null,null,null,null,null,null,null,null,null,null,null,null,null,null,null,null,null,null,null,null,null,null,null,null,"Eindtotaal"]